Workbook

Sheet INTRO
B2: PC Joint Reporting Form v.3.1
B4: The purpose of this template Joint Reporting Form (JRF) - available as an Excel file - is to provide national health authorities and data managers with a standardized tool to address these reporting challenges, facilitate integration and thereby further contribute to improving overall programme management. This template aims to standardize national reporting of programme implementation outcomes, improve availability and coordination of preventive chemotherapy data across the World Health Organization regions. National authorities are requested to complete this form for submission to the World Health Organization any time before 15 August of the current year for reporting data on PC interventions implemented during the previous year.
B6: Structure of the application (worksheets):
B8: INTRO | C8: This worksheet includes guides on how to complete the joint reporting form and information about status of PC for endemic diseases in the country
B9: COUNTRY_INFO | C9: This worksheet includes information about administrative structure of the country, population by age group, status of endemicity for each disease, population requiring PC, planned interventions and interventions implemented
B10: MDA1, MDA2, MDA3, T1, T2 and T3 | C10: These worksheets include information about endemic districts targeted for treatment with specified PC medicines, treatment plan, and number of people who received treatment by age group
B11: DISTRICT | C11: This worksheet includes summary of people treated by disease at the level of implementation. If data by gender is available, it requires to enter.
B12: SUMMARY | C12: This worksheet includes summary of people treated by disease and by PC intervention. Before generating the report (run macros) please select the disease for which you need the report. Follow the same rule to generate various reports. This worksheet should be printed and submitted as a Joint Report (see the instruction for submission in the SUMMARY worksheet).
B14: Instruction for data entry
B16: Most of the cells in the above-mentioned worksheets include formula that are calculated automatically according to the treatment policy recommended by WHO for each disease. See the link http://www.who.int/neglected_diseases/preventive_chemotherapy/pct_manual/en/index.html
B18: Please enter your data into the cells according to their colour code:
C20: White - cell is not protected. Please enter the value of the requested indicator.
C22: Yellow - cell is protected and includes name of indicator. No data entry required.
C24: Orange - cell is not protected and includes a drop-down menu. Please select the value from the drop-down list.
C27: Green - cell is not protected and includes formula. Please change the value only if your data are different from those that are calculated automatically.
C30: Blue - cell is protected and includes formula. No data entry required.
B32: Country data
B34: COUNTRY | E34: Uganda | G34: UG | H34: UGA
B36: Year of reporting data | E36: 2022
B38: Is country endemic for lymphatic filariasis (LF)? | E38: Endemic but PC is not required
B40: Is country endemic for onchocerciasis (ONCHO)? | E40: Endemic
B42: Is country endemic for soil-transmitted helminthiases (STH)? | E42: Endemic
B44: Is country endemic for schistosomiasis (SCH)? | E44: Endemic
B46: How many administrative units in the country? | E46: 135
B47: If demographical data at the second administrative level are not available by age group, please enter the proportion (%) of population by age group in the country. If data are available, please leave these cells blank.
B48: 1-4 years age | C48: Preschool-age children (PreSAC) | E48: 0.142
B49: 5-14 years age | C49: School-age children (SAC) | E49: 0.302
B50: 15 years + | C50: Adults | E50: 0.521

Sheet COUNTRY_INFO
A1: COUNTRY INFORMATION
A2: Administrative structure, population by age group, endemicity status, planned interventions and interventions implemented | U2: 1.0301
A4: TOTAL | D4: =SUM(D$9:D$993) -> 44361646 | E4: =SUM(E$9:E$993) -> 6299355 | F4: =SUM(F$9:F$993) -> 13397219 | G4: =SUM(G$9:G$993) -> 23112422 | L4: v | M4: =SUM(M$9:M$993) -> 1511426 | N4: =SUM(N$9:N$993) -> 19696574 | O4: =SUM(O$9:O$993) -> 13071304.29
A6: Country administrative structure | D6: Population | H6: Endemicity | L6: Population requiring PC | P6: Number of treatment rounds planned for the year | T6: PC implemented | V6: Click to see the recommended strategy | AP6: mda3 | AQ6: t1 | AR6: t3r1 | AS6: t3r2
A7: Country | B7: Province/State | C7: District | D7: Total | E7: PreSAC | F7: SAC | G7: Adults | H7: LF | I7: Oncho | J7: STH | K7: SCH | L7: LF | M7: Oncho | N7: STH | O7: SCH | P7: LF | Q7: Oncho | R7: STH | S7: SCH | T7: ROUND 1 | U7: ROUND2 | X7: x | Y7: IU_ID | Z7: IU_NAME | AA7: x | AB7: x | AC7: x | AD7: x | AE7: x | AF7: x | AG7: x | AH7: x | AI7: x | AJ7: x | AK7: x | AL7: x | AM7: x | AN7: x | AO7: x | AP7: x | AQ7: x | AR7: x | AS7: x | AT7: x | AU7: x | AV7: x | AW7: x | AX7: x | AY7: x | AZ7: x | BA7: x | BB7: x | BC7: x | BD7: x | BE7: x | BF7: x | BG7: x | BH7: x | BI7: x | BJ7: x
A9: =IF(INTRO!$E$34<>0,INTRO!$E$34,"") -> Uganda | B9: CENTRAL | C9: BUIKWE | D9: 554956 | E9: =IF(INTRO!$E$48="","",ROUND($D9*INTRO!$E$48,0)) -> 78804 | F9: =IF(INTRO!$E$49="","",ROUND($D9*INTRO!$E$49,0)) -> 167597 | G9: =IF(INTRO!$E$50="","",ROUND($D9*INTRO!$E$50,0)) -> 289132 | H9: 0 | I9: 0 | J9: 3 | K9: 2 | L9: 0 | M9: 0 | N9: =IF(INTRO!$E$42="Endemic", IF(AND($J9>1,$J9<5), IF($J9=4, "Unknown", E9+F9), 0),"Not required") -> 246401 | O9: =IF([1]INTRO!$E$43="Endemic", IF(AND($K9>0,$K9<5), IF($K9=4,"Unknown", IF($K9=1, $F9*0.33, IF($K9=2, $F9*0.5+$G9*0.2, SUM(F9:G9)))), 0),"Not required") -> 141624.9 | P9: 0 | Q9: 0 | R9: 2 | S9: 1 | T9: T3 (ALB/MBD) | U9: T1 (PZQ+ALB/MBD) | V9: T1 | W9: T3 | Y9: 49725 | Z9: BUIKWE | AA9: =Z9=C9 -> TRUE | AC9: =ROUND(D9*$U$2,0) -> 571660 | AD9: =_xlfn.XLOOKUP($Y9,[2]COUNTRY_INFO!$Y$9:$Y$143,[2]COUNTRY_INFO!D$9:D$143) -> 537821 | AE9: =(D9-AD9)/AD9*100 -> 3.186004265 | AG9: =_xlfn.XLOOKUP($Y9,[2]COUNTRY_INFO!$Y$9:$Y$143,[2]COUNTRY_INFO!H$9:H$143) -> 0 | AH9: =_xlfn.XLOOKUP($Y9,[2]COUNTRY_INFO!$Y$9:$Y$143,[2]COUNTRY_INFO!I$9:I$143) -> 0 | AI9: =_xlfn.XLOOKUP($Y9,[2]COUNTRY_INFO!$Y$9:$Y$143,[2]COUNTRY_INFO!J$9:J$143) -> 3 | AJ9: =_xlfn.XLOOKUP($Y9,[2]COUNTRY_INFO!$Y$9:$Y$143,[2]COUNTRY_INFO!K$9:K$143) -> 2 | AK9: =AG9=H9 -> TRUE | AL9: =AH9=I9 -> TRUE | AM9: TRUE | AN9: TRUE | AP9: ='MDA3'!Q9 -> 0 | AQ9: ='T1'!M9 -> 87255 | AR9: =T3_R1!L9 -> 100784 | AS9: =T3_R2!L9 -> 84315 | AU9: =(AQ9+AR9)/F9*100 -> 112.1971157
A10: =IF(INTRO!$E$34<>0,INTRO!$E$34,"") -> Uganda | B10: CENTRAL | C10: BUKOMANSIMBI | D10: 192113 | E10: =IF(INTRO!$E$48="","",ROUND($D10*INTRO!$E$48,0)) -> 27280 | F10: =IF(INTRO!$E$49="","",ROUND($D10*INTRO!$E$49,0)) -> 58018 | G10: =IF(INTRO!$E$50="","",ROUND($D10*INTRO!$E$50,0)) -> 100091 | H10: 0 | I10: 0 | J10: 3 | K10: 0 | L10: 0 | M10: 0 | N10: =IF(INTRO!$E$42="Endemic", IF(AND($J10>1,$J10<5), IF($J10=4, "Unknown", E10+F10), 0),"Not required") -> 85298 | O10: =IF([1]INTRO!$E$43="Endemic", IF(AND($K10>0,$K10<5), IF($K10=4,"Unknown", IF($K10=1, $F10*0.33, IF($K10=2, $F10*0.5+$G10*0.2, SUM(F10:G10)))), 0),"Not required") -> 0 | P10: 0 | Q10: 0 | R10: 2 | S10: 0 | T10: T3 (ALB/MBD) | U10: T3 (ALB/MBD) | V10: T3 | W10: T3 | Y10: 49726 | Z10: BUKOMANSIMBI | AA10: =Z10=C10 -> TRUE | AC10: =ROUND(D10*$U$2,0) -> 197896 | AD10: =_xlfn.XLOOKUP($Y10,[2]COUNTRY_INFO!$Y$9:$Y$143,[2]COUNTRY_INFO!D$9:D$143) -> 186181 | AE10: =(D10-AD10)/AD10*100 -> 3.186146814 | AG10: =_xlfn.XLOOKUP($Y10,[2]COUNTRY_INFO!$Y$9:$Y$143,[2]COUNTRY_INFO!H$9:H$143) -> 0 | AH10: =_xlfn.XLOOKUP($Y10,[2]COUNTRY_INFO!$Y$9:$Y$143,[2]COUNTRY_INFO!I$9:I$143) -> 0 | AI10: =_xlfn.XLOOKUP($Y10,[2]COUNTRY_INFO!$Y$9:$Y$143,[2]COUNTRY_INFO!J$9:J$143) -> 3 | AJ10: =_xlfn.XLOOKUP($Y10,[2]COUNTRY_INFO!$Y$9:$Y$143,[2]COUNTRY_INFO!K$9:K$143) -> 0 | AK10: =AG10=H10 -> TRUE | AL10: =AH10=I10 -> TRUE | AM10: =AI10=J10 -> TRUE | AN10: =AJ10=K10 -> TRUE | AP10: ='MDA3'!Q10 -> 0 | AQ10: ='T1'!M10 -> 0 | AR10: =T3_R1!L10 -> 50219 | AS10: =T3_R2!L10 -> 54085
A11: =IF(INTRO!$E$34<>0,INTRO!$E$34,"") -> Uganda | B11: CENTRAL | C11: BUTAMBALA | D11: 127767 | E11: =IF(INTRO!$E$48="","",ROUND($D11*INTRO!$E$48,0)) -> 18143 | F11: =IF(INTRO!$E$49="","",ROUND($D11*INTRO!$E$49,0)) -> 38586 | G11: =IF(INTRO!$E$50="","",ROUND($D11*INTRO!$E$50,0)) -> 66567 | H11: 0 | I11: 0 | J11: 3 | K11: 0 | L11: 0 | M11: 0 | N11: =IF(INTRO!$E$42="Endemic", IF(AND($J11>1,$J11<5), IF($J11=4, "Unknown", E11+F11), 0),"Not required") -> 56729 | O11: =IF([1]INTRO!$E$43="Endemic", IF(AND($K11>0,$K11<5), IF($K11=4,"Unknown", IF($K11=1, $F11*0.33, IF($K11=2, $F11*0.5+$G11*0.2, SUM(F11:G11)))), 0),"Not required") -> 0 | P11: 0 | Q11: 0 | R11: 2 | S11: 0 | T11: T3 (ALB/MBD) | U11: T3 (ALB/MBD) | V11: T3 | W11: T3 | Y11: 49730 | Z11: BUTAMBALA | AA11: TRUE | AC11: 131613 | AD11: =_xlfn.XLOOKUP($Y11,[2]COUNTRY_INFO!$Y$9:$Y$143,[2]COUNTRY_INFO!D$9:D$143) -> 123822 | AE11: 3.186025101 | AG11: =_xlfn.XLOOKUP($Y11,[2]COUNTRY_INFO!$Y$9:$Y$143,[2]COUNTRY_INFO!H$9:H$143) -> 0 | AH11: =_xlfn.XLOOKUP($Y11,[2]COUNTRY_INFO!$Y$9:$Y$143,[2]COUNTRY_INFO!I$9:I$143) -> 0 | AI11: =_xlfn.XLOOKUP($Y11,[2]COUNTRY_INFO!$Y$9:$Y$143,[2]COUNTRY_INFO!J$9:J$143) -> 3 | AJ11: =_xlfn.XLOOKUP($Y11,[2]COUNTRY_INFO!$Y$9:$Y$143,[2]COUNTRY_INFO!K$9:K$143) -> 0 | AK11: TRUE | AL11: TRUE | AM11: TRUE | AN11: TRUE | AP11: ='MDA3'!Q11 -> 0 | AQ11: ='T1'!M11 -> 0 | AR11: =T3_R1!L11 -> 45129 | AS11: =T3_R2!L11 -> 42778
A12: =IF(INTRO!$E$34<>0,INTRO!$E$34,"") -> Uganda | B12: CENTRAL | C12: BUVUMA | D12: 114401 | E12: =IF(INTRO!$E$48="","",ROUND($D12*INTRO!$E$48,0)) -> 16245 | F12: =IF(INTRO!$E$49="","",ROUND($D12*INTRO!$E$49,0)) -> 34549 | G12: =IF(INTRO!$E$50="","",ROUND($D12*INTRO!$E$50,0)) -> 59603 | H12: 0 | I12: 0 | J12: 3 | K12: 3 | L12: 0 | M12: 0 | N12: =IF(INTRO!$E$42="Endemic", IF(AND($J12>1,$J12<5), IF($J12=4, "Unknown", E12+F12), 0),"Not required") -> 50794 | O12: =IF([1]INTRO!$E$43="Endemic", IF(AND($K12>0,$K12<5), IF($K12=4,"Unknown", IF($K12=1, $F12*0.33, IF($K12=2, $F12*0.5+$G12*0.2, SUM(F12:G12)))), 0),"Not required") -> 94152 | P12: 0 | Q12: 0 | R12: 2 | S12: 1 | T12: T3 (ALB/MBD) | U12: T1 (PZQ+ALB/MBD) | V12: T1 | W12: T3 | Y12: 49731 | Z12: BUVUMA | AA12: TRUE | AC12: 117844 | AD12: =_xlfn.XLOOKUP($Y12,[2]COUNTRY_INFO!$Y$9:$Y$143,[2]COUNTRY_INFO!D$9:D$143) -> 110869 | AE12: 3.185741731 | AG12: =_xlfn.XLOOKUP($Y12,[2]COUNTRY_INFO!$Y$9:$Y$143,[2]COUNTRY_INFO!H$9:H$143) -> 0 | AH12: =_xlfn.XLOOKUP($Y12,[2]COUNTRY_INFO!$Y$9:$Y$143,[2]COUNTRY_INFO!I$9:I$143) -> 0 | AI12: =_xlfn.XLOOKUP($Y12,[2]COUNTRY_INFO!$Y$9:$Y$143,[2]COUNTRY_INFO!J$9:J$143) -> 3 | AJ12: =_xlfn.XLOOKUP($Y12,[2]COUNTRY_INFO!$Y$9:$Y$143,[2]COUNTRY_INFO!K$9:K$143) -> 3 | AK12: TRUE | AL12: TRUE | AM12: TRUE | AN12: TRUE | AP12: ='MDA3'!Q12 -> 0 | AQ12: ='T1'!M12 -> 37778 | AR12: =T3_R1!L12 -> 23201 | AS12: =T3_R2!L12 -> 44959 | AU12: =(AQ12+AR12)/F12*100 -> 176.5000434
A13: =IF(INTRO!$E$34<>0,INTRO!$E$34,"") -> Uganda | B13: CENTRAL | C13: GOMBA | D13: 203559 | E13: =IF(INTRO!$E$48="","",ROUND($D13*INTRO!$E$48,0)) -> 28905 | F13: =IF(INTRO!$E$49="","",ROUND($D13*INTRO!$E$49,0)) -> 61475 | G13: =IF(INTRO!$E$50="","",ROUND($D13*INTRO!$E$50,0)) -> 106054 | H13: 0 | I13: 0 | J13: 3 | K13: 3 | L13: 0 | M13: 0 | N13: =IF(INTRO!$E$42="Endemic", IF(AND($J13>1,$J13<5), IF($J13=4, "Unknown", E13+F13), 0),"Not required") -> 90380 | O13: =IF([1]INTRO!$E$43="Endemic", IF(AND($K13>0,$K13<5), IF($K13=4,"Unknown", IF($K13=1, $F13*0.33, IF($K13=2, $F13*0.5+$G13*0.2, SUM(F13:G13)))), 0),"Not required") -> 167529 | P13: 0 | Q13: 0 | R13: 2 | S13: 1 | T13: T3 (ALB/MBD) | U13: T1 (PZQ+ALB/MBD) | V13: T1 | W13: T3 | Y13: 49735 | Z13: GOMBA | AA13: TRUE | AC13: 209686 | AD13: =_xlfn.XLOOKUP($Y13,[2]COUNTRY_INFO!$Y$9:$Y$143,[2]COUNTRY_INFO!D$9:D$143) -> 197274 | AE13: 3.185924146 | AG13: =_xlfn.XLOOKUP($Y13,[2]COUNTRY_INFO!$Y$9:$Y$143,[2]COUNTRY_INFO!H$9:H$143) -> 0 | AH13: =_xlfn.XLOOKUP($Y13,[2]COUNTRY_INFO!$Y$9:$Y$143,[2]COUNTRY_INFO!I$9:I$143) -> 0 | AI13: =_xlfn.XLOOKUP($Y13,[2]COUNTRY_INFO!$Y$9:$Y$143,[2]COUNTRY_INFO!J$9:J$143) -> 3 | AJ13: =_xlfn.XLOOKUP($Y13,[2]COUNTRY_INFO!$Y$9:$Y$143,[2]COUNTRY_INFO!K$9:K$143) -> 3 | AK13: TRUE | AL13: TRUE | AM13: TRUE | AN13: TRUE | AP13: ='MDA3'!Q13 -> 0 | AQ13: ='T1'!M13 -> 14823 | AR13: =T3_R1!L13 -> 47782 | AS13: =T3_R2!L13 -> 92722 | AU13: 101.8381456
A14: =IF(INTRO!$E$34<>0,INTRO!$E$34,"") -> Uganda | B14: CENTRAL | C14: KALANGALA | D14: 67911 | E14: =IF(INTRO!$E$48="","",ROUND($D14*INTRO!$E$48,0)) -> 9643 | F14: =IF(INTRO!$E$49="","",ROUND($D14*INTRO!$E$49,0)) -> 20509 | G14: =IF(INTRO!$E$50="","",ROUND($D14*INTRO!$E$50,0)) -> 35382 | H14: 0 | I14: 0 | J14: 3 | K14: 3 | L14: 0 | M14: 0 | N14: =IF(INTRO!$E$42="Endemic", IF(AND($J14>1,$J14<5), IF($J14=4, "Unknown", E14+F14), 0),"Not required") -> 30152 | O14: =IF([1]INTRO!$E$43="Endemic", IF(AND($K14>0,$K14<5), IF($K14=4,"Unknown", IF($K14=1, $F14*0.33, IF($K14=2, $F14*0.5+$G14*0.2, SUM(F14:G14)))), 0),"Not required") -> 55891 | P14: 0 | Q14: 0 | R14: 2 | S14: 1 | T14: T3 (ALB/MBD) | U14: T1 (PZQ+ALB/MBD) | V14: T1 | W14: T3 | Y14: 49745 | Z14: KALANGALA | AA14: TRUE | AC14: 69955 | AD14: =_xlfn.XLOOKUP($Y14,[2]COUNTRY_INFO!$Y$9:$Y$143,[2]COUNTRY_INFO!D$9:D$143) -> 65814 | AE14: 3.186252165 | AG14: =_xlfn.XLOOKUP($Y14,[2]COUNTRY_INFO!$Y$9:$Y$143,[2]COUNTRY_INFO!H$9:H$143) -> 0 | AH14: =_xlfn.XLOOKUP($Y14,[2]COUNTRY_INFO!$Y$9:$Y$143,[2]COUNTRY_INFO!I$9:I$143) -> 0 | AI14: =_xlfn.XLOOKUP($Y14,[2]COUNTRY_INFO!$Y$9:$Y$143,[2]COUNTRY_INFO!J$9:J$143) -> 3 | AJ14: =_xlfn.XLOOKUP($Y14,[2]COUNTRY_INFO!$Y$9:$Y$143,[2]COUNTRY_INFO!K$9:K$143) -> 3 | AK14: TRUE | AL14: TRUE | AM14: TRUE | AN14: TRUE | AP14: ='MDA3'!Q14 -> 0 | AQ14: ='T1'!M14 -> 7483 | AR14: =T3_R1!L14 -> 22714 | AS14: =T3_R2!L14 -> 19225 | AU14: 147.237798
A15: =IF(INTRO!$E$34<>0,INTRO!$E$34,"") -> Uganda | B15: CENTRAL | C15: KALUNGU | D15: 234153 | E15: =IF(INTRO!$E$48="","",ROUND($D15*INTRO!$E$48,0)) -> 33250 | F15: =IF(INTRO!$E$49="","",ROUND($D15*INTRO!$E$49,0)) -> 70714 | G15: =IF(INTRO!$E$50="","",ROUND($D15*INTRO!$E$50,0)) -> 121994 | H15: 0 | I15: 0 | J15: 3 | K15: 1 | L15: 0 | M15: 0 | N15: =IF(INTRO!$E$42="Endemic", IF(AND($J15>1,$J15<5), IF($J15=4, "Unknown", E15+F15), 0),"Not required") -> 103964 | O15: =IF([1]INTRO!$E$43="Endemic", IF(AND($K15>0,$K15<5), IF($K15=4,"Unknown", IF($K15=1, $F15*0.33, IF($K15=2, $F15*0.5+$G15*0.2, SUM(F15:G15)))), 0),"Not required") -> 23335.62 | P15: 0 | Q15: 0 | R15: 2 | S15: 1 | T15: T3 (ALB/MBD) | U15: T1 (PZQ+ALB/MBD) | V15: T1 | W15: T3 | Y15: 49758 | Z15: KALUNGU | AA15: TRUE | AC15: 241201 | AD15: =_xlfn.XLOOKUP($Y15,[2]COUNTRY_INFO!$Y$9:$Y$143,[2]COUNTRY_INFO!D$9:D$143) -> 226923 | AE15: 3.186102775 | AG15: =_xlfn.XLOOKUP($Y15,[2]COUNTRY_INFO!$Y$9:$Y$143,[2]COUNTRY_INFO!H$9:H$143) -> 0 | AH15: =_xlfn.XLOOKUP($Y15,[2]COUNTRY_INFO!$Y$9:$Y$143,[2]COUNTRY_INFO!I$9:I$143) -> 0 | AI15: =_xlfn.XLOOKUP($Y15,[2]COUNTRY_INFO!$Y$9:$Y$143,[2]COUNTRY_INFO!J$9:J$143) -> 3 | AJ15: =_xlfn.XLOOKUP($Y15,[2]COUNTRY_INFO!$Y$9:$Y$143,[2]COUNTRY_INFO!K$9:K$143) -> 1 | AK15: TRUE | AL15: TRUE | AM15: TRUE | AN15: TRUE | AP15: ='MDA3'!Q15 -> 0 | AQ15: ='T1'!M15 -> 22338 | AR15: =T3_R1!L15 -> 111481 | AS15: =T3_R2!L15 -> 83999 | AU15: 189.2397545
A16: =IF(INTRO!$E$34<>0,INTRO!$E$34,"") -> Uganda | B16: CENTRAL | C16: KAMPALA | D16: 1928086 | E16: =IF(INTRO!$E$48="","",ROUND($D16*INTRO!$E$48,0)) -> 273788 | F16: =IF(INTRO!$E$49="","",ROUND($D16*INTRO!$E$49,0)) -> 582282 | G16: =IF(INTRO!$E$50="","",ROUND($D16*INTRO!$E$50,0)) -> 1004533 | H16: 0 | I16: 0 | J16: 3 | K16: 0 | L16: 0 | M16: 0 | N16: =IF(INTRO!$E$42="Endemic", IF(AND($J16>1,$J16<5), IF($J16=4, "Unknown", E16+F16), 0),"Not required") -> 856070 | O16: =IF([1]INTRO!$E$43="Endemic", IF(AND($K16>0,$K16<5), IF($K16=4,"Unknown", IF($K16=1, $F16*0.33, IF($K16=2, $F16*0.5+$G16*0.2, SUM(F16:G16)))), 0),"Not required") -> 0 | P16: 0 | Q16: 0 | R16: 2 | S16: 0 | T16: T3 (ALB/MBD) | U16: T3 (ALB/MBD) | V16: T3 | W16: T3 | Y16: 49759 | Z16: KAMPALA | AA16: TRUE | AC16: 1986121 | AD16: =_xlfn.XLOOKUP($Y16,[2]COUNTRY_INFO!$Y$9:$Y$143,[2]COUNTRY_INFO!D$9:D$143) -> 1868554 | AE16: 3.185993019 | AG16: =_xlfn.XLOOKUP($Y16,[2]COUNTRY_INFO!$Y$9:$Y$143,[2]COUNTRY_INFO!H$9:H$143) -> 0 | AH16: =_xlfn.XLOOKUP($Y16,[2]COUNTRY_INFO!$Y$9:$Y$143,[2]COUNTRY_INFO!I$9:I$143) -> 0 | AI16: =_xlfn.XLOOKUP($Y16,[2]COUNTRY_INFO!$Y$9:$Y$143,[2]COUNTRY_INFO!J$9:J$143) -> 3 | AJ16: =_xlfn.XLOOKUP($Y16,[2]COUNTRY_INFO!$Y$9:$Y$143,[2]COUNTRY_INFO!K$9:K$143) -> 0 | AK16: TRUE | AL16: TRUE | AM16: TRUE | AN16: TRUE | AP16: ='MDA3'!Q16 -> 0 | AQ16: ='T1'!M16 -> 0 | AR16: =T3_R1!L16 -> 263380 | AS16: =T3_R2!L16 -> 465587
A17: =IF(INTRO!$E$34<>0,INTRO!$E$34,"") -> Uganda | B17: CENTRAL | C17: KASSANDA | D17: 350039 | E17: =IF(INTRO!$E$48="","",ROUND($D17*INTRO!$E$48,0)) -> 49706 | F17: =IF(INTRO!$E$49="","",ROUND($D17*INTRO!$E$49,0)) -> 105712 | G17: =IF(INTRO!$E$50="","",ROUND($D17*INTRO!$E$50,0)) -> 182370 | H17: 0 | I17: 0 | J17: 3 | K17: 1 | L17: 0 | M17: 0 | N17: =IF(INTRO!$E$42="Endemic", IF(AND($J17>1,$J17<5), IF($J17=4, "Unknown", E17+F17), 0),"Not required") -> 155418 | O17: =IF([1]INTRO!$E$43="Endemic", IF(AND($K17>0,$K17<5), IF($K17=4,"Unknown", IF($K17=1, $F17*0.33, IF($K17=2, $F17*0.5+$G17*0.2, SUM(F17:G17)))), 0),"Not required") -> 34884.96 | P17: 0 | Q17: 0 | R17: 2 | S17: 1 | T17: T3 (ALB/MBD) | U17: T1 (PZQ+ALB/MBD) | V17: T1 | W17: T3 | Y17: 49830 | Z17: KASSANDA | AA17: TRUE | AC17: 360575 | AD17: =_xlfn.XLOOKUP($Y17,[2]COUNTRY_INFO!$Y$9:$Y$143,[2]COUNTRY_INFO!D$9:D$143) -> 339231 | AE17: 3.186029579 | AG17: =_xlfn.XLOOKUP($Y17,[2]COUNTRY_INFO!$Y$9:$Y$143,[2]COUNTRY_INFO!H$9:H$143) -> 0 | AH17: =_xlfn.XLOOKUP($Y17,[2]COUNTRY_INFO!$Y$9:$Y$143,[2]COUNTRY_INFO!I$9:I$143) -> 0 | AI17: =_xlfn.XLOOKUP($Y17,[2]COUNTRY_INFO!$Y$9:$Y$143,[2]COUNTRY_INFO!J$9:J$143) -> 3 | AJ17: =_xlfn.XLOOKUP($Y17,[2]COUNTRY_INFO!$Y$9:$Y$143,[2]COUNTRY_INFO!K$9:K$143) -> 1 | AK17: TRUE | AL17: TRUE | AM17: TRUE | AN17: TRUE | AP17: ='MDA3'!Q17 -> 0 | AQ17: ='T1'!M17 -> 40449 | AR17: =T3_R1!L17 -> 75262 | AS17: =T3_R2!L17 -> 76965 | AU17: =(AQ17+AR17)/F17*100 -> 109.458718
A18: =IF(INTRO!$E$34<>0,INTRO!$E$34,"") -> Uganda | B18: CENTRAL | C18: KAYUNGA | D18: 470778 | E18: =IF(INTRO!$E$48="","",ROUND($D18*INTRO!$E$48,0)) -> 66850 | F18: =IF(INTRO!$E$49="","",ROUND($D18*INTRO!$E$49,0)) -> 142175 | G18: =IF(INTRO!$E$50="","",ROUND($D18*INTRO!$E$50,0)) -> 245275 | H18: 0 | I18: 0 | J18: 3 | K18: 3 | L18: 0 | M18: 0 | N18: =IF(INTRO!$E$42="Endemic", IF(AND($J18>1,$J18<5), IF($J18=4, "Unknown", E18+F18), 0),"Not required") -> 209025 | O18: =IF([1]INTRO!$E$43="Endemic", IF(AND($K18>0,$K18<5), IF($K18=4,"Unknown", IF($K18=1, $F18*0.33, IF($K18=2, $F18*0.5+$G18*0.2, SUM(F18:G18)))), 0),"Not required") -> 387450 | P18: 0 | Q18: 0 | R18: 2 | S18: 1 | T18: T3 (ALB/MBD) | U18: T1 (PZQ+ALB/MBD) | V18: T1 | W18: T3 | Y18: 49761 | Z18: KAYUNGA | AA18: TRUE | AC18: 484948 | AD18: =_xlfn.XLOOKUP($Y18,[2]COUNTRY_INFO!$Y$9:$Y$143,[2]COUNTRY_INFO!D$9:D$143) -> 456242 | AE18: 3.186028467 | AG18: =_xlfn.XLOOKUP($Y18,[2]COUNTRY_INFO!$Y$9:$Y$143,[2]COUNTRY_INFO!H$9:H$143) -> 0 | AH18: =_xlfn.XLOOKUP($Y18,[2]COUNTRY_INFO!$Y$9:$Y$143,[2]COUNTRY_INFO!I$9:I$143) -> 0 | AI18: =_xlfn.XLOOKUP($Y18,[2]COUNTRY_INFO!$Y$9:$Y$143,[2]COUNTRY_INFO!J$9:J$143) -> 3 | AJ18: =_xlfn.XLOOKUP($Y18,[2]COUNTRY_INFO!$Y$9:$Y$143,[2]COUNTRY_INFO!K$9:K$143) -> 3 | AK18: TRUE | AL18: TRUE | AM18: TRUE | AN18: TRUE | AP18: ='MDA3'!Q18 -> 0 | AQ18: ='T1'!M18 -> 64126 | AR18: =T3_R1!L18 -> 98536 | AS18: =T3_R2!L18 -> 106023 | AU18: 114.4097063
A19: =IF(INTRO!$E$34<>0,INTRO!$E$34,"") -> Uganda | B19: CENTRAL | C19: KIBOGA | D19: 188484 | E19: =IF(INTRO!$E$48="","",ROUND($D19*INTRO!$E$48,0)) -> 26765 | F19: =IF(INTRO!$E$49="","",ROUND($D19*INTRO!$E$49,0)) -> 56922 | G19: =IF(INTRO!$E$50="","",ROUND($D19*INTRO!$E$50,0)) -> 98200 | H19: 0 | I19: 0 | J19: 3 | K19: 0 | L19: 0 | M19: 0 | N19: =IF(INTRO!$E$42="Endemic", IF(AND($J19>1,$J19<5), IF($J19=4, "Unknown", E19+F19), 0),"Not required") -> 83687 | O19: =IF([1]INTRO!$E$43="Endemic", IF(AND($K19>0,$K19<5), IF($K19=4,"Unknown", IF($K19=1, $F19*0.33, IF($K19=2, $F19*0.5+$G19*0.2, SUM(F19:G19)))), 0),"Not required") -> 0 | P19: 0 | Q19: 0 | R19: 2 | S19: 0 | T19: T3 (ALB/MBD) | U19: T3 (ALB/MBD) | V19: T3 | W19: T3 | Y19: 49762 | Z19: KIBOGA | AA19: TRUE | AC19: 194157 | AD19: =_xlfn.XLOOKUP($Y19,[2]COUNTRY_INFO!$Y$9:$Y$143,[2]COUNTRY_INFO!D$9:D$143) -> 182664 | AE19: 3.1861779 | AG19: =_xlfn.XLOOKUP($Y19,[2]COUNTRY_INFO!$Y$9:$Y$143,[2]COUNTRY_INFO!H$9:H$143) -> 0 | AH19: =_xlfn.XLOOKUP($Y19,[2]COUNTRY_INFO!$Y$9:$Y$143,[2]COUNTRY_INFO!I$9:I$143) -> 0 | AI19: =_xlfn.XLOOKUP($Y19,[2]COUNTRY_INFO!$Y$9:$Y$143,[2]COUNTRY_INFO!J$9:J$143) -> 3 | AJ19: =_xlfn.XLOOKUP($Y19,[2]COUNTRY_INFO!$Y$9:$Y$143,[2]COUNTRY_INFO!K$9:K$143) -> 0 | AK19: TRUE | AL19: TRUE | AM19: TRUE | AN19: TRUE | AP19: ='MDA3'!Q19 -> 0 | AQ19: ='T1'!M19 -> 0 | AR19: =T3_R1!L19 -> 46568 | AS19: =T3_R2!L19 -> 97015
A20: =IF(INTRO!$E$34<>0,INTRO!$E$34,"") -> Uganda | B20: CENTRAL | C20: KYANKWANZI | D20: 273014 | E20: =IF(INTRO!$E$48="","",ROUND($D20*INTRO!$E$48,0)) -> 38768 | F20: =IF(INTRO!$E$49="","",ROUND($D20*INTRO!$E$49,0)) -> 82450 | G20: =IF(INTRO!$E$50="","",ROUND($D20*INTRO!$E$50,0)) -> 142240 | H20: 0 | I20: 0 | J20: 3 | K20: 0 | L20: 0 | M20: 0 | N20: =IF(INTRO!$E$42="Endemic", IF(AND($J20>1,$J20<5), IF($J20=4, "Unknown", E20+F20), 0),"Not required") -> 121218 | O20: =IF([1]INTRO!$E$43="Endemic", IF(AND($K20>0,$K20<5), IF($K20=4,"Unknown", IF($K20=1, $F20*0.33, IF($K20=2, $F20*0.5+$G20*0.2, SUM(F20:G20)))), 0),"Not required") -> 0 | P20: 0 | Q20: 0 | R20: 2 | S20: 0 | T20: T3 (ALB/MBD) | U20: T3 (ALB/MBD) | V20: T3 | W20: T3 | Y20: 49769 | Z20: KYANKWANZI | AA20: TRUE | AC20: 281232 | AD20: =_xlfn.XLOOKUP($Y20,[2]COUNTRY_INFO!$Y$9:$Y$143,[2]COUNTRY_INFO!D$9:D$143) -> 264584 | AE20: 3.186133704 | AG20: =_xlfn.XLOOKUP($Y20,[2]COUNTRY_INFO!$Y$9:$Y$143,[2]COUNTRY_INFO!H$9:H$143) -> 0 | AH20: =_xlfn.XLOOKUP($Y20,[2]COUNTRY_INFO!$Y$9:$Y$143,[2]COUNTRY_INFO!I$9:I$143) -> 0 | AI20: =_xlfn.XLOOKUP($Y20,[2]COUNTRY_INFO!$Y$9:$Y$143,[2]COUNTRY_INFO!J$9:J$143) -> 3 | AJ20: =_xlfn.XLOOKUP($Y20,[2]COUNTRY_INFO!$Y$9:$Y$143,[2]COUNTRY_INFO!K$9:K$143) -> 0 | AK20: TRUE | AL20: TRUE | AM20: TRUE | AN20: TRUE | AP20: ='MDA3'!Q20 -> 0 | AQ20: ='T1'!M20 -> 0 | AR20: =T3_R1!L20 -> 84807 | AS20: =T3_R2!L20 -> 83730
A21: =IF(INTRO!$E$34<>0,INTRO!$E$34,"") -> Uganda | B21: CENTRAL | C21: KYOTERA | D21: 205904 | E21: =IF(INTRO!$E$48="","",ROUND($D21*INTRO!$E$48,0)) -> 29238 | F21: =IF(INTRO!$E$49="","",ROUND($D21*INTRO!$E$49,0)) -> 62183 | G21: =IF(INTRO!$E$50="","",ROUND($D21*INTRO!$E$50,0)) -> 107276 | H21: 0 | I21: 0 | J21: 3 | K21: 1 | L21: 0 | M21: 0 | N21: =IF(INTRO!$E$42="Endemic", IF(AND($J21>1,$J21<5), IF($J21=4, "Unknown", E21+F21), 0),"Not required") -> 91421 | O21: =IF([1]INTRO!$E$43="Endemic", IF(AND($K21>0,$K21<5), IF($K21=4,"Unknown", IF($K21=1, $F21*0.33, IF($K21=2, $F21*0.5+$G21*0.2, SUM(F21:G21)))), 0),"Not required") -> 20520.39 | P21: 0 | Q21: 0 | R21: 2 | S21: 1 | T21: T3 (ALB/MBD) | U21: T1 (PZQ+ALB/MBD) | V21: T1 | W21: T3 | Y21: 49823 | Z21: KYOTERA | AA21: TRUE | AC21: 212102 | AD21: =_xlfn.XLOOKUP($Y21,[2]COUNTRY_INFO!$Y$9:$Y$143,[2]COUNTRY_INFO!D$9:D$143) -> 199546 | AE21: 3.186232748 | AG21: =_xlfn.XLOOKUP($Y21,[2]COUNTRY_INFO!$Y$9:$Y$143,[2]COUNTRY_INFO!H$9:H$143) -> 0 | AH21: =_xlfn.XLOOKUP($Y21,[2]COUNTRY_INFO!$Y$9:$Y$143,[2]COUNTRY_INFO!I$9:I$143) -> 0 | AI21: =_xlfn.XLOOKUP($Y21,[2]COUNTRY_INFO!$Y$9:$Y$143,[2]COUNTRY_INFO!J$9:J$143) -> 3 | AJ21: =_xlfn.XLOOKUP($Y21,[2]COUNTRY_INFO!$Y$9:$Y$143,[2]COUNTRY_INFO!K$9:K$143) -> 1 | AK21: TRUE | AL21: TRUE | AM21: TRUE | AN21: TRUE | AP21: ='MDA3'!Q21 -> 0 | AQ21: ='T1'!M21 -> 34723 | AR21: =T3_R1!L21 -> 85513 | AS21: =T3_R2!L21 -> 90362 | AU21: =(AQ21+AR21)/F21*100 -> 193.3583134
A22: =IF(INTRO!$E$34<>0,INTRO!$E$34,"") -> Uganda | B22: CENTRAL | C22: LUWERO | D22: 581086 | E22: =IF(INTRO!$E$48="","",ROUND($D22*INTRO!$E$48,0)) -> 82514 | F22: =IF(INTRO!$E$49="","",ROUND($D22*INTRO!$E$49,0)) -> 175488 | G22: =IF(INTRO!$E$50="","",ROUND($D22*INTRO!$E$50,0)) -> 302746 | H22: 0 | I22: 0 | J22: 3 | K22: 0 | L22: 0 | M22: 0 | N22: =IF(INTRO!$E$42="Endemic", IF(AND($J22>1,$J22<5), IF($J22=4, "Unknown", E22+F22), 0),"Not required") -> 258002 | O22: =IF([1]INTRO!$E$43="Endemic", IF(AND($K22>0,$K22<5), IF($K22=4,"Unknown", IF($K22=1, $F22*0.33, IF($K22=2, $F22*0.5+$G22*0.2, SUM(F22:G22)))), 0),"Not required") -> 0 | P22: 0 | Q22: 0 | R22: 2 | S22: 0 | T22: T3 (ALB/MBD) | U22: T3 (ALB/MBD) | V22: T3 | W22: T3 | Y22: 49774 | Z22: LUWERO | AA22: TRUE | AC22: 598577 | AD22: =_xlfn.XLOOKUP($Y22,[2]COUNTRY_INFO!$Y$9:$Y$143,[2]COUNTRY_INFO!D$9:D$143) -> 563144 | AE22: 3.186041226 | AG22: =_xlfn.XLOOKUP($Y22,[2]COUNTRY_INFO!$Y$9:$Y$143,[2]COUNTRY_INFO!H$9:H$143) -> 0 | AH22: =_xlfn.XLOOKUP($Y22,[2]COUNTRY_INFO!$Y$9:$Y$143,[2]COUNTRY_INFO!I$9:I$143) -> 0 | AI22: =_xlfn.XLOOKUP($Y22,[2]COUNTRY_INFO!$Y$9:$Y$143,[2]COUNTRY_INFO!J$9:J$143) -> 3 | AJ22: =_xlfn.XLOOKUP($Y22,[2]COUNTRY_INFO!$Y$9:$Y$143,[2]COUNTRY_INFO!K$9:K$143) -> 0 | AK22: TRUE | AL22: TRUE | AM22: TRUE | AN22: TRUE | AP22: ='MDA3'!Q22 -> 0 | AQ22: ='T1'!M22 -> 0 | AR22: =T3_R1!L22 -> 266934 | AS22: =T3_R2!L22 -> 202237
A23: =IF(INTRO!$E$34<>0,INTRO!$E$34,"") -> Uganda | B23: CENTRAL | C23: LWENGO | D23: 350274 | E23: =IF(INTRO!$E$48="","",ROUND($D23*INTRO!$E$48,0)) -> 49739 | F23: =IF(INTRO!$E$49="","",ROUND($D23*INTRO!$E$49,0)) -> 105783 | G23: =IF(INTRO!$E$50="","",ROUND($D23*INTRO!$E$50,0)) -> 182493 | H23: 0 | I23: 0 | J23: 3 | K23: 0 | L23: 0 | M23: 0 | N23: =IF(INTRO!$E$42="Endemic", IF(AND($J23>1,$J23<5), IF($J23=4, "Unknown", E23+F23), 0),"Not required") -> 155522 | O23: =IF([1]INTRO!$E$43="Endemic", IF(AND($K23>0,$K23<5), IF($K23=4,"Unknown", IF($K23=1, $F23*0.33, IF($K23=2, $F23*0.5+$G23*0.2, SUM(F23:G23)))), 0),"Not required") -> 0 | P23: 0 | Q23: 0 | R23: 2 | S23: 0 | T23: T3 (ALB/MBD) | U23: T3 (ALB/MBD) | V23: T3 | W23: T3 | Y23: 49775 | Z23: LWENGO | AA23: TRUE | AC23: 360817 | AD23: =_xlfn.XLOOKUP($Y23,[2]COUNTRY_INFO!$Y$9:$Y$143,[2]COUNTRY_INFO!D$9:D$143) -> 339459 | AE23: 3.185951764 | AG23: =_xlfn.XLOOKUP($Y23,[2]COUNTRY_INFO!$Y$9:$Y$143,[2]COUNTRY_INFO!H$9:H$143) -> 0 | AH23: =_xlfn.XLOOKUP($Y23,[2]COUNTRY_INFO!$Y$9:$Y$143,[2]COUNTRY_INFO!I$9:I$143) -> 0 | AI23: =_xlfn.XLOOKUP($Y23,[2]COUNTRY_INFO!$Y$9:$Y$143,[2]COUNTRY_INFO!J$9:J$143) -> 3 | AJ23: =_xlfn.XLOOKUP($Y23,[2]COUNTRY_INFO!$Y$9:$Y$143,[2]COUNTRY_INFO!K$9:K$143) -> 0 | AK23: TRUE | AL23: TRUE | AM23: TRUE | AN23: TRUE | AP23: ='MDA3'!Q23 -> 0 | AQ23: ='T1'!M23 -> 0 | AR23: =T3_R1!L23 -> 77601 | AS23: =T3_R2!L23 -> 148870
A24: =IF(INTRO!$E$34<>0,INTRO!$E$34,"") -> Uganda | B24: CENTRAL | C24: LYANTONDE | D24: 120259 | E24: =IF(INTRO!$E$48="","",ROUND($D24*INTRO!$E$48,0)) -> 17077 | F24: =IF(INTRO!$E$49="","",ROUND($D24*INTRO!$E$49,0)) -> 36318 | G24: =IF(INTRO!$E$50="","",ROUND($D24*INTRO!$E$50,0)) -> 62655 | H24: 0 | I24: 0 | J24: 3 | K24: 0 | L24: 0 | M24: 0 | N24: =IF(INTRO!$E$42="Endemic", IF(AND($J24>1,$J24<5), IF($J24=4, "Unknown", E24+F24), 0),"Not required") -> 53395 | O24: =IF([1]INTRO!$E$43="Endemic", IF(AND($K24>0,$K24<5), IF($K24=4,"Unknown", IF($K24=1, $F24*0.33, IF($K24=2, $F24*0.5+$G24*0.2, SUM(F24:G24)))), 0),"Not required") -> 0 | P24: 0 | Q24: 0 | R24: 2 | S24: 0 | T24: T3 (ALB/MBD) | U24: T3 (ALB/MBD) | V24: T3 | W24: T3 | Y24: 49776 | Z24: LYANTONDE | AA24: TRUE | AC24: =ROUND(D24*$U$2,0) -> 123879 | AD24: =_xlfn.XLOOKUP($Y24,[2]COUNTRY_INFO!$Y$9:$Y$143,[2]COUNTRY_INFO!D$9:D$143) -> 116546 | AE24: =(D24-AD24)/AD24*100 -> 3.185866525 | AG24: =_xlfn.XLOOKUP($Y24,[2]COUNTRY_INFO!$Y$9:$Y$143,[2]COUNTRY_INFO!H$9:H$143) -> 0 | AH24: =_xlfn.XLOOKUP($Y24,[2]COUNTRY_INFO!$Y$9:$Y$143,[2]COUNTRY_INFO!I$9:I$143) -> 0 | AI24: =_xlfn.XLOOKUP($Y24,[2]COUNTRY_INFO!$Y$9:$Y$143,[2]COUNTRY_INFO!J$9:J$143) -> 3 | AJ24: =_xlfn.XLOOKUP($Y24,[2]COUNTRY_INFO!$Y$9:$Y$143,[2]COUNTRY_INFO!K$9:K$143) -> 0 | AK24: TRUE | AL24: TRUE | AM24: TRUE | AN24: TRUE | AP24: ='MDA3'!Q24 -> 0 | AQ24: ='T1'!M24 -> 0 | AR24: =T3_R1!L24 -> 52169 | AS24: =T3_R2!L24 -> 38436
A25: =IF(INTRO!$E$34<>0,INTRO!$E$34,"") -> Uganda | B25: CENTRAL | C25: MASAKA | D25: 377230 | E25: =IF(INTRO!$E$48="","",ROUND($D25*INTRO!$E$48,0)) -> 53567 | F25: =IF(INTRO!$E$49="","",ROUND($D25*INTRO!$E$49,0)) -> 113923 | G25: =IF(INTRO!$E$50="","",ROUND($D25*INTRO!$E$50,0)) -> 196537 | H25: 0 | I25: 0 | J25: 3 | K25: 3 | L25: 0 | M25: 0 | N25: =IF(INTRO!$E$42="Endemic", IF(AND($J25>1,$J25<5), IF($J25=4, "Unknown", E25+F25), 0),"Not required") -> 167490 | O25: =IF([1]INTRO!$E$43="Endemic", IF(AND($K25>0,$K25<5), IF($K25=4,"Unknown", IF($K25=1, $F25*0.33, IF($K25=2, $F25*0.5+$G25*0.2, SUM(F25:G25)))), 0),"Not required") -> 310460 | P25: 0 | Q25: 0 | R25: 2 | S25: 1 | T25: T3 (ALB/MBD) | U25: T1 (PZQ+ALB/MBD) | V25: T1 | W25: T3 | Y25: 49785 | Z25: MASAKA | AA25: TRUE | AC25: 388585 | AD25: =_xlfn.XLOOKUP($Y25,[2]COUNTRY_INFO!$Y$9:$Y$143,[2]COUNTRY_INFO!D$9:D$143) -> 365583 | AE25: 3.18587024 | AG25: =_xlfn.XLOOKUP($Y25,[2]COUNTRY_INFO!$Y$9:$Y$143,[2]COUNTRY_INFO!H$9:H$143) -> 0 | AH25: =_xlfn.XLOOKUP($Y25,[2]COUNTRY_INFO!$Y$9:$Y$143,[2]COUNTRY_INFO!I$9:I$143) -> 0 | AI25: =_xlfn.XLOOKUP($Y25,[2]COUNTRY_INFO!$Y$9:$Y$143,[2]COUNTRY_INFO!J$9:J$143) -> 3 | AJ25: =_xlfn.XLOOKUP($Y25,[2]COUNTRY_INFO!$Y$9:$Y$143,[2]COUNTRY_INFO!K$9:K$143) -> 3 | AK25: TRUE | AL25: TRUE | AM25: TRUE | AN25: TRUE | AP25: ='MDA3'!Q25 -> 0 | AQ25: ='T1'!M25 -> 35725 | AR25: =T3_R1!L25 -> 90671 | AS25: =T3_R2!L25 -> 128331 | AU25: =(AQ25+AR25)/F25*100 -> 110.9486232
A26: =IF(INTRO!$E$34<>0,INTRO!$E$34,"") -> Uganda | B26: CENTRAL | C26: MITYANA | D26: 421254 | E26: =IF(INTRO!$E$48="","",ROUND($D26*INTRO!$E$48,0)) -> 59818 | F26: =IF(INTRO!$E$49="","",ROUND($D26*INTRO!$E$49,0)) -> 127219 | G26: =IF(INTRO!$E$50="","",ROUND($D26*INTRO!$E$50,0)) -> 219473 | H26: 0 | I26: 0 | J26: 3 | K26: 3 | L26: 0 | M26: 0 | N26: =IF(INTRO!$E$42="Endemic", IF(AND($J26>1,$J26<5), IF($J26=4, "Unknown", E26+F26), 0),"Not required") -> 187037 | O26: =IF([1]INTRO!$E$43="Endemic", IF(AND($K26>0,$K26<5), IF($K26=4,"Unknown", IF($K26=1, $F26*0.33, IF($K26=2, $F26*0.5+$G26*0.2, SUM(F26:G26)))), 0),"Not required") -> 346692 | P26: 0 | Q26: 0 | R26: 2 | S26: 1 | T26: T3 (ALB/MBD) | U26: T1 (PZQ+ALB/MBD) | V26: T1 | W26: T3 | Y26: 49788 | Z26: MITYANA | AA26: TRUE | AC26: 433934 | AD26: =_xlfn.XLOOKUP($Y26,[2]COUNTRY_INFO!$Y$9:$Y$143,[2]COUNTRY_INFO!D$9:D$143) -> 408247 | AE26: 3.18606138 | AG26: =_xlfn.XLOOKUP($Y26,[2]COUNTRY_INFO!$Y$9:$Y$143,[2]COUNTRY_INFO!H$9:H$143) -> 0 | AH26: =_xlfn.XLOOKUP($Y26,[2]COUNTRY_INFO!$Y$9:$Y$143,[2]COUNTRY_INFO!I$9:I$143) -> 0 | AI26: =_xlfn.XLOOKUP($Y26,[2]COUNTRY_INFO!$Y$9:$Y$143,[2]COUNTRY_INFO!J$9:J$143) -> 3 | AJ26: =_xlfn.XLOOKUP($Y26,[2]COUNTRY_INFO!$Y$9:$Y$143,[2]COUNTRY_INFO!K$9:K$143) -> 3 | AK26: TRUE | AL26: TRUE | AM26: TRUE | AN26: TRUE | AP26: ='MDA3'!Q26 -> 0 | AQ26: ='T1'!M26 -> 14406 | AR26: =T3_R1!L26 -> 84163 | AS26: =T3_R2!L26 -> 84425 | AU26: 77.47977896
A27: =IF(INTRO!$E$34<>0,INTRO!$E$34,"") -> Uganda | B27: CENTRAL | C27: MPIGI | D27: 319834 | E27: =IF(INTRO!$E$48="","",ROUND($D27*INTRO!$E$48,0)) -> 45416 | F27: =IF(INTRO!$E$49="","",ROUND($D27*INTRO!$E$49,0)) -> 96590 | G27: =IF(INTRO!$E$50="","",ROUND($D27*INTRO!$E$50,0)) -> 166634 | H27: 0 | I27: 0 | J27: 3 | K27: 2 | L27: 0 | M27: 0 | N27: =IF(INTRO!$E$42="Endemic", IF(AND($J27>1,$J27<5), IF($J27=4, "Unknown", E27+F27), 0),"Not required") -> 142006 | O27: =IF([1]INTRO!$E$43="Endemic", IF(AND($K27>0,$K27<5), IF($K27=4,"Unknown", IF($K27=1, $F27*0.33, IF($K27=2, $F27*0.5+$G27*0.2, SUM(F27:G27)))), 0),"Not required") -> 81621.8 | P27: 0 | Q27: 0 | R27: 2 | S27: 1 | T27: T3 (ALB/MBD) | U27: T1 (PZQ+ALB/MBD) | V27: T1 | W27: T3 | Y27: 49789 | Z27: MPIGI | AA27: TRUE | AC27: 329461 | AD27: =_xlfn.XLOOKUP($Y27,[2]COUNTRY_INFO!$Y$9:$Y$143,[2]COUNTRY_INFO!D$9:D$143) -> 309959 | AE27: 3.185905233 | AG27: =_xlfn.XLOOKUP($Y27,[2]COUNTRY_INFO!$Y$9:$Y$143,[2]COUNTRY_INFO!H$9:H$143) -> 0 | AH27: =_xlfn.XLOOKUP($Y27,[2]COUNTRY_INFO!$Y$9:$Y$143,[2]COUNTRY_INFO!I$9:I$143) -> 0 | AI27: =_xlfn.XLOOKUP($Y27,[2]COUNTRY_INFO!$Y$9:$Y$143,[2]COUNTRY_INFO!J$9:J$143) -> 3 | AJ27: =_xlfn.XLOOKUP($Y27,[2]COUNTRY_INFO!$Y$9:$Y$143,[2]COUNTRY_INFO!K$9:K$143) -> 2 | AK27: TRUE | AL27: TRUE | AM27: TRUE | AN27: TRUE | AP27: ='MDA3'!Q27 -> 0 | AQ27: ='T1'!M27 -> 26974 | AR27: =T3_R1!L27 -> 55866 | AS27: =T3_R2!L27 -> 53334 | AU27: 85.7645719
A28: =IF(INTRO!$E$34<>0,INTRO!$E$34,"") -> Uganda | B28: CENTRAL | C28: MUBENDE | D28: 525893 | E28: =IF(INTRO!$E$48="","",ROUND($D28*INTRO!$E$48,0)) -> 74677 | F28: =IF(INTRO!$E$49="","",ROUND($D28*INTRO!$E$49,0)) -> 158820 | G28: =IF(INTRO!$E$50="","",ROUND($D28*INTRO!$E$50,0)) -> 273990 | H28: 0 | I28: 0 | J28: 3 | K28: 1 | L28: 0 | M28: 0 | N28: =IF(INTRO!$E$42="Endemic", IF(AND($J28>1,$J28<5), IF($J28=4, "Unknown", E28+F28), 0),"Not required") -> 233497 | O28: =IF([1]INTRO!$E$43="Endemic", IF(AND($K28>0,$K28<5), IF($K28=4,"Unknown", IF($K28=1, $F28*0.33, IF($K28=2, $F28*0.5+$G28*0.2, SUM(F28:G28)))), 0),"Not required") -> 52410.6 | P28: 0 | Q28: 0 | R28: 2 | S28: 1 | T28: T3 (ALB/MBD) | U28: T1 (PZQ+ALB/MBD) | V28: T1 | W28: T3 | Y28: 49790 | Z28: MUBENDE | AA28: TRUE | AC28: 541722 | AD28: =_xlfn.XLOOKUP($Y28,[2]COUNTRY_INFO!$Y$9:$Y$143,[2]COUNTRY_INFO!D$9:D$143) -> 509655 | AE28: 3.186076856 | AG28: =_xlfn.XLOOKUP($Y28,[2]COUNTRY_INFO!$Y$9:$Y$143,[2]COUNTRY_INFO!H$9:H$143) -> 0 | AH28: =_xlfn.XLOOKUP($Y28,[2]COUNTRY_INFO!$Y$9:$Y$143,[2]COUNTRY_INFO!I$9:I$143) -> 0 | AI28: =_xlfn.XLOOKUP($Y28,[2]COUNTRY_INFO!$Y$9:$Y$143,[2]COUNTRY_INFO!J$9:J$143) -> 3 | AJ28: =_xlfn.XLOOKUP($Y28,[2]COUNTRY_INFO!$Y$9:$Y$143,[2]COUNTRY_INFO!K$9:K$143) -> 1 | AK28: TRUE | AL28: TRUE | AM28: TRUE | AN28: TRUE | AP28: ='MDA3'!Q28 -> 0 | AQ28: ='T1'!M28 -> 31256 | AR28: =T3_R1!L28 -> 128726 | AS28: =T3_R2!L28 -> 137676 | AU28: 100.7316459
A29: =IF(INTRO!$E$34<>0,INTRO!$E$34,"") -> Uganda | B29: CENTRAL | C29: MUKONO | D29: 762754 | E29: =IF(INTRO!$E$48="","",ROUND($D29*INTRO!$E$48,0)) -> 108311 | F29: =IF(INTRO!$E$49="","",ROUND($D29*INTRO!$E$49,0)) -> 230352 | G29: =IF(INTRO!$E$50="","",ROUND($D29*INTRO!$E$50,0)) -> 397395 | H29: 0 | I29: 0 | J29: 3 | K29: 3 | L29: 0 | M29: 0 | N29: =IF(INTRO!$E$42="Endemic", IF(AND($J29>1,$J29<5), IF($J29=4, "Unknown", E29+F29), 0),"Not required") -> 338663 | O29: =IF([1]INTRO!$E$43="Endemic", IF(AND($K29>0,$K29<5), IF($K29=4,"Unknown", IF($K29=1, $F29*0.33, IF($K29=2, $F29*0.5+$G29*0.2, SUM(F29:G29)))), 0),"Not required") -> 627747 | P29: 0 | Q29: 0 | R29: 2 | S29: 1 | T29: T3 (ALB/MBD) | U29: T1 (PZQ+ALB/MBD) | V29: T1 | W29: T3 | Y29: 49783 | Z29: MUKONO | AA29: TRUE | AC29: 785713 | AD29: =_xlfn.XLOOKUP($Y29,[2]COUNTRY_INFO!$Y$9:$Y$143,[2]COUNTRY_INFO!D$9:D$143) -> 739203 | AE29: 3.185998975 | AG29: =_xlfn.XLOOKUP($Y29,[2]COUNTRY_INFO!$Y$9:$Y$143,[2]COUNTRY_INFO!H$9:H$143) -> 0 | AH29: =_xlfn.XLOOKUP($Y29,[2]COUNTRY_INFO!$Y$9:$Y$143,[2]COUNTRY_INFO!I$9:I$143) -> 0 | AI29: =_xlfn.XLOOKUP($Y29,[2]COUNTRY_INFO!$Y$9:$Y$143,[2]COUNTRY_INFO!J$9:J$143) -> 3 | AJ29: =_xlfn.XLOOKUP($Y29,[2]COUNTRY_INFO!$Y$9:$Y$143,[2]COUNTRY_INFO!K$9:K$143) -> 3 | AK29: TRUE | AL29: TRUE | AM29: TRUE | AN29: TRUE | AP29: ='MDA3'!Q29 -> 0 | AQ29: ='T1'!M29 -> 31302 | AR29: =T3_R1!L29 -> 140051 | AS29: =T3_R2!L29 -> 51242 | AU29: 74.38745919
A30: =IF(INTRO!$E$34<>0,INTRO!$E$34,"") -> Uganda | B30: CENTRAL | C30: NAKASEKE | D30: 251410 | E30: =IF(INTRO!$E$48="","",ROUND($D30*INTRO!$E$48,0)) -> 35700 | F30: =IF(INTRO!$E$49="","",ROUND($D30*INTRO!$E$49,0)) -> 75926 | G30: =IF(INTRO!$E$50="","",ROUND($D30*INTRO!$E$50,0)) -> 130985 | H30: 0 | I30: 0 | J30: 3 | K30: 0 | L30: 0 | M30: 0 | N30: =IF(INTRO!$E$42="Endemic", IF(AND($J30>1,$J30<5), IF($J30=4, "Unknown", E30+F30), 0),"Not required") -> 111626 | O30: =IF([1]INTRO!$E$43="Endemic", IF(AND($K30>0,$K30<5), IF($K30=4,"Unknown", IF($K30=1, $F30*0.33, IF($K30=2, $F30*0.5+$G30*0.2, SUM(F30:G30)))), 0),"Not required") -> 0 | P30: 0 | Q30: 0 | R30: 2 | S30: 0 | T30: T3 (ALB/MBD) | U30: T3 (ALB/MBD) | V30: T3 | W30: T3 | Y30: 49795 | Z30: NAKASEKE | AA30: TRUE | AC30: 258977 | AD30: =_xlfn.XLOOKUP($Y30,[2]COUNTRY_INFO!$Y$9:$Y$143,[2]COUNTRY_INFO!D$9:D$143) -> 243647 | AE30: 3.186166873 | AG30: =_xlfn.XLOOKUP($Y30,[2]COUNTRY_INFO!$Y$9:$Y$143,[2]COUNTRY_INFO!H$9:H$143) -> 0 | AH30: =_xlfn.XLOOKUP($Y30,[2]COUNTRY_INFO!$Y$9:$Y$143,[2]COUNTRY_INFO!I$9:I$143) -> 0 | AI30: =_xlfn.XLOOKUP($Y30,[2]COUNTRY_INFO!$Y$9:$Y$143,[2]COUNTRY_INFO!J$9:J$143) -> 3 | AJ30: =_xlfn.XLOOKUP($Y30,[2]COUNTRY_INFO!$Y$9:$Y$143,[2]COUNTRY_INFO!K$9:K$143) -> 0 | AK30: TRUE | AL30: TRUE | AM30: TRUE | AN30: TRUE | AP30: ='MDA3'!Q30 -> 0 | AQ30: ='T1'!M30 -> 0 | AR30: =T3_R1!L30 -> 44139 | AS30: =T3_R2!L30 -> 103098
A31: =IF(INTRO!$E$34<>0,INTRO!$E$34,"") -> Uganda | B31: CENTRAL | C31: NAKASONGOLA | D31: 231264 | E31: =IF(INTRO!$E$48="","",ROUND($D31*INTRO!$E$48,0)) -> 32839 | F31: =IF(INTRO!$E$49="","",ROUND($D31*INTRO!$E$49,0)) -> 69842 | G31: =IF(INTRO!$E$50="","",ROUND($D31*INTRO!$E$50,0)) -> 120489 | H31: 0 | I31: 0 | J31: 3 | K31: 1 | L31: 0 | M31: 0 | N31: =IF(INTRO!$E$42="Endemic", IF(AND($J31>1,$J31<5), IF($J31=4, "Unknown", E31+F31), 0),"Not required") -> 102681 | O31: =IF([1]INTRO!$E$43="Endemic", IF(AND($K31>0,$K31<5), IF($K31=4,"Unknown", IF($K31=1, $F31*0.33, IF($K31=2, $F31*0.5+$G31*0.2, SUM(F31:G31)))), 0),"Not required") -> 23047.86 | P31: 0 | Q31: 0 | R31: 2 | S31: 1 | T31: T3 (ALB/MBD) | U31: T1 (PZQ+ALB/MBD) | V31: T1 | W31: T3 | Y31: 49791 | Z31: NAKASONGOLA | AA31: TRUE | AC31: 238225 | AD31: =_xlfn.XLOOKUP($Y31,[2]COUNTRY_INFO!$Y$9:$Y$143,[2]COUNTRY_INFO!D$9:D$143) -> 224123 | AE31: 3.186196865 | AG31: =_xlfn.XLOOKUP($Y31,[2]COUNTRY_INFO!$Y$9:$Y$143,[2]COUNTRY_INFO!H$9:H$143) -> 0 | AH31: =_xlfn.XLOOKUP($Y31,[2]COUNTRY_INFO!$Y$9:$Y$143,[2]COUNTRY_INFO!I$9:I$143) -> 0 | AI31: =_xlfn.XLOOKUP($Y31,[2]COUNTRY_INFO!$Y$9:$Y$143,[2]COUNTRY_INFO!J$9:J$143) -> 3 | AJ31: =_xlfn.XLOOKUP($Y31,[2]COUNTRY_INFO!$Y$9:$Y$143,[2]COUNTRY_INFO!K$9:K$143) -> 1 | AK31: TRUE | AL31: TRUE | AM31: TRUE | AN31: TRUE | AP31: ='MDA3'!Q31 -> 0 | AQ31: ='T1'!M31 -> 45766 | AR31: =T3_R1!L31 -> 40594 | AS31: =T3_R2!L31 -> 79947 | AU31: =(AQ31+AR31)/F31*100 -> 123.6505255
A32: =IF(INTRO!$E$34<>0,INTRO!$E$34,"") -> Uganda | B32: CENTRAL | C32: RAKAI | D32: 452827 | E32: =IF(INTRO!$E$48="","",ROUND($D32*INTRO!$E$48,0)) -> 64301 | F32: =IF(INTRO!$E$49="","",ROUND($D32*INTRO!$E$49,0)) -> 136754 | G32: =IF(INTRO!$E$50="","",ROUND($D32*INTRO!$E$50,0)) -> 235923 | H32: 0 | I32: 0 | J32: 3 | K32: 1 | L32: 0 | M32: 0 | N32: =IF(INTRO!$E$42="Endemic", IF(AND($J32>1,$J32<5), IF($J32=4, "Unknown", E32+F32), 0),"Not required") -> 201055 | O32: =IF([1]INTRO!$E$43="Endemic", IF(AND($K32>0,$K32<5), IF($K32=4,"Unknown", IF($K32=1, $F32*0.33, IF($K32=2, $F32*0.5+$G32*0.2, SUM(F32:G32)))), 0),"Not required") -> 45128.82 | P32: 0 | Q32: 0 | R32: 2 | S32: 1 | T32: T3 (ALB/MBD) | U32: T1 (PZQ+ALB/MBD) | V32: T1 | W32: T3 | Y32: 49807 | Z32: RAKAI | AA32: TRUE | AC32: 466457 | AD32: =_xlfn.XLOOKUP($Y32,[2]COUNTRY_INFO!$Y$9:$Y$143,[2]COUNTRY_INFO!D$9:D$143) -> 438845 | AE32: 3.186090761 | AG32: =_xlfn.XLOOKUP($Y32,[2]COUNTRY_INFO!$Y$9:$Y$143,[2]COUNTRY_INFO!H$9:H$143) -> 0 | AH32: =_xlfn.XLOOKUP($Y32,[2]COUNTRY_INFO!$Y$9:$Y$143,[2]COUNTRY_INFO!I$9:I$143) -> 0 | AI32: =_xlfn.XLOOKUP($Y32,[2]COUNTRY_INFO!$Y$9:$Y$143,[2]COUNTRY_INFO!J$9:J$143) -> 3 | AJ32: =_xlfn.XLOOKUP($Y32,[2]COUNTRY_INFO!$Y$9:$Y$143,[2]COUNTRY_INFO!K$9:K$143) -> 1 | AK32: TRUE | AL32: TRUE | AM32: TRUE | AN32: TRUE | AP32: ='MDA3'!Q32 -> 0 | AQ32: ='T1'!M32 -> 71470 | AR32: =T3_R1!L32 -> 106794 | AS32: =T3_R2!L32 -> 134487 | AU32: 130.3537739
A33: =IF(INTRO!$E$34<>0,INTRO!$E$34,"") -> Uganda | B33: CENTRAL | C33: SEMBABULE | D33: 321720 | E33: =IF(INTRO!$E$48="","",ROUND($D33*INTRO!$E$48,0)) -> 45684 | F33: =IF(INTRO!$E$49="","",ROUND($D33*INTRO!$E$49,0)) -> 97159 | G33: =IF(INTRO!$E$50="","",ROUND($D33*INTRO!$E$50,0)) -> 167616 | H33: 0 | I33: 0 | J33: 3 | K33: 0 | L33: 0 | M33: 0 | N33: =IF(INTRO!$E$42="Endemic", IF(AND($J33>1,$J33<5), IF($J33=4, "Unknown", E33+F33), 0),"Not required") -> 142843 | O33: =IF([1]INTRO!$E$43="Endemic", IF(AND($K33>0,$K33<5), IF($K33=4,"Unknown", IF($K33=1, $F33*0.33, IF($K33=2, $F33*0.5+$G33*0.2, SUM(F33:G33)))), 0),"Not required") -> 0 | P33: 0 | Q33: 0 | R33: 2 | S33: 0 | T33: T3 (ALB/MBD) | U33: T3 (ALB/MBD) | V33: T3 | W33: T3 | Y33: 49811 | Z33: SSEMBABULE | AA33: FALSE | AC33: 331404 | AD33: =_xlfn.XLOOKUP($Y33,[2]COUNTRY_INFO!$Y$9:$Y$143,[2]COUNTRY_INFO!D$9:D$143) -> 311786 | AE33: 3.186159738 | AG33: =_xlfn.XLOOKUP($Y33,[2]COUNTRY_INFO!$Y$9:$Y$143,[2]COUNTRY_INFO!H$9:H$143) -> 0 | AH33: =_xlfn.XLOOKUP($Y33,[2]COUNTRY_INFO!$Y$9:$Y$143,[2]COUNTRY_INFO!I$9:I$143) -> 0 | AI33: =_xlfn.XLOOKUP($Y33,[2]COUNTRY_INFO!$Y$9:$Y$143,[2]COUNTRY_INFO!J$9:J$143) -> 3 | AJ33: =_xlfn.XLOOKUP($Y33,[2]COUNTRY_INFO!$Y$9:$Y$143,[2]COUNTRY_INFO!K$9:K$143) -> 0 | AK33: TRUE | AL33: TRUE | AM33: TRUE | AN33: TRUE | AP33: ='MDA3'!Q33 -> 0 | AQ33: ='T1'!M33 -> 0 | AR33: =T3_R1!L33 -> 144026 | AS33: =T3_R2!L33 -> 149428
A34: =IF(INTRO!$E$34<>0,INTRO!$E$34,"") -> Uganda | B34: CENTRAL | C34: WAKISO | D34: 2553091 | E34: =IF(INTRO!$E$48="","",ROUND($D34*INTRO!$E$48,0)) -> 362539 | F34: =IF(INTRO!$E$49="","",ROUND($D34*INTRO!$E$49,0)) -> 771033 | G34: =IF(INTRO!$E$50="","",ROUND($D34*INTRO!$E$50,0)) -> 1330160 | H34: 0 | I34: 0 | J34: 3 | K34: 2 | L34: 0 | M34: 0 | N34: =IF(INTRO!$E$42="Endemic", IF(AND($J34>1,$J34<5), IF($J34=4, "Unknown", E34+F34), 0),"Not required") -> 1133572 | O34: =IF([1]INTRO!$E$43="Endemic", IF(AND($K34>0,$K34<5), IF($K34=4,"Unknown", IF($K34=1, $F34*0.33, IF($K34=2, $F34*0.5+$G34*0.2, SUM(F34:G34)))), 0),"Not required") -> 651548.5 | P34: 0 | Q34: 0 | R34: 2 | S34: 1 | T34: T3 (ALB/MBD) | U34: T1 (PZQ+ALB/MBD) | V34: T1 | W34: T3 | Y34: 49815 | Z34: WAKISO | AA34: TRUE | AC34: 2629939 | AD34: =_xlfn.XLOOKUP($Y34,[2]COUNTRY_INFO!$Y$9:$Y$143,[2]COUNTRY_INFO!D$9:D$143) -> 2474261 | AE34: 3.1860018 | AG34: =_xlfn.XLOOKUP($Y34,[2]COUNTRY_INFO!$Y$9:$Y$143,[2]COUNTRY_INFO!H$9:H$143) -> 0 | AH34: =_xlfn.XLOOKUP($Y34,[2]COUNTRY_INFO!$Y$9:$Y$143,[2]COUNTRY_INFO!I$9:I$143) -> 0 | AI34: =_xlfn.XLOOKUP($Y34,[2]COUNTRY_INFO!$Y$9:$Y$143,[2]COUNTRY_INFO!J$9:J$143) -> 3 | AJ34: =_xlfn.XLOOKUP($Y34,[2]COUNTRY_INFO!$Y$9:$Y$143,[2]COUNTRY_INFO!K$9:K$143) -> 2 | AK34: TRUE | AL34: TRUE | AM34: TRUE | AN34: TRUE | AP34: ='MDA3'!Q34 -> 0 | AQ34: ='T1'!M34 -> 136465 | AR34: =T3_R1!L34 -> 364171 | AS34: =T3_R2!L34 -> 759843 | AU34: =(AQ34+AR34)/F34*100 -> 64.9305542
A35: =IF(INTRO!$E$34<>0,INTRO!$E$34,"") -> Uganda | B35: EASTERN | C35: AMURIA | D35: 232721 | E35: =IF(INTRO!$E$48="","",ROUND($D35*INTRO!$E$48,0)) -> 33046 | F35: =IF(INTRO!$E$49="","",ROUND($D35*INTRO!$E$49,0)) -> 70282 | G35: =IF(INTRO!$E$50="","",ROUND($D35*INTRO!$E$50,0)) -> 121248 | H35: 99 | I35: 0 | J35: 3 | K35: 0 | L35: 0 | M35: 0 | N35: =IF(INTRO!$E$42="Endemic", IF(AND($J35>1,$J35<5), IF($J35=4, "Unknown", E35+F35), 0),"Not required") -> 103328 | O35: =IF([1]INTRO!$E$43="Endemic", IF(AND($K35>0,$K35<5), IF($K35=4,"Unknown", IF($K35=1, $F35*0.33, IF($K35=2, $F35*0.5+$G35*0.2, SUM(F35:G35)))), 0),"Not required") -> 0 | P35: 0 | Q35: 0 | R35: 2 | S35: 0 | T35: T3 (ALB/MBD) | U35: T3 (ALB/MBD) | V35: T3 | W35: T3 | Y35: 49709 | Z35: AMURIA | AA35: TRUE | AC35: 239726 | AD35: =_xlfn.XLOOKUP($Y35,[2]COUNTRY_INFO!$Y$9:$Y$143,[2]COUNTRY_INFO!D$9:D$143) -> 225535 | AE35: 3.186201698 | AG35: =_xlfn.XLOOKUP($Y35,[2]COUNTRY_INFO!$Y$9:$Y$143,[2]COUNTRY_INFO!H$9:H$143) -> 99 | AH35: =_xlfn.XLOOKUP($Y35,[2]COUNTRY_INFO!$Y$9:$Y$143,[2]COUNTRY_INFO!I$9:I$143) -> 0 | AI35: =_xlfn.XLOOKUP($Y35,[2]COUNTRY_INFO!$Y$9:$Y$143,[2]COUNTRY_INFO!J$9:J$143) -> 3 | AJ35: =_xlfn.XLOOKUP($Y35,[2]COUNTRY_INFO!$Y$9:$Y$143,[2]COUNTRY_INFO!K$9:K$143) -> 0 | AK35: TRUE | AL35: TRUE | AM35: TRUE | AN35: TRUE | AP35: ='MDA3'!Q35 -> 0 | AQ35: ='T1'!M35 -> 0 | AR35: =T3_R1!L35 -> 35588 | AS35: =T3_R2!L35 -> 59507
A36: =IF(INTRO!$E$34<>0,INTRO!$E$34,"") -> Uganda | B36: EASTERN | C36: BUDAKA | D36: 265060 | E36: =IF(INTRO!$E$48="","",ROUND($D36*INTRO!$E$48,0)) -> 37639 | F36: =IF(INTRO!$E$49="","",ROUND($D36*INTRO!$E$49,0)) -> 80048 | G36: =IF(INTRO!$E$50="","",ROUND($D36*INTRO!$E$50,0)) -> 138096 | H36: 99 | I36: 0 | J36: 3 | K36: 1 | L36: 0 | M36: 0 | N36: =IF(INTRO!$E$42="Endemic", IF(AND($J36>1,$J36<5), IF($J36=4, "Unknown", E36+F36), 0),"Not required") -> 117687 | O36: =IF([1]INTRO!$E$43="Endemic", IF(AND($K36>0,$K36<5), IF($K36=4,"Unknown", IF($K36=1, $F36*0.33, IF($K36=2, $F36*0.5+$G36*0.2, SUM(F36:G36)))), 0),"Not required") -> 26415.84 | P36: 0 | Q36: 0 | R36: 2 | S36: 1 | T36: T3 (ALB/MBD) | U36: T1 (PZQ+ALB/MBD) | V36: T1 | W36: T3 | Y36: 49716 | Z36: BUDAKA | AA36: TRUE | AC36: 273038 | AD36: =_xlfn.XLOOKUP($Y36,[2]COUNTRY_INFO!$Y$9:$Y$143,[2]COUNTRY_INFO!D$9:D$143) -> 256876 | AE36: 3.185972999 | AG36: =_xlfn.XLOOKUP($Y36,[2]COUNTRY_INFO!$Y$9:$Y$143,[2]COUNTRY_INFO!H$9:H$143) -> 99 | AH36: =_xlfn.XLOOKUP($Y36,[2]COUNTRY_INFO!$Y$9:$Y$143,[2]COUNTRY_INFO!I$9:I$143) -> 0 | AI36: =_xlfn.XLOOKUP($Y36,[2]COUNTRY_INFO!$Y$9:$Y$143,[2]COUNTRY_INFO!J$9:J$143) -> 3 | AJ36: =_xlfn.XLOOKUP($Y36,[2]COUNTRY_INFO!$Y$9:$Y$143,[2]COUNTRY_INFO!K$9:K$143) -> 1 | AK36: TRUE | AL36: TRUE | AM36: TRUE | AN36: TRUE | AP36: ='MDA3'!Q36 -> 0 | AQ36: ='T1'!M36 -> 71879 | AR36: =T3_R1!L36 -> 48121 | AS36: =T3_R2!L36 -> 65368 | AU36: =(AQ36+AR36)/F36*100 -> 149.910054
A37: =IF(INTRO!$E$34<>0,INTRO!$E$34,"") -> Uganda | B37: EASTERN | C37: BUDUDA | D37: 269188 | E37: =IF(INTRO!$E$48="","",ROUND($D37*INTRO!$E$48,0)) -> 38225 | F37: =IF(INTRO!$E$49="","",ROUND($D37*INTRO!$E$49,0)) -> 81295 | G37: =IF(INTRO!$E$50="","",ROUND($D37*INTRO!$E$50,0)) -> 140247 | H37: 0 | I37: 99 | J37: 3 | K37: 0 | L37: 0 | M37: Stopped | N37: =IF(INTRO!$E$42="Endemic", IF(AND($J37>1,$J37<5), IF($J37=4, "Unknown", E37+F37), 0),"Not required") -> 119520 | O37: =IF([1]INTRO!$E$43="Endemic", IF(AND($K37>0,$K37<5), IF($K37=4,"Unknown", IF($K37=1, $F37*0.33, IF($K37=2, $F37*0.5+$G37*0.2, SUM(F37:G37)))), 0),"Not required") -> 0 | P37: 0 | Q37: 0 | R37: 2 | S37: 0 | T37: T3 (ALB/MBD) | U37: T3 (ALB/MBD) | V37: T3 | W37: T3 | Y37: 49717 | Z37: BUDUDA | AA37: TRUE | AC37: 277291 | AD37: =_xlfn.XLOOKUP($Y37,[2]COUNTRY_INFO!$Y$9:$Y$143,[2]COUNTRY_INFO!D$9:D$143) -> 260876 | AE37: 3.186188074 | AG37: =_xlfn.XLOOKUP($Y37,[2]COUNTRY_INFO!$Y$9:$Y$143,[2]COUNTRY_INFO!H$9:H$143) -> 0 | AH37: =_xlfn.XLOOKUP($Y37,[2]COUNTRY_INFO!$Y$9:$Y$143,[2]COUNTRY_INFO!I$9:I$143) -> 99 | AI37: =_xlfn.XLOOKUP($Y37,[2]COUNTRY_INFO!$Y$9:$Y$143,[2]COUNTRY_INFO!J$9:J$143) -> 3 | AJ37: =_xlfn.XLOOKUP($Y37,[2]COUNTRY_INFO!$Y$9:$Y$143,[2]COUNTRY_INFO!K$9:K$143) -> 0 | AK37: TRUE | AL37: TRUE | AM37: TRUE | AN37: TRUE | AP37: ='MDA3'!Q37 -> 0 | AQ37: ='T1'!M37 -> 0 | AR37: =T3_R1!L37 -> 129995 | AS37: =T3_R2!L37 -> 99784
A38: =IF(INTRO!$E$34<>0,INTRO!$E$34,"") -> Uganda | B38: EASTERN | C38: BUGIRI | D38: 496042 | E38: =IF(INTRO!$E$48="","",ROUND($D38*INTRO!$E$48,0)) -> 70438 | F38: =IF(INTRO!$E$49="","",ROUND($D38*INTRO!$E$49,0)) -> 149805 | G38: =IF(INTRO!$E$50="","",ROUND($D38*INTRO!$E$50,0)) -> 258438 | H38: 99 | I38: 0 | J38: 3 | K38: 2 | L38: 0 | M38: 0 | N38: =IF(INTRO!$E$42="Endemic", IF(AND($J38>1,$J38<5), IF($J38=4, "Unknown", E38+F38), 0),"Not required") -> 220243 | O38: =IF([1]INTRO!$E$43="Endemic", IF(AND($K38>0,$K38<5), IF($K38=4,"Unknown", IF($K38=1, $F38*0.33, IF($K38=2, $F38*0.5+$G38*0.2, SUM(F38:G38)))), 0),"Not required") -> 126590.1 | P38: 0 | Q38: 0 | R38: 2 | S38: 1 | T38: T3 (ALB/MBD) | U38: T1 (PZQ+ALB/MBD) | V38: T1 | W38: T3 | Y38: 49718 | Z38: BUGIRI | AA38: TRUE | AC38: 510973 | AD38: =_xlfn.XLOOKUP($Y38,[2]COUNTRY_INFO!$Y$9:$Y$143,[2]COUNTRY_INFO!D$9:D$143) -> 480726 | AE38: 3.186014486 | AG38: =_xlfn.XLOOKUP($Y38,[2]COUNTRY_INFO!$Y$9:$Y$143,[2]COUNTRY_INFO!H$9:H$143) -> 99 | AH38: =_xlfn.XLOOKUP($Y38,[2]COUNTRY_INFO!$Y$9:$Y$143,[2]COUNTRY_INFO!I$9:I$143) -> 0 | AI38: =_xlfn.XLOOKUP($Y38,[2]COUNTRY_INFO!$Y$9:$Y$143,[2]COUNTRY_INFO!J$9:J$143) -> 3 | AJ38: =_xlfn.XLOOKUP($Y38,[2]COUNTRY_INFO!$Y$9:$Y$143,[2]COUNTRY_INFO!K$9:K$143) -> 2 | AK38: TRUE | AL38: TRUE | AM38: TRUE | AN38: TRUE | AP38: ='MDA3'!Q38 -> 0 | AQ38: ='T1'!M38 -> 40995 | AR38: =T3_R1!L38 -> 123226 | AS38: =T3_R2!L38 -> 132771 | AU38: =(AQ38+AR38)/F38*100 -> 109.6231768
A39: =IF(INTRO!$E$34<>0,INTRO!$E$34,"") -> Uganda | B39: EASTERN | C39: BUGWERI | D39: 214740 | E39: =IF(INTRO!$E$48="","",ROUND($D39*INTRO!$E$48,0)) -> 30493 | F39: =IF(INTRO!$E$49="","",ROUND($D39*INTRO!$E$49,0)) -> 64851 | G39: =IF(INTRO!$E$50="","",ROUND($D39*INTRO!$E$50,0)) -> 111880 | H39: 99 | I39: 0 | J39: 3 | K39: 1 | L39: 0 | M39: 0 | N39: =IF(INTRO!$E$42="Endemic", IF(AND($J39>1,$J39<5), IF($J39=4, "Unknown", E39+F39), 0),"Not required") -> 95344 | O39: =IF([1]INTRO!$E$43="Endemic", IF(AND($K39>0,$K39<5), IF($K39=4,"Unknown", IF($K39=1, $F39*0.33, IF($K39=2, $F39*0.5+$G39*0.2, SUM(F39:G39)))), 0),"Not required") -> 21400.83 | P39: 0 | Q39: 0 | R39: 2 | S39: 1 | T39: T3 (ALB/MBD) | U39: T1 (PZQ+ALB/MBD) | V39: T1 | W39: T3 | Y39: 49833 | Z39: BUGWERI | AA39: TRUE | AC39: 221204 | AD39: =_xlfn.XLOOKUP($Y39,[2]COUNTRY_INFO!$Y$9:$Y$143,[2]COUNTRY_INFO!D$9:D$143) -> 208110 | AE39: 3.185815194 | AG39: =_xlfn.XLOOKUP($Y39,[2]COUNTRY_INFO!$Y$9:$Y$143,[2]COUNTRY_INFO!H$9:H$143) -> 99 | AH39: =_xlfn.XLOOKUP($Y39,[2]COUNTRY_INFO!$Y$9:$Y$143,[2]COUNTRY_INFO!I$9:I$143) -> 0 | AI39: =_xlfn.XLOOKUP($Y39,[2]COUNTRY_INFO!$Y$9:$Y$143,[2]COUNTRY_INFO!J$9:J$143) -> 3 | AJ39: =_xlfn.XLOOKUP($Y39,[2]COUNTRY_INFO!$Y$9:$Y$143,[2]COUNTRY_INFO!K$9:K$143) -> 1 | AK39: TRUE | AL39: TRUE | AM39: TRUE | AN39: TRUE | AP39: ='MDA3'!Q39 -> 0 | AQ39: ='T1'!M39 -> 38894 | AR39: =T3_R1!L39 -> 40414 | AS39: =T3_R2!L39 -> 56862 | AU39: 122.2926401
A40: =IF(INTRO!$E$34<>0,INTRO!$E$34,"") -> Uganda | B40: EASTERN | C40: BUKEDEA | D40: 240239 | E40: =IF(INTRO!$E$48="","",ROUND($D40*INTRO!$E$48,0)) -> 34114 | F40: =IF(INTRO!$E$49="","",ROUND($D40*INTRO!$E$49,0)) -> 72552 | G40: =IF(INTRO!$E$50="","",ROUND($D40*INTRO!$E$50,0)) -> 125165 | H40: 99 | I40: 0 | J40: 3 | K40: 1 | L40: 0 | M40: 0 | N40: =IF(INTRO!$E$42="Endemic", IF(AND($J40>1,$J40<5), IF($J40=4, "Unknown", E40+F40), 0),"Not required") -> 106666 | O40: =IF([1]INTRO!$E$43="Endemic", IF(AND($K40>0,$K40<5), IF($K40=4,"Unknown", IF($K40=1, $F40*0.33, IF($K40=2, $F40*0.5+$G40*0.2, SUM(F40:G40)))), 0),"Not required") -> 23942.16 | P40: 0 | Q40: 0 | R40: 2 | S40: 1 | T40: T3 (ALB/MBD) | U40: T1 (PZQ+ALB/MBD) | V40: T1 | W40: T3 | Y40: 49719 | Z40: BUKEDEA | AA40: TRUE | AC40: 247470 | AD40: =_xlfn.XLOOKUP($Y40,[2]COUNTRY_INFO!$Y$9:$Y$143,[2]COUNTRY_INFO!D$9:D$143) -> 232821 | AE40: 3.186138707 | AG40: =_xlfn.XLOOKUP($Y40,[2]COUNTRY_INFO!$Y$9:$Y$143,[2]COUNTRY_INFO!H$9:H$143) -> 99 | AH40: =_xlfn.XLOOKUP($Y40,[2]COUNTRY_INFO!$Y$9:$Y$143,[2]COUNTRY_INFO!I$9:I$143) -> 0 | AI40: =_xlfn.XLOOKUP($Y40,[2]COUNTRY_INFO!$Y$9:$Y$143,[2]COUNTRY_INFO!J$9:J$143) -> 3 | AJ40: =_xlfn.XLOOKUP($Y40,[2]COUNTRY_INFO!$Y$9:$Y$143,[2]COUNTRY_INFO!K$9:K$143) -> 1 | AK40: TRUE | AL40: TRUE | AM40: TRUE | AN40: TRUE | AP40: ='MDA3'!Q40 -> 0 | AQ40: ='T1'!M40 -> 67237 | AR40: =T3_R1!L40 -> 59247 | AS40: =T3_R2!L40 -> 66107 | AU40: 174.3356489
A41: =IF(INTRO!$E$34<>0,INTRO!$E$34,"") -> Uganda | B41: EASTERN | C41: BUKWO | D41: 113498 | E41: =IF(INTRO!$E$48="","",ROUND($D41*INTRO!$E$48,0)) -> 16117 | F41: =IF(INTRO!$E$49="","",ROUND($D41*INTRO!$E$49,0)) -> 34276 | G41: =IF(INTRO!$E$50="","",ROUND($D41*INTRO!$E$50,0)) -> 59132 | H41: 0 | I41: 0 | J41: 3 | K41: 0 | L41: 0 | M41: 0 | N41: =IF(INTRO!$E$42="Endemic", IF(AND($J41>1,$J41<5), IF($J41=4, "Unknown", E41+F41), 0),"Not required") -> 50393 | O41: =IF([1]INTRO!$E$43="Endemic", IF(AND($K41>0,$K41<5), IF($K41=4,"Unknown", IF($K41=1, $F41*0.33, IF($K41=2, $F41*0.5+$G41*0.2, SUM(F41:G41)))), 0),"Not required") -> 0 | P41: 0 | Q41: 0 | R41: 2 | S41: 0 | T41: T3 (ALB/MBD) | U41: T3 (ALB/MBD) | V41: T3 | W41: T3 | Y41: 49727 | Z41: BUKWO | AA41: TRUE | AC41: 116914 | AD41: =_xlfn.XLOOKUP($Y41,[2]COUNTRY_INFO!$Y$9:$Y$143,[2]COUNTRY_INFO!D$9:D$143) -> 109994 | AE41: 3.185628307 | AG41: =_xlfn.XLOOKUP($Y41,[2]COUNTRY_INFO!$Y$9:$Y$143,[2]COUNTRY_INFO!H$9:H$143) -> 0 | AH41: =_xlfn.XLOOKUP($Y41,[2]COUNTRY_INFO!$Y$9:$Y$143,[2]COUNTRY_INFO!I$9:I$143) -> 0 | AI41: =_xlfn.XLOOKUP($Y41,[2]COUNTRY_INFO!$Y$9:$Y$143,[2]COUNTRY_INFO!J$9:J$143) -> 3 | AJ41: =_xlfn.XLOOKUP($Y41,[2]COUNTRY_INFO!$Y$9:$Y$143,[2]COUNTRY_INFO!K$9:K$143) -> 0 | AK41: TRUE | AL41: TRUE | AM41: TRUE | AN41: TRUE | AP41: ='MDA3'!Q41 -> 0 | AQ41: ='T1'!M41 -> 0 | AR41: =T3_R1!L41 -> 27668 | AS41: =T3_R2!L41 -> 59131
A42: =IF(INTRO!$E$34<>0,INTRO!$E$34,"") -> Uganda | B42: EASTERN | C42: BULAMBULI | D42: 225495 | E42: =IF(INTRO!$E$48="","",ROUND($D42*INTRO!$E$48,0)) -> 32020 | F42: =IF(INTRO!$E$49="","",ROUND($D42*INTRO!$E$49,0)) -> 68099 | G42: =IF(INTRO!$E$50="","",ROUND($D42*INTRO!$E$50,0)) -> 117483 | H42: 0 | I42: 0 | J42: 3 | K42: 1 | L42: 0 | M42: 0 | N42: =IF(INTRO!$E$42="Endemic", IF(AND($J42>1,$J42<5), IF($J42=4, "Unknown", E42+F42), 0),"Not required") -> 100119 | O42: =IF([1]INTRO!$E$43="Endemic", IF(AND($K42>0,$K42<5), IF($K42=4,"Unknown", IF($K42=1, $F42*0.33, IF($K42=2, $F42*0.5+$G42*0.2, SUM(F42:G42)))), 0),"Not required") -> 22472.67 | P42: 0 | Q42: 0 | R42: 2 | S42: 1 | T42: T3 (ALB/MBD) | U42: T1 (PZQ+ALB/MBD) | V42: T1 | W42: T3 | Y42: 49728 | Z42: BULAMBULI | AA42: TRUE | AC42: 232282 | AD42: =_xlfn.XLOOKUP($Y42,[2]COUNTRY_INFO!$Y$9:$Y$143,[2]COUNTRY_INFO!D$9:D$143) -> 218533 | AE42: 3.185788874 | AG42: =_xlfn.XLOOKUP($Y42,[2]COUNTRY_INFO!$Y$9:$Y$143,[2]COUNTRY_INFO!H$9:H$143) -> 0 | AH42: =_xlfn.XLOOKUP($Y42,[2]COUNTRY_INFO!$Y$9:$Y$143,[2]COUNTRY_INFO!I$9:I$143) -> 0 | AI42: =_xlfn.XLOOKUP($Y42,[2]COUNTRY_INFO!$Y$9:$Y$143,[2]COUNTRY_INFO!J$9:J$143) -> 3 | AJ42: =_xlfn.XLOOKUP($Y42,[2]COUNTRY_INFO!$Y$9:$Y$143,[2]COUNTRY_INFO!K$9:K$143) -> 1 | AK42: TRUE | AL42: TRUE | AM42: TRUE | AN42: TRUE | AP42: ='MDA3'!Q42 -> 0 | AQ42: ='T1'!M42 -> 8933 | AR42: =T3_R1!L42 -> 85032 | AS42: =T3_R2!L42 -> 58565 | AU42: =(AQ42+AR42)/F42*100 -> 137.9829366
A43: =IF(INTRO!$E$34<>0,INTRO!$E$34,"") -> Uganda | B43: EASTERN | C43: BUSIA | D43: 413954 | E43: =IF(INTRO!$E$48="","",ROUND($D43*INTRO!$E$48,0)) -> 58781 | F43: =IF(INTRO!$E$49="","",ROUND($D43*INTRO!$E$49,0)) -> 125014 | G43: =IF(INTRO!$E$50="","",ROUND($D43*INTRO!$E$50,0)) -> 215670 | H43: 0 | I43: 0 | J43: 3 | K43: 3 | L43: 0 | M43: 0 | N43: =IF(INTRO!$E$42="Endemic", IF(AND($J43>1,$J43<5), IF($J43=4, "Unknown", E43+F43), 0),"Not required") -> 183795 | O43: =IF([1]INTRO!$E$43="Endemic", IF(AND($K43>0,$K43<5), IF($K43=4,"Unknown", IF($K43=1, $F43*0.33, IF($K43=2, $F43*0.5+$G43*0.2, SUM(F43:G43)))), 0),"Not required") -> 340684 | P43: 0 | Q43: 0 | R43: 2 | S43: 1 | T43: T3 (ALB/MBD) | U43: T1 (PZQ+ALB/MBD) | V43: T1 | W43: T3 | Y43: 49723 | Z43: BUSIA | AA43: TRUE | AC43: 426414 | AD43: =_xlfn.XLOOKUP($Y43,[2]COUNTRY_INFO!$Y$9:$Y$143,[2]COUNTRY_INFO!D$9:D$143) -> 401173 | AE43: 3.185907327 | AG43: =_xlfn.XLOOKUP($Y43,[2]COUNTRY_INFO!$Y$9:$Y$143,[2]COUNTRY_INFO!H$9:H$143) -> 0 | AH43: =_xlfn.XLOOKUP($Y43,[2]COUNTRY_INFO!$Y$9:$Y$143,[2]COUNTRY_INFO!I$9:I$143) -> 0 | AI43: =_xlfn.XLOOKUP($Y43,[2]COUNTRY_INFO!$Y$9:$Y$143,[2]COUNTRY_INFO!J$9:J$143) -> 3 | AJ43: =_xlfn.XLOOKUP($Y43,[2]COUNTRY_INFO!$Y$9:$Y$143,[2]COUNTRY_INFO!K$9:K$143) -> 3 | AK43: TRUE | AL43: TRUE | AM43: TRUE | AN43: TRUE | AP43: ='MDA3'!Q43 -> 0 | AQ43: ='T1'!M43 -> 40064 | AR43: =T3_R1!L43 -> 85363 | AS43: =T3_R2!L43 -> 73950 | AU43: 100.330363
A44: =IF(INTRO!$E$34<>0,INTRO!$E$34,"") -> Uganda | B44: EASTERN | C44: BUTALEJA | D44: 312665 | E44: =IF(INTRO!$E$48="","",ROUND($D44*INTRO!$E$48,0)) -> 44398 | F44: =IF(INTRO!$E$49="","",ROUND($D44*INTRO!$E$49,0)) -> 94425 | G44: =IF(INTRO!$E$50="","",ROUND($D44*INTRO!$E$50,0)) -> 162898 | H44: 99 | I44: 0 | J44: 3 | K44: 1 | L44: 0 | M44: 0 | N44: =IF(INTRO!$E$42="Endemic", IF(AND($J44>1,$J44<5), IF($J44=4, "Unknown", E44+F44), 0),"Not required") -> 138823 | O44: =IF([1]INTRO!$E$43="Endemic", IF(AND($K44>0,$K44<5), IF($K44=4,"Unknown", IF($K44=1, $F44*0.33, IF($K44=2, $F44*0.5+$G44*0.2, SUM(F44:G44)))), 0),"Not required") -> 31160.25 | P44: 0 | Q44: 0 | R44: 2 | S44: 1 | T44: T3 (ALB/MBD) | U44: T1 (PZQ+ALB/MBD) | V44: T1 | W44: T3 | Y44: 49729 | Z44: BUTALEJA | AA44: TRUE | AC44: 322076 | AD44: =_xlfn.XLOOKUP($Y44,[2]COUNTRY_INFO!$Y$9:$Y$143,[2]COUNTRY_INFO!D$9:D$143) -> 303011 | AE44: 3.18602295 | AG44: =_xlfn.XLOOKUP($Y44,[2]COUNTRY_INFO!$Y$9:$Y$143,[2]COUNTRY_INFO!H$9:H$143) -> 99 | AH44: =_xlfn.XLOOKUP($Y44,[2]COUNTRY_INFO!$Y$9:$Y$143,[2]COUNTRY_INFO!I$9:I$143) -> 0 | AI44: =_xlfn.XLOOKUP($Y44,[2]COUNTRY_INFO!$Y$9:$Y$143,[2]COUNTRY_INFO!J$9:J$143) -> 3 | AJ44: =_xlfn.XLOOKUP($Y44,[2]COUNTRY_INFO!$Y$9:$Y$143,[2]COUNTRY_INFO!K$9:K$143) -> 1 | AK44: TRUE | AL44: TRUE | AM44: TRUE | AN44: TRUE | AP44: ='MDA3'!Q44 -> 0 | AQ44: ='T1'!M44 -> 87360 | AR44: =T3_R1!L44 -> 45766 | AS44: =T3_R2!L44 -> 64364 | AU44: 140.9859677
A45: =IF(INTRO!$E$34<>0,INTRO!$E$34,"") -> Uganda | B45: EASTERN | C45: BUTEBO | D45: 183477 | E45: =IF(INTRO!$E$48="","",ROUND($D45*INTRO!$E$48,0)) -> 26054 | F45: =IF(INTRO!$E$49="","",ROUND($D45*INTRO!$E$49,0)) -> 55410 | G45: =IF(INTRO!$E$50="","",ROUND($D45*INTRO!$E$50,0)) -> 95592 | H45: 99 | I45: 0 | J45: 3 | K45: 1 | L45: 0 | M45: 0 | N45: =IF(INTRO!$E$42="Endemic", IF(AND($J45>1,$J45<5), IF($J45=4, "Unknown", E45+F45), 0),"Not required") -> 81464 | O45: =IF([1]INTRO!$E$43="Endemic", IF(AND($K45>0,$K45<5), IF($K45=4,"Unknown", IF($K45=1, $F45*0.33, IF($K45=2, $F45*0.5+$G45*0.2, SUM(F45:G45)))), 0),"Not required") -> 18285.3 | P45: 0 | Q45: 0 | R45: 2 | S45: 1 | T45: T3 (ALB/MBD) | U45: T1 (PZQ+ALB/MBD) | V45: T1 | W45: T3 | Y45: 49824 | Z45: BUTEBO | AA45: TRUE | AC45: 189000 | AD45: =_xlfn.XLOOKUP($Y45,[2]COUNTRY_INFO!$Y$9:$Y$143,[2]COUNTRY_INFO!D$9:D$143) -> 177812 | AE45: 3.185949205 | AG45: =_xlfn.XLOOKUP($Y45,[2]COUNTRY_INFO!$Y$9:$Y$143,[2]COUNTRY_INFO!H$9:H$143) -> 99 | AH45: =_xlfn.XLOOKUP($Y45,[2]COUNTRY_INFO!$Y$9:$Y$143,[2]COUNTRY_INFO!I$9:I$143) -> 0 | AI45: =_xlfn.XLOOKUP($Y45,[2]COUNTRY_INFO!$Y$9:$Y$143,[2]COUNTRY_INFO!J$9:J$143) -> 3 | AJ45: =_xlfn.XLOOKUP($Y45,[2]COUNTRY_INFO!$Y$9:$Y$143,[2]COUNTRY_INFO!K$9:K$143) -> 1 | AK45: TRUE | AL45: TRUE | AM45: TRUE | AN45: TRUE | AP45: ='MDA3'!Q45 -> 0 | AQ45: ='T1'!M45 -> 39098 | AR45: =T3_R1!L45 -> 49082 | AS45: =T3_R2!L45 -> 52818 | AU45: 159.1409493
A46: =IF(INTRO!$E$34<>0,INTRO!$E$34,"") -> Uganda | B46: EASTERN | C46: BUYENDE | D46: 407521 | E46: =IF(INTRO!$E$48="","",ROUND($D46*INTRO!$E$48,0)) -> 57868 | F46: =IF(INTRO!$E$49="","",ROUND($D46*INTRO!$E$49,0)) -> 123071 | G46: =IF(INTRO!$E$50="","",ROUND($D46*INTRO!$E$50,0)) -> 212318 | H46: 99 | I46: 0 | J46: 3 | K46: 3 | L46: 0 | M46: 0 | N46: =IF(INTRO!$E$42="Endemic", IF(AND($J46>1,$J46<5), IF($J46=4, "Unknown", E46+F46), 0),"Not required") -> 180939 | O46: =IF([1]INTRO!$E$43="Endemic", IF(AND($K46>0,$K46<5), IF($K46=4,"Unknown", IF($K46=1, $F46*0.33, IF($K46=2, $F46*0.5+$G46*0.2, SUM(F46:G46)))), 0),"Not required") -> 335389 | P46: 0 | Q46: 0 | R46: 2 | S46: 1 | T46: T3 (ALB/MBD) | U46: T1 (PZQ+ALB/MBD) | V46: T1 | W46: T3 | Y46: 49732 | Z46: BUYENDE | AA46: TRUE | AC46: 419787 | AD46: =_xlfn.XLOOKUP($Y46,[2]COUNTRY_INFO!$Y$9:$Y$143,[2]COUNTRY_INFO!D$9:D$143) -> 394938 | AE46: 3.186069712 | AG46: =_xlfn.XLOOKUP($Y46,[2]COUNTRY_INFO!$Y$9:$Y$143,[2]COUNTRY_INFO!H$9:H$143) -> 99 | AH46: =_xlfn.XLOOKUP($Y46,[2]COUNTRY_INFO!$Y$9:$Y$143,[2]COUNTRY_INFO!I$9:I$143) -> 0 | AI46: =_xlfn.XLOOKUP($Y46,[2]COUNTRY_INFO!$Y$9:$Y$143,[2]COUNTRY_INFO!J$9:J$143) -> 3 | AJ46: =_xlfn.XLOOKUP($Y46,[2]COUNTRY_INFO!$Y$9:$Y$143,[2]COUNTRY_INFO!K$9:K$143) -> 3 | AK46: TRUE | AL46: TRUE | AM46: TRUE | AN46: TRUE | AP46: ='MDA3'!Q46 -> 0 | AQ46: ='T1'!M46 -> 127816 | AR46: =T3_R1!L46 -> 62869 | AS46: =T3_R2!L46 -> 101518 | AU46: 154.9390189
A47: =IF(INTRO!$E$34<>0,INTRO!$E$34,"") -> Uganda | B47: EASTERN | C47: IGANGA | D47: 429208 | E47: =IF(INTRO!$E$48="","",ROUND($D47*INTRO!$E$48,0)) -> 60948 | F47: =IF(INTRO!$E$49="","",ROUND($D47*INTRO!$E$49,0)) -> 129621 | G47: =IF(INTRO!$E$50="","",ROUND($D47*INTRO!$E$50,0)) -> 223617 | H47: 99 | I47: 0 | J47: 3 | K47: 1 | L47: 0 | M47: 0 | N47: =IF(INTRO!$E$42="Endemic", IF(AND($J47>1,$J47<5), IF($J47=4, "Unknown", E47+F47), 0),"Not required") -> 190569 | O47: =IF([1]INTRO!$E$43="Endemic", IF(AND($K47>0,$K47<5), IF($K47=4,"Unknown", IF($K47=1, $F47*0.33, IF($K47=2, $F47*0.5+$G47*0.2, SUM(F47:G47)))), 0),"Not required") -> 42774.93 | P47: 0 | Q47: 0 | R47: 2 | S47: 1 | T47: T3 (ALB/MBD) | U47: T1 (PZQ+ALB/MBD) | V47: T1 | W47: T3 | Y47: 49738 | Z47: IGANGA | AA47: TRUE | AC47: 442127 | AD47: =_xlfn.XLOOKUP($Y47,[2]COUNTRY_INFO!$Y$9:$Y$143,[2]COUNTRY_INFO!D$9:D$143) -> 415956 | AE47: 3.185913895 | AG47: =_xlfn.XLOOKUP($Y47,[2]COUNTRY_INFO!$Y$9:$Y$143,[2]COUNTRY_INFO!H$9:H$143) -> 99 | AH47: =_xlfn.XLOOKUP($Y47,[2]COUNTRY_INFO!$Y$9:$Y$143,[2]COUNTRY_INFO!I$9:I$143) -> 0 | AI47: =_xlfn.XLOOKUP($Y47,[2]COUNTRY_INFO!$Y$9:$Y$143,[2]COUNTRY_INFO!J$9:J$143) -> 3 | AJ47: =_xlfn.XLOOKUP($Y47,[2]COUNTRY_INFO!$Y$9:$Y$143,[2]COUNTRY_INFO!K$9:K$143) -> 1 | AK47: TRUE | AL47: TRUE | AM47: TRUE | AN47: TRUE | AP47: ='MDA3'!Q47 -> 0 | AQ47: ='T1'!M47 -> 113757 | AR47: =T3_R1!L47 -> 84838 | AS47: =T3_R2!L47 -> 112124 | AU47: 153.2120567
A48: =IF(INTRO!$E$34<>0,INTRO!$E$34,"") -> Uganda | B48: EASTERN | C48: JINJA | D48: 595463 | E48: =IF(INTRO!$E$48="","",ROUND($D48*INTRO!$E$48,0)) -> 84556 | F48: =IF(INTRO!$E$49="","",ROUND($D48*INTRO!$E$49,0)) -> 179830 | G48: =IF(INTRO!$E$50="","",ROUND($D48*INTRO!$E$50,0)) -> 310236 | H48: 0 | I48: 0 | J48: 3 | K48: 3 | L48: 0 | M48: 0 | N48: =IF(INTRO!$E$42="Endemic", IF(AND($J48>1,$J48<5), IF($J48=4, "Unknown", E48+F48), 0),"Not required") -> 264386 | O48: =IF([1]INTRO!$E$43="Endemic", IF(AND($K48>0,$K48<5), IF($K48=4,"Unknown", IF($K48=1, $F48*0.33, IF($K48=2, $F48*0.5+$G48*0.2, SUM(F48:G48)))), 0),"Not required") -> 490066 | P48: 0 | Q48: 0 | R48: 2 | S48: 1 | T48: T3 (ALB/MBD) | U48: T1 (PZQ+ALB/MBD) | V48: T1 | W48: T3 | Y48: 49740 | Z48: JINJA | AA48: TRUE | AC48: 613386 | AD48: =_xlfn.XLOOKUP($Y48,[2]COUNTRY_INFO!$Y$9:$Y$143,[2]COUNTRY_INFO!D$9:D$143) -> 577077 | AE48: 3.186056627 | AG48: =_xlfn.XLOOKUP($Y48,[2]COUNTRY_INFO!$Y$9:$Y$143,[2]COUNTRY_INFO!H$9:H$143) -> 0 | AH48: =_xlfn.XLOOKUP($Y48,[2]COUNTRY_INFO!$Y$9:$Y$143,[2]COUNTRY_INFO!I$9:I$143) -> 0 | AI48: =_xlfn.XLOOKUP($Y48,[2]COUNTRY_INFO!$Y$9:$Y$143,[2]COUNTRY_INFO!J$9:J$143) -> 3 | AJ48: =_xlfn.XLOOKUP($Y48,[2]COUNTRY_INFO!$Y$9:$Y$143,[2]COUNTRY_INFO!K$9:K$143) -> 3 | AK48: TRUE | AL48: TRUE | AM48: TRUE | AN48: TRUE | AP48: ='MDA3'!Q48 -> 0 | AQ48: ='T1'!M48 -> 133600 | AR48: =T3_R1!L48 -> 93471 | AS48: =T3_R2!L48 -> 135929 | AU48: 126.2698104
A49: =IF(INTRO!$E$34<>0,INTRO!$E$34,"") -> Uganda | B49: EASTERN | C49: KABERAMAIDO | D49: 131992 | E49: =IF(INTRO!$E$48="","",ROUND($D49*INTRO!$E$48,0)) -> 18743 | F49: =IF(INTRO!$E$49="","",ROUND($D49*INTRO!$E$49,0)) -> 39862 | G49: =IF(INTRO!$E$50="","",ROUND($D49*INTRO!$E$50,0)) -> 68768 | H49: 99 | I49: 0 | J49: 3 | K49: 3 | L49: 0 | M49: 0 | N49: =IF(INTRO!$E$42="Endemic", IF(AND($J49>1,$J49<5), IF($J49=4, "Unknown", E49+F49), 0),"Not required") -> 58605 | O49: =IF([1]INTRO!$E$43="Endemic", IF(AND($K49>0,$K49<5), IF($K49=4,"Unknown", IF($K49=1, $F49*0.33, IF($K49=2, $F49*0.5+$G49*0.2, SUM(F49:G49)))), 0),"Not required") -> 108630 | P49: 0 | Q49: 0 | R49: 2 | S49: 1 | T49: T3 (ALB/MBD) | U49: T1 (PZQ+ALB/MBD) | V49: T1 | W49: T3 | Y49: 49743 | Z49: KABERAMAIDO | AA49: TRUE | AC49: 135965 | AD49: =_xlfn.XLOOKUP($Y49,[2]COUNTRY_INFO!$Y$9:$Y$143,[2]COUNTRY_INFO!D$9:D$143) -> 127917 | AE49: 3.185659451 | AG49: =_xlfn.XLOOKUP($Y49,[2]COUNTRY_INFO!$Y$9:$Y$143,[2]COUNTRY_INFO!H$9:H$143) -> 99 | AH49: =_xlfn.XLOOKUP($Y49,[2]COUNTRY_INFO!$Y$9:$Y$143,[2]COUNTRY_INFO!I$9:I$143) -> 0 | AI49: =_xlfn.XLOOKUP($Y49,[2]COUNTRY_INFO!$Y$9:$Y$143,[2]COUNTRY_INFO!J$9:J$143) -> 3 | AJ49: =_xlfn.XLOOKUP($Y49,[2]COUNTRY_INFO!$Y$9:$Y$143,[2]COUNTRY_INFO!K$9:K$143) -> 3 | AK49: TRUE | AL49: TRUE | AM49: TRUE | AN49: TRUE | AP49: ='MDA3'!Q49 -> 0 | AQ49: ='T1'!M49 -> 36881 | AR49: =T3_R1!L49 -> 21841 | AS49: =T3_R2!L49 -> 59701 | AU49: 147.3132306
A50: =IF(INTRO!$E$34<>0,INTRO!$E$34,"") -> Uganda | B50: EASTERN | C50: KALAKI | D50: 139345 | E50: =IF(INTRO!$E$48="","",ROUND($D50*INTRO!$E$48,0)) -> 19787 | F50: =IF(INTRO!$E$49="","",ROUND($D50*INTRO!$E$49,0)) -> 42082 | G50: =IF(INTRO!$E$50="","",ROUND($D50*INTRO!$E$50,0)) -> 72599 | H50: 99 | I50: 0 | J50: 3 | K50: 3 | L50: 0 | M50: 0 | N50: =IF(INTRO!$E$42="Endemic", IF(AND($J50>1,$J50<5), IF($J50=4, "Unknown", E50+F50), 0),"Not required") -> 61869 | O50: =IF([1]INTRO!$E$43="Endemic", IF(AND($K50>0,$K50<5), IF($K50=4,"Unknown", IF($K50=1, $F50*0.33, IF($K50=2, $F50*0.5+$G50*0.2, SUM(F50:G50)))), 0),"Not required") -> 114681 | P50: 0 | Q50: 0 | R50: 2 | S50: 1 | T50: T3 (ALB/MBD) | U50: T1 (PZQ+ALB/MBD) | V50: T1 | W50: T3 | Y50: 49843 | Z50: KALAKI | AA50: TRUE | AC50: 143539 | AD50: =_xlfn.XLOOKUP($Y50,[2]COUNTRY_INFO!$Y$9:$Y$143,[2]COUNTRY_INFO!D$9:D$143) -> 135043 | AE50: 3.185651978 | AG50: =_xlfn.XLOOKUP($Y50,[2]COUNTRY_INFO!$Y$9:$Y$143,[2]COUNTRY_INFO!H$9:H$143) -> 99 | AH50: =_xlfn.XLOOKUP($Y50,[2]COUNTRY_INFO!$Y$9:$Y$143,[2]COUNTRY_INFO!I$9:I$143) -> 0 | AI50: =_xlfn.XLOOKUP($Y50,[2]COUNTRY_INFO!$Y$9:$Y$143,[2]COUNTRY_INFO!J$9:J$143) -> 3 | AJ50: =_xlfn.XLOOKUP($Y50,[2]COUNTRY_INFO!$Y$9:$Y$143,[2]COUNTRY_INFO!K$9:K$143) -> 3 | AK50: TRUE | AL50: TRUE | AM50: TRUE | AN50: TRUE | AP50: ='MDA3'!Q50 -> 0 | AQ50: ='T1'!M50 -> 20659 | AR50: =T3_R1!L50 -> 46560 | AS50: =T3_R2!L50 -> 63490 | AU50: 159.7333777
A51: =IF(INTRO!$E$34<>0,INTRO!$E$34,"") -> Uganda | B51: EASTERN | C51: KALIRO | D51: 301289 | E51: =IF(INTRO!$E$48="","",ROUND($D51*INTRO!$E$48,0)) -> 42783 | F51: =IF(INTRO!$E$49="","",ROUND($D51*INTRO!$E$49,0)) -> 90989 | G51: =IF(INTRO!$E$50="","",ROUND($D51*INTRO!$E$50,0)) -> 156972 | H51: 99 | I51: 0 | J51: 3 | K51: 1 | L51: 0 | M51: 0 | N51: =IF(INTRO!$E$42="Endemic", IF(AND($J51>1,$J51<5), IF($J51=4, "Unknown", E51+F51), 0),"Not required") -> 133772 | O51: =IF([1]INTRO!$E$43="Endemic", IF(AND($K51>0,$K51<5), IF($K51=4,"Unknown", IF($K51=1, $F51*0.33, IF($K51=2, $F51*0.5+$G51*0.2, SUM(F51:G51)))), 0),"Not required") -> 30026.37 | P51: 0 | Q51: 0 | R51: 2 | S51: 1 | T51: T3 (ALB/MBD) | U51: T1 (PZQ+ALB/MBD) | V51: T1 | W51: T3 | Y51: 49746 | Z51: KALIRO | AA51: TRUE | AC51: 310358 | AD51: =_xlfn.XLOOKUP($Y51,[2]COUNTRY_INFO!$Y$9:$Y$143,[2]COUNTRY_INFO!D$9:D$143) -> 291986 | AE51: 3.186111663 | AG51: =_xlfn.XLOOKUP($Y51,[2]COUNTRY_INFO!$Y$9:$Y$143,[2]COUNTRY_INFO!H$9:H$143) -> 99 | AH51: =_xlfn.XLOOKUP($Y51,[2]COUNTRY_INFO!$Y$9:$Y$143,[2]COUNTRY_INFO!I$9:I$143) -> 0 | AI51: =_xlfn.XLOOKUP($Y51,[2]COUNTRY_INFO!$Y$9:$Y$143,[2]COUNTRY_INFO!J$9:J$143) -> 3 | AJ51: =_xlfn.XLOOKUP($Y51,[2]COUNTRY_INFO!$Y$9:$Y$143,[2]COUNTRY_INFO!K$9:K$143) -> 1 | AK51: TRUE | AL51: TRUE | AM51: TRUE | AN51: TRUE | AP51: ='MDA3'!Q51 -> 0 | AQ51: ='T1'!M51 -> 89913 | AR51: =T3_R1!L51 -> 69683 | AS51: =T3_R2!L51 -> 68985 | AU51: 175.4014221
A52: =IF(INTRO!$E$34<>0,INTRO!$E$34,"") -> Uganda | B52: EASTERN | C52: KAMULI | D52: 623427 | E52: =IF(INTRO!$E$48="","",ROUND($D52*INTRO!$E$48,0)) -> 88527 | F52: =IF(INTRO!$E$49="","",ROUND($D52*INTRO!$E$49,0)) -> 188275 | G52: =IF(INTRO!$E$50="","",ROUND($D52*INTRO!$E$50,0)) -> 324805 | H52: 99 | I52: 0 | J52: 3 | K52: 1 | L52: 0 | M52: 0 | N52: =IF(INTRO!$E$42="Endemic", IF(AND($J52>1,$J52<5), IF($J52=4, "Unknown", E52+F52), 0),"Not required") -> 276802 | O52: =IF([1]INTRO!$E$43="Endemic", IF(AND($K52>0,$K52<5), IF($K52=4,"Unknown", IF($K52=1, $F52*0.33, IF($K52=2, $F52*0.5+$G52*0.2, SUM(F52:G52)))), 0),"Not required") -> 62130.75 | P52: 0 | Q52: 0 | R52: 2 | S52: 1 | T52: T3 (ALB/MBD) | U52: T1 (PZQ+ALB/MBD) | V52: T1 | W52: T3 | Y52: 49747 | Z52: KAMULI | AA52: TRUE | AC52: 642192 | AD52: =_xlfn.XLOOKUP($Y52,[2]COUNTRY_INFO!$Y$9:$Y$143,[2]COUNTRY_INFO!D$9:D$143) -> 604178 | AE52: 3.185981615 | AG52: =_xlfn.XLOOKUP($Y52,[2]COUNTRY_INFO!$Y$9:$Y$143,[2]COUNTRY_INFO!H$9:H$143) -> 99 | AH52: =_xlfn.XLOOKUP($Y52,[2]COUNTRY_INFO!$Y$9:$Y$143,[2]COUNTRY_INFO!I$9:I$143) -> 0 | AI52: =_xlfn.XLOOKUP($Y52,[2]COUNTRY_INFO!$Y$9:$Y$143,[2]COUNTRY_INFO!J$9:J$143) -> 3 | AJ52: =_xlfn.XLOOKUP($Y52,[2]COUNTRY_INFO!$Y$9:$Y$143,[2]COUNTRY_INFO!K$9:K$143) -> 1 | AK52: TRUE | AL52: TRUE | AM52: TRUE | AN52: TRUE | AP52: ='MDA3'!Q52 -> 0 | AQ52: ='T1'!M52 -> 145191 | AR52: =T3_R1!L52 -> 137511 | AS52: =T3_R2!L52 -> 253066 | AU52: 150.1537644
A53: =IF(INTRO!$E$34<>0,INTRO!$E$34,"") -> Uganda | B53: EASTERN | C53: KAPCHORWA | D53: 141864 | E53: =IF(INTRO!$E$48="","",ROUND($D53*INTRO!$E$48,0)) -> 20145 | F53: =IF(INTRO!$E$49="","",ROUND($D53*INTRO!$E$49,0)) -> 42843 | G53: =IF(INTRO!$E$50="","",ROUND($D53*INTRO!$E$50,0)) -> 73911 | H53: 0 | I53: 0 | J53: 3 | K53: 0 | L53: 0 | M53: 0 | N53: =IF(INTRO!$E$42="Endemic", IF(AND($J53>1,$J53<5), IF($J53=4, "Unknown", E53+F53), 0),"Not required") -> 62988 | O53: =IF([1]INTRO!$E$43="Endemic", IF(AND($K53>0,$K53<5), IF($K53=4,"Unknown", IF($K53=1, $F53*0.33, IF($K53=2, $F53*0.5+$G53*0.2, SUM(F53:G53)))), 0),"Not required") -> 0 | P53: 0 | Q53: 0 | R53: 2 | S53: 0 | T53: T3 (ALB/MBD) | U53: T3 (ALB/MBD) | V53: T3 | W53: T3 | Y53: 49760 | Z53: KAPCHORWA | AA53: TRUE | AC53: 146134 | AD53: =_xlfn.XLOOKUP($Y53,[2]COUNTRY_INFO!$Y$9:$Y$143,[2]COUNTRY_INFO!D$9:D$143) -> 137484 | AE53: 3.18582526 | AG53: =_xlfn.XLOOKUP($Y53,[2]COUNTRY_INFO!$Y$9:$Y$143,[2]COUNTRY_INFO!H$9:H$143) -> 0 | AH53: =_xlfn.XLOOKUP($Y53,[2]COUNTRY_INFO!$Y$9:$Y$143,[2]COUNTRY_INFO!I$9:I$143) -> 0 | AI53: =_xlfn.XLOOKUP($Y53,[2]COUNTRY_INFO!$Y$9:$Y$143,[2]COUNTRY_INFO!J$9:J$143) -> 3 | AJ53: =_xlfn.XLOOKUP($Y53,[2]COUNTRY_INFO!$Y$9:$Y$143,[2]COUNTRY_INFO!K$9:K$143) -> 0 | AK53: TRUE | AL53: TRUE | AM53: TRUE | AN53: TRUE | AP53: ='MDA3'!Q53 -> 0 | AQ53: ='T1'!M53 -> 0 | AR53: =T3_R1!L53 -> 43307 | AS53: =T3_R2!L53 -> 54344
A54: =IF(INTRO!$E$34<>0,INTRO!$E$34,"") -> Uganda | B54: EASTERN | C54: KAPELEBYONG | D54: 111391 | E54: =IF(INTRO!$E$48="","",ROUND($D54*INTRO!$E$48,0)) -> 15818 | F54: =IF(INTRO!$E$49="","",ROUND($D54*INTRO!$E$49,0)) -> 33640 | G54: =IF(INTRO!$E$50="","",ROUND($D54*INTRO!$E$50,0)) -> 58035 | H54: 99 | I54: 0 | J54: 3 | K54: 0 | L54: 0 | M54: 0 | N54: =IF(INTRO!$E$42="Endemic", IF(AND($J54>1,$J54<5), IF($J54=4, "Unknown", E54+F54), 0),"Not required") -> 49458 | O54: =IF([1]INTRO!$E$43="Endemic", IF(AND($K54>0,$K54<5), IF($K54=4,"Unknown", IF($K54=1, $F54*0.33, IF($K54=2, $F54*0.5+$G54*0.2, SUM(F54:G54)))), 0),"Not required") -> 0 | P54: 0 | Q54: 0 | R54: 2 | S54: 0 | T54: T3 (ALB/MBD) | U54: T3 (ALB/MBD) | V54: T3 | W54: T3 | Y54: 49832 | Z54: KAPELEBYONG | AA54: TRUE | AC54: 114744 | AD54: =_xlfn.XLOOKUP($Y54,[2]COUNTRY_INFO!$Y$9:$Y$143,[2]COUNTRY_INFO!D$9:D$143) -> 107952 | AE54: 3.185675115 | AG54: =_xlfn.XLOOKUP($Y54,[2]COUNTRY_INFO!$Y$9:$Y$143,[2]COUNTRY_INFO!H$9:H$143) -> 99 | AH54: =_xlfn.XLOOKUP($Y54,[2]COUNTRY_INFO!$Y$9:$Y$143,[2]COUNTRY_INFO!I$9:I$143) -> 0 | AI54: =_xlfn.XLOOKUP($Y54,[2]COUNTRY_INFO!$Y$9:$Y$143,[2]COUNTRY_INFO!J$9:J$143) -> 3 | AJ54: =_xlfn.XLOOKUP($Y54,[2]COUNTRY_INFO!$Y$9:$Y$143,[2]COUNTRY_INFO!K$9:K$143) -> 0 | AK54: TRUE | AL54: TRUE | AM54: TRUE | AN54: TRUE | AP54: ='MDA3'!Q54 -> 0 | AQ54: ='T1'!M54 -> 0 | AR54: =T3_R1!L54 -> 33204 | AS54: =T3_R2!L54 -> 55154
A55: =IF(INTRO!$E$34<>0,INTRO!$E$34,"") -> Uganda | B55: EASTERN | C55: KATAKWI | D55: 210522 | E55: =IF(INTRO!$E$48="","",ROUND($D55*INTRO!$E$48,0)) -> 29894 | F55: =IF(INTRO!$E$49="","",ROUND($D55*INTRO!$E$49,0)) -> 63578 | G55: =IF(INTRO!$E$50="","",ROUND($D55*INTRO!$E$50,0)) -> 109682 | H55: 99 | I55: 0 | J55: 3 | K55: 1 | L55: 0 | M55: 0 | N55: =IF(INTRO!$E$42="Endemic", IF(AND($J55>1,$J55<5), IF($J55=4, "Unknown", E55+F55), 0),"Not required") -> 93472 | O55: =IF([1]INTRO!$E$43="Endemic", IF(AND($K55>0,$K55<5), IF($K55=4,"Unknown", IF($K55=1, $F55*0.33, IF($K55=2, $F55*0.5+$G55*0.2, SUM(F55:G55)))), 0),"Not required") -> 20980.74 | P55: 0 | Q55: 0 | R55: 2 | S55: 1 | T55: T3 (ALB/MBD) | U55: T1 (PZQ+ALB/MBD) | V55: T1 | W55: T3 | Y55: 49751 | Z55: KATAKWI | AA55: TRUE | AC55: 216859 | AD55: =_xlfn.XLOOKUP($Y55,[2]COUNTRY_INFO!$Y$9:$Y$143,[2]COUNTRY_INFO!D$9:D$143) -> 204022 | AE55: 3.185930929 | AG55: =_xlfn.XLOOKUP($Y55,[2]COUNTRY_INFO!$Y$9:$Y$143,[2]COUNTRY_INFO!H$9:H$143) -> 99 | AH55: =_xlfn.XLOOKUP($Y55,[2]COUNTRY_INFO!$Y$9:$Y$143,[2]COUNTRY_INFO!I$9:I$143) -> 0 | AI55: =_xlfn.XLOOKUP($Y55,[2]COUNTRY_INFO!$Y$9:$Y$143,[2]COUNTRY_INFO!J$9:J$143) -> 3 | AJ55: =_xlfn.XLOOKUP($Y55,[2]COUNTRY_INFO!$Y$9:$Y$143,[2]COUNTRY_INFO!K$9:K$143) -> 1 | AK55: TRUE | AL55: TRUE | AM55: TRUE | AN55: TRUE | AP55: ='MDA3'!Q55 -> 0 | AQ55: ='T1'!M55 -> 21501 | AR55: =T3_R1!L55 -> 84494 | AS55: =T3_R2!L55 -> 60281 | AU55: =(AQ55+AR55)/F55*100 -> 166.7164743
A56: =IF(INTRO!$E$34<>0,INTRO!$E$34,"") -> Uganda | B56: EASTERN | C56: KIBUKU | D56: 257672 | E56: =IF(INTRO!$E$48="","",ROUND($D56*INTRO!$E$48,0)) -> 36589 | F56: =IF(INTRO!$E$49="","",ROUND($D56*INTRO!$E$49,0)) -> 77817 | G56: =IF(INTRO!$E$50="","",ROUND($D56*INTRO!$E$50,0)) -> 134247 | H56: 99 | I56: 0 | J56: 3 | K56: 1 | L56: 0 | M56: 0 | N56: =IF(INTRO!$E$42="Endemic", IF(AND($J56>1,$J56<5), IF($J56=4, "Unknown", E56+F56), 0),"Not required") -> 114406 | O56: =IF([1]INTRO!$E$43="Endemic", IF(AND($K56>0,$K56<5), IF($K56=4,"Unknown", IF($K56=1, $F56*0.33, IF($K56=2, $F56*0.5+$G56*0.2, SUM(F56:G56)))), 0),"Not required") -> 25679.61 | P56: 0 | Q56: 0 | R56: 2 | S56: 1 | T56: T3 (ALB/MBD) | U56: T1 (PZQ+ALB/MBD) | V56: T1 | W56: T3 | Y56: 49763 | Z56: KIBUKU | AA56: TRUE | AC56: 265428 | AD56: =_xlfn.XLOOKUP($Y56,[2]COUNTRY_INFO!$Y$9:$Y$143,[2]COUNTRY_INFO!D$9:D$143) -> 249716 | AE56: 3.186019318 | AG56: =_xlfn.XLOOKUP($Y56,[2]COUNTRY_INFO!$Y$9:$Y$143,[2]COUNTRY_INFO!H$9:H$143) -> 99 | AH56: =_xlfn.XLOOKUP($Y56,[2]COUNTRY_INFO!$Y$9:$Y$143,[2]COUNTRY_INFO!I$9:I$143) -> 0 | AI56: =_xlfn.XLOOKUP($Y56,[2]COUNTRY_INFO!$Y$9:$Y$143,[2]COUNTRY_INFO!J$9:J$143) -> 3 | AJ56: =_xlfn.XLOOKUP($Y56,[2]COUNTRY_INFO!$Y$9:$Y$143,[2]COUNTRY_INFO!K$9:K$143) -> 1 | AK56: TRUE | AL56: TRUE | AM56: TRUE | AN56: TRUE | AP56: ='MDA3'!Q56 -> 0 | AQ56: ='T1'!M56 -> 37173 | AR56: =T3_R1!L56 -> 96216 | AS56: =T3_R2!L56 -> 79464 | AU56: 171.4137014
A57: =IF(INTRO!$E$34<>0,INTRO!$E$34,"") -> Uganda | B57: EASTERN | C57: KUMI | D57: 328178 | E57: =IF(INTRO!$E$48="","",ROUND($D57*INTRO!$E$48,0)) -> 46601 | F57: =IF(INTRO!$E$49="","",ROUND($D57*INTRO!$E$49,0)) -> 99110 | G57: =IF(INTRO!$E$50="","",ROUND($D57*INTRO!$E$50,0)) -> 170981 | H57: 99 | I57: 0 | J57: 3 | K57: 1 | L57: 0 | M57: 0 | N57: =IF(INTRO!$E$42="Endemic", IF(AND($J57>1,$J57<5), IF($J57=4, "Unknown", E57+F57), 0),"Not required") -> 145711 | O57: =IF([1]INTRO!$E$43="Endemic", IF(AND($K57>0,$K57<5), IF($K57=4,"Unknown", IF($K57=1, $F57*0.33, IF($K57=2, $F57*0.5+$G57*0.2, SUM(F57:G57)))), 0),"Not required") -> 32706.3 | P57: 0 | Q57: 0 | R57: 2 | S57: 1 | T57: T3 (ALB/MBD) | U57: T1 (PZQ+ALB/MBD) | V57: T1 | W57: T3 | Y57: 49756 | Z57: KUMI | AA57: TRUE | AC57: 338056 | AD57: =_xlfn.XLOOKUP($Y57,[2]COUNTRY_INFO!$Y$9:$Y$143,[2]COUNTRY_INFO!D$9:D$143) -> 318045 | AE57: 3.186027135 | AG57: =_xlfn.XLOOKUP($Y57,[2]COUNTRY_INFO!$Y$9:$Y$143,[2]COUNTRY_INFO!H$9:H$143) -> 99 | AH57: =_xlfn.XLOOKUP($Y57,[2]COUNTRY_INFO!$Y$9:$Y$143,[2]COUNTRY_INFO!I$9:I$143) -> 0 | AI57: =_xlfn.XLOOKUP($Y57,[2]COUNTRY_INFO!$Y$9:$Y$143,[2]COUNTRY_INFO!J$9:J$143) -> 3 | AJ57: =_xlfn.XLOOKUP($Y57,[2]COUNTRY_INFO!$Y$9:$Y$143,[2]COUNTRY_INFO!K$9:K$143) -> 1 | AK57: TRUE | AL57: TRUE | AM57: TRUE | AN57: TRUE | AP57: ='MDA3'!Q57 -> 0 | AQ57: ='T1'!M57 -> 77055 | AR57: =T3_R1!L57 -> 150947 | AS57: =T3_R2!L57 -> 133406 | AU57: 230.04944
A58: =IF(INTRO!$E$34<>0,INTRO!$E$34,"") -> Uganda | B58: EASTERN | C58: KWEEN | D58: 121597 | E58: =IF(INTRO!$E$48="","",ROUND($D58*INTRO!$E$48,0)) -> 17267 | F58: =IF(INTRO!$E$49="","",ROUND($D58*INTRO!$E$49,0)) -> 36722 | G58: =IF(INTRO!$E$50="","",ROUND($D58*INTRO!$E$50,0)) -> 63352 | H58: 0 | I58: 0 | J58: 3 | K58: 1 | L58: 0 | M58: 0 | N58: =IF(INTRO!$E$42="Endemic", IF(AND($J58>1,$J58<5), IF($J58=4, "Unknown", E58+F58), 0),"Not required") -> 53989 | O58: =IF([1]INTRO!$E$43="Endemic", IF(AND($K58>0,$K58<5), IF($K58=4,"Unknown", IF($K58=1, $F58*0.33, IF($K58=2, $F58*0.5+$G58*0.2, SUM(F58:G58)))), 0),"Not required") -> 12118.26 | P58: 0 | Q58: 0 | R58: 2 | S58: 1 | T58: T3 (ALB/MBD) | U58: T1 (PZQ+ALB/MBD) | V58: T1 | W58: T3 | Y58: 49768 | Z58: KWEEN | AA58: TRUE | AC58: 125257 | AD58: =_xlfn.XLOOKUP($Y58,[2]COUNTRY_INFO!$Y$9:$Y$143,[2]COUNTRY_INFO!D$9:D$143) -> 117843 | AE58: 3.185594393 | AG58: =_xlfn.XLOOKUP($Y58,[2]COUNTRY_INFO!$Y$9:$Y$143,[2]COUNTRY_INFO!H$9:H$143) -> 0 | AH58: =_xlfn.XLOOKUP($Y58,[2]COUNTRY_INFO!$Y$9:$Y$143,[2]COUNTRY_INFO!I$9:I$143) -> 0 | AI58: =_xlfn.XLOOKUP($Y58,[2]COUNTRY_INFO!$Y$9:$Y$143,[2]COUNTRY_INFO!J$9:J$143) -> 3 | AJ58: =_xlfn.XLOOKUP($Y58,[2]COUNTRY_INFO!$Y$9:$Y$143,[2]COUNTRY_INFO!K$9:K$143) -> 1 | AK58: TRUE | AL58: TRUE | AM58: TRUE | AN58: TRUE | AP58: ='MDA3'!Q58 -> 0 | AQ58: ='T1'!M58 -> 3281 | AR58: =T3_R1!L58 -> 60156 | AS58: =T3_R2!L58 -> 50137 | AU58: 172.7493056
A59: =IF(INTRO!$E$34<>0,INTRO!$E$34,"") -> Uganda | B59: EASTERN | C59: LUUKA | D59: 307044 | E59: =IF(INTRO!$E$48="","",ROUND($D59*INTRO!$E$48,0)) -> 43600 | F59: =IF(INTRO!$E$49="","",ROUND($D59*INTRO!$E$49,0)) -> 92727 | G59: =IF(INTRO!$E$50="","",ROUND($D59*INTRO!$E$50,0)) -> 159970 | H59: 99 | I59: 0 | J59: 3 | K59: 1 | L59: 0 | M59: 0 | N59: =IF(INTRO!$E$42="Endemic", IF(AND($J59>1,$J59<5), IF($J59=4, "Unknown", E59+F59), 0),"Not required") -> 136327 | O59: =IF([1]INTRO!$E$43="Endemic", IF(AND($K59>0,$K59<5), IF($K59=4,"Unknown", IF($K59=1, $F59*0.33, IF($K59=2, $F59*0.5+$G59*0.2, SUM(F59:G59)))), 0),"Not required") -> 30599.91 | P59: 0 | Q59: 0 | R59: 2 | S59: 1 | T59: T3 (ALB/MBD) | U59: T1 (PZQ+ALB/MBD) | V59: T1 | W59: T3 | Y59: 49773 | Z59: LUUKA | AA59: TRUE | AC59: 316286 | AD59: =_xlfn.XLOOKUP($Y59,[2]COUNTRY_INFO!$Y$9:$Y$143,[2]COUNTRY_INFO!D$9:D$143) -> 297564 | AE59: 3.185869258 | AG59: =_xlfn.XLOOKUP($Y59,[2]COUNTRY_INFO!$Y$9:$Y$143,[2]COUNTRY_INFO!H$9:H$143) -> 99 | AH59: =_xlfn.XLOOKUP($Y59,[2]COUNTRY_INFO!$Y$9:$Y$143,[2]COUNTRY_INFO!I$9:I$143) -> 0 | AI59: =_xlfn.XLOOKUP($Y59,[2]COUNTRY_INFO!$Y$9:$Y$143,[2]COUNTRY_INFO!J$9:J$143) -> 3 | AJ59: =_xlfn.XLOOKUP($Y59,[2]COUNTRY_INFO!$Y$9:$Y$143,[2]COUNTRY_INFO!K$9:K$143) -> 1 | AK59: TRUE | AL59: TRUE | AM59: TRUE | AN59: TRUE | AP59: ='MDA3'!Q59 -> 0 | AQ59: ='T1'!M59 -> 83903 | AR59: =T3_R1!L59 -> 99262 | AS59: =T3_R2!L59 -> 159535 | AU59: 197.5314633
A60: =IF(INTRO!$E$34<>0,INTRO!$E$34,"") -> Uganda | B60: EASTERN | C60: MANAFWA | D60: 214014 | E60: =IF(INTRO!$E$48="","",ROUND($D60*INTRO!$E$48,0)) -> 30390 | F60: =IF(INTRO!$E$49="","",ROUND($D60*INTRO!$E$49,0)) -> 64632 | G60: =IF(INTRO!$E$50="","",ROUND($D60*INTRO!$E$50,0)) -> 111501 | H60: 0 | I60: 99 | J60: 3 | K60: 1 | L60: 0 | M60: Stopped | N60: =IF(INTRO!$E$42="Endemic", IF(AND($J60>1,$J60<5), IF($J60=4, "Unknown", E60+F60), 0),"Not required") -> 95022 | O60: =IF([1]INTRO!$E$43="Endemic", IF(AND($K60>0,$K60<5), IF($K60=4,"Unknown", IF($K60=1, $F60*0.33, IF($K60=2, $F60*0.5+$G60*0.2, SUM(F60:G60)))), 0),"Not required") -> 21328.56 | P60: 0 | Q60: 0 | R60: 2 | S60: 1 | T60: T3 (ALB/MBD) | U60: T1 (PZQ+ALB/MBD) | V60: T1 | W60: T3 | Y60: 49777 | Z60: MANAFWA | AA60: TRUE | AC60: 220456 | AD60: =_xlfn.XLOOKUP($Y60,[2]COUNTRY_INFO!$Y$9:$Y$143,[2]COUNTRY_INFO!D$9:D$143) -> 207406 | AE60: 3.186021619 | AG60: =_xlfn.XLOOKUP($Y60,[2]COUNTRY_INFO!$Y$9:$Y$143,[2]COUNTRY_INFO!H$9:H$143) -> 0 | AH60: =_xlfn.XLOOKUP($Y60,[2]COUNTRY_INFO!$Y$9:$Y$143,[2]COUNTRY_INFO!I$9:I$143) -> 99 | AI60: =_xlfn.XLOOKUP($Y60,[2]COUNTRY_INFO!$Y$9:$Y$143,[2]COUNTRY_INFO!J$9:J$143) -> 3 | AJ60: =_xlfn.XLOOKUP($Y60,[2]COUNTRY_INFO!$Y$9:$Y$143,[2]COUNTRY_INFO!K$9:K$143) -> 1 | AK60: TRUE | AL60: TRUE | AM60: TRUE | AN60: TRUE | AP60: ='MDA3'!Q60 -> 0 | AQ60: ='T1'!M60 -> 38807 | AR60: =T3_R1!L60 -> 103973 | AS60: =T3_R2!L60 -> 111057 | AU60: 220.9122416
A61: =IF(INTRO!$E$34<>0,INTRO!$E$34,"") -> Uganda | B61: EASTERN | C61: MAYUGE | D61: 609338 | E61: =IF(INTRO!$E$48="","",ROUND($D61*INTRO!$E$48,0)) -> 86526 | F61: =IF(INTRO!$E$49="","",ROUND($D61*INTRO!$E$49,0)) -> 184020 | G61: =IF(INTRO!$E$50="","",ROUND($D61*INTRO!$E$50,0)) -> 317465 | H61: 99 | I61: 0 | J61: 3 | K61: 3 | L61: 0 | M61: 0 | N61: =IF(INTRO!$E$42="Endemic", IF(AND($J61>1,$J61<5), IF($J61=4, "Unknown", E61+F61), 0),"Not required") -> 270546 | O61: =IF([1]INTRO!$E$43="Endemic", IF(AND($K61>0,$K61<5), IF($K61=4,"Unknown", IF($K61=1, $F61*0.33, IF($K61=2, $F61*0.5+$G61*0.2, SUM(F61:G61)))), 0),"Not required") -> 501485 | P61: 0 | Q61: 0 | R61: 2 | S61: 1 | T61: T3 (ALB/MBD) | U61: T1 (PZQ+ALB/MBD) | V61: T1 | W61: T3 | Y61: 49779 | Z61: MAYUGE | AA61: TRUE | AC61: 627679 | AD61: =_xlfn.XLOOKUP($Y61,[2]COUNTRY_INFO!$Y$9:$Y$143,[2]COUNTRY_INFO!D$9:D$143) -> 590524 | AE61: 3.185983974 | AG61: =_xlfn.XLOOKUP($Y61,[2]COUNTRY_INFO!$Y$9:$Y$143,[2]COUNTRY_INFO!H$9:H$143) -> 99 | AH61: =_xlfn.XLOOKUP($Y61,[2]COUNTRY_INFO!$Y$9:$Y$143,[2]COUNTRY_INFO!I$9:I$143) -> 0 | AI61: =_xlfn.XLOOKUP($Y61,[2]COUNTRY_INFO!$Y$9:$Y$143,[2]COUNTRY_INFO!J$9:J$143) -> 3 | AJ61: =_xlfn.XLOOKUP($Y61,[2]COUNTRY_INFO!$Y$9:$Y$143,[2]COUNTRY_INFO!K$9:K$143) -> 3 | AK61: TRUE | AL61: TRUE | AM61: TRUE | AN61: TRUE | AP61: ='MDA3'!Q61 -> 0 | AQ61: ='T1'!M61 -> 82195 | AR61: =T3_R1!L61 -> 123714 | AS61: =T3_R2!L61 -> 161212 | AU61: 111.8949027
A62: =IF(INTRO!$E$34<>0,INTRO!$E$34,"") -> Uganda | B62: EASTERN | C62: MBALE | D62: 626668 | E62: =IF(INTRO!$E$48="","",ROUND($D62*INTRO!$E$48,0)) -> 88987 | F62: =IF(INTRO!$E$49="","",ROUND($D62*INTRO!$E$49,0)) -> 189254 | G62: =IF(INTRO!$E$50="","",ROUND($D62*INTRO!$E$50,0)) -> 326494 | H62: 0 | I62: 99 | J62: 3 | K62: 1 | L62: 0 | M62: Stopped | N62: =IF(INTRO!$E$42="Endemic", IF(AND($J62>1,$J62<5), IF($J62=4, "Unknown", E62+F62), 0),"Not required") -> 278241 | O62: =IF([1]INTRO!$E$43="Endemic", IF(AND($K62>0,$K62<5), IF($K62=4,"Unknown", IF($K62=1, $F62*0.33, IF($K62=2, $F62*0.5+$G62*0.2, SUM(F62:G62)))), 0),"Not required") -> 62453.82 | P62: 0 | Q62: 0 | R62: 2 | S62: 1 | T62: T3 (ALB/MBD) | U62: T1 (PZQ+ALB/MBD) | V62: T1 | W62: T3 | Y62: 49780 | Z62: MBALE | AA62: TRUE | AC62: 645531 | AD62: =_xlfn.XLOOKUP($Y62,[2]COUNTRY_INFO!$Y$9:$Y$143,[2]COUNTRY_INFO!D$9:D$143) -> 607319 | AE62: 3.185969812 | AG62: =_xlfn.XLOOKUP($Y62,[2]COUNTRY_INFO!$Y$9:$Y$143,[2]COUNTRY_INFO!H$9:H$143) -> 0 | AH62: =_xlfn.XLOOKUP($Y62,[2]COUNTRY_INFO!$Y$9:$Y$143,[2]COUNTRY_INFO!I$9:I$143) -> 99 | AI62: =_xlfn.XLOOKUP($Y62,[2]COUNTRY_INFO!$Y$9:$Y$143,[2]COUNTRY_INFO!J$9:J$143) -> 3 | AJ62: =_xlfn.XLOOKUP($Y62,[2]COUNTRY_INFO!$Y$9:$Y$143,[2]COUNTRY_INFO!K$9:K$143) -> 1 | AK62: TRUE | AL62: TRUE | AM62: TRUE | AN62: TRUE | AP62: ='MDA3'!Q62 -> 0 | AQ62: ='T1'!M62 -> 40907 | AR62: =T3_R1!L62 -> 163317 | AS62: =T3_R2!L62 -> 188345 | AU62: 107.9100045
A63: =IF(INTRO!$E$34<>0,INTRO!$E$34,"") -> Uganda | B63: EASTERN | C63: NAMAYINGO | D63: 283865 | E63: =IF(INTRO!$E$48="","",ROUND($D63*INTRO!$E$48,0)) -> 40309 | F63: =IF(INTRO!$E$49="","",ROUND($D63*INTRO!$E$49,0)) -> 85727 | G63: =IF(INTRO!$E$50="","",ROUND($D63*INTRO!$E$50,0)) -> 147894 | H63: 99 | I63: 0 | J63: 3 | K63: 3 | L63: 0 | M63: 0 | N63: =IF(INTRO!$E$42="Endemic", IF(AND($J63>1,$J63<5), IF($J63=4, "Unknown", E63+F63), 0),"Not required") -> 126036 | O63: =IF([1]INTRO!$E$43="Endemic", IF(AND($K63>0,$K63<5), IF($K63=4,"Unknown", IF($K63=1, $F63*0.33, IF($K63=2, $F63*0.5+$G63*0.2, SUM(F63:G63)))), 0),"Not required") -> 233621 | P63: 0 | Q63: 0 | R63: 2 | S63: 1 | T63: T3 (ALB/MBD) | U63: T1 (PZQ+ALB/MBD) | V63: T1 | W63: T3 | Y63: 49796 | Z63: NAMAYINGO | AA63: TRUE | AC63: 292409 | AD63: =_xlfn.XLOOKUP($Y63,[2]COUNTRY_INFO!$Y$9:$Y$143,[2]COUNTRY_INFO!D$9:D$143) -> 275100 | AE63: 3.18611414 | AG63: =_xlfn.XLOOKUP($Y63,[2]COUNTRY_INFO!$Y$9:$Y$143,[2]COUNTRY_INFO!H$9:H$143) -> 99 | AH63: =_xlfn.XLOOKUP($Y63,[2]COUNTRY_INFO!$Y$9:$Y$143,[2]COUNTRY_INFO!I$9:I$143) -> 0 | AI63: =_xlfn.XLOOKUP($Y63,[2]COUNTRY_INFO!$Y$9:$Y$143,[2]COUNTRY_INFO!J$9:J$143) -> 3 | AJ63: =_xlfn.XLOOKUP($Y63,[2]COUNTRY_INFO!$Y$9:$Y$143,[2]COUNTRY_INFO!K$9:K$143) -> 3 | AK63: TRUE | AL63: TRUE | AM63: TRUE | AN63: TRUE | AP63: ='MDA3'!Q63 -> 0 | AQ63: ='T1'!M63 -> 94259 | AR63: =T3_R1!L63 -> 66250 | AS63: =T3_R2!L63 -> 79773 | AU63: 187.2327271
A64: =IF(INTRO!$E$34<>0,INTRO!$E$34,"") -> Uganda | B64: EASTERN | C64: NAMISINDWA | D64: 234707 | E64: =IF(INTRO!$E$48="","",ROUND($D64*INTRO!$E$48,0)) -> 33328 | F64: =IF(INTRO!$E$49="","",ROUND($D64*INTRO!$E$49,0)) -> 70882 | G64: =IF(INTRO!$E$50="","",ROUND($D64*INTRO!$E$50,0)) -> 122282 | H64: 0 | I64: 0 | J64: 3 | K64: 1 | L64: 0 | M64: 0 | N64: =IF(INTRO!$E$42="Endemic", IF(AND($J64>1,$J64<5), IF($J64=4, "Unknown", E64+F64), 0),"Not required") -> 104210 | O64: =IF([1]INTRO!$E$43="Endemic", IF(AND($K64>0,$K64<5), IF($K64=4,"Unknown", IF($K64=1, $F64*0.33, IF($K64=2, $F64*0.5+$G64*0.2, SUM(F64:G64)))), 0),"Not required") -> 23391.06 | P64: 0 | Q64: 0 | R64: 2 | S64: 1 | T64: T3 (ALB/MBD) | U64: T1 (PZQ+ALB/MBD) | V64: T1 | W64: T3 | Y64: 49834 | Z64: NAMISINDWA | AA64: TRUE | AC64: 241772 | AD64: =_xlfn.XLOOKUP($Y64,[2]COUNTRY_INFO!$Y$9:$Y$143,[2]COUNTRY_INFO!D$9:D$143) -> 227460 | AE64: 3.186054691 | AG64: =_xlfn.XLOOKUP($Y64,[2]COUNTRY_INFO!$Y$9:$Y$143,[2]COUNTRY_INFO!H$9:H$143) -> 0 | AH64: =_xlfn.XLOOKUP($Y64,[2]COUNTRY_INFO!$Y$9:$Y$143,[2]COUNTRY_INFO!I$9:I$143) -> 0 | AI64: =_xlfn.XLOOKUP($Y64,[2]COUNTRY_INFO!$Y$9:$Y$143,[2]COUNTRY_INFO!J$9:J$143) -> 3 | AJ64: =_xlfn.XLOOKUP($Y64,[2]COUNTRY_INFO!$Y$9:$Y$143,[2]COUNTRY_INFO!K$9:K$143) -> 1 | AK64: TRUE | AL64: TRUE | AM64: TRUE | AN64: TRUE | AP64: ='MDA3'!Q64 -> 0 | AQ64: ='T1'!M64 -> 46505 | AR64: =T3_R1!L64 -> 80214 | AS64: =T3_R2!L64 -> 118179 | AU64: 178.7745831
A65: =IF(INTRO!$E$34<>0,INTRO!$E$34,"") -> Uganda | B65: EASTERN | C65: NAMUTUMBA | D65: 322056 | E65: =IF(INTRO!$E$48="","",ROUND($D65*INTRO!$E$48,0)) -> 45732 | F65: =IF(INTRO!$E$49="","",ROUND($D65*INTRO!$E$49,0)) -> 97261 | G65: =IF(INTRO!$E$50="","",ROUND($D65*INTRO!$E$50,0)) -> 167791 | H65: 99 | I65: 0 | J65: 3 | K65: 1 | L65: 0 | M65: 0 | N65: =IF(INTRO!$E$42="Endemic", IF(AND($J65>1,$J65<5), IF($J65=4, "Unknown", E65+F65), 0),"Not required") -> 142993 | O65: =IF([1]INTRO!$E$43="Endemic", IF(AND($K65>0,$K65<5), IF($K65=4,"Unknown", IF($K65=1, $F65*0.33, IF($K65=2, $F65*0.5+$G65*0.2, SUM(F65:G65)))), 0),"Not required") -> 32096.13 | P65: 0 | Q65: 0 | R65: 2 | S65: 1 | T65: T3 (ALB/MBD) | U65: T1 (PZQ+ALB/MBD) | V65: T1 | W65: T3 | Y65: 49792 | Z65: NAMUTUMBA | AA65: TRUE | AC65: 331750 | AD65: =_xlfn.XLOOKUP($Y65,[2]COUNTRY_INFO!$Y$9:$Y$143,[2]COUNTRY_INFO!D$9:D$143) -> 312112 | AE65: 3.186035782 | AG65: =_xlfn.XLOOKUP($Y65,[2]COUNTRY_INFO!$Y$9:$Y$143,[2]COUNTRY_INFO!H$9:H$143) -> 99 | AH65: =_xlfn.XLOOKUP($Y65,[2]COUNTRY_INFO!$Y$9:$Y$143,[2]COUNTRY_INFO!I$9:I$143) -> 0 | AI65: =_xlfn.XLOOKUP($Y65,[2]COUNTRY_INFO!$Y$9:$Y$143,[2]COUNTRY_INFO!J$9:J$143) -> 3 | AJ65: =_xlfn.XLOOKUP($Y65,[2]COUNTRY_INFO!$Y$9:$Y$143,[2]COUNTRY_INFO!K$9:K$143) -> 1 | AK65: TRUE | AL65: TRUE | AM65: TRUE | AN65: TRUE | AP65: ='MDA3'!Q65 -> 0 | AQ65: ='T1'!M65 -> 91369 | AR65: =T3_R1!L65 -> 100880 | AS65: =T3_R2!L65 -> 60772 | AU65: 197.6629893
A66: =IF(INTRO!$E$34<>0,INTRO!$E$34,"") -> Uganda | B66: EASTERN | C66: NGORA | D66: 181194 | E66: =IF(INTRO!$E$48="","",ROUND($D66*INTRO!$E$48,0)) -> 25730 | F66: =IF(INTRO!$E$49="","",ROUND($D66*INTRO!$E$49,0)) -> 54721 | G66: =IF(INTRO!$E$50="","",ROUND($D66*INTRO!$E$50,0)) -> 94402 | H66: 99 | I66: 0 | J66: 3 | K66: 1 | L66: 0 | M66: 0 | N66: =IF(INTRO!$E$42="Endemic", IF(AND($J66>1,$J66<5), IF($J66=4, "Unknown", E66+F66), 0),"Not required") -> 80451 | O66: =IF([1]INTRO!$E$43="Endemic", IF(AND($K66>0,$K66<5), IF($K66=4,"Unknown", IF($K66=1, $F66*0.33, IF($K66=2, $F66*0.5+$G66*0.2, SUM(F66:G66)))), 0),"Not required") -> 18057.93 | P66: 0 | Q66: 0 | R66: 2 | S66: 1 | T66: T3 (ALB/MBD) | U66: T1 (PZQ+ALB/MBD) | V66: T1 | W66: T3 | Y66: 49798 | Z66: NGORA | AA66: TRUE | AC66: 186648 | AD66: =_xlfn.XLOOKUP($Y66,[2]COUNTRY_INFO!$Y$9:$Y$143,[2]COUNTRY_INFO!D$9:D$143) -> 175599 | AE66: 3.186236824 | AG66: =_xlfn.XLOOKUP($Y66,[2]COUNTRY_INFO!$Y$9:$Y$143,[2]COUNTRY_INFO!H$9:H$143) -> 99 | AH66: =_xlfn.XLOOKUP($Y66,[2]COUNTRY_INFO!$Y$9:$Y$143,[2]COUNTRY_INFO!I$9:I$143) -> 0 | AI66: =_xlfn.XLOOKUP($Y66,[2]COUNTRY_INFO!$Y$9:$Y$143,[2]COUNTRY_INFO!J$9:J$143) -> 3 | AJ66: =_xlfn.XLOOKUP($Y66,[2]COUNTRY_INFO!$Y$9:$Y$143,[2]COUNTRY_INFO!K$9:K$143) -> 1 | AK66: TRUE | AL66: TRUE | AM66: TRUE | AN66: TRUE | AP66: ='MDA3'!Q66 -> 0 | AQ66: ='T1'!M66 -> 60678 | AR66: =T3_R1!L66 -> 30868 | AS66: =T3_R2!L66 -> 57737 | AU66: 167.2959193
A67: =IF(INTRO!$E$34<>0,INTRO!$E$34,"") -> Uganda | B67: EASTERN | C67: PALLISA | D67: 307473 | E67: =IF(INTRO!$E$48="","",ROUND($D67*INTRO!$E$48,0)) -> 43661 | F67: =IF(INTRO!$E$49="","",ROUND($D67*INTRO!$E$49,0)) -> 92857 | G67: =IF(INTRO!$E$50="","",ROUND($D67*INTRO!$E$50,0)) -> 160193 | H67: 99 | I67: 0 | J67: 3 | K67: 1 | L67: 0 | M67: 0 | N67: =IF(INTRO!$E$42="Endemic", IF(AND($J67>1,$J67<5), IF($J67=4, "Unknown", E67+F67), 0),"Not required") -> 136518 | O67: =IF([1]INTRO!$E$43="Endemic", IF(AND($K67>0,$K67<5), IF($K67=4,"Unknown", IF($K67=1, $F67*0.33, IF($K67=2, $F67*0.5+$G67*0.2, SUM(F67:G67)))), 0),"Not required") -> 30642.81 | P67: 0 | Q67: 0 | R67: 2 | S67: 1 | T67: T3 (ALB/MBD) | U67: T1 (PZQ+ALB/MBD) | V67: T1 | W67: T3 | Y67: 49804 | Z67: PALLISA | AA67: TRUE | AC67: 316728 | AD67: =_xlfn.XLOOKUP($Y67,[2]COUNTRY_INFO!$Y$9:$Y$143,[2]COUNTRY_INFO!D$9:D$143) -> 297979 | AE67: 3.186130566 | AG67: =_xlfn.XLOOKUP($Y67,[2]COUNTRY_INFO!$Y$9:$Y$143,[2]COUNTRY_INFO!H$9:H$143) -> 99 | AH67: =_xlfn.XLOOKUP($Y67,[2]COUNTRY_INFO!$Y$9:$Y$143,[2]COUNTRY_INFO!I$9:I$143) -> 0 | AI67: =_xlfn.XLOOKUP($Y67,[2]COUNTRY_INFO!$Y$9:$Y$143,[2]COUNTRY_INFO!J$9:J$143) -> 3 | AJ67: =_xlfn.XLOOKUP($Y67,[2]COUNTRY_INFO!$Y$9:$Y$143,[2]COUNTRY_INFO!K$9:K$143) -> 1 | AK67: TRUE | AL67: TRUE | AM67: TRUE | AN67: TRUE | AP67: ='MDA3'!Q67 -> 0 | AQ67: ='T1'!M67 -> 104666 | AR67: =T3_R1!L67 -> 120926 | AS67: =T3_R2!L67 -> 124680 | AU67: 242.9456045
A68: =IF(INTRO!$E$34<>0,INTRO!$E$34,"") -> Uganda | B68: EASTERN | C68: SERERE | D68: 360680 | E68: =IF(INTRO!$E$48="","",ROUND($D68*INTRO!$E$48,0)) -> 51217 | F68: =IF(INTRO!$E$49="","",ROUND($D68*INTRO!$E$49,0)) -> 108925 | G68: =IF(INTRO!$E$50="","",ROUND($D68*INTRO!$E$50,0)) -> 187914 | H68: 99 | I68: 0 | J68: 3 | K68: 3 | L68: 0 | M68: 0 | N68: =IF(INTRO!$E$42="Endemic", IF(AND($J68>1,$J68<5), IF($J68=4, "Unknown", E68+F68), 0),"Not required") -> 160142 | O68: =IF([1]INTRO!$E$43="Endemic", IF(AND($K68>0,$K68<5), IF($K68=4,"Unknown", IF($K68=1, $F68*0.33, IF($K68=2, $F68*0.5+$G68*0.2, SUM(F68:G68)))), 0),"Not required") -> 296839 | P68: 0 | Q68: 0 | R68: 2 | S68: 1 | T68: T3 (ALB/MBD) | U68: T1 (PZQ+ALB/MBD) | V68: T1 | W68: T3 | Y68: 49812 | Z68: SERERE | AA68: TRUE | AC68: 371536 | AD68: =_xlfn.XLOOKUP($Y68,[2]COUNTRY_INFO!$Y$9:$Y$143,[2]COUNTRY_INFO!D$9:D$143) -> 349544 | AE68: 3.185865013 | AG68: =_xlfn.XLOOKUP($Y68,[2]COUNTRY_INFO!$Y$9:$Y$143,[2]COUNTRY_INFO!H$9:H$143) -> 99 | AH68: =_xlfn.XLOOKUP($Y68,[2]COUNTRY_INFO!$Y$9:$Y$143,[2]COUNTRY_INFO!I$9:I$143) -> 0 | AI68: =_xlfn.XLOOKUP($Y68,[2]COUNTRY_INFO!$Y$9:$Y$143,[2]COUNTRY_INFO!J$9:J$143) -> 3 | AJ68: =_xlfn.XLOOKUP($Y68,[2]COUNTRY_INFO!$Y$9:$Y$143,[2]COUNTRY_INFO!K$9:K$143) -> 3 | AK68: TRUE | AL68: TRUE | AM68: TRUE | AN68: TRUE | AP68: ='MDA3'!Q68 -> 0 | AQ68: ='T1'!M68 -> 79237 | AR68: =T3_R1!L68 -> 71035 | AS68: =T3_R2!L68 -> 161842 | AU68: 137.9591462
A69: =IF(INTRO!$E$34<>0,INTRO!$E$34,"") -> Uganda | B69: EASTERN | C69: SIRONKO | D69: 313641 | E69: =IF(INTRO!$E$48="","",ROUND($D69*INTRO!$E$48,0)) -> 44537 | F69: =IF(INTRO!$E$49="","",ROUND($D69*INTRO!$E$49,0)) -> 94720 | G69: =IF(INTRO!$E$50="","",ROUND($D69*INTRO!$E$50,0)) -> 163407 | H69: 0 | I69: 99 | J69: 3 | K69: 1 | L69: 0 | M69: Stopped | N69: =IF(INTRO!$E$42="Endemic", IF(AND($J69>1,$J69<5), IF($J69=4, "Unknown", E69+F69), 0),"Not required") -> 139257 | O69: =IF([1]INTRO!$E$43="Endemic", IF(AND($K69>0,$K69<5), IF($K69=4,"Unknown", IF($K69=1, $F69*0.33, IF($K69=2, $F69*0.5+$G69*0.2, SUM(F69:G69)))), 0),"Not required") -> 31257.6 | P69: 0 | Q69: 0 | R69: 2 | S69: 1 | T69: T3 (ALB/MBD) | U69: T1 (PZQ+ALB/MBD) | V69: T1 | W69: T3 | Y69: 49809 | Z69: SIRONKO | AA69: TRUE | AC69: 323082 | AD69: =_xlfn.XLOOKUP($Y69,[2]COUNTRY_INFO!$Y$9:$Y$143,[2]COUNTRY_INFO!D$9:D$143) -> 303957 | AE69: 3.185976964 | AG69: =_xlfn.XLOOKUP($Y69,[2]COUNTRY_INFO!$Y$9:$Y$143,[2]COUNTRY_INFO!H$9:H$143) -> 0 | AH69: =_xlfn.XLOOKUP($Y69,[2]COUNTRY_INFO!$Y$9:$Y$143,[2]COUNTRY_INFO!I$9:I$143) -> 99 | AI69: =_xlfn.XLOOKUP($Y69,[2]COUNTRY_INFO!$Y$9:$Y$143,[2]COUNTRY_INFO!J$9:J$143) -> 3 | AJ69: =_xlfn.XLOOKUP($Y69,[2]COUNTRY_INFO!$Y$9:$Y$143,[2]COUNTRY_INFO!K$9:K$143) -> 1 | AK69: TRUE | AL69: TRUE | AM69: TRUE | AN69: TRUE | AP69: ='MDA3'!Q69 -> 0 | AQ69: ='T1'!M69 -> 11334 | AR69: =T3_R1!L69 -> 108917 | AS69: =T3_R2!L69 -> 51616 | AU69: 126.9541807
A70: =IF(INTRO!$E$34<>0,INTRO!$E$34,"") -> Uganda | B70: EASTERN | C70: SOROTI | D70: 377875 | E70: =IF(INTRO!$E$48="","",ROUND($D70*INTRO!$E$48,0)) -> 53658 | F70: =IF(INTRO!$E$49="","",ROUND($D70*INTRO!$E$49,0)) -> 114118 | G70: =IF(INTRO!$E$50="","",ROUND($D70*INTRO!$E$50,0)) -> 196873 | H70: 99 | I70: 0 | J70: 3 | K70: 1 | L70: 0 | M70: 0 | N70: =IF(INTRO!$E$42="Endemic", IF(AND($J70>1,$J70<5), IF($J70=4, "Unknown", E70+F70), 0),"Not required") -> 167776 | O70: =IF([1]INTRO!$E$43="Endemic", IF(AND($K70>0,$K70<5), IF($K70=4,"Unknown", IF($K70=1, $F70*0.33, IF($K70=2, $F70*0.5+$G70*0.2, SUM(F70:G70)))), 0),"Not required") -> 37658.94 | P70: 0 | Q70: 0 | R70: 2 | S70: 1 | T70: T3 (ALB/MBD) | U70: T1 (PZQ+ALB/MBD) | V70: T1 | W70: T3 | Y70: 49810 | Z70: SOROTI | AA70: TRUE | AC70: 389249 | AD70: =_xlfn.XLOOKUP($Y70,[2]COUNTRY_INFO!$Y$9:$Y$143,[2]COUNTRY_INFO!D$9:D$143) -> 366208 | AE70: 3.185894355 | AG70: =_xlfn.XLOOKUP($Y70,[2]COUNTRY_INFO!$Y$9:$Y$143,[2]COUNTRY_INFO!H$9:H$143) -> 99 | AH70: =_xlfn.XLOOKUP($Y70,[2]COUNTRY_INFO!$Y$9:$Y$143,[2]COUNTRY_INFO!I$9:I$143) -> 0 | AI70: =_xlfn.XLOOKUP($Y70,[2]COUNTRY_INFO!$Y$9:$Y$143,[2]COUNTRY_INFO!J$9:J$143) -> 3 | AJ70: =_xlfn.XLOOKUP($Y70,[2]COUNTRY_INFO!$Y$9:$Y$143,[2]COUNTRY_INFO!K$9:K$143) -> 1 | AK70: TRUE | AL70: TRUE | AM70: TRUE | AN70: TRUE | AP70: ='MDA3'!Q70 -> 0 | AQ70: ='T1'!M70 -> 109243 | AR70: =T3_R1!L70 -> 160726 | AS70: =T3_R2!L70 -> 145373 | AU70: 236.5700415
A71: =IF(INTRO!$E$34<>0,INTRO!$E$34,"") -> Uganda | B71: EASTERN | C71: TORORO | D71: 669372 | E71: =IF(INTRO!$E$48="","",ROUND($D71*INTRO!$E$48,0)) -> 95051 | F71: =IF(INTRO!$E$49="","",ROUND($D71*INTRO!$E$49,0)) -> 202150 | G71: =IF(INTRO!$E$50="","",ROUND($D71*INTRO!$E$50,0)) -> 348743 | H71: 99 | I71: 0 | J71: 3 | K71: 1 | L71: 0 | M71: 0 | N71: =IF(INTRO!$E$42="Endemic", IF(AND($J71>1,$J71<5), IF($J71=4, "Unknown", E71+F71), 0),"Not required") -> 297201 | O71: =IF([1]INTRO!$E$43="Endemic", IF(AND($K71>0,$K71<5), IF($K71=4,"Unknown", IF($K71=1, $F71*0.33, IF($K71=2, $F71*0.5+$G71*0.2, SUM(F71:G71)))), 0),"Not required") -> 66709.5 | P71: 0 | Q71: 0 | R71: 2 | S71: 1 | T71: T3 (ALB/MBD) | U71: T1 (PZQ+ALB/MBD) | V71: T1 | W71: T3 | Y71: 49814 | Z71: TORORO | AA71: TRUE | AC71: 689520 | AD71: =_xlfn.XLOOKUP($Y71,[2]COUNTRY_INFO!$Y$9:$Y$143,[2]COUNTRY_INFO!D$9:D$143) -> 648704 | AE71: 3.186044791 | AG71: =_xlfn.XLOOKUP($Y71,[2]COUNTRY_INFO!$Y$9:$Y$143,[2]COUNTRY_INFO!H$9:H$143) -> 99 | AH71: =_xlfn.XLOOKUP($Y71,[2]COUNTRY_INFO!$Y$9:$Y$143,[2]COUNTRY_INFO!I$9:I$143) -> 0 | AI71: =_xlfn.XLOOKUP($Y71,[2]COUNTRY_INFO!$Y$9:$Y$143,[2]COUNTRY_INFO!J$9:J$143) -> 3 | AJ71: =_xlfn.XLOOKUP($Y71,[2]COUNTRY_INFO!$Y$9:$Y$143,[2]COUNTRY_INFO!K$9:K$143) -> 1 | AK71: TRUE | AL71: TRUE | AM71: TRUE | AN71: TRUE | AP71: ='MDA3'!Q71 -> 0 | AQ71: ='T1'!M71 -> 103917 | AR71: =T3_R1!L71 -> 168413 | AS71: =T3_R2!L71 -> 87734 | AU71: 134.7167945
A72: =IF(INTRO!$E$34<>0,INTRO!$E$34,"") -> Uganda | B72: NORTHERN | C72: ABIM | D72: 138660 | E72: =IF(INTRO!$E$48="","",ROUND($D72*INTRO!$E$48,0)) -> 19690 | F72: =IF(INTRO!$E$49="","",ROUND($D72*INTRO!$E$49,0)) -> 41875 | G72: =IF(INTRO!$E$50="","",ROUND($D72*INTRO!$E$50,0)) -> 72242 | H72: 99 | I72: 0 | J72: 3 | K72: 0 | L72: 0 | M72: 0 | N72: =IF(INTRO!$E$42="Endemic", IF(AND($J72>1,$J72<5), IF($J72=4, "Unknown", E72+F72), 0),"Not required") -> 61565 | O72: =IF([1]INTRO!$E$43="Endemic", IF(AND($K72>0,$K72<5), IF($K72=4,"Unknown", IF($K72=1, $F72*0.33, IF($K72=2, $F72*0.5+$G72*0.2, SUM(F72:G72)))), 0),"Not required") -> 0 | P72: 0 | Q72: 0 | R72: 2 | S72: 0 | T72: T3 (ALB/MBD) | U72: T3 (ALB/MBD) | V72: T3 | W72: T3 | Y72: 49706 | Z72: ABIM | AA72: TRUE | AC72: 142834 | AD72: =_xlfn.XLOOKUP($Y72,[2]COUNTRY_INFO!$Y$9:$Y$143,[2]COUNTRY_INFO!D$9:D$143) -> 134379 | AE72: 3.185765633 | AG72: =_xlfn.XLOOKUP($Y72,[2]COUNTRY_INFO!$Y$9:$Y$143,[2]COUNTRY_INFO!H$9:H$143) -> 99 | AH72: =_xlfn.XLOOKUP($Y72,[2]COUNTRY_INFO!$Y$9:$Y$143,[2]COUNTRY_INFO!I$9:I$143) -> 0 | AI72: =_xlfn.XLOOKUP($Y72,[2]COUNTRY_INFO!$Y$9:$Y$143,[2]COUNTRY_INFO!J$9:J$143) -> 3 | AJ72: =_xlfn.XLOOKUP($Y72,[2]COUNTRY_INFO!$Y$9:$Y$143,[2]COUNTRY_INFO!K$9:K$143) -> 0 | AK72: TRUE | AL72: TRUE | AM72: TRUE | AN72: TRUE | AP72: ='MDA3'!Q72 -> 0 | AQ72: ='T1'!M72 -> 0 | AR72: =T3_R1!L72 -> 68874 | AS72: =T3_R2!L72 -> 70215
A73: =IF(INTRO!$E$34<>0,INTRO!$E$34,"") -> Uganda | B73: NORTHERN | C73: ADJUMANI | D73: 296056 | E73: =IF(INTRO!$E$48="","",ROUND($D73*INTRO!$E$48,0)) -> 42040 | F73: =IF(INTRO!$E$49="","",ROUND($D73*INTRO!$E$49,0)) -> 89409 | G73: =IF(INTRO!$E$50="","",ROUND($D73*INTRO!$E$50,0)) -> 154245 | H73: 99 | I73: 1 | J73: 3 | K73: 3 | L73: 0 | M73: 27062 | N73: =IF(INTRO!$E$42="Endemic", IF(AND($J73>1,$J73<5), IF($J73=4, "Unknown", E73+F73), 0),"Not required") -> 131449 | O73: =IF([1]INTRO!$E$43="Endemic", IF(AND($K73>0,$K73<5), IF($K73=4,"Unknown", IF($K73=1, $F73*0.33, IF($K73=2, $F73*0.5+$G73*0.2, SUM(F73:G73)))), 0),"Not required") -> 243654 | P73: 0 | Q73: 2 | R73: 2 | S73: 1 | T73: MDA3 (IVM) | U73: T1 (PZQ+ALB/MBD) | V73: MDA 1 | W73: T1 | Y73: 49707 | Z73: ADJUMANI | AA73: TRUE | AC73: 304967 | AD73: =_xlfn.XLOOKUP($Y73,[2]COUNTRY_INFO!$Y$9:$Y$143,[2]COUNTRY_INFO!D$9:D$143) -> 286915 | AE73: 3.185960999 | AG73: =_xlfn.XLOOKUP($Y73,[2]COUNTRY_INFO!$Y$9:$Y$143,[2]COUNTRY_INFO!H$9:H$143) -> 99 | AH73: =_xlfn.XLOOKUP($Y73,[2]COUNTRY_INFO!$Y$9:$Y$143,[2]COUNTRY_INFO!I$9:I$143) -> 1 | AI73: =_xlfn.XLOOKUP($Y73,[2]COUNTRY_INFO!$Y$9:$Y$143,[2]COUNTRY_INFO!J$9:J$143) -> 3 | AJ73: =_xlfn.XLOOKUP($Y73,[2]COUNTRY_INFO!$Y$9:$Y$143,[2]COUNTRY_INFO!K$9:K$143) -> 3 | AK73: TRUE | AL73: TRUE | AM73: TRUE | AN73: TRUE | AP73: ='MDA3'!Q73 -> 25867 | AQ73: ='T1'!M73 -> 18070 | AR73: =T3_R1!L73 -> 166248 | AS73: =T3_R2!L73 -> 170981 | AU73: =(AQ73+AR73)/F73*100 -> 206.151506
A74: =IF(INTRO!$E$34<>0,INTRO!$E$34,"") -> Uganda | B74: NORTHERN | C74: AGAGO | D74: 289282 | E74: =IF(INTRO!$E$48="","",ROUND($D74*INTRO!$E$48,0)) -> 41078 | F74: =IF(INTRO!$E$49="","",ROUND($D74*INTRO!$E$49,0)) -> 87363 | G74: =IF(INTRO!$E$50="","",ROUND($D74*INTRO!$E$50,0)) -> 150716 | H74: 99 | I74: 0 | J74: 3 | K74: 3 | L74: 0 | M74: 0 | N74: =IF(INTRO!$E$42="Endemic", IF(AND($J74>1,$J74<5), IF($J74=4, "Unknown", E74+F74), 0),"Not required") -> 128441 | O74: =IF([1]INTRO!$E$43="Endemic", IF(AND($K74>0,$K74<5), IF($K74=4,"Unknown", IF($K74=1, $F74*0.33, IF($K74=2, $F74*0.5+$G74*0.2, SUM(F74:G74)))), 0),"Not required") -> 238079 | P74: 0 | Q74: 0 | R74: 2 | S74: 1 | T74: T3 (ALB/MBD) | U74: T1 (PZQ+ALB/MBD) | V74: T1 | W74: T3 | Y74: 49713 | Z74: AGAGO | AA74: =Z74=C74 -> TRUE | AC74: =ROUND(D74*$U$2,0) -> 297989 | AD74: =_xlfn.XLOOKUP($Y74,[2]COUNTRY_INFO!$Y$9:$Y$143,[2]COUNTRY_INFO!D$9:D$143) -> 280350 | AE74: =(D74-AD74)/AD74*100 -> 3.186017478 | AG74: =_xlfn.XLOOKUP($Y74,[2]COUNTRY_INFO!$Y$9:$Y$143,[2]COUNTRY_INFO!H$9:H$143) -> 99 | AH74: =_xlfn.XLOOKUP($Y74,[2]COUNTRY_INFO!$Y$9:$Y$143,[2]COUNTRY_INFO!I$9:I$143) -> 0 | AI74: =_xlfn.XLOOKUP($Y74,[2]COUNTRY_INFO!$Y$9:$Y$143,[2]COUNTRY_INFO!J$9:J$143) -> 3 | AJ74: =_xlfn.XLOOKUP($Y74,[2]COUNTRY_INFO!$Y$9:$Y$143,[2]COUNTRY_INFO!K$9:K$143) -> 3 | AK74: =AG74=H74 -> TRUE | AL74: =AH74=I74 -> TRUE | AM74: =AI74=J74 -> TRUE | AN74: =AJ74=K74 -> TRUE | AP74: ='MDA3'!Q74 -> 0 | AQ74: ='T1'!M74 -> 86113 | AR74: =T3_R1!L74 -> 115331 | AS74: =T3_R2!L74 -> 120192 | AU74: 230.582741
A75: =IF(INTRO!$E$34<>0,INTRO!$E$34,"") -> Uganda | B75: NORTHERN | C75: ALEBTONG | D75: 286533 | E75: =IF(INTRO!$E$48="","",ROUND($D75*INTRO!$E$48,0)) -> 40688 | F75: =IF(INTRO!$E$49="","",ROUND($D75*INTRO!$E$49,0)) -> 86533 | G75: =IF(INTRO!$E$50="","",ROUND($D75*INTRO!$E$50,0)) -> 149284 | H75: 99 | I75: 0 | J75: 3 | K75: 2 | L75: 0 | M75: 0 | N75: =IF(INTRO!$E$42="Endemic", IF(AND($J75>1,$J75<5), IF($J75=4, "Unknown", E75+F75), 0),"Not required") -> 127221 | O75: =IF([1]INTRO!$E$43="Endemic", IF(AND($K75>0,$K75<5), IF($K75=4,"Unknown", IF($K75=1, $F75*0.33, IF($K75=2, $F75*0.5+$G75*0.2, SUM(F75:G75)))), 0),"Not required") -> 73123.3 | P75: 0 | Q75: 0 | R75: 2 | S75: 1 | T75: T3 (ALB/MBD) | U75: T1 (PZQ+ALB/MBD) | V75: T1 | W75: T3 | Y75: 49714 | Z75: ALEBTONG | AA75: TRUE | AC75: 295158 | AD75: =_xlfn.XLOOKUP($Y75,[2]COUNTRY_INFO!$Y$9:$Y$143,[2]COUNTRY_INFO!D$9:D$143) -> 277686 | AE75: 3.185972645 | AG75: =_xlfn.XLOOKUP($Y75,[2]COUNTRY_INFO!$Y$9:$Y$143,[2]COUNTRY_INFO!H$9:H$143) -> 99 | AH75: =_xlfn.XLOOKUP($Y75,[2]COUNTRY_INFO!$Y$9:$Y$143,[2]COUNTRY_INFO!I$9:I$143) -> 0 | AI75: =_xlfn.XLOOKUP($Y75,[2]COUNTRY_INFO!$Y$9:$Y$143,[2]COUNTRY_INFO!J$9:J$143) -> 3 | AJ75: =_xlfn.XLOOKUP($Y75,[2]COUNTRY_INFO!$Y$9:$Y$143,[2]COUNTRY_INFO!K$9:K$143) -> 2 | AK75: TRUE | AL75: TRUE | AM75: TRUE | AN75: TRUE | AP75: ='MDA3'!Q75 -> 0 | AQ75: ='T1'!M75 -> 77052 | AR75: =T3_R1!L75 -> 65209 | AS75: =T3_R2!L75 -> 104996 | AU75: 164.4008644
A76: =IF(INTRO!$E$34<>0,INTRO!$E$34,"") -> Uganda | B76: NORTHERN | C76: AMOLATAR | D76: 186811 | E76: =IF(INTRO!$E$48="","",ROUND($D76*INTRO!$E$48,0)) -> 26527 | F76: =IF(INTRO!$E$49="","",ROUND($D76*INTRO!$E$49,0)) -> 56417 | G76: =IF(INTRO!$E$50="","",ROUND($D76*INTRO!$E$50,0)) -> 97329 | H76: 99 | I76: 0 | J76: 3 | K76: 3 | L76: 0 | M76: 0 | N76: =IF(INTRO!$E$42="Endemic", IF(AND($J76>1,$J76<5), IF($J76=4, "Unknown", E76+F76), 0),"Not required") -> 82944 | O76: =IF([1]INTRO!$E$43="Endemic", IF(AND($K76>0,$K76<5), IF($K76=4,"Unknown", IF($K76=1, $F76*0.33, IF($K76=2, $F76*0.5+$G76*0.2, SUM(F76:G76)))), 0),"Not required") -> 153746 | P76: 0 | Q76: 0 | R76: 2 | S76: 1 | T76: T3 (ALB/MBD) | U76: T1 (PZQ+ALB/MBD) | V76: T1 | W76: T3 | Y76: 49708 | Z76: AMOLATAR | AA76: TRUE | AC76: 192434 | AD76: =_xlfn.XLOOKUP($Y76,[2]COUNTRY_INFO!$Y$9:$Y$143,[2]COUNTRY_INFO!D$9:D$143) -> 181043 | AE76: 3.18598344 | AG76: =_xlfn.XLOOKUP($Y76,[2]COUNTRY_INFO!$Y$9:$Y$143,[2]COUNTRY_INFO!H$9:H$143) -> 99 | AH76: =_xlfn.XLOOKUP($Y76,[2]COUNTRY_INFO!$Y$9:$Y$143,[2]COUNTRY_INFO!I$9:I$143) -> 0 | AI76: =_xlfn.XLOOKUP($Y76,[2]COUNTRY_INFO!$Y$9:$Y$143,[2]COUNTRY_INFO!J$9:J$143) -> 3 | AJ76: =_xlfn.XLOOKUP($Y76,[2]COUNTRY_INFO!$Y$9:$Y$143,[2]COUNTRY_INFO!K$9:K$143) -> 3 | AK76: TRUE | AL76: TRUE | AM76: TRUE | AN76: TRUE | AP76: ='MDA3'!Q76 -> 0 | AQ76: ='T1'!M76 -> 53872 | AR76: =T3_R1!L76 -> 44218 | AS76: =T3_R2!L76 -> 60566 | AU76: 173.8660333
A77: =IF(INTRO!$E$34<>0,INTRO!$E$34,"") -> Uganda | B77: NORTHERN | C77: AMUDAT | D77: 142120 | E77: =IF(INTRO!$E$48="","",ROUND($D77*INTRO!$E$48,0)) -> 20181 | F77: =IF(INTRO!$E$49="","",ROUND($D77*INTRO!$E$49,0)) -> 42920 | G77: =IF(INTRO!$E$50="","",ROUND($D77*INTRO!$E$50,0)) -> 74045 | H77: 99 | I77: 0 | J77: 3 | K77: 0 | L77: 0 | M77: 0 | N77: =IF(INTRO!$E$42="Endemic", IF(AND($J77>1,$J77<5), IF($J77=4, "Unknown", E77+F77), 0),"Not required") -> 63101 | O77: =IF([1]INTRO!$E$43="Endemic", IF(AND($K77>0,$K77<5), IF($K77=4,"Unknown", IF($K77=1, $F77*0.33, IF($K77=2, $F77*0.5+$G77*0.2, SUM(F77:G77)))), 0),"Not required") -> 0 | P77: 0 | Q77: 0 | R77: 2 | S77: 0 | T77: T3 (ALB/MBD) | U77: T3 (ALB/MBD) | V77: T3 | W77: T3 | Y77: 49715 | Z77: AMUDAT | AA77: TRUE | AC77: 146398 | AD77: =_xlfn.XLOOKUP($Y77,[2]COUNTRY_INFO!$Y$9:$Y$143,[2]COUNTRY_INFO!D$9:D$143) -> 137732 | AE77: 3.18589725 | AG77: =_xlfn.XLOOKUP($Y77,[2]COUNTRY_INFO!$Y$9:$Y$143,[2]COUNTRY_INFO!H$9:H$143) -> 99 | AH77: =_xlfn.XLOOKUP($Y77,[2]COUNTRY_INFO!$Y$9:$Y$143,[2]COUNTRY_INFO!I$9:I$143) -> 0 | AI77: =_xlfn.XLOOKUP($Y77,[2]COUNTRY_INFO!$Y$9:$Y$143,[2]COUNTRY_INFO!J$9:J$143) -> 3 | AJ77: =_xlfn.XLOOKUP($Y77,[2]COUNTRY_INFO!$Y$9:$Y$143,[2]COUNTRY_INFO!K$9:K$143) -> 0 | AK77: TRUE | AL77: TRUE | AM77: TRUE | AN77: TRUE | AP77: ='MDA3'!Q77 -> 0 | AQ77: ='T1'!M77 -> 0 | AR77: =T3_R1!L77 -> 56749 | AS77: =T3_R2!L77 -> 47744
A78: =IF(INTRO!$E$34<>0,INTRO!$E$34,"") -> Uganda | B78: NORTHERN | C78: AMURU | D78: 242268 | E78: =IF(INTRO!$E$48="","",ROUND($D78*INTRO!$E$48,0)) -> 34402 | F78: =IF(INTRO!$E$49="","",ROUND($D78*INTRO!$E$49,0)) -> 73165 | G78: =IF(INTRO!$E$50="","",ROUND($D78*INTRO!$E$50,0)) -> 126222 | H78: 99 | I78: 1 | J78: 3 | K78: 3 | L78: 0 | M78: 234807 | N78: =IF(INTRO!$E$42="Endemic", IF(AND($J78>1,$J78<5), IF($J78=4, "Unknown", E78+F78), 0),"Not required") -> 107567 | O78: =IF([1]INTRO!$E$43="Endemic", IF(AND($K78>0,$K78<5), IF($K78=4,"Unknown", IF($K78=1, $F78*0.33, IF($K78=2, $F78*0.5+$G78*0.2, SUM(F78:G78)))), 0),"Not required") -> 199387 | P78: 0 | Q78: 2 | R78: 2 | S78: 1 | T78: MDA3 (IVM) | U78: T1 (PZQ+ALB/MBD) | V78: MDA 1 | W78: T1 | Y78: 49710 | Z78: AMURU | AA78: TRUE | AC78: 249560 | AD78: =_xlfn.XLOOKUP($Y78,[2]COUNTRY_INFO!$Y$9:$Y$143,[2]COUNTRY_INFO!D$9:D$143) -> 234788 | AE78: 3.185852769 | AG78: =_xlfn.XLOOKUP($Y78,[2]COUNTRY_INFO!$Y$9:$Y$143,[2]COUNTRY_INFO!H$9:H$143) -> 99 | AH78: =_xlfn.XLOOKUP($Y78,[2]COUNTRY_INFO!$Y$9:$Y$143,[2]COUNTRY_INFO!I$9:I$143) -> 1 | AI78: =_xlfn.XLOOKUP($Y78,[2]COUNTRY_INFO!$Y$9:$Y$143,[2]COUNTRY_INFO!J$9:J$143) -> 3 | AJ78: =_xlfn.XLOOKUP($Y78,[2]COUNTRY_INFO!$Y$9:$Y$143,[2]COUNTRY_INFO!K$9:K$143) -> 3 | AK78: TRUE | AL78: TRUE | AM78: TRUE | AN78: TRUE | AP78: ='MDA3'!Q78 -> 219677 | AQ78: ='T1'!M78 -> 60762 | AR78: =T3_R1!L78 -> 50552 | AS78: =T3_R2!L78 -> 60398 | AU78: =(AQ78+AR78)/F78*100 -> 152.141051
A79: =IF(INTRO!$E$34<>0,INTRO!$E$34,"") -> Uganda | B79: NORTHERN | C79: APAC | D79: 235743 | E79: =IF(INTRO!$E$48="","",ROUND($D79*INTRO!$E$48,0)) -> 33476 | F79: =IF(INTRO!$E$49="","",ROUND($D79*INTRO!$E$49,0)) -> 71194 | G79: =IF(INTRO!$E$50="","",ROUND($D79*INTRO!$E$50,0)) -> 122822 | H79: 99 | I79: 0 | J79: 3 | K79: 3 | L79: 0 | M79: 0 | N79: =IF(INTRO!$E$42="Endemic", IF(AND($J79>1,$J79<5), IF($J79=4, "Unknown", E79+F79), 0),"Not required") -> 104670 | O79: =IF([1]INTRO!$E$43="Endemic", IF(AND($K79>0,$K79<5), IF($K79=4,"Unknown", IF($K79=1, $F79*0.33, IF($K79=2, $F79*0.5+$G79*0.2, SUM(F79:G79)))), 0),"Not required") -> 194016 | P79: 0 | Q79: 0 | R79: 2 | S79: 1 | T79: T3 (ALB/MBD) | U79: T1 (PZQ+ALB/MBD) | V79: T1 | W79: T3 | Y79: 49711 | Z79: APAC | AA79: TRUE | AC79: 242839 | AD79: =_xlfn.XLOOKUP($Y79,[2]COUNTRY_INFO!$Y$9:$Y$143,[2]COUNTRY_INFO!D$9:D$143) -> 228464 | AE79: 3.186059948 | AG79: =_xlfn.XLOOKUP($Y79,[2]COUNTRY_INFO!$Y$9:$Y$143,[2]COUNTRY_INFO!H$9:H$143) -> 99 | AH79: =_xlfn.XLOOKUP($Y79,[2]COUNTRY_INFO!$Y$9:$Y$143,[2]COUNTRY_INFO!I$9:I$143) -> 0 | AI79: =_xlfn.XLOOKUP($Y79,[2]COUNTRY_INFO!$Y$9:$Y$143,[2]COUNTRY_INFO!J$9:J$143) -> 3 | AJ79: =_xlfn.XLOOKUP($Y79,[2]COUNTRY_INFO!$Y$9:$Y$143,[2]COUNTRY_INFO!K$9:K$143) -> 3 | AK79: TRUE | AL79: TRUE | AM79: TRUE | AN79: TRUE | AP79: ='MDA3'!Q79 -> 0 | AQ79: ='T1'!M79 -> 73856 | AR79: =T3_R1!L79 -> 103545 | AS79: =T3_R2!L79 -> 105361 | AU79: 249.1797062
A80: =IF(INTRO!$E$34<>0,INTRO!$E$34,"") -> Uganda | B80: NORTHERN | C80: ARUA | D80: 822129 | E80: =IF(INTRO!$E$48="","",ROUND($D80*INTRO!$E$48,0)) -> 116742 | F80: =IF(INTRO!$E$49="","",ROUND($D80*INTRO!$E$49,0)) -> 248283 | G80: =IF(INTRO!$E$50="","",ROUND($D80*INTRO!$E$50,0)) -> 428329 | H80: 99 | I80: 99 | J80: 3 | K80: 2 | L80: 0 | M80: Stopped | N80: =IF(INTRO!$E$42="Endemic", IF(AND($J80>1,$J80<5), IF($J80=4, "Unknown", E80+F80), 0),"Not required") -> 365025 | O80: =IF([1]INTRO!$E$43="Endemic", IF(AND($K80>0,$K80<5), IF($K80=4,"Unknown", IF($K80=1, $F80*0.33, IF($K80=2, $F80*0.5+$G80*0.2, SUM(F80:G80)))), 0),"Not required") -> 209807.3 | P80: 0 | Q80: 0 | R80: 2 | S80: 1 | T80: T3 (ALB/MBD) | U80: T1 (PZQ+ALB/MBD) | V80: T1 | W80: T3 | Y80: 49712 | Z80: ARUA | AA80: TRUE | AC80: 846875 | AD80: =_xlfn.XLOOKUP($Y80,[2]COUNTRY_INFO!$Y$9:$Y$143,[2]COUNTRY_INFO!D$9:D$143) -> 796745 | AE80: 3.185962886 | AG80: =_xlfn.XLOOKUP($Y80,[2]COUNTRY_INFO!$Y$9:$Y$143,[2]COUNTRY_INFO!H$9:H$143) -> 99 | AH80: =_xlfn.XLOOKUP($Y80,[2]COUNTRY_INFO!$Y$9:$Y$143,[2]COUNTRY_INFO!I$9:I$143) -> 99 | AI80: =_xlfn.XLOOKUP($Y80,[2]COUNTRY_INFO!$Y$9:$Y$143,[2]COUNTRY_INFO!J$9:J$143) -> 3 | AJ80: =_xlfn.XLOOKUP($Y80,[2]COUNTRY_INFO!$Y$9:$Y$143,[2]COUNTRY_INFO!K$9:K$143) -> 2 | AK80: TRUE | AL80: TRUE | AM80: TRUE | AN80: TRUE | AP80: ='MDA3'!Q80 -> 0 | AQ80: ='T1'!M80 -> 137232 | AR80: =T3_R1!L80 -> 337158 | AS80: =T3_R2!L80 -> 280003 | AU80: 191.0682568
A81: =IF(INTRO!$E$34<>0,INTRO!$E$34,"") -> Uganda | B81: NORTHERN | C81: DOKOLO | D81: 232174 | E81: =IF(INTRO!$E$48="","",ROUND($D81*INTRO!$E$48,0)) -> 32969 | F81: =IF(INTRO!$E$49="","",ROUND($D81*INTRO!$E$49,0)) -> 70117 | G81: =IF(INTRO!$E$50="","",ROUND($D81*INTRO!$E$50,0)) -> 120963 | H81: 99 | I81: 0 | J81: 3 | K81: 1 | L81: 0 | M81: 0 | N81: =IF(INTRO!$E$42="Endemic", IF(AND($J81>1,$J81<5), IF($J81=4, "Unknown", E81+F81), 0),"Not required") -> 103086 | O81: =IF([1]INTRO!$E$43="Endemic", IF(AND($K81>0,$K81<5), IF($K81=4,"Unknown", IF($K81=1, $F81*0.33, IF($K81=2, $F81*0.5+$G81*0.2, SUM(F81:G81)))), 0),"Not required") -> 23138.61 | P81: 0 | Q81: 0 | R81: 2 | S81: 1 | T81: T3 (ALB/MBD) | U81: T1 (PZQ+ALB/MBD) | V81: T1 | W81: T3 | Y81: 49733 | Z81: DOKOLO | AA81: TRUE | AC81: 239162 | AD81: =_xlfn.XLOOKUP($Y81,[2]COUNTRY_INFO!$Y$9:$Y$143,[2]COUNTRY_INFO!D$9:D$143) -> 225005 | AE81: 3.186151419 | AG81: =_xlfn.XLOOKUP($Y81,[2]COUNTRY_INFO!$Y$9:$Y$143,[2]COUNTRY_INFO!H$9:H$143) -> 99 | AH81: =_xlfn.XLOOKUP($Y81,[2]COUNTRY_INFO!$Y$9:$Y$143,[2]COUNTRY_INFO!I$9:I$143) -> 0 | AI81: =_xlfn.XLOOKUP($Y81,[2]COUNTRY_INFO!$Y$9:$Y$143,[2]COUNTRY_INFO!J$9:J$143) -> 3 | AJ81: =_xlfn.XLOOKUP($Y81,[2]COUNTRY_INFO!$Y$9:$Y$143,[2]COUNTRY_INFO!K$9:K$143) -> 1 | AK81: TRUE | AL81: TRUE | AM81: TRUE | AN81: TRUE | AP81: ='MDA3'!Q81 -> 0 | AQ81: ='T1'!M81 -> 53418 | AR81: =T3_R1!L81 -> 111577 | AS81: =T3_R2!L81 -> 116852 | AU81: 235.3138326
A82: =IF(INTRO!$E$34<>0,INTRO!$E$34,"") -> Uganda | B82: NORTHERN | C82: GULU | D82: 398162 | E82: =IF(INTRO!$E$48="","",ROUND($D82*INTRO!$E$48,0)) -> 56539 | F82: =IF(INTRO!$E$49="","",ROUND($D82*INTRO!$E$49,0)) -> 120245 | G82: =IF(INTRO!$E$50="","",ROUND($D82*INTRO!$E$50,0)) -> 207442 | H82: 99 | I82: 1 | J82: 3 | K82: 2 | L82: 0 | M82: 140174 | N82: =IF(INTRO!$E$42="Endemic", IF(AND($J82>1,$J82<5), IF($J82=4, "Unknown", E82+F82), 0),"Not required") -> 176784 | O82: =IF([1]INTRO!$E$43="Endemic", IF(AND($K82>0,$K82<5), IF($K82=4,"Unknown", IF($K82=1, $F82*0.33, IF($K82=2, $F82*0.5+$G82*0.2, SUM(F82:G82)))), 0),"Not required") -> 101610.9 | P82: 0 | Q82: 2 | R82: 2 | S82: 1 | T82: MDA3 (IVM) | U82: T1 (PZQ+ALB/MBD) | V82: MDA 1 | W82: T1 | Y82: 49734 | Z82: GULU | AA82: TRUE | AC82: 410147 | AD82: =_xlfn.XLOOKUP($Y82,[2]COUNTRY_INFO!$Y$9:$Y$143,[2]COUNTRY_INFO!D$9:D$143) -> 385868 | AE82: 3.186063628 | AG82: =_xlfn.XLOOKUP($Y82,[2]COUNTRY_INFO!$Y$9:$Y$143,[2]COUNTRY_INFO!H$9:H$143) -> 99 | AH82: =_xlfn.XLOOKUP($Y82,[2]COUNTRY_INFO!$Y$9:$Y$143,[2]COUNTRY_INFO!I$9:I$143) -> 1 | AI82: =_xlfn.XLOOKUP($Y82,[2]COUNTRY_INFO!$Y$9:$Y$143,[2]COUNTRY_INFO!J$9:J$143) -> 3 | AJ82: =_xlfn.XLOOKUP($Y82,[2]COUNTRY_INFO!$Y$9:$Y$143,[2]COUNTRY_INFO!K$9:K$143) -> 2 | AK82: TRUE | AL82: TRUE | AM82: TRUE | AN82: TRUE | AP82: ='MDA3'!Q82 -> 137341 | AQ82: ='T1'!M82 -> 74544 | AR82: =T3_R1!L82 -> 118438 | AS82: =T3_R2!L82 -> 154043 | AU82: 160.4906649
A83: =IF(INTRO!$E$34<>0,INTRO!$E$34,"") -> Uganda | B83: NORTHERN | C83: KAABONG | D83: 140458 | E83: =IF(INTRO!$E$48="","",ROUND($D83*INTRO!$E$48,0)) -> 19945 | F83: =IF(INTRO!$E$49="","",ROUND($D83*INTRO!$E$49,0)) -> 42418 | G83: =IF(INTRO!$E$50="","",ROUND($D83*INTRO!$E$50,0)) -> 73179 | H83: 99 | I83: 0 | J83: 3 | K83: 0 | L83: 0 | M83: 0 | N83: =IF(INTRO!$E$42="Endemic", IF(AND($J83>1,$J83<5), IF($J83=4, "Unknown", E83+F83), 0),"Not required") -> 62363 | O83: =IF([1]INTRO!$E$43="Endemic", IF(AND($K83>0,$K83<5), IF($K83=4,"Unknown", IF($K83=1, $F83*0.33, IF($K83=2, $F83*0.5+$G83*0.2, SUM(F83:G83)))), 0),"Not required") -> 0 | P83: 0 | Q83: 0 | R83: 2 | S83: 0 | T83: T3 (ALB/MBD) | U83: T3 (ALB/MBD) | V83: T3 | W83: T3 | Y83: 49744 | Z83: KAABONG | AA83: TRUE | AC83: 144686 | AD83: =_xlfn.XLOOKUP($Y83,[2]COUNTRY_INFO!$Y$9:$Y$143,[2]COUNTRY_INFO!D$9:D$143) -> 136121 | AE83: 3.186135864 | AG83: =_xlfn.XLOOKUP($Y83,[2]COUNTRY_INFO!$Y$9:$Y$143,[2]COUNTRY_INFO!H$9:H$143) -> 99 | AH83: =_xlfn.XLOOKUP($Y83,[2]COUNTRY_INFO!$Y$9:$Y$143,[2]COUNTRY_INFO!I$9:I$143) -> 0 | AI83: =_xlfn.XLOOKUP($Y83,[2]COUNTRY_INFO!$Y$9:$Y$143,[2]COUNTRY_INFO!J$9:J$143) -> 3 | AJ83: =_xlfn.XLOOKUP($Y83,[2]COUNTRY_INFO!$Y$9:$Y$143,[2]COUNTRY_INFO!K$9:K$143) -> 0 | AK83: TRUE | AL83: TRUE | AM83: TRUE | AN83: TRUE | AP83: ='MDA3'!Q83 -> 0 | AQ83: ='T1'!M83 -> 0 | AR83: =T3_R1!L83 -> 60480 | AS83: =T3_R2!L83 -> 55692
A84: =IF(INTRO!$E$34<>0,INTRO!$E$34,"") -> Uganda | B84: NORTHERN | C84: KARENGA | D84: 74798 | E84: =IF(INTRO!$E$48="","",ROUND($D84*INTRO!$E$48,0)) -> 10621 | F84: =IF(INTRO!$E$49="","",ROUND($D84*INTRO!$E$49,0)) -> 22589 | G84: =IF(INTRO!$E$50="","",ROUND($D84*INTRO!$E$50,0)) -> 38970 | H84: 99 | I84: 0 | J84: 3 | K84: 0 | L84: 0 | M84: 0 | N84: =IF(INTRO!$E$42="Endemic", IF(AND($J84>1,$J84<5), IF($J84=4, "Unknown", E84+F84), 0),"Not required") -> 33210 | O84: =IF([1]INTRO!$E$43="Endemic", IF(AND($K84>0,$K84<5), IF($K84=4,"Unknown", IF($K84=1, $F84*0.33, IF($K84=2, $F84*0.5+$G84*0.2, SUM(F84:G84)))), 0),"Not required") -> 0 | P84: 0 | Q84: 0 | R84: 2 | S84: 0 | T84: T3 (ALB/MBD) | U84: T3 (ALB/MBD) | V84: T3 | W84: T3 | Y84: 49837 | Z84: KARENGA | AA84: TRUE | AC84: 77049 | AD84: =_xlfn.XLOOKUP($Y84,[2]COUNTRY_INFO!$Y$9:$Y$143,[2]COUNTRY_INFO!D$9:D$143) -> 72489 | AE84: 3.185310875 | AG84: =_xlfn.XLOOKUP($Y84,[2]COUNTRY_INFO!$Y$9:$Y$143,[2]COUNTRY_INFO!H$9:H$143) -> 99 | AH84: =_xlfn.XLOOKUP($Y84,[2]COUNTRY_INFO!$Y$9:$Y$143,[2]COUNTRY_INFO!I$9:I$143) -> 0 | AI84: =_xlfn.XLOOKUP($Y84,[2]COUNTRY_INFO!$Y$9:$Y$143,[2]COUNTRY_INFO!J$9:J$143) -> 3 | AJ84: =_xlfn.XLOOKUP($Y84,[2]COUNTRY_INFO!$Y$9:$Y$143,[2]COUNTRY_INFO!K$9:K$143) -> 0 | AK84: TRUE | AL84: TRUE | AM84: TRUE | AN84: TRUE | AP84: ='MDA3'!Q84 -> 0 | AQ84: ='T1'!M84 -> 0 | AR84: =T3_R1!L84 -> 15122 | AS84: =T3_R2!L84 -> 31942
A85: =IF(INTRO!$E$34<>0,INTRO!$E$34,"") -> Uganda | B85: NORTHERN | C85: KITGUM | D85: 259428 | E85: =IF(INTRO!$E$48="","",ROUND($D85*INTRO!$E$48,0)) -> 36839 | F85: =IF(INTRO!$E$49="","",ROUND($D85*INTRO!$E$49,0)) -> 78347 | G85: =IF(INTRO!$E$50="","",ROUND($D85*INTRO!$E$50,0)) -> 135162 | H85: 99 | I85: 1 | J85: 3 | K85: 3 | L85: 0 | M85: 95226 | N85: =IF(INTRO!$E$42="Endemic", IF(AND($J85>1,$J85<5), IF($J85=4, "Unknown", E85+F85), 0),"Not required") -> 115186 | O85: =IF([1]INTRO!$E$43="Endemic", IF(AND($K85>0,$K85<5), IF($K85=4,"Unknown", IF($K85=1, $F85*0.33, IF($K85=2, $F85*0.5+$G85*0.2, SUM(F85:G85)))), 0),"Not required") -> 213509 | P85: 0 | Q85: 2 | R85: 2 | S85: 1 | T85: MDA3 (IVM) | U85: T1 (PZQ+ALB/MBD) | V85: MDA 1 | W85: T1 | Y85: 49766 | Z85: KITGUM | AA85: TRUE | AC85: 267237 | AD85: =_xlfn.XLOOKUP($Y85,[2]COUNTRY_INFO!$Y$9:$Y$143,[2]COUNTRY_INFO!D$9:D$143) -> 251418 | AE85: 3.185929408 | AG85: =_xlfn.XLOOKUP($Y85,[2]COUNTRY_INFO!$Y$9:$Y$143,[2]COUNTRY_INFO!H$9:H$143) -> 99 | AH85: =_xlfn.XLOOKUP($Y85,[2]COUNTRY_INFO!$Y$9:$Y$143,[2]COUNTRY_INFO!I$9:I$143) -> 1 | AI85: =_xlfn.XLOOKUP($Y85,[2]COUNTRY_INFO!$Y$9:$Y$143,[2]COUNTRY_INFO!J$9:J$143) -> 3 | AJ85: =_xlfn.XLOOKUP($Y85,[2]COUNTRY_INFO!$Y$9:$Y$143,[2]COUNTRY_INFO!K$9:K$143) -> 3 | AK85: TRUE | AL85: TRUE | AM85: TRUE | AN85: TRUE | AP85: ='MDA3'!Q85 -> 88236 | AQ85: ='T1'!M85 -> 34822 | AR85: =T3_R1!L85 -> 77914 | AS85: =T3_R2!L85 -> 102702 | AU85: =(AQ85+AR85)/F85*100 -> 143.8931931
A86: =IF(INTRO!$E$34<>0,INTRO!$E$34,"") -> Uganda | B86: NORTHERN | C86: KOBOKO | D86: 264708 | E86: =IF(INTRO!$E$48="","",ROUND($D86*INTRO!$E$48,0)) -> 37589 | F86: =IF(INTRO!$E$49="","",ROUND($D86*INTRO!$E$49,0)) -> 79942 | G86: =IF(INTRO!$E$50="","",ROUND($D86*INTRO!$E$50,0)) -> 137913 | H86: 99 | I86: 99 | J86: 3 | K86: 3 | L86: 0 | M86: Stopped | N86: =IF(INTRO!$E$42="Endemic", IF(AND($J86>1,$J86<5), IF($J86=4, "Unknown", E86+F86), 0),"Not required") -> 117531 | O86: =IF([1]INTRO!$E$43="Endemic", IF(AND($K86>0,$K86<5), IF($K86=4,"Unknown", IF($K86=1, $F86*0.33, IF($K86=2, $F86*0.5+$G86*0.2, SUM(F86:G86)))), 0),"Not required") -> 217855 | P86: 0 | Q86: 0 | R86: 2 | S86: 1 | T86: T3 (ALB/MBD) | U86: T1 (PZQ+ALB/MBD) | V86: T1 | W86: T3 | Y86: 49754 | Z86: KOBOKO | AA86: TRUE | AC86: 272676 | AD86: =_xlfn.XLOOKUP($Y86,[2]COUNTRY_INFO!$Y$9:$Y$143,[2]COUNTRY_INFO!D$9:D$143) -> 256535 | AE86: 3.18592005 | AG86: =_xlfn.XLOOKUP($Y86,[2]COUNTRY_INFO!$Y$9:$Y$143,[2]COUNTRY_INFO!H$9:H$143) -> 99 | AH86: =_xlfn.XLOOKUP($Y86,[2]COUNTRY_INFO!$Y$9:$Y$143,[2]COUNTRY_INFO!I$9:I$143) -> 99 | AI86: =_xlfn.XLOOKUP($Y86,[2]COUNTRY_INFO!$Y$9:$Y$143,[2]COUNTRY_INFO!J$9:J$143) -> 3 | AJ86: =_xlfn.XLOOKUP($Y86,[2]COUNTRY_INFO!$Y$9:$Y$143,[2]COUNTRY_INFO!K$9:K$143) -> 3 | AK86: TRUE | AL86: TRUE | AM86: TRUE | AN86: TRUE | AP86: ='MDA3'!Q86 -> 0 | AQ86: ='T1'!M86 -> 114937 | AR86: =T3_R1!L86 -> 53451 | AS86: =T3_R2!L86 -> 87998 | AU86: 210.6377123
A87: =IF(INTRO!$E$34<>0,INTRO!$E$34,"") -> Uganda | B87: NORTHERN | C87: KOLE | D87: 307583 | E87: =IF(INTRO!$E$48="","",ROUND($D87*INTRO!$E$48,0)) -> 43677 | F87: =IF(INTRO!$E$49="","",ROUND($D87*INTRO!$E$49,0)) -> 92890 | G87: =IF(INTRO!$E$50="","",ROUND($D87*INTRO!$E$50,0)) -> 160251 | H87: 99 | I87: 0 | J87: 3 | K87: 0 | L87: 0 | M87: 0 | N87: =IF(INTRO!$E$42="Endemic", IF(AND($J87>1,$J87<5), IF($J87=4, "Unknown", E87+F87), 0),"Not required") -> 136567 | O87: =IF([1]INTRO!$E$43="Endemic", IF(AND($K87>0,$K87<5), IF($K87=4,"Unknown", IF($K87=1, $F87*0.33, IF($K87=2, $F87*0.5+$G87*0.2, SUM(F87:G87)))), 0),"Not required") -> 0 | P87: 0 | Q87: 0 | R87: 2 | S87: 0 | T87: T3 (ALB/MBD) | U87: T3 (ALB/MBD) | V87: T3 | W87: T3 | Y87: 49767 | Z87: KOLE | AA87: TRUE | AC87: 316841 | AD87: =_xlfn.XLOOKUP($Y87,[2]COUNTRY_INFO!$Y$9:$Y$143,[2]COUNTRY_INFO!D$9:D$143) -> 298086 | AE87: 3.185993304 | AG87: =_xlfn.XLOOKUP($Y87,[2]COUNTRY_INFO!$Y$9:$Y$143,[2]COUNTRY_INFO!H$9:H$143) -> 99 | AH87: =_xlfn.XLOOKUP($Y87,[2]COUNTRY_INFO!$Y$9:$Y$143,[2]COUNTRY_INFO!I$9:I$143) -> 0 | AI87: =_xlfn.XLOOKUP($Y87,[2]COUNTRY_INFO!$Y$9:$Y$143,[2]COUNTRY_INFO!J$9:J$143) -> 3 | AJ87: =_xlfn.XLOOKUP($Y87,[2]COUNTRY_INFO!$Y$9:$Y$143,[2]COUNTRY_INFO!K$9:K$143) -> 0 | AK87: TRUE | AL87: TRUE | AM87: TRUE | AN87: TRUE | AP87: ='MDA3'!Q87 -> 0 | AQ87: ='T1'!M87 -> 0 | AR87: =T3_R1!L87 -> 94858 | AS87: =T3_R2!L87 -> 95880
A88: =IF(INTRO!$E$34<>0,INTRO!$E$34,"") -> Uganda | B88: NORTHERN | C88: KOTIDO | D88: 227508 | E88: =IF(INTRO!$E$48="","",ROUND($D88*INTRO!$E$48,0)) -> 32306 | F88: =IF(INTRO!$E$49="","",ROUND($D88*INTRO!$E$49,0)) -> 68707 | G88: =IF(INTRO!$E$50="","",ROUND($D88*INTRO!$E$50,0)) -> 118532 | H88: 99 | I88: 0 | J88: 3 | K88: 0 | L88: 0 | M88: 0 | N88: =IF(INTRO!$E$42="Endemic", IF(AND($J88>1,$J88<5), IF($J88=4, "Unknown", E88+F88), 0),"Not required") -> 101013 | O88: =IF([1]INTRO!$E$43="Endemic", IF(AND($K88>0,$K88<5), IF($K88=4,"Unknown", IF($K88=1, $F88*0.33, IF($K88=2, $F88*0.5+$G88*0.2, SUM(F88:G88)))), 0),"Not required") -> 0 | P88: 0 | Q88: 0 | R88: 2 | S88: 0 | T88: T3 (ALB/MBD) | U88: T3 (ALB/MBD) | V88: T3 | W88: T3 | Y88: 49755 | Z88: KOTIDO | AA88: TRUE | AC88: 234356 | AD88: =_xlfn.XLOOKUP($Y88,[2]COUNTRY_INFO!$Y$9:$Y$143,[2]COUNTRY_INFO!D$9:D$143) -> 220483 | AE88: 3.18618669 | AG88: =_xlfn.XLOOKUP($Y88,[2]COUNTRY_INFO!$Y$9:$Y$143,[2]COUNTRY_INFO!H$9:H$143) -> 99 | AH88: =_xlfn.XLOOKUP($Y88,[2]COUNTRY_INFO!$Y$9:$Y$143,[2]COUNTRY_INFO!I$9:I$143) -> 0 | AI88: =_xlfn.XLOOKUP($Y88,[2]COUNTRY_INFO!$Y$9:$Y$143,[2]COUNTRY_INFO!J$9:J$143) -> 3 | AJ88: =_xlfn.XLOOKUP($Y88,[2]COUNTRY_INFO!$Y$9:$Y$143,[2]COUNTRY_INFO!K$9:K$143) -> 0 | AK88: TRUE | AL88: TRUE | AM88: TRUE | AN88: TRUE | AP88: ='MDA3'!Q88 -> 0 | AQ88: ='T1'!M88 -> 0 | AR88: =T3_R1!L88 -> 93736 | AS88: =T3_R2!L88 -> 81965
A89: =IF(INTRO!$E$34<>0,INTRO!$E$34,"") -> Uganda | B89: NORTHERN | C89: KWANIA | D89: 233228 | E89: =IF(INTRO!$E$48="","",ROUND($D89*INTRO!$E$48,0)) -> 33118 | F89: =IF(INTRO!$E$49="","",ROUND($D89*INTRO!$E$49,0)) -> 70435 | G89: =IF(INTRO!$E$50="","",ROUND($D89*INTRO!$E$50,0)) -> 121512 | H89: 99 | I89: 0 | J89: 3 | K89: 3 | L89: 0 | M89: 0 | N89: =IF(INTRO!$E$42="Endemic", IF(AND($J89>1,$J89<5), IF($J89=4, "Unknown", E89+F89), 0),"Not required") -> 103553 | O89: =IF([1]INTRO!$E$43="Endemic", IF(AND($K89>0,$K89<5), IF($K89=4,"Unknown", IF($K89=1, $F89*0.33, IF($K89=2, $F89*0.5+$G89*0.2, SUM(F89:G89)))), 0),"Not required") -> 191947 | P89: 0 | Q89: 0 | R89: 2 | S89: 1 | T89: T3 (ALB/MBD) | U89: T1 (PZQ+ALB/MBD) | V89: T1 | W89: T3 | Y89: 49835 | Z89: KWANIA | AA89: TRUE | AC89: 240248 | AD89: =_xlfn.XLOOKUP($Y89,[2]COUNTRY_INFO!$Y$9:$Y$143,[2]COUNTRY_INFO!D$9:D$143) -> 226027 | AE89: 3.185902569 | AG89: =_xlfn.XLOOKUP($Y89,[2]COUNTRY_INFO!$Y$9:$Y$143,[2]COUNTRY_INFO!H$9:H$143) -> 99 | AH89: =_xlfn.XLOOKUP($Y89,[2]COUNTRY_INFO!$Y$9:$Y$143,[2]COUNTRY_INFO!I$9:I$143) -> 0 | AI89: =_xlfn.XLOOKUP($Y89,[2]COUNTRY_INFO!$Y$9:$Y$143,[2]COUNTRY_INFO!J$9:J$143) -> 3 | AJ89: =_xlfn.XLOOKUP($Y89,[2]COUNTRY_INFO!$Y$9:$Y$143,[2]COUNTRY_INFO!K$9:K$143) -> 3 | AK89: TRUE | AL89: TRUE | AM89: TRUE | AN89: TRUE | AP89: ='MDA3'!Q89 -> 0 | AQ89: ='T1'!M89 -> 41239 | AR89: =T3_R1!L89 -> 111841 | AS89: =T3_R2!L89 -> 110668 | AU89: =(AQ89+AR89)/F89*100 -> 217.3351317
A90: =IF(INTRO!$E$34<>0,INTRO!$E$34,"") -> Uganda | B90: NORTHERN | C90: LAMWO | D90: 170462 | E90: =IF(INTRO!$E$48="","",ROUND($D90*INTRO!$E$48,0)) -> 24206 | F90: =IF(INTRO!$E$49="","",ROUND($D90*INTRO!$E$49,0)) -> 51480 | G90: =IF(INTRO!$E$50="","",ROUND($D90*INTRO!$E$50,0)) -> 88811 | H90: 99 | I90: 1 | J90: 3 | K90: 1 | L90: 0 | M90: 140188 | N90: =IF(INTRO!$E$42="Endemic", IF(AND($J90>1,$J90<5), IF($J90=4, "Unknown", E90+F90), 0),"Not required") -> 75686 | O90: =IF([1]INTRO!$E$43="Endemic", IF(AND($K90>0,$K90<5), IF($K90=4,"Unknown", IF($K90=1, $F90*0.33, IF($K90=2, $F90*0.5+$G90*0.2, SUM(F90:G90)))), 0),"Not required") -> 16988.4 | P90: 0 | Q90: 2 | R90: 2 | S90: 0 | T90: MDA3 (IVM) | U90: T3 (ALB/MBD) | V90: MDA 1 | W90: T1 | Y90: 49772 | Z90: LAMWO | AA90: TRUE | AC90: 175593 | AD90: =_xlfn.XLOOKUP($Y90,[2]COUNTRY_INFO!$Y$9:$Y$143,[2]COUNTRY_INFO!D$9:D$143) -> 165199 | AE90: 3.185854636 | AG90: =_xlfn.XLOOKUP($Y90,[2]COUNTRY_INFO!$Y$9:$Y$143,[2]COUNTRY_INFO!H$9:H$143) -> 99 | AH90: =_xlfn.XLOOKUP($Y90,[2]COUNTRY_INFO!$Y$9:$Y$143,[2]COUNTRY_INFO!I$9:I$143) -> 1 | AI90: =_xlfn.XLOOKUP($Y90,[2]COUNTRY_INFO!$Y$9:$Y$143,[2]COUNTRY_INFO!J$9:J$143) -> 3 | AJ90: =_xlfn.XLOOKUP($Y90,[2]COUNTRY_INFO!$Y$9:$Y$143,[2]COUNTRY_INFO!K$9:K$143) -> 1 | AK90: TRUE | AL90: TRUE | AM90: TRUE | AN90: TRUE | AP90: ='MDA3'!Q90 -> 130263 | AQ90: ='T1'!M90 -> 0 | AR90: =T3_R1!L90 -> 86308 | AS90: =T3_R2!L90 -> 63842
A91: =IF(INTRO!$E$34<>0,INTRO!$E$34,"") -> Uganda | B91: NORTHERN | C91: LIRA | D91: 522026 | E91: =IF(INTRO!$E$48="","",ROUND($D91*INTRO!$E$48,0)) -> 74128 | F91: =IF(INTRO!$E$49="","",ROUND($D91*INTRO!$E$49,0)) -> 157652 | G91: =IF(INTRO!$E$50="","",ROUND($D91*INTRO!$E$50,0)) -> 271976 | H91: 99 | I91: 1 | J91: 3 | K91: 2 | L91: 0 | M91: 71152 | N91: =IF(INTRO!$E$42="Endemic", IF(AND($J91>1,$J91<5), IF($J91=4, "Unknown", E91+F91), 0),"Not required") -> 231780 | O91: =IF([1]INTRO!$E$43="Endemic", IF(AND($K91>0,$K91<5), IF($K91=4,"Unknown", IF($K91=1, $F91*0.33, IF($K91=2, $F91*0.5+$G91*0.2, SUM(F91:G91)))), 0),"Not required") -> 133221.2 | P91: 0 | Q91: 2 | R91: 2 | S91: 1 | T91: MDA3 (IVM) | U91: T1 (PZQ+ALB/MBD) | V91: MDA 1 | W91: T1 | Y91: 49771 | Z91: LIRA | AA91: TRUE | AC91: 537739 | AD91: =_xlfn.XLOOKUP($Y91,[2]COUNTRY_INFO!$Y$9:$Y$143,[2]COUNTRY_INFO!D$9:D$143) -> 505908 | AE91: 3.185954759 | AG91: =_xlfn.XLOOKUP($Y91,[2]COUNTRY_INFO!$Y$9:$Y$143,[2]COUNTRY_INFO!H$9:H$143) -> 99 | AH91: =_xlfn.XLOOKUP($Y91,[2]COUNTRY_INFO!$Y$9:$Y$143,[2]COUNTRY_INFO!I$9:I$143) -> 1 | AI91: =_xlfn.XLOOKUP($Y91,[2]COUNTRY_INFO!$Y$9:$Y$143,[2]COUNTRY_INFO!J$9:J$143) -> 3 | AJ91: =_xlfn.XLOOKUP($Y91,[2]COUNTRY_INFO!$Y$9:$Y$143,[2]COUNTRY_INFO!K$9:K$143) -> 2 | AK91: TRUE | AL91: TRUE | AM91: TRUE | AN91: TRUE | AP91: ='MDA3'!Q91 -> 68473 | AQ91: ='T1'!M91 -> 66903 | AR91: =T3_R1!L91 -> 88148 | AS91: =T3_R2!L91 -> 76729 | AU91: =(AQ91+AR91)/F91*100 -> 98.35016365
A92: =IF(INTRO!$E$34<>0,INTRO!$E$34,"") -> Uganda | B92: NORTHERN | C92: MADI OKOLLO | D92: 176348 | E92: =IF(INTRO!$E$48="","",ROUND($D92*INTRO!$E$48,0)) -> 25041 | F92: =IF(INTRO!$E$49="","",ROUND($D92*INTRO!$E$49,0)) -> 53257 | G92: =IF(INTRO!$E$50="","",ROUND($D92*INTRO!$E$50,0)) -> 91877 | H92: 99 | I92: 99 | J92: 3 | K92: 2 | L92: 0 | M92: Stopped | N92: =IF(INTRO!$E$42="Endemic", IF(AND($J92>1,$J92<5), IF($J92=4, "Unknown", E92+F92), 0),"Not required") -> 78298 | O92: =IF([1]INTRO!$E$43="Endemic", IF(AND($K92>0,$K92<5), IF($K92=4,"Unknown", IF($K92=1, $F92*0.33, IF($K92=2, $F92*0.5+$G92*0.2, SUM(F92:G92)))), 0),"Not required") -> 45003.9 | P92: 0 | Q92: 0 | R92: 2 | S92: 1 | T92: T3 (ALB/MBD) | U92: T1 (PZQ+ALB/MBD) | V92: T1 | W92: T3 | Y92: 49836 | Z92: MADI OKOLLO | AA92: TRUE | AC92: 181656 | AD92: =_xlfn.XLOOKUP($Y92,[2]COUNTRY_INFO!$Y$9:$Y$143,[2]COUNTRY_INFO!D$9:D$143) -> 170903 | AE92: 3.1860178 | AG92: =_xlfn.XLOOKUP($Y92,[2]COUNTRY_INFO!$Y$9:$Y$143,[2]COUNTRY_INFO!H$9:H$143) -> 99 | AH92: =_xlfn.XLOOKUP($Y92,[2]COUNTRY_INFO!$Y$9:$Y$143,[2]COUNTRY_INFO!I$9:I$143) -> 99 | AI92: =_xlfn.XLOOKUP($Y92,[2]COUNTRY_INFO!$Y$9:$Y$143,[2]COUNTRY_INFO!J$9:J$143) -> 3 | AJ92: =_xlfn.XLOOKUP($Y92,[2]COUNTRY_INFO!$Y$9:$Y$143,[2]COUNTRY_INFO!K$9:K$143) -> 2 | AK92: TRUE | AL92: TRUE | AM92: TRUE | AN92: TRUE | AP92: ='MDA3'!Q92 -> 0 | AQ92: ='T1'!M92 -> 37228 | AR92: =T3_R1!L92 -> 86305 | AS92: =T3_R2!L92 -> 69470 | AU92: 231.9563625
A93: =IF(INTRO!$E$34<>0,INTRO!$E$34,"") -> Uganda | B93: NORTHERN | C93: MARACHA | D93: 236752 | E93: =IF(INTRO!$E$48="","",ROUND($D93*INTRO!$E$48,0)) -> 33619 | F93: =IF(INTRO!$E$49="","",ROUND($D93*INTRO!$E$49,0)) -> 71499 | G93: =IF(INTRO!$E$50="","",ROUND($D93*INTRO!$E$50,0)) -> 123348 | H93: 99 | I93: 99 | J93: 3 | K93: 1 | L93: 0 | M93: Stopped | N93: =IF(INTRO!$E$42="Endemic", IF(AND($J93>1,$J93<5), IF($J93=4, "Unknown", E93+F93), 0),"Not required") -> 105118 | O93: =IF([1]INTRO!$E$43="Endemic", IF(AND($K93>0,$K93<5), IF($K93=4,"Unknown", IF($K93=1, $F93*0.33, IF($K93=2, $F93*0.5+$G93*0.2, SUM(F93:G93)))), 0),"Not required") -> 23594.67 | P93: 0 | Q93: 0 | R93: 2 | S93: 1 | T93: T3 (ALB/MBD) | U93: T1 (PZQ+ALB/MBD) | V93: T1 | W93: T3 | Y93: 49784 | Z93: MARACHA | AA93: TRUE | AC93: 243878 | AD93: =_xlfn.XLOOKUP($Y93,[2]COUNTRY_INFO!$Y$9:$Y$143,[2]COUNTRY_INFO!D$9:D$143) -> 229442 | AE93: 3.185990359 | AG93: =_xlfn.XLOOKUP($Y93,[2]COUNTRY_INFO!$Y$9:$Y$143,[2]COUNTRY_INFO!H$9:H$143) -> 99 | AH93: =_xlfn.XLOOKUP($Y93,[2]COUNTRY_INFO!$Y$9:$Y$143,[2]COUNTRY_INFO!I$9:I$143) -> 99 | AI93: =_xlfn.XLOOKUP($Y93,[2]COUNTRY_INFO!$Y$9:$Y$143,[2]COUNTRY_INFO!J$9:J$143) -> 3 | AJ93: =_xlfn.XLOOKUP($Y93,[2]COUNTRY_INFO!$Y$9:$Y$143,[2]COUNTRY_INFO!K$9:K$143) -> 1 | AK93: TRUE | AL93: TRUE | AM93: TRUE | AN93: TRUE | AP93: ='MDA3'!Q93 -> 0 | AQ93: ='T1'!M93 -> 62366 | AR93: =T3_R1!L93 -> 67643 | AS93: =T3_R2!L93 -> 75994 | AU93: 181.8333124
A94: =IF(INTRO!$E$34<>0,INTRO!$E$34,"") -> Uganda | B94: NORTHERN | C94: MOROTO | D94: 132935 | E94: =IF(INTRO!$E$48="","",ROUND($D94*INTRO!$E$48,0)) -> 18877 | F94: =IF(INTRO!$E$49="","",ROUND($D94*INTRO!$E$49,0)) -> 40146 | G94: =IF(INTRO!$E$50="","",ROUND($D94*INTRO!$E$50,0)) -> 69259 | H94: 99 | I94: 0 | J94: 3 | K94: 0 | L94: 0 | M94: 0 | N94: =IF(INTRO!$E$42="Endemic", IF(AND($J94>1,$J94<5), IF($J94=4, "Unknown", E94+F94), 0),"Not required") -> 59023 | O94: =IF([1]INTRO!$E$43="Endemic", IF(AND($K94>0,$K94<5), IF($K94=4,"Unknown", IF($K94=1, $F94*0.33, IF($K94=2, $F94*0.5+$G94*0.2, SUM(F94:G94)))), 0),"Not required") -> 0 | P94: 0 | Q94: 0 | R94: 2 | S94: 0 | T94: T3 (ALB/MBD) | U94: T3 (ALB/MBD) | V94: T3 | W94: T3 | Y94: 49781 | Z94: MOROTO | AA94: TRUE | AC94: 136936 | AD94: =_xlfn.XLOOKUP($Y94,[2]COUNTRY_INFO!$Y$9:$Y$143,[2]COUNTRY_INFO!D$9:D$143) -> 128830 | AE94: 3.186369634 | AG94: =_xlfn.XLOOKUP($Y94,[2]COUNTRY_INFO!$Y$9:$Y$143,[2]COUNTRY_INFO!H$9:H$143) -> 99 | AH94: =_xlfn.XLOOKUP($Y94,[2]COUNTRY_INFO!$Y$9:$Y$143,[2]COUNTRY_INFO!I$9:I$143) -> 0 | AI94: =_xlfn.XLOOKUP($Y94,[2]COUNTRY_INFO!$Y$9:$Y$143,[2]COUNTRY_INFO!J$9:J$143) -> 3 | AJ94: =_xlfn.XLOOKUP($Y94,[2]COUNTRY_INFO!$Y$9:$Y$143,[2]COUNTRY_INFO!K$9:K$143) -> 0 | AK94: TRUE | AL94: TRUE | AM94: TRUE | AN94: TRUE | AP94: ='MDA3'!Q94 -> 0 | AQ94: ='T1'!M94 -> 0 | AR94: =T3_R1!L94 -> 40675 | AS94: =T3_R2!L94 -> 21820
A95: =IF(INTRO!$E$34<>0,INTRO!$E$34,"") -> Uganda | B95: NORTHERN | C95: MOYO | D95: 119981 | E95: =IF(INTRO!$E$48="","",ROUND($D95*INTRO!$E$48,0)) -> 17037 | F95: =IF(INTRO!$E$49="","",ROUND($D95*INTRO!$E$49,0)) -> 36234 | G95: =IF(INTRO!$E$50="","",ROUND($D95*INTRO!$E$50,0)) -> 62510 | H95: 99 | I95: 1 | J95: 3 | K95: 3 | L95: 0 | M95: 92958 | N95: =IF(INTRO!$E$42="Endemic", IF(AND($J95>1,$J95<5), IF($J95=4, "Unknown", E95+F95), 0),"Not required") -> 53271 | O95: =IF([1]INTRO!$E$43="Endemic", IF(AND($K95>0,$K95<5), IF($K95=4,"Unknown", IF($K95=1, $F95*0.33, IF($K95=2, $F95*0.5+$G95*0.2, SUM(F95:G95)))), 0),"Not required") -> 98744 | P95: 0 | Q95: 2 | R95: 2 | S95: 1 | T95: T3 (ALB/MBD) | U95: T1 (PZQ+ALB/MBD) | V95: MDA 1 | W95: T1 | Y95: 49782 | Z95: MOYO | AA95: TRUE | AC95: 123592 | AD95: =_xlfn.XLOOKUP($Y95,[2]COUNTRY_INFO!$Y$9:$Y$143,[2]COUNTRY_INFO!D$9:D$143) -> 116276 | AE95: 3.186384121 | AG95: =_xlfn.XLOOKUP($Y95,[2]COUNTRY_INFO!$Y$9:$Y$143,[2]COUNTRY_INFO!H$9:H$143) -> 99 | AH95: =_xlfn.XLOOKUP($Y95,[2]COUNTRY_INFO!$Y$9:$Y$143,[2]COUNTRY_INFO!I$9:I$143) -> 1 | AI95: =_xlfn.XLOOKUP($Y95,[2]COUNTRY_INFO!$Y$9:$Y$143,[2]COUNTRY_INFO!J$9:J$143) -> 3 | AJ95: =_xlfn.XLOOKUP($Y95,[2]COUNTRY_INFO!$Y$9:$Y$143,[2]COUNTRY_INFO!K$9:K$143) -> 3 | AK95: TRUE | AL95: TRUE | AM95: TRUE | AN95: TRUE | AP95: ='MDA3'!Q95 -> 90130 | AQ95: ='T1'!M95 -> 9540 | AR95: =T3_R1!L95 -> 35896 | AS95: =T3_R2!L95 -> 51575 | AU95: =(AQ95+AR95)/F95*100 -> 125.3960369
A96: =IF(INTRO!$E$34<>0,INTRO!$E$34,"") -> Uganda | B96: NORTHERN | C96: NABILATUK | D96: 88606 | E96: =IF(INTRO!$E$48="","",ROUND($D96*INTRO!$E$48,0)) -> 12582 | F96: =IF(INTRO!$E$49="","",ROUND($D96*INTRO!$E$49,0)) -> 26759 | G96: =IF(INTRO!$E$50="","",ROUND($D96*INTRO!$E$50,0)) -> 46164 | H96: 99 | I96: 0 | J96: 3 | K96: 0 | L96: 0 | M96: 0 | N96: =IF(INTRO!$E$42="Endemic", IF(AND($J96>1,$J96<5), IF($J96=4, "Unknown", E96+F96), 0),"Not required") -> 39341 | O96: =IF([1]INTRO!$E$43="Endemic", IF(AND($K96>0,$K96<5), IF($K96=4,"Unknown", IF($K96=1, $F96*0.33, IF($K96=2, $F96*0.5+$G96*0.2, SUM(F96:G96)))), 0),"Not required") -> 0 | P96: 0 | Q96: 0 | R96: 2 | S96: 0 | T96: T3 (ALB/MBD) | U96: T3 (ALB/MBD) | V96: T3 | W96: T3 | Y96: 49826 | Z96: NABILATUK | AA96: TRUE | AC96: 91273 | AD96: =_xlfn.XLOOKUP($Y96,[2]COUNTRY_INFO!$Y$9:$Y$143,[2]COUNTRY_INFO!D$9:D$143) -> 85870 | AE96: 3.186211715 | AG96: =_xlfn.XLOOKUP($Y96,[2]COUNTRY_INFO!$Y$9:$Y$143,[2]COUNTRY_INFO!H$9:H$143) -> 99 | AH96: =_xlfn.XLOOKUP($Y96,[2]COUNTRY_INFO!$Y$9:$Y$143,[2]COUNTRY_INFO!I$9:I$143) -> 0 | AI96: =_xlfn.XLOOKUP($Y96,[2]COUNTRY_INFO!$Y$9:$Y$143,[2]COUNTRY_INFO!J$9:J$143) -> 3 | AJ96: =_xlfn.XLOOKUP($Y96,[2]COUNTRY_INFO!$Y$9:$Y$143,[2]COUNTRY_INFO!K$9:K$143) -> 0 | AK96: TRUE | AL96: TRUE | AM96: TRUE | AN96: TRUE | AP96: ='MDA3'!Q96 -> 0 | AQ96: ='T1'!M96 -> 0 | AR96: =T3_R1!L96 -> 33326 | AS96: =T3_R2!L96 -> 35603
A97: =IF(INTRO!$E$34<>0,INTRO!$E$34,"") -> Uganda | B97: NORTHERN | C97: NAKAPIRIPIRIT | D97: 127184 | E97: =IF(INTRO!$E$48="","",ROUND($D97*INTRO!$E$48,0)) -> 18060 | F97: =IF(INTRO!$E$49="","",ROUND($D97*INTRO!$E$49,0)) -> 38410 | G97: =IF(INTRO!$E$50="","",ROUND($D97*INTRO!$E$50,0)) -> 66263 | H97: 99 | I97: 0 | J97: 3 | K97: 1 | L97: 0 | M97: 0 | N97: =IF(INTRO!$E$42="Endemic", IF(AND($J97>1,$J97<5), IF($J97=4, "Unknown", E97+F97), 0),"Not required") -> 56470 | O97: =IF([1]INTRO!$E$43="Endemic", IF(AND($K97>0,$K97<5), IF($K97=4,"Unknown", IF($K97=1, $F97*0.33, IF($K97=2, $F97*0.5+$G97*0.2, SUM(F97:G97)))), 0),"Not required") -> 12675.3 | P97: 0 | Q97: 0 | R97: 2 | S97: 1 | T97: T3 (ALB/MBD) | U97: T1 (PZQ+ALB/MBD) | V97: T1 | W97: T3 | Y97: 49794 | Z97: NAKAPIRIPIRIT | AA97: TRUE | AC97: 131012 | AD97: =_xlfn.XLOOKUP($Y97,[2]COUNTRY_INFO!$Y$9:$Y$143,[2]COUNTRY_INFO!D$9:D$143) -> 123257 | AE97: 3.186025946 | AG97: =_xlfn.XLOOKUP($Y97,[2]COUNTRY_INFO!$Y$9:$Y$143,[2]COUNTRY_INFO!H$9:H$143) -> 99 | AH97: =_xlfn.XLOOKUP($Y97,[2]COUNTRY_INFO!$Y$9:$Y$143,[2]COUNTRY_INFO!I$9:I$143) -> 0 | AI97: =_xlfn.XLOOKUP($Y97,[2]COUNTRY_INFO!$Y$9:$Y$143,[2]COUNTRY_INFO!J$9:J$143) -> 3 | AJ97: =_xlfn.XLOOKUP($Y97,[2]COUNTRY_INFO!$Y$9:$Y$143,[2]COUNTRY_INFO!K$9:K$143) -> 1 | AK97: TRUE | AL97: TRUE | AM97: TRUE | AN97: TRUE | AP97: ='MDA3'!Q97 -> 0 | AQ97: ='T1'!M97 -> 8415 | AR97: =T3_R1!L97 -> 32240 | AS97: =T3_R2!L97 -> 47106 | AU97: =(AQ97+AR97)/F97*100 -> 105.8448321
A98: =IF(INTRO!$E$34<>0,INTRO!$E$34,"") -> Uganda | B98: NORTHERN | C98: NAPAK | D98: 184669 | E98: =IF(INTRO!$E$48="","",ROUND($D98*INTRO!$E$48,0)) -> 26223 | F98: =IF(INTRO!$E$49="","",ROUND($D98*INTRO!$E$49,0)) -> 55770 | G98: =IF(INTRO!$E$50="","",ROUND($D98*INTRO!$E$50,0)) -> 96213 | H98: 99 | I98: 0 | J98: 3 | K98: 0 | L98: 0 | M98: 0 | N98: =IF(INTRO!$E$42="Endemic", IF(AND($J98>1,$J98<5), IF($J98=4, "Unknown", E98+F98), 0),"Not required") -> 81993 | O98: =IF([1]INTRO!$E$43="Endemic", IF(AND($K98>0,$K98<5), IF($K98=4,"Unknown", IF($K98=1, $F98*0.33, IF($K98=2, $F98*0.5+$G98*0.2, SUM(F98:G98)))), 0),"Not required") -> 0 | P98: 0 | Q98: 0 | R98: 2 | S98: 0 | T98: T3 (ALB/MBD) | U98: T3 (ALB/MBD) | V98: T3 | W98: T3 | Y98: 49797 | Z98: NAPAK | AA98: TRUE | AC98: 190228 | AD98: =_xlfn.XLOOKUP($Y98,[2]COUNTRY_INFO!$Y$9:$Y$143,[2]COUNTRY_INFO!D$9:D$143) -> 178967 | AE98: 3.186062235 | AG98: =_xlfn.XLOOKUP($Y98,[2]COUNTRY_INFO!$Y$9:$Y$143,[2]COUNTRY_INFO!H$9:H$143) -> 99 | AH98: =_xlfn.XLOOKUP($Y98,[2]COUNTRY_INFO!$Y$9:$Y$143,[2]COUNTRY_INFO!I$9:I$143) -> 0 | AI98: =_xlfn.XLOOKUP($Y98,[2]COUNTRY_INFO!$Y$9:$Y$143,[2]COUNTRY_INFO!J$9:J$143) -> 3 | AJ98: =_xlfn.XLOOKUP($Y98,[2]COUNTRY_INFO!$Y$9:$Y$143,[2]COUNTRY_INFO!K$9:K$143) -> 0 | AK98: TRUE | AL98: TRUE | AM98: TRUE | AN98: TRUE | AP98: ='MDA3'!Q98 -> 0 | AQ98: ='T1'!M98 -> 0 | AR98: =T3_R1!L98 -> 89428 | AS98: =T3_R2!L98 -> 92797
A99: =IF(INTRO!$E$34<>0,INTRO!$E$34,"") -> Uganda | B99: NORTHERN | C99: NEBBI | D99: 301708 | E99: =IF(INTRO!$E$48="","",ROUND($D99*INTRO!$E$48,0)) -> 42843 | F99: =IF(INTRO!$E$49="","",ROUND($D99*INTRO!$E$49,0)) -> 91116 | G99: =IF(INTRO!$E$50="","",ROUND($D99*INTRO!$E$50,0)) -> 157190 | H99: 99 | I99: 99 | J99: 3 | K99: 0 | L99: 0 | M99: Stopped | N99: =IF(INTRO!$E$42="Endemic", IF(AND($J99>1,$J99<5), IF($J99=4, "Unknown", E99+F99), 0),"Not required") -> 133959 | O99: =IF([1]INTRO!$E$43="Endemic", IF(AND($K99>0,$K99<5), IF($K99=4,"Unknown", IF($K99=1, $F99*0.33, IF($K99=2, $F99*0.5+$G99*0.2, SUM(F99:G99)))), 0),"Not required") -> 0 | P99: 0 | Q99: 0 | R99: 2 | S99: 0 | T99: T3 (ALB/MBD) | U99: T3 (ALB/MBD) | V99: T3 | W99: T3 | Y99: 49793 | Z99: NEBBI | AA99: TRUE | AC99: 310789 | AD99: =_xlfn.XLOOKUP($Y99,[2]COUNTRY_INFO!$Y$9:$Y$143,[2]COUNTRY_INFO!D$9:D$143) -> 292392 | AE99: 3.186133684 | AG99: =_xlfn.XLOOKUP($Y99,[2]COUNTRY_INFO!$Y$9:$Y$143,[2]COUNTRY_INFO!H$9:H$143) -> 99 | AH99: =_xlfn.XLOOKUP($Y99,[2]COUNTRY_INFO!$Y$9:$Y$143,[2]COUNTRY_INFO!I$9:I$143) -> 99 | AI99: =_xlfn.XLOOKUP($Y99,[2]COUNTRY_INFO!$Y$9:$Y$143,[2]COUNTRY_INFO!J$9:J$143) -> 3 | AJ99: =_xlfn.XLOOKUP($Y99,[2]COUNTRY_INFO!$Y$9:$Y$143,[2]COUNTRY_INFO!K$9:K$143) -> 0 | AK99: TRUE | AL99: TRUE | AM99: TRUE | AN99: TRUE | AP99: ='MDA3'!Q99 -> 0 | AQ99: ='T1'!M99 -> 0 | AR99: =T3_R1!L99 -> 46228 | AS99: =T3_R2!L99 -> 62294
A100: =IF(INTRO!$E$34<>0,INTRO!$E$34,"") -> Uganda | B100: NORTHERN | C100: NWOYA | D100: 162889 | E100: =IF(INTRO!$E$48="","",ROUND($D100*INTRO!$E$48,0)) -> 23130 | F100: =IF(INTRO!$E$49="","",ROUND($D100*INTRO!$E$49,0)) -> 49192 | G100: =IF(INTRO!$E$50="","",ROUND($D100*INTRO!$E$50,0)) -> 84865 | H100: 99 | I100: 1 | J100: 3 | K100: 2 | L100: 0 | M100: 190389 | N100: =IF(INTRO!$E$42="Endemic", IF(AND($J100>1,$J100<5), IF($J100=4, "Unknown", E100+F100), 0),"Not required") -> 72322 | O100: =IF([1]INTRO!$E$43="Endemic", IF(AND($K100>0,$K100<5), IF($K100=4,"Unknown", IF($K100=1, $F100*0.33, IF($K100=2, $F100*0.5+$G100*0.2, SUM(F100:G100)))), 0),"Not required") -> 41569 | P100: 0 | Q100: 2 | R100: 2 | S100: 1 | T100: MDA3 (IVM) | U100: T1 (PZQ+ALB/MBD) | V100: MDA 1 | W100: T1 | Y100: 49801 | Z100: NWOYA | AA100: TRUE | AC100: 167792 | AD100: =_xlfn.XLOOKUP($Y100,[2]COUNTRY_INFO!$Y$9:$Y$143,[2]COUNTRY_INFO!D$9:D$143) -> 157860 | AE100: 3.185734195 | AG100: =_xlfn.XLOOKUP($Y100,[2]COUNTRY_INFO!$Y$9:$Y$143,[2]COUNTRY_INFO!H$9:H$143) -> 99 | AH100: =_xlfn.XLOOKUP($Y100,[2]COUNTRY_INFO!$Y$9:$Y$143,[2]COUNTRY_INFO!I$9:I$143) -> 1 | AI100: =_xlfn.XLOOKUP($Y100,[2]COUNTRY_INFO!$Y$9:$Y$143,[2]COUNTRY_INFO!J$9:J$143) -> 3 | AJ100: =_xlfn.XLOOKUP($Y100,[2]COUNTRY_INFO!$Y$9:$Y$143,[2]COUNTRY_INFO!K$9:K$143) -> 2 | AK100: TRUE | AL100: TRUE | AM100: TRUE | AN100: TRUE | AP100: ='MDA3'!Q100 -> 174912 | AQ100: ='T1'!M100 -> 41858 | AR100: =T3_R1!L100 -> 57413 | AS100: =T3_R2!L100 -> 91139 | AU100: =(AQ100+AR100)/F100*100 -> 201.8031387
A101: =IF(INTRO!$E$34<>0,INTRO!$E$34,"") -> Uganda | B101: NORTHERN | C101: OBONGI | D101: 54861 | E101: =IF(INTRO!$E$48="","",ROUND($D101*INTRO!$E$48,0)) -> 7790 | F101: =IF(INTRO!$E$49="","",ROUND($D101*INTRO!$E$49,0)) -> 16568 | G101: =IF(INTRO!$E$50="","",ROUND($D101*INTRO!$E$50,0)) -> 28583 | H101: 99 | I101: 99 | J101: 3 | K101: 3 | L101: 0 | M101: Stopped | N101: =IF(INTRO!$E$42="Endemic", IF(AND($J101>1,$J101<5), IF($J101=4, "Unknown", E101+F101), 0),"Not required") -> 24358 | O101: =IF([1]INTRO!$E$43="Endemic", IF(AND($K101>0,$K101<5), IF($K101=4,"Unknown", IF($K101=1, $F101*0.33, IF($K101=2, $F101*0.5+$G101*0.2, SUM(F101:G101)))), 0),"Not required") -> 45151 | P101: 0 | Q101: 0 | R101: 2 | S101: 1 | T101: T3 (ALB/MBD) | U101: T1 (PZQ+ALB/MBD) | V101: T1 | W101: T3 | Y101: 49838 | Z101: OBONGI | AA101: TRUE | AC101: 56512 | AD101: =_xlfn.XLOOKUP($Y101,[2]COUNTRY_INFO!$Y$9:$Y$143,[2]COUNTRY_INFO!D$9:D$143) -> 53167 | AE101: 3.18618692 | AG101: =_xlfn.XLOOKUP($Y101,[2]COUNTRY_INFO!$Y$9:$Y$143,[2]COUNTRY_INFO!H$9:H$143) -> 99 | AH101: =_xlfn.XLOOKUP($Y101,[2]COUNTRY_INFO!$Y$9:$Y$143,[2]COUNTRY_INFO!I$9:I$143) -> 99 | AI101: =_xlfn.XLOOKUP($Y101,[2]COUNTRY_INFO!$Y$9:$Y$143,[2]COUNTRY_INFO!J$9:J$143) -> 3 | AJ101: =_xlfn.XLOOKUP($Y101,[2]COUNTRY_INFO!$Y$9:$Y$143,[2]COUNTRY_INFO!K$9:K$143) -> 3 | AK101: TRUE | AL101: TRUE | AM101: TRUE | AN101: TRUE | AP101: ='MDA3'!Q101 -> 0 | AQ101: ='T1'!M101 -> 43826 | AR101: =T3_R1!L101 -> 33222 | AS101: =T3_R2!L101 -> 30547 | AU101: 465.041043
A102: =IF(INTRO!$E$34<>0,INTRO!$E$34,"") -> Uganda | B102: NORTHERN | C102: OMORO | D102: 210638 | E102: =IF(INTRO!$E$48="","",ROUND($D102*INTRO!$E$48,0)) -> 29911 | F102: =IF(INTRO!$E$49="","",ROUND($D102*INTRO!$E$49,0)) -> 63613 | G102: =IF(INTRO!$E$50="","",ROUND($D102*INTRO!$E$50,0)) -> 109742 | H102: 99 | I102: 1 | J102: 3 | K102: 2 | L102: 0 | M102: 177736 | N102: =IF(INTRO!$E$42="Endemic", IF(AND($J102>1,$J102<5), IF($J102=4, "Unknown", E102+F102), 0),"Not required") -> 93524 | O102: =IF([1]INTRO!$E$43="Endemic", IF(AND($K102>0,$K102<5), IF($K102=4,"Unknown", IF($K102=1, $F102*0.33, IF($K102=2, $F102*0.5+$G102*0.2, SUM(F102:G102)))), 0),"Not required") -> 53754.9 | P102: 0 | Q102: 2 | R102: 2 | S102: 1 | T102: MDA3 (IVM) | U102: T1 (PZQ+ALB/MBD) | V102: MDA 1 | W102: T1 | Y102: 49818 | Z102: OMORO | AA102: TRUE | AC102: 216978 | AD102: =_xlfn.XLOOKUP($Y102,[2]COUNTRY_INFO!$Y$9:$Y$143,[2]COUNTRY_INFO!D$9:D$143) -> 204134 | AE102: 3.186142436 | AG102: =_xlfn.XLOOKUP($Y102,[2]COUNTRY_INFO!$Y$9:$Y$143,[2]COUNTRY_INFO!H$9:H$143) -> 99 | AH102: =_xlfn.XLOOKUP($Y102,[2]COUNTRY_INFO!$Y$9:$Y$143,[2]COUNTRY_INFO!I$9:I$143) -> 1 | AI102: =_xlfn.XLOOKUP($Y102,[2]COUNTRY_INFO!$Y$9:$Y$143,[2]COUNTRY_INFO!J$9:J$143) -> 3 | AJ102: =_xlfn.XLOOKUP($Y102,[2]COUNTRY_INFO!$Y$9:$Y$143,[2]COUNTRY_INFO!K$9:K$143) -> 2 | AK102: TRUE | AL102: TRUE | AM102: TRUE | AN102: TRUE | AP102: ='MDA3'!Q102 -> 170453 | AQ102: ='T1'!M102 -> 40457 | AR102: =T3_R1!L102 -> 34721 | AS102: =T3_R2!L102 -> 87286 | AU102: 118.1802462
A103: =IF(INTRO!$E$34<>0,INTRO!$E$34,"") -> Uganda | B103: NORTHERN | C103: OTUKE | D103: 134306 | E103: =IF(INTRO!$E$48="","",ROUND($D103*INTRO!$E$48,0)) -> 19071 | F103: =IF(INTRO!$E$49="","",ROUND($D103*INTRO!$E$49,0)) -> 40560 | G103: =IF(INTRO!$E$50="","",ROUND($D103*INTRO!$E$50,0)) -> 69973 | H103: 99 | I103: 0 | J103: 3 | K103: 0 | L103: 0 | M103: 0 | N103: =IF(INTRO!$E$42="Endemic", IF(AND($J103>1,$J103<5), IF($J103=4, "Unknown", E103+F103), 0),"Not required") -> 59631 | O103: =IF([1]INTRO!$E$43="Endemic", IF(AND($K103>0,$K103<5), IF($K103=4,"Unknown", IF($K103=1, $F103*0.33, IF($K103=2, $F103*0.5+$G103*0.2, SUM(F103:G103)))), 0),"Not required") -> 0 | P103: 0 | Q103: 0 | R103: 2 | S103: 0 | T103: T3 (ALB/MBD) | U103: T3 (ALB/MBD) | V103: T3 | W103: T3 | Y103: 49803 | Z103: OTUKE | AA103: TRUE | AC103: 138349 | AD103: =_xlfn.XLOOKUP($Y103,[2]COUNTRY_INFO!$Y$9:$Y$143,[2]COUNTRY_INFO!D$9:D$143) -> 130159 | AE103: 3.186103151 | AG103: =_xlfn.XLOOKUP($Y103,[2]COUNTRY_INFO!$Y$9:$Y$143,[2]COUNTRY_INFO!H$9:H$143) -> 99 | AH103: =_xlfn.XLOOKUP($Y103,[2]COUNTRY_INFO!$Y$9:$Y$143,[2]COUNTRY_INFO!I$9:I$143) -> 0 | AI103: =_xlfn.XLOOKUP($Y103,[2]COUNTRY_INFO!$Y$9:$Y$143,[2]COUNTRY_INFO!J$9:J$143) -> 3 | AJ103: =_xlfn.XLOOKUP($Y103,[2]COUNTRY_INFO!$Y$9:$Y$143,[2]COUNTRY_INFO!K$9:K$143) -> 0 | AK103: TRUE | AL103: TRUE | AM103: TRUE | AN103: TRUE | AP103: ='MDA3'!Q103 -> 0 | AQ103: ='T1'!M103 -> 0 | AR103: =T3_R1!L103 -> 63938 | AS103: =T3_R2!L103 -> 56632
A104: =IF(INTRO!$E$34<>0,INTRO!$E$34,"") -> Uganda | B104: NORTHERN | C104: OYAM | D104: 493410 | E104: =IF(INTRO!$E$48="","",ROUND($D104*INTRO!$E$48,0)) -> 70064 | F104: =IF(INTRO!$E$49="","",ROUND($D104*INTRO!$E$49,0)) -> 149010 | G104: =IF(INTRO!$E$50="","",ROUND($D104*INTRO!$E$50,0)) -> 257067 | H104: 99 | I104: 1 | J104: 3 | K104: 3 | L104: 0 | M104: 25635 | N104: =IF(INTRO!$E$42="Endemic", IF(AND($J104>1,$J104<5), IF($J104=4, "Unknown", E104+F104), 0),"Not required") -> 219074 | O104: =IF([1]INTRO!$E$43="Endemic", IF(AND($K104>0,$K104<5), IF($K104=4,"Unknown", IF($K104=1, $F104*0.33, IF($K104=2, $F104*0.5+$G104*0.2, SUM(F104:G104)))), 0),"Not required") -> 406077 | P104: 0 | Q104: 2 | R104: 2 | S104: 1 | T104: MDA3 (IVM) | U104: T1 (PZQ+ALB/MBD) | V104: MDA 1 | W104: T1 | Y104: 49802 | Z104: OYAM | AA104: TRUE | AC104: 508262 | AD104: =_xlfn.XLOOKUP($Y104,[2]COUNTRY_INFO!$Y$9:$Y$143,[2]COUNTRY_INFO!D$9:D$143) -> 478175 | AE104: 3.186072045 | AG104: =_xlfn.XLOOKUP($Y104,[2]COUNTRY_INFO!$Y$9:$Y$143,[2]COUNTRY_INFO!H$9:H$143) -> 99 | AH104: =_xlfn.XLOOKUP($Y104,[2]COUNTRY_INFO!$Y$9:$Y$143,[2]COUNTRY_INFO!I$9:I$143) -> 1 | AI104: =_xlfn.XLOOKUP($Y104,[2]COUNTRY_INFO!$Y$9:$Y$143,[2]COUNTRY_INFO!J$9:J$143) -> 3 | AJ104: =_xlfn.XLOOKUP($Y104,[2]COUNTRY_INFO!$Y$9:$Y$143,[2]COUNTRY_INFO!K$9:K$143) -> 3 | AK104: TRUE | AL104: TRUE | AM104: TRUE | AN104: TRUE | AP104: ='MDA3'!Q104 -> 22231 | AQ104: ='T1'!M104 -> 107209 | AR104: =T3_R1!L104 -> 102912 | AS104: =T3_R2!L104 -> 175948 | AU104: =(AQ104+AR104)/F104*100 -> 141.0113415
A105: =IF(INTRO!$E$34<>0,INTRO!$E$34,"") -> Uganda | B105: NORTHERN | C105: PADER | D105: 233639 | E105: =IF(INTRO!$E$48="","",ROUND($D105*INTRO!$E$48,0)) -> 33177 | F105: =IF(INTRO!$E$49="","",ROUND($D105*INTRO!$E$49,0)) -> 70559 | G105: =IF(INTRO!$E$50="","",ROUND($D105*INTRO!$E$50,0)) -> 121726 | H105: 99 | I105: 1 | J105: 3 | K105: 3 | L105: 0 | M105: 187485 | N105: =IF(INTRO!$E$42="Endemic", IF(AND($J105>1,$J105<5), IF($J105=4, "Unknown", E105+F105), 0),"Not required") -> 103736 | O105: =IF([1]INTRO!$E$43="Endemic", IF(AND($K105>0,$K105<5), IF($K105=4,"Unknown", IF($K105=1, $F105*0.33, IF($K105=2, $F105*0.5+$G105*0.2, SUM(F105:G105)))), 0),"Not required") -> 192285 | P105: 0 | Q105: 2 | R105: 2 | S105: 1 | T105: MDA3 (IVM) | U105: T1 (PZQ+ALB/MBD) | V105: MDA 1 | W105: T1 | Y105: 49805 | Z105: PADER | AA105: TRUE | AC105: 240672 | AD105: =_xlfn.XLOOKUP($Y105,[2]COUNTRY_INFO!$Y$9:$Y$143,[2]COUNTRY_INFO!D$9:D$143) -> 226425 | AE105: 3.186043944 | AG105: =_xlfn.XLOOKUP($Y105,[2]COUNTRY_INFO!$Y$9:$Y$143,[2]COUNTRY_INFO!H$9:H$143) -> 99 | AH105: =_xlfn.XLOOKUP($Y105,[2]COUNTRY_INFO!$Y$9:$Y$143,[2]COUNTRY_INFO!I$9:I$143) -> 1 | AI105: =_xlfn.XLOOKUP($Y105,[2]COUNTRY_INFO!$Y$9:$Y$143,[2]COUNTRY_INFO!J$9:J$143) -> 3 | AJ105: =_xlfn.XLOOKUP($Y105,[2]COUNTRY_INFO!$Y$9:$Y$143,[2]COUNTRY_INFO!K$9:K$143) -> 3 | AK105: TRUE | AL105: TRUE | AM105: TRUE | AN105: TRUE | AP105: ='MDA3'!Q105 -> 181352 | AQ105: ='T1'!M105 -> 47134 | AR105: =T3_R1!L105 -> 94786 | AS105: =T3_R2!L105 -> 105618 | AU105: 201.1366374
A106: =IF(INTRO!$E$34<>0,INTRO!$E$34,"") -> Uganda | B106: NORTHERN | C106: PAKWACH | D106: 188156 | E106: =IF(INTRO!$E$48="","",ROUND($D106*INTRO!$E$48,0)) -> 26718 | F106: =IF(INTRO!$E$49="","",ROUND($D106*INTRO!$E$49,0)) -> 56823 | G106: =IF(INTRO!$E$50="","",ROUND($D106*INTRO!$E$50,0)) -> 98029 | H106: 99 | I106: 99 | J106: 3 | K106: 3 | L106: 0 | M106: Stopped | N106: =IF(INTRO!$E$42="Endemic", IF(AND($J106>1,$J106<5), IF($J106=4, "Unknown", E106+F106), 0),"Not required") -> 83541 | O106: =IF([1]INTRO!$E$43="Endemic", IF(AND($K106>0,$K106<5), IF($K106=4,"Unknown", IF($K106=1, $F106*0.33, IF($K106=2, $F106*0.5+$G106*0.2, SUM(F106:G106)))), 0),"Not required") -> 154852 | P106: 0 | Q106: 0 | R106: 2 | S106: 1 | T106: T3 (ALB/MBD) | U106: T1 (PZQ+ALB/MBD) | V106: T1 | W106: T3 | Y106: 49827 | Z106: PAKWACH | AA106: TRUE | AC106: 193819 | AD106: =_xlfn.XLOOKUP($Y106,[2]COUNTRY_INFO!$Y$9:$Y$143,[2]COUNTRY_INFO!D$9:D$143) -> 182346 | AE106: 3.186250315 | AG106: =_xlfn.XLOOKUP($Y106,[2]COUNTRY_INFO!$Y$9:$Y$143,[2]COUNTRY_INFO!H$9:H$143) -> 99 | AH106: =_xlfn.XLOOKUP($Y106,[2]COUNTRY_INFO!$Y$9:$Y$143,[2]COUNTRY_INFO!I$9:I$143) -> 99 | AI106: =_xlfn.XLOOKUP($Y106,[2]COUNTRY_INFO!$Y$9:$Y$143,[2]COUNTRY_INFO!J$9:J$143) -> 3 | AJ106: =_xlfn.XLOOKUP($Y106,[2]COUNTRY_INFO!$Y$9:$Y$143,[2]COUNTRY_INFO!K$9:K$143) -> 3 | AK106: TRUE | AL106: TRUE | AM106: TRUE | AN106: TRUE | AP106: ='MDA3'!Q106 -> 0 | AQ106: ='T1'!M106 -> 74931 | AR106: =T3_R1!L106 -> 73983 | AS106: =T3_R2!L106 -> 63683 | AU106: 262.0664168
A107: =IF(INTRO!$E$34<>0,INTRO!$E$34,"") -> Uganda | B107: NORTHERN | C107: YUMBE | D107: 617484 | E107: =IF(INTRO!$E$48="","",ROUND($D107*INTRO!$E$48,0)) -> 87683 | F107: =IF(INTRO!$E$49="","",ROUND($D107*INTRO!$E$49,0)) -> 186480 | G107: =IF(INTRO!$E$50="","",ROUND($D107*INTRO!$E$50,0)) -> 321709 | H107: 99 | I107: 99 | J107: 3 | K107: 2 | L107: 0 | M107: Stopped | N107: =IF(INTRO!$E$42="Endemic", IF(AND($J107>1,$J107<5), IF($J107=4, "Unknown", E107+F107), 0),"Not required") -> 274163 | O107: =IF([1]INTRO!$E$43="Endemic", IF(AND($K107>0,$K107<5), IF($K107=4,"Unknown", IF($K107=1, $F107*0.33, IF($K107=2, $F107*0.5+$G107*0.2, SUM(F107:G107)))), 0),"Not required") -> 157581.8 | P107: 0 | Q107: 0 | R107: 2 | S107: 1 | T107: T3 (ALB/MBD) | U107: T1 (PZQ+ALB/MBD) | V107: T1 | W107: T3 | Y107: 49816 | Z107: YUMBE | AA107: TRUE | AC107: 636070 | AD107: =_xlfn.XLOOKUP($Y107,[2]COUNTRY_INFO!$Y$9:$Y$143,[2]COUNTRY_INFO!D$9:D$143) -> 598418 | AE107: 3.186067264 | AG107: =_xlfn.XLOOKUP($Y107,[2]COUNTRY_INFO!$Y$9:$Y$143,[2]COUNTRY_INFO!H$9:H$143) -> 99 | AH107: =_xlfn.XLOOKUP($Y107,[2]COUNTRY_INFO!$Y$9:$Y$143,[2]COUNTRY_INFO!I$9:I$143) -> 99 | AI107: =_xlfn.XLOOKUP($Y107,[2]COUNTRY_INFO!$Y$9:$Y$143,[2]COUNTRY_INFO!J$9:J$143) -> 3 | AJ107: =_xlfn.XLOOKUP($Y107,[2]COUNTRY_INFO!$Y$9:$Y$143,[2]COUNTRY_INFO!K$9:K$143) -> 2 | AK107: TRUE | AL107: TRUE | AM107: TRUE | AN107: TRUE | AP107: ='MDA3'!Q107 -> 0 | AQ107: ='T1'!M107 -> 152634 | AR107: =T3_R1!L107 -> 405846 | AS107: =T3_R2!L107 -> 369106 | AU107: 299.4851995
A108: =IF(INTRO!$E$34<>0,INTRO!$E$34,"") -> Uganda | B108: NORTHERN | C108: ZOMBO | D108: 305666 | E108: =IF(INTRO!$E$48="","",ROUND($D108*INTRO!$E$48,0)) -> 43405 | F108: =IF(INTRO!$E$49="","",ROUND($D108*INTRO!$E$49,0)) -> 92311 | G108: =IF(INTRO!$E$50="","",ROUND($D108*INTRO!$E$50,0)) -> 159252 | H108: 99 | I108: 99 | J108: 3 | K108: 1 | L108: 0 | M108: Stopped | N108: =IF(INTRO!$E$42="Endemic", IF(AND($J108>1,$J108<5), IF($J108=4, "Unknown", E108+F108), 0),"Not required") -> 135716 | O108: =IF([1]INTRO!$E$43="Endemic", IF(AND($K108>0,$K108<5), IF($K108=4,"Unknown", IF($K108=1, $F108*0.33, IF($K108=2, $F108*0.5+$G108*0.2, SUM(F108:G108)))), 0),"Not required") -> 30462.63 | P108: 0 | Q108: 0 | R108: 2 | S108: 1 | T108: T3 (ALB/MBD) | U108: T1 (PZQ+ALB/MBD) | V108: T1 | W108: T3 | Y108: 49817 | Z108: ZOMBO | AA108: TRUE | AC108: 314867 | AD108: =_xlfn.XLOOKUP($Y108,[2]COUNTRY_INFO!$Y$9:$Y$143,[2]COUNTRY_INFO!D$9:D$143) -> 296228 | AE108: 3.186059387 | AG108: =_xlfn.XLOOKUP($Y108,[2]COUNTRY_INFO!$Y$9:$Y$143,[2]COUNTRY_INFO!H$9:H$143) -> 99 | AH108: =_xlfn.XLOOKUP($Y108,[2]COUNTRY_INFO!$Y$9:$Y$143,[2]COUNTRY_INFO!I$9:I$143) -> 99 | AI108: =_xlfn.XLOOKUP($Y108,[2]COUNTRY_INFO!$Y$9:$Y$143,[2]COUNTRY_INFO!J$9:J$143) -> 3 | AJ108: =_xlfn.XLOOKUP($Y108,[2]COUNTRY_INFO!$Y$9:$Y$143,[2]COUNTRY_INFO!K$9:K$143) -> 1 | AK108: TRUE | AL108: TRUE | AM108: TRUE | AN108: TRUE | AP108: ='MDA3'!Q108 -> 0 | AQ108: ='T1'!M108 -> 30322 | AR108: =T3_R1!L108 -> 58580 | AS108: =T3_R2!L108 -> 53384 | AU108: 96.307049
A109: =IF(INTRO!$E$34<>0,INTRO!$E$34,"") -> Uganda | B109: WESTERN | C109: BUHWEJU | D109: 157744 | E109: =IF(INTRO!$E$48="","",ROUND($D109*INTRO!$E$48,0)) -> 22400 | F109: =IF(INTRO!$E$49="","",ROUND($D109*INTRO!$E$49,0)) -> 47639 | G109: =IF(INTRO!$E$50="","",ROUND($D109*INTRO!$E$50,0)) -> 82185 | H109: 0 | I109: 99 | J109: 3 | K109: 0 | L109: 0 | M109: Stopped | N109: =IF(INTRO!$E$42="Endemic", IF(AND($J109>1,$J109<5), IF($J109=4, "Unknown", E109+F109), 0),"Not required") -> 70039 | O109: =IF([1]INTRO!$E$43="Endemic", IF(AND($K109>0,$K109<5), IF($K109=4,"Unknown", IF($K109=1, $F109*0.33, IF($K109=2, $F109*0.5+$G109*0.2, SUM(F109:G109)))), 0),"Not required") -> 0 | P109: 0 | Q109: 0 | R109: 2 | S109: 0 | T109: T3 (ALB/MBD) | U109: T3 (ALB/MBD) | V109: T3 | W109: T3 | Y109: 49724 | Z109: BUHWEJU | AA109: TRUE | AC109: 162492 | AD109: =_xlfn.XLOOKUP($Y109,[2]COUNTRY_INFO!$Y$9:$Y$143,[2]COUNTRY_INFO!D$9:D$143) -> 152873 | AE109: 3.186304972 | AG109: =_xlfn.XLOOKUP($Y109,[2]COUNTRY_INFO!$Y$9:$Y$143,[2]COUNTRY_INFO!H$9:H$143) -> 0 | AH109: =_xlfn.XLOOKUP($Y109,[2]COUNTRY_INFO!$Y$9:$Y$143,[2]COUNTRY_INFO!I$9:I$143) -> 99 | AI109: =_xlfn.XLOOKUP($Y109,[2]COUNTRY_INFO!$Y$9:$Y$143,[2]COUNTRY_INFO!J$9:J$143) -> 3 | AJ109: =_xlfn.XLOOKUP($Y109,[2]COUNTRY_INFO!$Y$9:$Y$143,[2]COUNTRY_INFO!K$9:K$143) -> 0 | AK109: TRUE | AL109: TRUE | AM109: TRUE | AN109: TRUE | AP109: ='MDA3'!Q109 -> 0 | AQ109: ='T1'!M109 -> 0 | AR109: =T3_R1!L109 -> 63533 | AS109: =T3_R2!L109 -> 65241
A110: =IF(INTRO!$E$34<>0,INTRO!$E$34,"") -> Uganda | B110: WESTERN | C110: BULIISA | D110: 144421 | E110: =IF(INTRO!$E$48="","",ROUND($D110*INTRO!$E$48,0)) -> 20508 | F110: =IF(INTRO!$E$49="","",ROUND($D110*INTRO!$E$49,0)) -> 43615 | G110: =IF(INTRO!$E$50="","",ROUND($D110*INTRO!$E$50,0)) -> 75243 | H110: 0 | I110: 99 | J110: 3 | K110: 3 | L110: 0 | M110: Stopped | N110: =IF(INTRO!$E$42="Endemic", IF(AND($J110>1,$J110<5), IF($J110=4, "Unknown", E110+F110), 0),"Not required") -> 64123 | O110: =IF([1]INTRO!$E$43="Endemic", IF(AND($K110>0,$K110<5), IF($K110=4,"Unknown", IF($K110=1, $F110*0.33, IF($K110=2, $F110*0.5+$G110*0.2, SUM(F110:G110)))), 0),"Not required") -> 118858 | P110: 0 | Q110: 0 | R110: 2 | S110: 1 | T110: T3 (ALB/MBD) | U110: T1 (PZQ+ALB/MBD) | V110: T1 | W110: T3 | Y110: 49720 | Z110: BULIISA | AA110: TRUE | AC110: 148768 | AD110: =_xlfn.XLOOKUP($Y110,[2]COUNTRY_INFO!$Y$9:$Y$143,[2]COUNTRY_INFO!D$9:D$143) -> 139962 | AE110: 3.185864735 | AG110: =_xlfn.XLOOKUP($Y110,[2]COUNTRY_INFO!$Y$9:$Y$143,[2]COUNTRY_INFO!H$9:H$143) -> 0 | AH110: =_xlfn.XLOOKUP($Y110,[2]COUNTRY_INFO!$Y$9:$Y$143,[2]COUNTRY_INFO!I$9:I$143) -> 99 | AI110: =_xlfn.XLOOKUP($Y110,[2]COUNTRY_INFO!$Y$9:$Y$143,[2]COUNTRY_INFO!J$9:J$143) -> 3 | AJ110: =_xlfn.XLOOKUP($Y110,[2]COUNTRY_INFO!$Y$9:$Y$143,[2]COUNTRY_INFO!K$9:K$143) -> 3 | AK110: TRUE | AL110: TRUE | AM110: TRUE | AN110: TRUE | AP110: ='MDA3'!Q110 -> 0 | AQ110: ='T1'!M110 -> 43345 | AR110: =T3_R1!L110 -> 41011 | AS110: =T3_R2!L110 -> 62045 | AU110: =(AQ110+AR110)/F110*100 -> 193.4105239
A111: =IF(INTRO!$E$34<>0,INTRO!$E$34,"") -> Uganda | B111: WESTERN | C111: BUNDIBUGYO | D111: 285031 | E111: =IF(INTRO!$E$48="","",ROUND($D111*INTRO!$E$48,0)) -> 40474 | F111: =IF(INTRO!$E$49="","",ROUND($D111*INTRO!$E$49,0)) -> 86079 | G111: =IF(INTRO!$E$50="","",ROUND($D111*INTRO!$E$50,0)) -> 148501 | H111: 99 | I111: 0 | J111: 3 | K111: 3 | L111: 0 | M111: 0 | N111: =IF(INTRO!$E$42="Endemic", IF(AND($J111>1,$J111<5), IF($J111=4, "Unknown", E111+F111), 0),"Not required") -> 126553 | O111: =IF([1]INTRO!$E$43="Endemic", IF(AND($K111>0,$K111<5), IF($K111=4,"Unknown", IF($K111=1, $F111*0.33, IF($K111=2, $F111*0.5+$G111*0.2, SUM(F111:G111)))), 0),"Not required") -> 234580 | P111: 0 | Q111: 0 | R111: 2 | S111: 1 | T111: T3 (ALB/MBD) | U111: T1 (PZQ+ALB/MBD) | V111: T1 | W111: T3 | Y111: 49721 | Z111: BUNDIBUGYO | AA111: TRUE | AC111: 293610 | AD111: =_xlfn.XLOOKUP($Y111,[2]COUNTRY_INFO!$Y$9:$Y$143,[2]COUNTRY_INFO!D$9:D$143) -> 276230 | AE111: 3.186113022 | AG111: =_xlfn.XLOOKUP($Y111,[2]COUNTRY_INFO!$Y$9:$Y$143,[2]COUNTRY_INFO!H$9:H$143) -> 99 | AH111: =_xlfn.XLOOKUP($Y111,[2]COUNTRY_INFO!$Y$9:$Y$143,[2]COUNTRY_INFO!I$9:I$143) -> 0 | AI111: =_xlfn.XLOOKUP($Y111,[2]COUNTRY_INFO!$Y$9:$Y$143,[2]COUNTRY_INFO!J$9:J$143) -> 3 | AJ111: =_xlfn.XLOOKUP($Y111,[2]COUNTRY_INFO!$Y$9:$Y$143,[2]COUNTRY_INFO!K$9:K$143) -> 3 | AK111: TRUE | AL111: TRUE | AM111: TRUE | AN111: TRUE | AP111: ='MDA3'!Q111 -> 0 | AQ111: ='T1'!M111 -> 17180 | AR111: =T3_R1!L111 -> 109072 | AS111: =T3_R2!L111 -> 85952 | AU111: 146.6699195
A112: =IF(INTRO!$E$34<>0,INTRO!$E$34,"") -> Uganda | B112: WESTERN | C112: BUNYANGABU | D112: 217824 | E112: =IF(INTRO!$E$48="","",ROUND($D112*INTRO!$E$48,0)) -> 30931 | F112: =IF(INTRO!$E$49="","",ROUND($D112*INTRO!$E$49,0)) -> 65783 | G112: =IF(INTRO!$E$50="","",ROUND($D112*INTRO!$E$50,0)) -> 113486 | H112: 0 | I112: 99 | J112: 3 | K112: 3 | L112: 0 | M112: Stopped | N112: =IF(INTRO!$E$42="Endemic", IF(AND($J112>1,$J112<5), IF($J112=4, "Unknown", E112+F112), 0),"Not required") -> 96714 | O112: =IF([1]INTRO!$E$43="Endemic", IF(AND($K112>0,$K112<5), IF($K112=4,"Unknown", IF($K112=1, $F112*0.33, IF($K112=2, $F112*0.5+$G112*0.2, SUM(F112:G112)))), 0),"Not required") -> 179269 | P112: 0 | Q112: 0 | R112: 2 | S112: 1 | T112: T3 (ALB/MBD) | U112: T1 (PZQ+ALB/MBD) | V112: T1 | W112: T3 | Y112: 49828 | Z112: BUNYANGABU | AA112: TRUE | AC112: 224381 | AD112: =_xlfn.XLOOKUP($Y112,[2]COUNTRY_INFO!$Y$9:$Y$143,[2]COUNTRY_INFO!D$9:D$143) -> 211098 | AE112: 3.18619788 | AG112: =_xlfn.XLOOKUP($Y112,[2]COUNTRY_INFO!$Y$9:$Y$143,[2]COUNTRY_INFO!H$9:H$143) -> 0 | AH112: =_xlfn.XLOOKUP($Y112,[2]COUNTRY_INFO!$Y$9:$Y$143,[2]COUNTRY_INFO!I$9:I$143) -> 99 | AI112: =_xlfn.XLOOKUP($Y112,[2]COUNTRY_INFO!$Y$9:$Y$143,[2]COUNTRY_INFO!J$9:J$143) -> 3 | AJ112: =_xlfn.XLOOKUP($Y112,[2]COUNTRY_INFO!$Y$9:$Y$143,[2]COUNTRY_INFO!K$9:K$143) -> 3 | AK112: TRUE | AL112: TRUE | AM112: TRUE | AN112: TRUE | AP112: ='MDA3'!Q112 -> 0 | AQ112: ='T1'!M112 -> 16086 | AR112: =T3_R1!L112 -> 106846 | AS112: =T3_R2!L112 -> 92704 | AU112: 186.8750285
A113: =IF(INTRO!$E$34<>0,INTRO!$E$34,"") -> Uganda | B113: WESTERN | C113: BUSHENYI | D113: 299628 | E113: =IF(INTRO!$E$48="","",ROUND($D113*INTRO!$E$48,0)) -> 42547 | F113: =IF(INTRO!$E$49="","",ROUND($D113*INTRO!$E$49,0)) -> 90488 | G113: =IF(INTRO!$E$50="","",ROUND($D113*INTRO!$E$50,0)) -> 156106 | H113: 0 | I113: 99 | J113: 3 | K113: 0 | L113: 0 | M113: Stopped | N113: =IF(INTRO!$E$42="Endemic", IF(AND($J113>1,$J113<5), IF($J113=4, "Unknown", E113+F113), 0),"Not required") -> 133035 | O113: =IF([1]INTRO!$E$43="Endemic", IF(AND($K113>0,$K113<5), IF($K113=4,"Unknown", IF($K113=1, $F113*0.33, IF($K113=2, $F113*0.5+$G113*0.2, SUM(F113:G113)))), 0),"Not required") -> 0 | P113: 0 | Q113: 0 | R113: 2 | S113: 0 | T113: T3 (ALB/MBD) | U113: T3 (ALB/MBD) | V113: T3 | W113: T3 | Y113: 49722 | Z113: BUSHENYI | AA113: TRUE | AC113: 308647 | AD113: =_xlfn.XLOOKUP($Y113,[2]COUNTRY_INFO!$Y$9:$Y$143,[2]COUNTRY_INFO!D$9:D$143) -> 290377 | AE113: 3.185858384 | AG113: =_xlfn.XLOOKUP($Y113,[2]COUNTRY_INFO!$Y$9:$Y$143,[2]COUNTRY_INFO!H$9:H$143) -> 0 | AH113: =_xlfn.XLOOKUP($Y113,[2]COUNTRY_INFO!$Y$9:$Y$143,[2]COUNTRY_INFO!I$9:I$143) -> 99 | AI113: =_xlfn.XLOOKUP($Y113,[2]COUNTRY_INFO!$Y$9:$Y$143,[2]COUNTRY_INFO!J$9:J$143) -> 3 | AJ113: =_xlfn.XLOOKUP($Y113,[2]COUNTRY_INFO!$Y$9:$Y$143,[2]COUNTRY_INFO!K$9:K$143) -> 0 | AK113: TRUE | AL113: TRUE | AM113: TRUE | AN113: TRUE | AP113: ='MDA3'!Q113 -> 0 | AQ113: ='T1'!M113 -> 0 | AR113: =T3_R1!L113 -> 100098 | AS113: =T3_R2!L113 -> 79626
A114: =IF(INTRO!$E$34<>0,INTRO!$E$34,"") -> Uganda | B114: WESTERN | C114: HOIMA | D114: 392526 | E114: =IF(INTRO!$E$48="","",ROUND($D114*INTRO!$E$48,0)) -> 55739 | F114: =IF(INTRO!$E$49="","",ROUND($D114*INTRO!$E$49,0)) -> 118543 | G114: =IF(INTRO!$E$50="","",ROUND($D114*INTRO!$E$50,0)) -> 204506 | H114: 0 | I114: 99 | J114: 3 | K114: 3 | L114: 0 | M114: Stopped | N114: =IF(INTRO!$E$42="Endemic", IF(AND($J114>1,$J114<5), IF($J114=4, "Unknown", E114+F114), 0),"Not required") -> 174282 | O114: =IF([1]INTRO!$E$43="Endemic", IF(AND($K114>0,$K114<5), IF($K114=4,"Unknown", IF($K114=1, $F114*0.33, IF($K114=2, $F114*0.5+$G114*0.2, SUM(F114:G114)))), 0),"Not required") -> 323049 | P114: 0 | Q114: 0 | R114: 2 | S114: 1 | T114: T3 (ALB/MBD) | U114: T1 (PZQ+ALB/MBD) | V114: T1 | W114: T3 | Y114: 49736 | Z114: HOIMA | AA114: TRUE | AC114: 404341 | AD114: =_xlfn.XLOOKUP($Y114,[2]COUNTRY_INFO!$Y$9:$Y$143,[2]COUNTRY_INFO!D$9:D$143) -> 380406 | AE114: 3.18606962 | AG114: =_xlfn.XLOOKUP($Y114,[2]COUNTRY_INFO!$Y$9:$Y$143,[2]COUNTRY_INFO!H$9:H$143) -> 0 | AH114: =_xlfn.XLOOKUP($Y114,[2]COUNTRY_INFO!$Y$9:$Y$143,[2]COUNTRY_INFO!I$9:I$143) -> 99 | AI114: =_xlfn.XLOOKUP($Y114,[2]COUNTRY_INFO!$Y$9:$Y$143,[2]COUNTRY_INFO!J$9:J$143) -> 3 | AJ114: =_xlfn.XLOOKUP($Y114,[2]COUNTRY_INFO!$Y$9:$Y$143,[2]COUNTRY_INFO!K$9:K$143) -> 3 | AK114: TRUE | AL114: TRUE | AM114: TRUE | AN114: TRUE | AP114: ='MDA3'!Q114 -> 0 | AQ114: ='T1'!M114 -> 43162 | AR114: =T3_R1!L114 -> 107913 | AS114: =T3_R2!L114 -> 115761 | AU114: =(AQ114+AR114)/F114*100 -> 127.4432063
A115: =IF(INTRO!$E$34<>0,INTRO!$E$34,"") -> Uganda | B115: WESTERN | C115: IBANDA | D115: 315476 | E115: =IF(INTRO!$E$48="","",ROUND($D115*INTRO!$E$48,0)) -> 44798 | F115: =IF(INTRO!$E$49="","",ROUND($D115*INTRO!$E$49,0)) -> 95274 | G115: =IF(INTRO!$E$50="","",ROUND($D115*INTRO!$E$50,0)) -> 164363 | H115: 0 | I115: 99 | J115: 3 | K115: 1 | L115: 0 | M115: Stopped | N115: =IF(INTRO!$E$42="Endemic", IF(AND($J115>1,$J115<5), IF($J115=4, "Unknown", E115+F115), 0),"Not required") -> 140072 | O115: =IF([1]INTRO!$E$43="Endemic", IF(AND($K115>0,$K115<5), IF($K115=4,"Unknown", IF($K115=1, $F115*0.33, IF($K115=2, $F115*0.5+$G115*0.2, SUM(F115:G115)))), 0),"Not required") -> 31440.42 | P115: 0 | Q115: 0 | R115: 2 | S115: 1 | T115: T3 (ALB/MBD) | U115: T1 (PZQ+ALB/MBD) | V115: T1 | W115: T3 | Y115: 49737 | Z115: IBANDA | AA115: TRUE | AC115: 324972 | AD115: =_xlfn.XLOOKUP($Y115,[2]COUNTRY_INFO!$Y$9:$Y$143,[2]COUNTRY_INFO!D$9:D$143) -> 305735 | AE115: 3.186092531 | AG115: =_xlfn.XLOOKUP($Y115,[2]COUNTRY_INFO!$Y$9:$Y$143,[2]COUNTRY_INFO!H$9:H$143) -> 0 | AH115: =_xlfn.XLOOKUP($Y115,[2]COUNTRY_INFO!$Y$9:$Y$143,[2]COUNTRY_INFO!I$9:I$143) -> 99 | AI115: =_xlfn.XLOOKUP($Y115,[2]COUNTRY_INFO!$Y$9:$Y$143,[2]COUNTRY_INFO!J$9:J$143) -> 3 | AJ115: =_xlfn.XLOOKUP($Y115,[2]COUNTRY_INFO!$Y$9:$Y$143,[2]COUNTRY_INFO!K$9:K$143) -> 1 | AK115: TRUE | AL115: TRUE | AM115: TRUE | AN115: TRUE | AP115: ='MDA3'!Q115 -> 0 | AQ115: ='T1'!M115 -> 10024 | AR115: =T3_R1!L115 -> 135602 | AS115: =T3_R2!L115 -> 118409 | AU115: 152.8496757
A116: =IF(INTRO!$E$34<>0,INTRO!$E$34,"") -> Uganda | B116: WESTERN | C116: ISINGIRO | D116: 625808 | E116: =IF(INTRO!$E$48="","",ROUND($D116*INTRO!$E$48,0)) -> 88865 | F116: =IF(INTRO!$E$49="","",ROUND($D116*INTRO!$E$49,0)) -> 188994 | G116: =IF(INTRO!$E$50="","",ROUND($D116*INTRO!$E$50,0)) -> 326046 | H116: 0 | I116: 0 | J116: 3 | K116: 1 | L116: 0 | M116: 0 | N116: =IF(INTRO!$E$42="Endemic", IF(AND($J116>1,$J116<5), IF($J116=4, "Unknown", E116+F116), 0),"Not required") -> 277859 | O116: =IF([1]INTRO!$E$43="Endemic", IF(AND($K116>0,$K116<5), IF($K116=4,"Unknown", IF($K116=1, $F116*0.33, IF($K116=2, $F116*0.5+$G116*0.2, SUM(F116:G116)))), 0),"Not required") -> 62368.02 | P116: 0 | Q116: 0 | R116: 2 | S116: 1 | T116: T3 (ALB/MBD) | U116: T1 (PZQ+ALB/MBD) | V116: T1 | W116: T3 | Y116: 49739 | Z116: ISINGIRO | AA116: TRUE | AC116: 644645 | AD116: =_xlfn.XLOOKUP($Y116,[2]COUNTRY_INFO!$Y$9:$Y$143,[2]COUNTRY_INFO!D$9:D$143) -> 606485 | AE116: 3.186063959 | AG116: =_xlfn.XLOOKUP($Y116,[2]COUNTRY_INFO!$Y$9:$Y$143,[2]COUNTRY_INFO!H$9:H$143) -> 0 | AH116: =_xlfn.XLOOKUP($Y116,[2]COUNTRY_INFO!$Y$9:$Y$143,[2]COUNTRY_INFO!I$9:I$143) -> 0 | AI116: =_xlfn.XLOOKUP($Y116,[2]COUNTRY_INFO!$Y$9:$Y$143,[2]COUNTRY_INFO!J$9:J$143) -> 3 | AJ116: =_xlfn.XLOOKUP($Y116,[2]COUNTRY_INFO!$Y$9:$Y$143,[2]COUNTRY_INFO!K$9:K$143) -> 1 | AK116: TRUE | AL116: TRUE | AM116: TRUE | AN116: TRUE | AP116: ='MDA3'!Q116 -> 0 | AQ116: ='T1'!M116 -> 35742 | AR116: =T3_R1!L116 -> 133684 | AS116: =T3_R2!L116 -> 78472 | AU116: 89.64623216
A117: =IF(INTRO!$E$34<>0,INTRO!$E$34,"") -> Uganda | B117: WESTERN | C117: KABALE | D117: 295662 | E117: =IF(INTRO!$E$48="","",ROUND($D117*INTRO!$E$48,0)) -> 41984 | F117: =IF(INTRO!$E$49="","",ROUND($D117*INTRO!$E$49,0)) -> 89290 | G117: =IF(INTRO!$E$50="","",ROUND($D117*INTRO!$E$50,0)) -> 154040 | H117: 0 | I117: 0 | J117: 3 | K117: 0 | L117: 0 | M117: 0 | N117: =IF(INTRO!$E$42="Endemic", IF(AND($J117>1,$J117<5), IF($J117=4, "Unknown", E117+F117), 0),"Not required") -> 131274 | O117: =IF([1]INTRO!$E$43="Endemic", IF(AND($K117>0,$K117<5), IF($K117=4,"Unknown", IF($K117=1, $F117*0.33, IF($K117=2, $F117*0.5+$G117*0.2, SUM(F117:G117)))), 0),"Not required") -> 0 | P117: 0 | Q117: 0 | R117: 2 | S117: 0 | T117: T3 (ALB/MBD) | U117: T3 (ALB/MBD) | V117: T3 | W117: T3 | Y117: 49741 | Z117: KABALE | AA117: TRUE | AC117: 304561 | AD117: =_xlfn.XLOOKUP($Y117,[2]COUNTRY_INFO!$Y$9:$Y$143,[2]COUNTRY_INFO!D$9:D$143) -> 286533 | AE117: 3.186020458 | AG117: =_xlfn.XLOOKUP($Y117,[2]COUNTRY_INFO!$Y$9:$Y$143,[2]COUNTRY_INFO!H$9:H$143) -> 0 | AH117: =_xlfn.XLOOKUP($Y117,[2]COUNTRY_INFO!$Y$9:$Y$143,[2]COUNTRY_INFO!I$9:I$143) -> 0 | AI117: =_xlfn.XLOOKUP($Y117,[2]COUNTRY_INFO!$Y$9:$Y$143,[2]COUNTRY_INFO!J$9:J$143) -> 3 | AJ117: =_xlfn.XLOOKUP($Y117,[2]COUNTRY_INFO!$Y$9:$Y$143,[2]COUNTRY_INFO!K$9:K$143) -> 0 | AK117: TRUE | AL117: TRUE | AM117: TRUE | AN117: TRUE | AP117: ='MDA3'!Q117 -> 0 | AQ117: ='T1'!M117 -> 0 | AR117: =T3_R1!L117 -> 128276 | AS117: =T3_R2!L117 -> 85975
A118: =IF(INTRO!$E$34<>0,INTRO!$E$34,"") -> Uganda | B118: WESTERN | C118: KABAROLE | D118: 385216 | E118: =IF(INTRO!$E$48="","",ROUND($D118*INTRO!$E$48,0)) -> 54701 | F118: =IF(INTRO!$E$49="","",ROUND($D118*INTRO!$E$49,0)) -> 116335 | G118: =IF(INTRO!$E$50="","",ROUND($D118*INTRO!$E$50,0)) -> 200698 | H118: 0 | I118: 99 | J118: 3 | K118: 3 | L118: 0 | M118: Stopped | N118: =IF(INTRO!$E$42="Endemic", IF(AND($J118>1,$J118<5), IF($J118=4, "Unknown", E118+F118), 0),"Not required") -> 171036 | O118: =IF([1]INTRO!$E$43="Endemic", IF(AND($K118>0,$K118<5), IF($K118=4,"Unknown", IF($K118=1, $F118*0.33, IF($K118=2, $F118*0.5+$G118*0.2, SUM(F118:G118)))), 0),"Not required") -> 317033 | P118: 0 | Q118: 0 | R118: 2 | S118: 1 | T118: T3 (ALB/MBD) | U118: T1 (PZQ+ALB/MBD) | V118: T1 | W118: T3 | Y118: 49742 | Z118: KABAROLE | AA118: TRUE | AC118: 396811 | AD118: =_xlfn.XLOOKUP($Y118,[2]COUNTRY_INFO!$Y$9:$Y$143,[2]COUNTRY_INFO!D$9:D$143) -> 373322 | AE118: 3.185989575 | AG118: =_xlfn.XLOOKUP($Y118,[2]COUNTRY_INFO!$Y$9:$Y$143,[2]COUNTRY_INFO!H$9:H$143) -> 0 | AH118: =_xlfn.XLOOKUP($Y118,[2]COUNTRY_INFO!$Y$9:$Y$143,[2]COUNTRY_INFO!I$9:I$143) -> 99 | AI118: =_xlfn.XLOOKUP($Y118,[2]COUNTRY_INFO!$Y$9:$Y$143,[2]COUNTRY_INFO!J$9:J$143) -> 3 | AJ118: =_xlfn.XLOOKUP($Y118,[2]COUNTRY_INFO!$Y$9:$Y$143,[2]COUNTRY_INFO!K$9:K$143) -> 3 | AK118: TRUE | AL118: TRUE | AM118: TRUE | AN118: TRUE | AP118: ='MDA3'!Q118 -> 0 | AQ118: ='T1'!M118 -> 19098 | AR118: =T3_R1!L118 -> 136548 | AS118: =T3_R2!L118 -> 172899 | AU118: =(AQ118+AR118)/F118*100 -> 133.7912064
A119: =IF(INTRO!$E$34<>0,INTRO!$E$34,"") -> Uganda | B119: WESTERN | C119: KAGADI | D119: 448655 | E119: =IF(INTRO!$E$48="","",ROUND($D119*INTRO!$E$48,0)) -> 63709 | F119: =IF(INTRO!$E$49="","",ROUND($D119*INTRO!$E$49,0)) -> 135494 | G119: =IF(INTRO!$E$50="","",ROUND($D119*INTRO!$E$50,0)) -> 233749 | H119: 0 | I119: 99 | J119: 3 | K119: 3 | L119: 0 | M119: Stopped | N119: =IF(INTRO!$E$42="Endemic", IF(AND($J119>1,$J119<5), IF($J119=4, "Unknown", E119+F119), 0),"Not required") -> 199203 | O119: =IF([1]INTRO!$E$43="Endemic", IF(AND($K119>0,$K119<5), IF($K119=4,"Unknown", IF($K119=1, $F119*0.33, IF($K119=2, $F119*0.5+$G119*0.2, SUM(F119:G119)))), 0),"Not required") -> 369243 | P119: 0 | Q119: 0 | R119: 2 | S119: 1 | T119: T3 (ALB/MBD) | U119: T1 (PZQ+ALB/MBD) | V119: T1 | W119: T3 | Y119: 49752 | Z119: KAGADI | AA119: TRUE | AC119: 462160 | AD119: =_xlfn.XLOOKUP($Y119,[2]COUNTRY_INFO!$Y$9:$Y$143,[2]COUNTRY_INFO!D$9:D$143) -> 434802 | AE119: 3.186047902 | AG119: =_xlfn.XLOOKUP($Y119,[2]COUNTRY_INFO!$Y$9:$Y$143,[2]COUNTRY_INFO!H$9:H$143) -> 0 | AH119: =_xlfn.XLOOKUP($Y119,[2]COUNTRY_INFO!$Y$9:$Y$143,[2]COUNTRY_INFO!I$9:I$143) -> 99 | AI119: =_xlfn.XLOOKUP($Y119,[2]COUNTRY_INFO!$Y$9:$Y$143,[2]COUNTRY_INFO!J$9:J$143) -> 3 | AJ119: =_xlfn.XLOOKUP($Y119,[2]COUNTRY_INFO!$Y$9:$Y$143,[2]COUNTRY_INFO!K$9:K$143) -> 3 | AK119: TRUE | AL119: TRUE | AM119: TRUE | AN119: TRUE | AP119: ='MDA3'!Q119 -> 0 | AQ119: ='T1'!M119 -> 77410 | AR119: =T3_R1!L119 -> 107477 | AS119: =T3_R2!L119 -> 118808 | AU119: 136.4540127
A120: =IF(INTRO!$E$34<>0,INTRO!$E$34,"") -> Uganda | B120: WESTERN | C120: KAKUMIRO | D120: 376881 | E120: =IF(INTRO!$E$48="","",ROUND($D120*INTRO!$E$48,0)) -> 53517 | F120: =IF(INTRO!$E$49="","",ROUND($D120*INTRO!$E$49,0)) -> 113818 | G120: =IF(INTRO!$E$50="","",ROUND($D120*INTRO!$E$50,0)) -> 196355 | H120: 0 | I120: 0 | J120: 3 | K120: 0 | L120: 0 | M120: 0 | N120: =IF(INTRO!$E$42="Endemic", IF(AND($J120>1,$J120<5), IF($J120=4, "Unknown", E120+F120), 0),"Not required") -> 167335 | O120: =IF([1]INTRO!$E$43="Endemic", IF(AND($K120>0,$K120<5), IF($K120=4,"Unknown", IF($K120=1, $F120*0.33, IF($K120=2, $F120*0.5+$G120*0.2, SUM(F120:G120)))), 0),"Not required") -> 0 | P120: 0 | Q120: 0 | R120: 2 | S120: 0 | T120: T3 (ALB/MBD) | U120: T3 (ALB/MBD) | V120: T3 | W120: T3 | Y120: 49819 | Z120: KAKUMIRO | AA120: TRUE | AC120: 388225 | AD120: =_xlfn.XLOOKUP($Y120,[2]COUNTRY_INFO!$Y$9:$Y$143,[2]COUNTRY_INFO!D$9:D$143) -> 365244 | AE120: 3.186089299 | AG120: =_xlfn.XLOOKUP($Y120,[2]COUNTRY_INFO!$Y$9:$Y$143,[2]COUNTRY_INFO!H$9:H$143) -> 0 | AH120: =_xlfn.XLOOKUP($Y120,[2]COUNTRY_INFO!$Y$9:$Y$143,[2]COUNTRY_INFO!I$9:I$143) -> 0 | AI120: =_xlfn.XLOOKUP($Y120,[2]COUNTRY_INFO!$Y$9:$Y$143,[2]COUNTRY_INFO!J$9:J$143) -> 3 | AJ120: =_xlfn.XLOOKUP($Y120,[2]COUNTRY_INFO!$Y$9:$Y$143,[2]COUNTRY_INFO!K$9:K$143) -> 0 | AK120: TRUE | AL120: TRUE | AM120: TRUE | AN120: TRUE | AP120: ='MDA3'!Q120 -> 0 | AQ120: ='T1'!M120 -> 0 | AR120: =T3_R1!L120 -> 128686 | AS120: =T3_R2!L120 -> 122934
A121: =IF(INTRO!$E$34<>0,INTRO!$E$34,"") -> Uganda | B121: WESTERN | C121: KAMWENGE | D121: 350827 | E121: =IF(INTRO!$E$48="","",ROUND($D121*INTRO!$E$48,0)) -> 49817 | F121: =IF(INTRO!$E$49="","",ROUND($D121*INTRO!$E$49,0)) -> 105950 | G121: =IF(INTRO!$E$50="","",ROUND($D121*INTRO!$E$50,0)) -> 182781 | H121: 0 | I121: 99 | J121: 3 | K121: 0 | L121: 0 | M121: Stopped | N121: =IF(INTRO!$E$42="Endemic", IF(AND($J121>1,$J121<5), IF($J121=4, "Unknown", E121+F121), 0),"Not required") -> 155767 | O121: =IF([1]INTRO!$E$43="Endemic", IF(AND($K121>0,$K121<5), IF($K121=4,"Unknown", IF($K121=1, $F121*0.33, IF($K121=2, $F121*0.5+$G121*0.2, SUM(F121:G121)))), 0),"Not required") -> 0 | P121: 0 | Q121: 0 | R121: 2 | S121: 0 | T121: T3 (ALB/MBD) | U121: T3 (ALB/MBD) | V121: T3 | W121: T3 | Y121: 49748 | Z121: KAMWENGE | AA121: TRUE | AC121: 361387 | AD121: =_xlfn.XLOOKUP($Y121,[2]COUNTRY_INFO!$Y$9:$Y$143,[2]COUNTRY_INFO!D$9:D$143) -> 339995 | AE121: 3.185929205 | AG121: =_xlfn.XLOOKUP($Y121,[2]COUNTRY_INFO!$Y$9:$Y$143,[2]COUNTRY_INFO!H$9:H$143) -> 0 | AH121: =_xlfn.XLOOKUP($Y121,[2]COUNTRY_INFO!$Y$9:$Y$143,[2]COUNTRY_INFO!I$9:I$143) -> 99 | AI121: =_xlfn.XLOOKUP($Y121,[2]COUNTRY_INFO!$Y$9:$Y$143,[2]COUNTRY_INFO!J$9:J$143) -> 3 | AJ121: =_xlfn.XLOOKUP($Y121,[2]COUNTRY_INFO!$Y$9:$Y$143,[2]COUNTRY_INFO!K$9:K$143) -> 0 | AK121: TRUE | AL121: TRUE | AM121: TRUE | AN121: TRUE | AP121: ='MDA3'!Q121 -> 0 | AQ121: ='T1'!M121 -> 0 | AR121: =T3_R1!L121 -> 162989 | AS121: =T3_R2!L121 -> 182102
A122: =IF(INTRO!$E$34<>0,INTRO!$E$34,"") -> Uganda | B122: WESTERN | C122: KANUNGU | D122: 320555 | E122: =IF(INTRO!$E$48="","",ROUND($D122*INTRO!$E$48,0)) -> 45519 | F122: =IF(INTRO!$E$49="","",ROUND($D122*INTRO!$E$49,0)) -> 96808 | G122: =IF(INTRO!$E$50="","",ROUND($D122*INTRO!$E$50,0)) -> 167009 | H122: 0 | I122: 99 | J122: 3 | K122: 0 | L122: 0 | M122: Stopped | N122: =IF(INTRO!$E$42="Endemic", IF(AND($J122>1,$J122<5), IF($J122=4, "Unknown", E122+F122), 0),"Not required") -> 142327 | O122: =IF([1]INTRO!$E$43="Endemic", IF(AND($K122>0,$K122<5), IF($K122=4,"Unknown", IF($K122=1, $F122*0.33, IF($K122=2, $F122*0.5+$G122*0.2, SUM(F122:G122)))), 0),"Not required") -> 0 | P122: 0 | Q122: 0 | R122: 2 | S122: 0 | T122: T3 (ALB/MBD) | U122: T3 (ALB/MBD) | V122: T3 | W122: T3 | Y122: 49749 | Z122: KANUNGU | AA122: TRUE | AC122: 330204 | AD122: =_xlfn.XLOOKUP($Y122,[2]COUNTRY_INFO!$Y$9:$Y$143,[2]COUNTRY_INFO!D$9:D$143) -> 310657 | AE122: 3.186150642 | AG122: =_xlfn.XLOOKUP($Y122,[2]COUNTRY_INFO!$Y$9:$Y$143,[2]COUNTRY_INFO!H$9:H$143) -> 0 | AH122: =_xlfn.XLOOKUP($Y122,[2]COUNTRY_INFO!$Y$9:$Y$143,[2]COUNTRY_INFO!I$9:I$143) -> 99 | AI122: =_xlfn.XLOOKUP($Y122,[2]COUNTRY_INFO!$Y$9:$Y$143,[2]COUNTRY_INFO!J$9:J$143) -> 3 | AJ122: =_xlfn.XLOOKUP($Y122,[2]COUNTRY_INFO!$Y$9:$Y$143,[2]COUNTRY_INFO!K$9:K$143) -> 0 | AK122: TRUE | AL122: TRUE | AM122: TRUE | AN122: TRUE | AP122: ='MDA3'!Q122 -> 0 | AQ122: ='T1'!M122 -> 0 | AR122: =T3_R1!L122 -> 107662 | AS122: =T3_R2!L122 -> 98523
A123: =IF(INTRO!$E$34<>0,INTRO!$E$34,"") -> Uganda | B123: WESTERN | C123: KASESE | D123: 892735 | E123: =IF(INTRO!$E$48="","",ROUND($D123*INTRO!$E$48,0)) -> 126768 | F123: =IF(INTRO!$E$49="","",ROUND($D123*INTRO!$E$49,0)) -> 269606 | G123: =IF(INTRO!$E$50="","",ROUND($D123*INTRO!$E$50,0)) -> 465115 | H123: 0 | I123: 1 | J123: 3 | K123: 3 | L123: 0 | M123: 128614 | N123: =IF(INTRO!$E$42="Endemic", IF(AND($J123>1,$J123<5), IF($J123=4, "Unknown", E123+F123), 0),"Not required") -> 396374 | O123: =IF([1]INTRO!$E$43="Endemic", IF(AND($K123>0,$K123<5), IF($K123=4,"Unknown", IF($K123=1, $F123*0.33, IF($K123=2, $F123*0.5+$G123*0.2, SUM(F123:G123)))), 0),"Not required") -> 734721 | P123: 0 | Q123: 2 | R123: 2 | S123: 1 | T123: MDA3 (IVM) | U123: T1 (PZQ+ALB/MBD) | V123: MDA 1 | W123: T1 | Y123: 49750 | Z123: KASESE | AA123: TRUE | AC123: 919606 | AD123: =_xlfn.XLOOKUP($Y123,[2]COUNTRY_INFO!$Y$9:$Y$143,[2]COUNTRY_INFO!D$9:D$143) -> 865171 | AE123: 3.18595977 | AG123: =_xlfn.XLOOKUP($Y123,[2]COUNTRY_INFO!$Y$9:$Y$143,[2]COUNTRY_INFO!H$9:H$143) -> 0 | AH123: =_xlfn.XLOOKUP($Y123,[2]COUNTRY_INFO!$Y$9:$Y$143,[2]COUNTRY_INFO!I$9:I$143) -> 1 | AI123: =_xlfn.XLOOKUP($Y123,[2]COUNTRY_INFO!$Y$9:$Y$143,[2]COUNTRY_INFO!J$9:J$143) -> 3 | AJ123: =_xlfn.XLOOKUP($Y123,[2]COUNTRY_INFO!$Y$9:$Y$143,[2]COUNTRY_INFO!K$9:K$143) -> 3 | AK123: TRUE | AL123: TRUE | AM123: TRUE | AN123: TRUE | AP123: ='MDA3'!Q123 -> 123965 | AQ123: ='T1'!M123 -> 4038 | AR123: =T3_R1!L123 -> 264679 | AS123: =T3_R2!L123 -> 255378 | AU123: =(AQ123+AR123)/F123*100 -> 99.67025956
A124: =IF(INTRO!$E$34<>0,INTRO!$E$34,"") -> Uganda | B124: WESTERN | C124: KAZO | D124: 224902 | E124: =IF(INTRO!$E$48="","",ROUND($D124*INTRO!$E$48,0)) -> 31936 | F124: =IF(INTRO!$E$49="","",ROUND($D124*INTRO!$E$49,0)) -> 67920 | G124: =IF(INTRO!$E$50="","",ROUND($D124*INTRO!$E$50,0)) -> 117174 | H124: 0 | I124: 0 | J124: 3 | K124: 1 | L124: 0 | M124: 0 | N124: =IF(INTRO!$E$42="Endemic", IF(AND($J124>1,$J124<5), IF($J124=4, "Unknown", E124+F124), 0),"Not required") -> 99856 | O124: =IF([1]INTRO!$E$43="Endemic", IF(AND($K124>0,$K124<5), IF($K124=4,"Unknown", IF($K124=1, $F124*0.33, IF($K124=2, $F124*0.5+$G124*0.2, SUM(F124:G124)))), 0),"Not required") -> 22413.6 | P124: 0 | Q124: 0 | R124: 2 | S124: 1 | T124: T3 (ALB/MBD) | U124: T1 (PZQ+ALB/MBD) | V124: T1 | W124: T3 | Y124: 49841 | Z124: KAZO | AA124: TRUE | AC124: 231672 | AD124: =_xlfn.XLOOKUP($Y124,[2]COUNTRY_INFO!$Y$9:$Y$143,[2]COUNTRY_INFO!D$9:D$143) -> 217958 | AE124: 3.185934905 | AG124: =_xlfn.XLOOKUP($Y124,[2]COUNTRY_INFO!$Y$9:$Y$143,[2]COUNTRY_INFO!H$9:H$143) -> 0 | AH124: =_xlfn.XLOOKUP($Y124,[2]COUNTRY_INFO!$Y$9:$Y$143,[2]COUNTRY_INFO!I$9:I$143) -> 0 | AI124: =_xlfn.XLOOKUP($Y124,[2]COUNTRY_INFO!$Y$9:$Y$143,[2]COUNTRY_INFO!J$9:J$143) -> 3 | AJ124: =_xlfn.XLOOKUP($Y124,[2]COUNTRY_INFO!$Y$9:$Y$143,[2]COUNTRY_INFO!K$9:K$143) -> 1 | AK124: TRUE | AL124: TRUE | AM124: TRUE | AN124: TRUE | AP124: ='MDA3'!Q124 -> 0 | AQ124: ='T1'!M124 -> 27503 | AR124: =T3_R1!L124 -> 98626 | AS124: =T3_R2!L124 -> 113367 | AU124: 185.7022968
A125: =IF(INTRO!$E$34<>0,INTRO!$E$34,"") -> Uganda | B125: WESTERN | C125: KIBAALE | D125: 177430 | E125: =IF(INTRO!$E$48="","",ROUND($D125*INTRO!$E$48,0)) -> 25195 | F125: =IF(INTRO!$E$49="","",ROUND($D125*INTRO!$E$49,0)) -> 53584 | G125: =IF(INTRO!$E$50="","",ROUND($D125*INTRO!$E$50,0)) -> 92441 | H125: 0 | I125: 99 | J125: 3 | K125: 0 | L125: 0 | M125: Stopped | N125: =IF(INTRO!$E$42="Endemic", IF(AND($J125>1,$J125<5), IF($J125=4, "Unknown", E125+F125), 0),"Not required") -> 78779 | O125: =IF([1]INTRO!$E$43="Endemic", IF(AND($K125>0,$K125<5), IF($K125=4,"Unknown", IF($K125=1, $F125*0.33, IF($K125=2, $F125*0.5+$G125*0.2, SUM(F125:G125)))), 0),"Not required") -> 0 | P125: 0 | Q125: 0 | R125: 2 | S125: 0 | T125: T3 (ALB/MBD) | U125: T3 (ALB/MBD) | V125: T3 | W125: T3 | Y125: 49820 | Z125: KIBAALE | AA125: TRUE | AC125: 182771 | AD125: =_xlfn.XLOOKUP($Y125,[2]COUNTRY_INFO!$Y$9:$Y$143,[2]COUNTRY_INFO!D$9:D$143) -> 171952 | AE125: 3.185772774 | AG125: =_xlfn.XLOOKUP($Y125,[2]COUNTRY_INFO!$Y$9:$Y$143,[2]COUNTRY_INFO!H$9:H$143) -> 0 | AH125: =_xlfn.XLOOKUP($Y125,[2]COUNTRY_INFO!$Y$9:$Y$143,[2]COUNTRY_INFO!I$9:I$143) -> 99 | AI125: =_xlfn.XLOOKUP($Y125,[2]COUNTRY_INFO!$Y$9:$Y$143,[2]COUNTRY_INFO!J$9:J$143) -> 3 | AJ125: =_xlfn.XLOOKUP($Y125,[2]COUNTRY_INFO!$Y$9:$Y$143,[2]COUNTRY_INFO!K$9:K$143) -> 0 | AK125: TRUE | AL125: TRUE | AM125: TRUE | AN125: TRUE | AP125: ='MDA3'!Q125 -> 0 | AQ125: ='T1'!M125 -> 0 | AR125: =T3_R1!L125 -> 48495 | AS125: =T3_R2!L125 -> 42017
A126: =IF(INTRO!$E$34<>0,INTRO!$E$34,"") -> Uganda | B126: WESTERN | C126: KIKUUBE | D126: 337276 | E126: =IF(INTRO!$E$48="","",ROUND($D126*INTRO!$E$48,0)) -> 47893 | F126: =IF(INTRO!$E$49="","",ROUND($D126*INTRO!$E$49,0)) -> 101857 | G126: =IF(INTRO!$E$50="","",ROUND($D126*INTRO!$E$50,0)) -> 175721 | H126: 0 | I126: 99 | J126: 3 | K126: 3 | L126: 0 | M126: Stopped | N126: =IF(INTRO!$E$42="Endemic", IF(AND($J126>1,$J126<5), IF($J126=4, "Unknown", E126+F126), 0),"Not required") -> 149750 | O126: =IF([1]INTRO!$E$43="Endemic", IF(AND($K126>0,$K126<5), IF($K126=4,"Unknown", IF($K126=1, $F126*0.33, IF($K126=2, $F126*0.5+$G126*0.2, SUM(F126:G126)))), 0),"Not required") -> 277578 | P126: 0 | Q126: 0 | R126: 2 | S126: 1 | T126: T3 (ALB/MBD) | U126: T1 (PZQ+ALB/MBD) | V126: T1 | W126: T3 | Y126: 49839 | Z126: KIKUUBE | AA126: TRUE | AC126: 347428 | AD126: =_xlfn.XLOOKUP($Y126,[2]COUNTRY_INFO!$Y$9:$Y$143,[2]COUNTRY_INFO!D$9:D$143) -> 326862 | AE126: 3.186054053 | AG126: =_xlfn.XLOOKUP($Y126,[2]COUNTRY_INFO!$Y$9:$Y$143,[2]COUNTRY_INFO!H$9:H$143) -> 0 | AH126: =_xlfn.XLOOKUP($Y126,[2]COUNTRY_INFO!$Y$9:$Y$143,[2]COUNTRY_INFO!I$9:I$143) -> 99 | AI126: =_xlfn.XLOOKUP($Y126,[2]COUNTRY_INFO!$Y$9:$Y$143,[2]COUNTRY_INFO!J$9:J$143) -> 3 | AJ126: =_xlfn.XLOOKUP($Y126,[2]COUNTRY_INFO!$Y$9:$Y$143,[2]COUNTRY_INFO!K$9:K$143) -> 3 | AK126: TRUE | AL126: TRUE | AM126: TRUE | AN126: TRUE | AP126: ='MDA3'!Q126 -> 0 | AQ126: ='T1'!M126 -> 105415 | AR126: =T3_R1!L126 -> 76305 | AS126: =T3_R2!L126 -> 128244 | AU126: =(AQ126+AR126)/F126*100 -> 178.4069823
A127: =IF(INTRO!$E$34<>0,INTRO!$E$34,"") -> Uganda | B127: WESTERN | C127: KIRUHURA | D127: 192890 | E127: =IF(INTRO!$E$48="","",ROUND($D127*INTRO!$E$48,0)) -> 27390 | F127: =IF(INTRO!$E$49="","",ROUND($D127*INTRO!$E$49,0)) -> 58253 | G127: =IF(INTRO!$E$50="","",ROUND($D127*INTRO!$E$50,0)) -> 100496 | H127: 0 | I127: 0 | J127: 3 | K127: 1 | L127: 0 | M127: 0 | N127: =IF(INTRO!$E$42="Endemic", IF(AND($J127>1,$J127<5), IF($J127=4, "Unknown", E127+F127), 0),"Not required") -> 85643 | O127: =IF([1]INTRO!$E$43="Endemic", IF(AND($K127>0,$K127<5), IF($K127=4,"Unknown", IF($K127=1, $F127*0.33, IF($K127=2, $F127*0.5+$G127*0.2, SUM(F127:G127)))), 0),"Not required") -> 19223.49 | P127: 0 | Q127: 0 | R127: 2 | S127: 1 | T127: T3 (ALB/MBD) | U127: T1 (PZQ+ALB/MBD) | V127: T1 | W127: T3 | Y127: 49764 | Z127: KIRUHURA | AA127: TRUE | AC127: 198696 | AD127: =_xlfn.XLOOKUP($Y127,[2]COUNTRY_INFO!$Y$9:$Y$143,[2]COUNTRY_INFO!D$9:D$143) -> 186934 | AE127: 3.186151262 | AG127: =_xlfn.XLOOKUP($Y127,[2]COUNTRY_INFO!$Y$9:$Y$143,[2]COUNTRY_INFO!H$9:H$143) -> 0 | AH127: =_xlfn.XLOOKUP($Y127,[2]COUNTRY_INFO!$Y$9:$Y$143,[2]COUNTRY_INFO!I$9:I$143) -> 0 | AI127: =_xlfn.XLOOKUP($Y127,[2]COUNTRY_INFO!$Y$9:$Y$143,[2]COUNTRY_INFO!J$9:J$143) -> 3 | AJ127: =_xlfn.XLOOKUP($Y127,[2]COUNTRY_INFO!$Y$9:$Y$143,[2]COUNTRY_INFO!K$9:K$143) -> 1 | AK127: TRUE | AL127: TRUE | AM127: TRUE | AN127: TRUE | AP127: ='MDA3'!Q127 -> 0 | AQ127: ='T1'!M127 -> 15847 | AR127: =T3_R1!L127 -> 82724 | AS127: =T3_R2!L127 -> 97070 | AU127: 169.2118861
A128: =IF(INTRO!$E$34<>0,INTRO!$E$34,"") -> Uganda | B128: WESTERN | C128: KIRYANDONGO | D128: 341044 | E128: =IF(INTRO!$E$48="","",ROUND($D128*INTRO!$E$48,0)) -> 48428 | F128: =IF(INTRO!$E$49="","",ROUND($D128*INTRO!$E$49,0)) -> 102995 | G128: =IF(INTRO!$E$50="","",ROUND($D128*INTRO!$E$50,0)) -> 177684 | H128: 0 | I128: 0 | J128: 3 | K128: 3 | L128: 0 | M128: 0 | N128: =IF(INTRO!$E$42="Endemic", IF(AND($J128>1,$J128<5), IF($J128=4, "Unknown", E128+F128), 0),"Not required") -> 151423 | O128: =IF([1]INTRO!$E$43="Endemic", IF(AND($K128>0,$K128<5), IF($K128=4,"Unknown", IF($K128=1, $F128*0.33, IF($K128=2, $F128*0.5+$G128*0.2, SUM(F128:G128)))), 0),"Not required") -> 280679 | P128: 0 | Q128: 0 | R128: 2 | S128: 1 | T128: T3 (ALB/MBD) | U128: T1 (PZQ+ALB/MBD) | V128: T1 | W128: T3 | Y128: 49765 | Z128: KIRYANDONGO | AA128: TRUE | AC128: 351309 | AD128: =_xlfn.XLOOKUP($Y128,[2]COUNTRY_INFO!$Y$9:$Y$143,[2]COUNTRY_INFO!D$9:D$143) -> 330514 | AE128: 3.185946738 | AG128: =_xlfn.XLOOKUP($Y128,[2]COUNTRY_INFO!$Y$9:$Y$143,[2]COUNTRY_INFO!H$9:H$143) -> 0 | AH128: =_xlfn.XLOOKUP($Y128,[2]COUNTRY_INFO!$Y$9:$Y$143,[2]COUNTRY_INFO!I$9:I$143) -> 0 | AI128: =_xlfn.XLOOKUP($Y128,[2]COUNTRY_INFO!$Y$9:$Y$143,[2]COUNTRY_INFO!J$9:J$143) -> 3 | AJ128: =_xlfn.XLOOKUP($Y128,[2]COUNTRY_INFO!$Y$9:$Y$143,[2]COUNTRY_INFO!K$9:K$143) -> 3 | AK128: TRUE | AL128: TRUE | AM128: TRUE | AN128: TRUE | AP128: ='MDA3'!Q128 -> 0 | AQ128: ='T1'!M128 -> 49280 | AR128: =T3_R1!L128 -> 111147 | AS128: =T3_R2!L128 -> 115336 | AU128: 155.7619302
A129: =IF(INTRO!$E$34<>0,INTRO!$E$34,"") -> Uganda | B129: WESTERN | C129: KISORO | D129: 365191 | E129: =IF(INTRO!$E$48="","",ROUND($D129*INTRO!$E$48,0)) -> 51857 | F129: =IF(INTRO!$E$49="","",ROUND($D129*INTRO!$E$49,0)) -> 110288 | G129: =IF(INTRO!$E$50="","",ROUND($D129*INTRO!$E$50,0)) -> 190265 | H129: 0 | I129: 99 | J129: 3 | K129: 0 | L129: 0 | M129: Stopped | N129: =IF(INTRO!$E$42="Endemic", IF(AND($J129>1,$J129<5), IF($J129=4, "Unknown", E129+F129), 0),"Not required") -> 162145 | O129: =IF([1]INTRO!$E$43="Endemic", IF(AND($K129>0,$K129<5), IF($K129=4,"Unknown", IF($K129=1, $F129*0.33, IF($K129=2, $F129*0.5+$G129*0.2, SUM(F129:G129)))), 0),"Not required") -> 0 | P129: 0 | Q129: 0 | R129: 2 | S129: 0 | T129: T3 (ALB/MBD) | U129: T3 (ALB/MBD) | V129: T3 | W129: T3 | Y129: 49753 | Z129: KISORO | AA129: TRUE | AC129: 376183 | AD129: =_xlfn.XLOOKUP($Y129,[2]COUNTRY_INFO!$Y$9:$Y$143,[2]COUNTRY_INFO!D$9:D$143) -> 353915 | AE129: 3.186075753 | AG129: =_xlfn.XLOOKUP($Y129,[2]COUNTRY_INFO!$Y$9:$Y$143,[2]COUNTRY_INFO!H$9:H$143) -> 0 | AH129: =_xlfn.XLOOKUP($Y129,[2]COUNTRY_INFO!$Y$9:$Y$143,[2]COUNTRY_INFO!I$9:I$143) -> 99 | AI129: =_xlfn.XLOOKUP($Y129,[2]COUNTRY_INFO!$Y$9:$Y$143,[2]COUNTRY_INFO!J$9:J$143) -> 3 | AJ129: =_xlfn.XLOOKUP($Y129,[2]COUNTRY_INFO!$Y$9:$Y$143,[2]COUNTRY_INFO!K$9:K$143) -> 0 | AK129: TRUE | AL129: TRUE | AM129: TRUE | AN129: TRUE | AP129: ='MDA3'!Q129 -> 0 | AQ129: ='T1'!M129 -> 0 | AR129: =T3_R1!L129 -> 47848 | AS129: =T3_R2!L129 -> 86820
A130: =IF(INTRO!$E$34<>0,INTRO!$E$34,"") -> Uganda | B130: WESTERN | C130: KITAGWENDA | D130: 185139 | E130: =IF(INTRO!$E$48="","",ROUND($D130*INTRO!$E$48,0)) -> 26290 | F130: =IF(INTRO!$E$49="","",ROUND($D130*INTRO!$E$49,0)) -> 55912 | G130: =IF(INTRO!$E$50="","",ROUND($D130*INTRO!$E$50,0)) -> 96457 | H130: 0 | I130: 99 | J130: 3 | K130: 2 | L130: 0 | M130: Stopped | N130: =IF(INTRO!$E$42="Endemic", IF(AND($J130>1,$J130<5), IF($J130=4, "Unknown", E130+F130), 0),"Not required") -> 82202 | O130: =IF([1]INTRO!$E$43="Endemic", IF(AND($K130>0,$K130<5), IF($K130=4,"Unknown", IF($K130=1, $F130*0.33, IF($K130=2, $F130*0.5+$G130*0.2, SUM(F130:G130)))), 0),"Not required") -> 47247.4 | P130: 0 | Q130: 0 | R130: 2 | S130: 1 | T130: T3 (ALB/MBD) | U130: T1 (PZQ+ALB/MBD) | V130: T1 | W130: T3 | Y130: 49840 | Z130: KITAGWENDA | AA130: TRUE | AC130: 190712 | AD130: =_xlfn.XLOOKUP($Y130,[2]COUNTRY_INFO!$Y$9:$Y$143,[2]COUNTRY_INFO!D$9:D$143) -> 179423 | AE130: 3.185767711 | AG130: =_xlfn.XLOOKUP($Y130,[2]COUNTRY_INFO!$Y$9:$Y$143,[2]COUNTRY_INFO!H$9:H$143) -> 0 | AH130: =_xlfn.XLOOKUP($Y130,[2]COUNTRY_INFO!$Y$9:$Y$143,[2]COUNTRY_INFO!I$9:I$143) -> 99 | AI130: =_xlfn.XLOOKUP($Y130,[2]COUNTRY_INFO!$Y$9:$Y$143,[2]COUNTRY_INFO!J$9:J$143) -> 3 | AJ130: =_xlfn.XLOOKUP($Y130,[2]COUNTRY_INFO!$Y$9:$Y$143,[2]COUNTRY_INFO!K$9:K$143) -> 2 | AK130: TRUE | AL130: TRUE | AM130: TRUE | AN130: TRUE | AP130: ='MDA3'!Q130 -> 0 | AQ130: ='T1'!M130 -> 25559 | AR130: =T3_R1!L130 -> 73591 | AS130: =T3_R2!L130 -> 52350 | AU130: =(AQ130+AR130)/F130*100 -> 177.3322364
A131: =IF(INTRO!$E$34<>0,INTRO!$E$34,"") -> Uganda | B131: WESTERN | C131: KYEGEGWA | D131: 352729 | E131: =IF(INTRO!$E$48="","",ROUND($D131*INTRO!$E$48,0)) -> 50088 | F131: =IF(INTRO!$E$49="","",ROUND($D131*INTRO!$E$49,0)) -> 106524 | G131: =IF(INTRO!$E$50="","",ROUND($D131*INTRO!$E$50,0)) -> 183772 | H131: 0 | I131: 0 | J131: 3 | K131: 0 | L131: 0 | M131: 0 | N131: =IF(INTRO!$E$42="Endemic", IF(AND($J131>1,$J131<5), IF($J131=4, "Unknown", E131+F131), 0),"Not required") -> 156612 | O131: =IF([1]INTRO!$E$43="Endemic", IF(AND($K131>0,$K131<5), IF($K131=4,"Unknown", IF($K131=1, $F131*0.33, IF($K131=2, $F131*0.5+$G131*0.2, SUM(F131:G131)))), 0),"Not required") -> 0 | P131: 0 | Q131: 0 | R131: 2 | S131: 0 | T131: T3 (ALB/MBD) | U131: T3 (ALB/MBD) | V131: T3 | W131: T3 | Y131: 49770 | Z131: KYEGEGWA | AA131: TRUE | AC131: 363346 | AD131: =_xlfn.XLOOKUP($Y131,[2]COUNTRY_INFO!$Y$9:$Y$143,[2]COUNTRY_INFO!D$9:D$143) -> 341838 | AE131: 3.186012088 | AG131: =_xlfn.XLOOKUP($Y131,[2]COUNTRY_INFO!$Y$9:$Y$143,[2]COUNTRY_INFO!H$9:H$143) -> 0 | AH131: =_xlfn.XLOOKUP($Y131,[2]COUNTRY_INFO!$Y$9:$Y$143,[2]COUNTRY_INFO!I$9:I$143) -> 0 | AI131: =_xlfn.XLOOKUP($Y131,[2]COUNTRY_INFO!$Y$9:$Y$143,[2]COUNTRY_INFO!J$9:J$143) -> 3 | AJ131: =_xlfn.XLOOKUP($Y131,[2]COUNTRY_INFO!$Y$9:$Y$143,[2]COUNTRY_INFO!K$9:K$143) -> 0 | AK131: TRUE | AL131: TRUE | AM131: TRUE | AN131: TRUE | AP131: ='MDA3'!Q131 -> 0 | AQ131: ='T1'!M131 -> 0 | AR131: =T3_R1!L131 -> 172513 | AS131: =T3_R2!L131 -> 170273
A132: =IF(INTRO!$E$34<>0,INTRO!$E$34,"") -> Uganda | B132: WESTERN | C132: KYENJOJO | D132: 508790 | E132: =IF(INTRO!$E$48="","",ROUND($D132*INTRO!$E$48,0)) -> 72248 | F132: =IF(INTRO!$E$49="","",ROUND($D132*INTRO!$E$49,0)) -> 153655 | G132: =IF(INTRO!$E$50="","",ROUND($D132*INTRO!$E$50,0)) -> 265080 | H132: 0 | I132: 99 | J132: 3 | K132: 0 | L132: 0 | M132: Stopped | N132: =IF(INTRO!$E$42="Endemic", IF(AND($J132>1,$J132<5), IF($J132=4, "Unknown", E132+F132), 0),"Not required") -> 225903 | O132: =IF([1]INTRO!$E$43="Endemic", IF(AND($K132>0,$K132<5), IF($K132=4,"Unknown", IF($K132=1, $F132*0.33, IF($K132=2, $F132*0.5+$G132*0.2, SUM(F132:G132)))), 0),"Not required") -> 0 | P132: 0 | Q132: 0 | R132: 2 | S132: 0 | T132: T3 (ALB/MBD) | U132: T3 (ALB/MBD) | V132: T3 | W132: T3 | Y132: 49757 | Z132: KYENJOJO | AA132: TRUE | AC132: 524105 | AD132: =_xlfn.XLOOKUP($Y132,[2]COUNTRY_INFO!$Y$9:$Y$143,[2]COUNTRY_INFO!D$9:D$143) -> 493080 | AE132: 3.186095563 | AG132: =_xlfn.XLOOKUP($Y132,[2]COUNTRY_INFO!$Y$9:$Y$143,[2]COUNTRY_INFO!H$9:H$143) -> 0 | AH132: =_xlfn.XLOOKUP($Y132,[2]COUNTRY_INFO!$Y$9:$Y$143,[2]COUNTRY_INFO!I$9:I$143) -> 99 | AI132: =_xlfn.XLOOKUP($Y132,[2]COUNTRY_INFO!$Y$9:$Y$143,[2]COUNTRY_INFO!J$9:J$143) -> 3 | AJ132: =_xlfn.XLOOKUP($Y132,[2]COUNTRY_INFO!$Y$9:$Y$143,[2]COUNTRY_INFO!K$9:K$143) -> 0 | AK132: TRUE | AL132: TRUE | AM132: TRUE | AN132: TRUE | AP132: ='MDA3'!Q132 -> 0 | AQ132: ='T1'!M132 -> 0 | AR132: =T3_R1!L132 -> 179492 | AS132: =T3_R2!L132 -> 123393
A133: =IF(INTRO!$E$34<>0,INTRO!$E$34,"") -> Uganda | B133: WESTERN | C133: MASINDI | D133: 402900 | E133: =IF(INTRO!$E$48="","",ROUND($D133*INTRO!$E$48,0)) -> 57212 | F133: =IF(INTRO!$E$49="","",ROUND($D133*INTRO!$E$49,0)) -> 121676 | G133: =IF(INTRO!$E$50="","",ROUND($D133*INTRO!$E$50,0)) -> 209911 | H133: 0 | I133: 99 | J133: 3 | K133: 0 | L133: 0 | M133: Stopped | N133: =IF(INTRO!$E$42="Endemic", IF(AND($J133>1,$J133<5), IF($J133=4, "Unknown", E133+F133), 0),"Not required") -> 178888 | O133: =IF([1]INTRO!$E$43="Endemic", IF(AND($K133>0,$K133<5), IF($K133=4,"Unknown", IF($K133=1, $F133*0.33, IF($K133=2, $F133*0.5+$G133*0.2, SUM(F133:G133)))), 0),"Not required") -> 0 | P133: 0 | Q133: 0 | R133: 2 | S133: 0 | T133: T3 (ALB/MBD) | U133: T3 (ALB/MBD) | V133: T3 | W133: T3 | Y133: 49778 | Z133: MASINDI | AA133: TRUE | AC133: 415027 | AD133: =_xlfn.XLOOKUP($Y133,[2]COUNTRY_INFO!$Y$9:$Y$143,[2]COUNTRY_INFO!D$9:D$143) -> 390460 | AE133: 3.18598576 | AG133: =_xlfn.XLOOKUP($Y133,[2]COUNTRY_INFO!$Y$9:$Y$143,[2]COUNTRY_INFO!H$9:H$143) -> 0 | AH133: =_xlfn.XLOOKUP($Y133,[2]COUNTRY_INFO!$Y$9:$Y$143,[2]COUNTRY_INFO!I$9:I$143) -> 99 | AI133: =_xlfn.XLOOKUP($Y133,[2]COUNTRY_INFO!$Y$9:$Y$143,[2]COUNTRY_INFO!J$9:J$143) -> 3 | AJ133: =_xlfn.XLOOKUP($Y133,[2]COUNTRY_INFO!$Y$9:$Y$143,[2]COUNTRY_INFO!K$9:K$143) -> 0 | AK133: TRUE | AL133: TRUE | AM133: TRUE | AN133: TRUE | AP133: ='MDA3'!Q133 -> 0 | AQ133: ='T1'!M133 -> 0 | AR133: =T3_R1!L133 -> 55256 | AS133: =T3_R2!L133 -> 12856
A134: =IF(INTRO!$E$34<>0,INTRO!$E$34,"") -> Uganda | B134: WESTERN | C134: MBARARA | D134: 439705 | E134: =IF(INTRO!$E$48="","",ROUND($D134*INTRO!$E$48,0)) -> 62438 | F134: =IF(INTRO!$E$49="","",ROUND($D134*INTRO!$E$49,0)) -> 132791 | G134: =IF(INTRO!$E$50="","",ROUND($D134*INTRO!$E$50,0)) -> 229086 | H134: 0 | I134: 0 | J134: 3 | K134: 0 | L134: 0 | M134: 0 | N134: =IF(INTRO!$E$42="Endemic", IF(AND($J134>1,$J134<5), IF($J134=4, "Unknown", E134+F134), 0),"Not required") -> 195229 | O134: =IF([1]INTRO!$E$43="Endemic", IF(AND($K134>0,$K134<5), IF($K134=4,"Unknown", IF($K134=1, $F134*0.33, IF($K134=2, $F134*0.5+$G134*0.2, SUM(F134:G134)))), 0),"Not required") -> 0 | P134: 0 | Q134: 0 | R134: 2 | S134: 0 | T134: T3 (ALB/MBD) | U134: T3 (ALB/MBD) | V134: T3 | W134: T3 | Y134: 49786 | Z134: MBARARA | AA134: TRUE | AC134: 452940 | AD134: =_xlfn.XLOOKUP($Y134,[2]COUNTRY_INFO!$Y$9:$Y$143,[2]COUNTRY_INFO!D$9:D$143) -> 426129 | AE134: 3.185889719 | AG134: =_xlfn.XLOOKUP($Y134,[2]COUNTRY_INFO!$Y$9:$Y$143,[2]COUNTRY_INFO!H$9:H$143) -> 0 | AH134: =_xlfn.XLOOKUP($Y134,[2]COUNTRY_INFO!$Y$9:$Y$143,[2]COUNTRY_INFO!I$9:I$143) -> 0 | AI134: =_xlfn.XLOOKUP($Y134,[2]COUNTRY_INFO!$Y$9:$Y$143,[2]COUNTRY_INFO!J$9:J$143) -> 3 | AJ134: =_xlfn.XLOOKUP($Y134,[2]COUNTRY_INFO!$Y$9:$Y$143,[2]COUNTRY_INFO!K$9:K$143) -> 0 | AK134: TRUE | AL134: TRUE | AM134: TRUE | AN134: TRUE | AP134: ='MDA3'!Q134 -> 0 | AQ134: ='T1'!M134 -> 0 | AR134: =T3_R1!L134 -> 49727 | AS134: =T3_R2!L134 -> 94198
A135: =IF(INTRO!$E$34<>0,INTRO!$E$34,"") -> Uganda | B135: WESTERN | C135: MITOOMA | D135: 235917 | E135: =IF(INTRO!$E$48="","",ROUND($D135*INTRO!$E$48,0)) -> 33500 | F135: =IF(INTRO!$E$49="","",ROUND($D135*INTRO!$E$49,0)) -> 71247 | G135: =IF(INTRO!$E$50="","",ROUND($D135*INTRO!$E$50,0)) -> 122913 | H135: 0 | I135: 99 | J135: 3 | K135: 0 | L135: 0 | M135: Stopped | N135: =IF(INTRO!$E$42="Endemic", IF(AND($J135>1,$J135<5), IF($J135=4, "Unknown", E135+F135), 0),"Not required") -> 104747 | O135: =IF([1]INTRO!$E$43="Endemic", IF(AND($K135>0,$K135<5), IF($K135=4,"Unknown", IF($K135=1, $F135*0.33, IF($K135=2, $F135*0.5+$G135*0.2, SUM(F135:G135)))), 0),"Not required") -> 0 | P135: 0 | Q135: 0 | R135: 2 | S135: 0 | T135: T3 (ALB/MBD) | U135: T3 (ALB/MBD) | V135: T3 | W135: T3 | Y135: 49787 | Z135: MITOOMA | AA135: TRUE | AC135: 243018 | AD135: =_xlfn.XLOOKUP($Y135,[2]COUNTRY_INFO!$Y$9:$Y$143,[2]COUNTRY_INFO!D$9:D$143) -> 228633 | AE135: 3.1858918 | AG135: =_xlfn.XLOOKUP($Y135,[2]COUNTRY_INFO!$Y$9:$Y$143,[2]COUNTRY_INFO!H$9:H$143) -> 0 | AH135: =_xlfn.XLOOKUP($Y135,[2]COUNTRY_INFO!$Y$9:$Y$143,[2]COUNTRY_INFO!I$9:I$143) -> 99 | AI135: =_xlfn.XLOOKUP($Y135,[2]COUNTRY_INFO!$Y$9:$Y$143,[2]COUNTRY_INFO!J$9:J$143) -> 3 | AJ135: =_xlfn.XLOOKUP($Y135,[2]COUNTRY_INFO!$Y$9:$Y$143,[2]COUNTRY_INFO!K$9:K$143) -> 0 | AK135: TRUE | AL135: TRUE | AM135: TRUE | AN135: TRUE | AP135: ='MDA3'!Q135 -> 0 | AQ135: ='T1'!M135 -> 0 | AR135: =T3_R1!L135 -> 62008 | AS135: =T3_R2!L135 -> 97622
A136: =IF(INTRO!$E$34<>0,INTRO!$E$34,"") -> Uganda | B136: WESTERN | C136: NTOROKO | D136: 84468 | E136: =IF(INTRO!$E$48="","",ROUND($D136*INTRO!$E$48,0)) -> 11994 | F136: =IF(INTRO!$E$49="","",ROUND($D136*INTRO!$E$49,0)) -> 25509 | G136: =IF(INTRO!$E$50="","",ROUND($D136*INTRO!$E$50,0)) -> 44008 | H136: 99 | I136: 0 | J136: 3 | K136: 3 | L136: 0 | M136: 0 | N136: =IF(INTRO!$E$42="Endemic", IF(AND($J136>1,$J136<5), IF($J136=4, "Unknown", E136+F136), 0),"Not required") -> 37503 | O136: =IF([1]INTRO!$E$43="Endemic", IF(AND($K136>0,$K136<5), IF($K136=4,"Unknown", IF($K136=1, $F136*0.33, IF($K136=2, $F136*0.5+$G136*0.2, SUM(F136:G136)))), 0),"Not required") -> 69517 | P136: 0 | Q136: 0 | R136: 2 | S136: 1 | T136: T3 (ALB/MBD) | U136: T1 (PZQ+ALB/MBD) | V136: T1 | W136: T3 | Y136: 49799 | Z136: NTOROKO | AA136: TRUE | AC136: 87010 | AD136: =_xlfn.XLOOKUP($Y136,[2]COUNTRY_INFO!$Y$9:$Y$143,[2]COUNTRY_INFO!D$9:D$143) -> 81860 | AE136: 3.185927193 | AG136: =_xlfn.XLOOKUP($Y136,[2]COUNTRY_INFO!$Y$9:$Y$143,[2]COUNTRY_INFO!H$9:H$143) -> 99 | AH136: =_xlfn.XLOOKUP($Y136,[2]COUNTRY_INFO!$Y$9:$Y$143,[2]COUNTRY_INFO!I$9:I$143) -> 0 | AI136: =_xlfn.XLOOKUP($Y136,[2]COUNTRY_INFO!$Y$9:$Y$143,[2]COUNTRY_INFO!J$9:J$143) -> 3 | AJ136: =_xlfn.XLOOKUP($Y136,[2]COUNTRY_INFO!$Y$9:$Y$143,[2]COUNTRY_INFO!K$9:K$143) -> 3 | AK136: TRUE | AL136: TRUE | AM136: TRUE | AN136: TRUE | AP136: ='MDA3'!Q136 -> 0 | AQ136: ='T1'!M136 -> 11432 | AR136: =T3_R1!L136 -> 19429 | AS136: =T3_R2!L136 -> 15685 | AU136: =(AQ136+AR136)/F136*100 -> 120.9808303
A137: =IF(INTRO!$E$34<>0,INTRO!$E$34,"") -> Uganda | B137: WESTERN | C137: NTUNGAMO | D137: 622250 | E137: =IF(INTRO!$E$48="","",ROUND($D137*INTRO!$E$48,0)) -> 88360 | F137: =IF(INTRO!$E$49="","",ROUND($D137*INTRO!$E$49,0)) -> 187920 | G137: =IF(INTRO!$E$50="","",ROUND($D137*INTRO!$E$50,0)) -> 324192 | H137: 0 | I137: 0 | J137: 3 | K137: 0 | L137: 0 | M137: 0 | N137: =IF(INTRO!$E$42="Endemic", IF(AND($J137>1,$J137<5), IF($J137=4, "Unknown", E137+F137), 0),"Not required") -> 276280 | O137: =IF([1]INTRO!$E$43="Endemic", IF(AND($K137>0,$K137<5), IF($K137=4,"Unknown", IF($K137=1, $F137*0.33, IF($K137=2, $F137*0.5+$G137*0.2, SUM(F137:G137)))), 0),"Not required") -> 0 | P137: 0 | Q137: 0 | R137: 2 | S137: 0 | T137: T3 (ALB/MBD) | U137: T3 (ALB/MBD) | V137: T3 | W137: T3 | Y137: 49800 | Z137: NTUNGAMO | AA137: TRUE | AC137: 640980 | AD137: =_xlfn.XLOOKUP($Y137,[2]COUNTRY_INFO!$Y$9:$Y$143,[2]COUNTRY_INFO!D$9:D$143) -> 603037 | AE137: 3.186039994 | AG137: =_xlfn.XLOOKUP($Y137,[2]COUNTRY_INFO!$Y$9:$Y$143,[2]COUNTRY_INFO!H$9:H$143) -> 0 | AH137: =_xlfn.XLOOKUP($Y137,[2]COUNTRY_INFO!$Y$9:$Y$143,[2]COUNTRY_INFO!I$9:I$143) -> 0 | AI137: =_xlfn.XLOOKUP($Y137,[2]COUNTRY_INFO!$Y$9:$Y$143,[2]COUNTRY_INFO!J$9:J$143) -> 3 | AJ137: =_xlfn.XLOOKUP($Y137,[2]COUNTRY_INFO!$Y$9:$Y$143,[2]COUNTRY_INFO!K$9:K$143) -> 0 | AK137: TRUE | AL137: TRUE | AM137: TRUE | AN137: TRUE | AP137: ='MDA3'!Q137 -> 0 | AQ137: ='T1'!M137 -> 0 | AR137: =T3_R1!L137 -> 187553 | AS137: =T3_R2!L137 -> 66259
A138: =IF(INTRO!$E$34<>0,INTRO!$E$34,"") -> Uganda | B138: WESTERN | C138: RUBANDA | D138: 253843 | E138: =IF(INTRO!$E$48="","",ROUND($D138*INTRO!$E$48,0)) -> 36046 | F138: =IF(INTRO!$E$49="","",ROUND($D138*INTRO!$E$49,0)) -> 76661 | G138: =IF(INTRO!$E$50="","",ROUND($D138*INTRO!$E$50,0)) -> 132252 | H138: 0 | I138: 99 | J138: 3 | K138: 0 | L138: 0 | M138: Stopped | N138: =IF(INTRO!$E$42="Endemic", IF(AND($J138>1,$J138<5), IF($J138=4, "Unknown", E138+F138), 0),"Not required") -> 112707 | O138: =IF([1]INTRO!$E$43="Endemic", IF(AND($K138>0,$K138<5), IF($K138=4,"Unknown", IF($K138=1, $F138*0.33, IF($K138=2, $F138*0.5+$G138*0.2, SUM(F138:G138)))), 0),"Not required") -> 0 | P138: 0 | Q138: 0 | R138: 2 | S138: 0 | T138: T3 (ALB/MBD) | U138: T3 (ALB/MBD) | V138: T3 | W138: T3 | Y138: 49821 | Z138: RUBANDA | AA138: =Z138=C138 -> TRUE | AC138: =ROUND(D138*$U$2,0) -> 261484 | AD138: =_xlfn.XLOOKUP($Y138,[2]COUNTRY_INFO!$Y$9:$Y$143,[2]COUNTRY_INFO!D$9:D$143) -> 246005 | AE138: =(D138-AD138)/AD138*100 -> 3.186114103 | AG138: =_xlfn.XLOOKUP($Y138,[2]COUNTRY_INFO!$Y$9:$Y$143,[2]COUNTRY_INFO!H$9:H$143) -> 0 | AH138: =_xlfn.XLOOKUP($Y138,[2]COUNTRY_INFO!$Y$9:$Y$143,[2]COUNTRY_INFO!I$9:I$143) -> 99 | AI138: =_xlfn.XLOOKUP($Y138,[2]COUNTRY_INFO!$Y$9:$Y$143,[2]COUNTRY_INFO!J$9:J$143) -> 3 | AJ138: =_xlfn.XLOOKUP($Y138,[2]COUNTRY_INFO!$Y$9:$Y$143,[2]COUNTRY_INFO!K$9:K$143) -> 0 | AK138: =AG138=H138 -> TRUE | AL138: =AH138=I138 -> TRUE | AM138: =AI138=J138 -> TRUE | AN138: =AJ138=K138 -> TRUE | AP138: ='MDA3'!Q138 -> 0 | AQ138: ='T1'!M138 -> 0 | AR138: =T3_R1!L138 -> 103392 | AS138: =T3_R2!L138 -> 108080
A139: =IF(INTRO!$E$34<>0,INTRO!$E$34,"") -> Uganda | B139: WESTERN | C139: RUBIRIZI | D139: 164403 | E139: =IF(INTRO!$E$48="","",ROUND($D139*INTRO!$E$48,0)) -> 23345 | F139: =IF(INTRO!$E$49="","",ROUND($D139*INTRO!$E$49,0)) -> 49650 | G139: =IF(INTRO!$E$50="","",ROUND($D139*INTRO!$E$50,0)) -> 85654 | H139: 0 | I139: 0 | J139: 3 | K139: 3 | L139: 0 | M139: 0 | N139: =IF(INTRO!$E$42="Endemic", IF(AND($J139>1,$J139<5), IF($J139=4, "Unknown", E139+F139), 0),"Not required") -> 72995 | O139: =IF([1]INTRO!$E$43="Endemic", IF(AND($K139>0,$K139<5), IF($K139=4,"Unknown", IF($K139=1, $F139*0.33, IF($K139=2, $F139*0.5+$G139*0.2, SUM(F139:G139)))), 0),"Not required") -> 135304 | P139: 0 | Q139: 0 | R139: 2 | S139: 1 | T139: T3 (ALB/MBD) | U139: T1 (PZQ+ALB/MBD) | V139: T1 | W139: T3 | Y139: 49808 | Z139: RUBIRIZI | AA139: TRUE | AC139: 169352 | AD139: =_xlfn.XLOOKUP($Y139,[2]COUNTRY_INFO!$Y$9:$Y$143,[2]COUNTRY_INFO!D$9:D$143) -> 159327 | AE139: 3.185900695 | AG139: =_xlfn.XLOOKUP($Y139,[2]COUNTRY_INFO!$Y$9:$Y$143,[2]COUNTRY_INFO!H$9:H$143) -> 0 | AH139: =_xlfn.XLOOKUP($Y139,[2]COUNTRY_INFO!$Y$9:$Y$143,[2]COUNTRY_INFO!I$9:I$143) -> 0 | AI139: =_xlfn.XLOOKUP($Y139,[2]COUNTRY_INFO!$Y$9:$Y$143,[2]COUNTRY_INFO!J$9:J$143) -> 3 | AJ139: =_xlfn.XLOOKUP($Y139,[2]COUNTRY_INFO!$Y$9:$Y$143,[2]COUNTRY_INFO!K$9:K$143) -> 3 | AK139: TRUE | AL139: TRUE | AM139: TRUE | AN139: TRUE | AP139: ='MDA3'!Q139 -> 0 | AQ139: ='T1'!M139 -> 1943 | AR139: =T3_R1!L139 -> 39398 | AS139: =T3_R2!L139 -> 22314 | AU139: =(AQ139+AR139)/F139*100 -> 83.26485398
A140: =IF(INTRO!$E$34<>0,INTRO!$E$34,"") -> Uganda | B140: WESTERN | C140: RUKIGA | D140: 129758 | E140: =IF(INTRO!$E$48="","",ROUND($D140*INTRO!$E$48,0)) -> 18426 | F140: =IF(INTRO!$E$49="","",ROUND($D140*INTRO!$E$49,0)) -> 39187 | G140: =IF(INTRO!$E$50="","",ROUND($D140*INTRO!$E$50,0)) -> 67604 | H140: 0 | I140: 0 | J140: 3 | K140: 0 | L140: 0 | M140: 0 | N140: =IF(INTRO!$E$42="Endemic", IF(AND($J140>1,$J140<5), IF($J140=4, "Unknown", E140+F140), 0),"Not required") -> 57613 | O140: =IF([1]INTRO!$E$43="Endemic", IF(AND($K140>0,$K140<5), IF($K140=4,"Unknown", IF($K140=1, $F140*0.33, IF($K140=2, $F140*0.5+$G140*0.2, SUM(F140:G140)))), 0),"Not required") -> 0 | P140: 0 | Q140: 0 | R140: 2 | S140: 0 | T140: T3 (ALB/MBD) | U140: T3 (ALB/MBD) | V140: T3 | W140: T3 | Y140: 49829 | Z140: RUKIGA | AA140: TRUE | AC140: 133664 | AD140: =_xlfn.XLOOKUP($Y140,[2]COUNTRY_INFO!$Y$9:$Y$143,[2]COUNTRY_INFO!D$9:D$143) -> 125752 | AE140: 3.185635219 | AG140: =_xlfn.XLOOKUP($Y140,[2]COUNTRY_INFO!$Y$9:$Y$143,[2]COUNTRY_INFO!H$9:H$143) -> 0 | AH140: =_xlfn.XLOOKUP($Y140,[2]COUNTRY_INFO!$Y$9:$Y$143,[2]COUNTRY_INFO!I$9:I$143) -> 0 | AI140: =_xlfn.XLOOKUP($Y140,[2]COUNTRY_INFO!$Y$9:$Y$143,[2]COUNTRY_INFO!J$9:J$143) -> 3 | AJ140: =_xlfn.XLOOKUP($Y140,[2]COUNTRY_INFO!$Y$9:$Y$143,[2]COUNTRY_INFO!K$9:K$143) -> 0 | AK140: TRUE | AL140: TRUE | AM140: TRUE | AN140: TRUE | AP140: ='MDA3'!Q140 -> 0 | AQ140: ='T1'!M140 -> 0 | AR140: =T3_R1!L140 -> 68171 | AS140: =T3_R2!L140 -> 69489
A141: =IF(INTRO!$E$34<>0,INTRO!$E$34,"") -> Uganda | B141: WESTERN | C141: RUKUNGIRI | D141: 407651 | E141: =IF(INTRO!$E$48="","",ROUND($D141*INTRO!$E$48,0)) -> 57886 | F141: =IF(INTRO!$E$49="","",ROUND($D141*INTRO!$E$49,0)) -> 123111 | G141: =IF(INTRO!$E$50="","",ROUND($D141*INTRO!$E$50,0)) -> 212386 | H141: 0 | I141: 0 | J141: 3 | K141: 1 | L141: 0 | M141: 0 | N141: =IF(INTRO!$E$42="Endemic", IF(AND($J141>1,$J141<5), IF($J141=4, "Unknown", E141+F141), 0),"Not required") -> 180997 | O141: =IF([1]INTRO!$E$43="Endemic", IF(AND($K141>0,$K141<5), IF($K141=4,"Unknown", IF($K141=1, $F141*0.33, IF($K141=2, $F141*0.5+$G141*0.2, SUM(F141:G141)))), 0),"Not required") -> 40626.63 | P141: 0 | Q141: 0 | R141: 2 | S141: 1 | T141: T3 (ALB/MBD) | U141: T1 (PZQ+ALB/MBD) | V141: T1 | W141: T3 | Y141: 49806 | Z141: RUKUNGIRI | AA141: TRUE | AC141: 419921 | AD141: =_xlfn.XLOOKUP($Y141,[2]COUNTRY_INFO!$Y$9:$Y$143,[2]COUNTRY_INFO!D$9:D$143) -> 395064 | AE141: 3.186066055 | AG141: =_xlfn.XLOOKUP($Y141,[2]COUNTRY_INFO!$Y$9:$Y$143,[2]COUNTRY_INFO!H$9:H$143) -> 0 | AH141: =_xlfn.XLOOKUP($Y141,[2]COUNTRY_INFO!$Y$9:$Y$143,[2]COUNTRY_INFO!I$9:I$143) -> 0 | AI141: =_xlfn.XLOOKUP($Y141,[2]COUNTRY_INFO!$Y$9:$Y$143,[2]COUNTRY_INFO!J$9:J$143) -> 3 | AJ141: =_xlfn.XLOOKUP($Y141,[2]COUNTRY_INFO!$Y$9:$Y$143,[2]COUNTRY_INFO!K$9:K$143) -> 1 | AK141: TRUE | AL141: TRUE | AM141: TRUE | AN141: TRUE | AP141: ='MDA3'!Q141 -> 0 | AQ141: ='T1'!M141 -> 15541 | AR141: =T3_R1!L141 -> 116485 | AS141: =T3_R2!L141 -> 161737 | AU141: =(AQ141+AR141)/F141*100 -> 107.2414325
A142: =IF(INTRO!$E$34<>0,INTRO!$E$34,"") -> Uganda | B142: WESTERN | C142: RWAMPARA | D142: 163235 | E142: =IF(INTRO!$E$48="","",ROUND($D142*INTRO!$E$48,0)) -> 23179 | F142: =IF(INTRO!$E$49="","",ROUND($D142*INTRO!$E$49,0)) -> 49297 | G142: =IF(INTRO!$E$50="","",ROUND($D142*INTRO!$E$50,0)) -> 85045 | H142: 0 | I142: 0 | J142: 3 | K142: 0 | L142: 0 | M142: 0 | N142: =IF(INTRO!$E$42="Endemic", IF(AND($J142>1,$J142<5), IF($J142=4, "Unknown", E142+F142), 0),"Not required") -> 72476 | O142: =IF([1]INTRO!$E$43="Endemic", IF(AND($K142>0,$K142<5), IF($K142=4,"Unknown", IF($K142=1, $F142*0.33, IF($K142=2, $F142*0.5+$G142*0.2, SUM(F142:G142)))), 0),"Not required") -> 0 | P142: 0 | Q142: 0 | R142: 2 | S142: 0 | T142: T3 (ALB/MBD) | U142: T3 (ALB/MBD) | V142: T3 | W142: T3 | Y142: 49842 | Z142: RWAMPARA | AA142: TRUE | AC142: 168148 | AD142: =_xlfn.XLOOKUP($Y142,[2]COUNTRY_INFO!$Y$9:$Y$143,[2]COUNTRY_INFO!D$9:D$143) -> 158195 | AE142: 3.185941401 | AG142: =_xlfn.XLOOKUP($Y142,[2]COUNTRY_INFO!$Y$9:$Y$143,[2]COUNTRY_INFO!H$9:H$143) -> 0 | AH142: =_xlfn.XLOOKUP($Y142,[2]COUNTRY_INFO!$Y$9:$Y$143,[2]COUNTRY_INFO!I$9:I$143) -> 0 | AI142: =_xlfn.XLOOKUP($Y142,[2]COUNTRY_INFO!$Y$9:$Y$143,[2]COUNTRY_INFO!J$9:J$143) -> 3 | AJ142: =_xlfn.XLOOKUP($Y142,[2]COUNTRY_INFO!$Y$9:$Y$143,[2]COUNTRY_INFO!K$9:K$143) -> 0 | AK142: TRUE | AL142: TRUE | AM142: TRUE | AN142: TRUE | AP142: ='MDA3'!Q142 -> 0 | AQ142: ='T1'!M142 -> 0 | AR142: =T3_R1!L142 -> 71220 | AS142: =T3_R2!L142 -> 48349
A143: =IF(INTRO!$E$34<>0,INTRO!$E$34,"") -> Uganda | B143: WESTERN | C143: SHEEMA | D143: 269231 | E143: =IF(INTRO!$E$48="","",ROUND($D143*INTRO!$E$48,0)) -> 38231 | F143: =IF(INTRO!$E$49="","",ROUND($D143*INTRO!$E$49,0)) -> 81308 | G143: =IF(INTRO!$E$50="","",ROUND($D143*INTRO!$E$50,0)) -> 140269 | H143: 0 | I143: 0 | J143: 3 | K143: 0 | L143: 0 | M143: 0 | N143: =IF(INTRO!$E$42="Endemic", IF(AND($J143>1,$J143<5), IF($J143=4, "Unknown", E143+F143), 0),"Not required") -> 119539 | O143: =IF([1]INTRO!$E$43="Endemic", IF(AND($K143>0,$K143<5), IF($K143=4,"Unknown", IF($K143=1, $F143*0.33, IF($K143=2, $F143*0.5+$G143*0.2, SUM(F143:G143)))), 0),"Not required") -> 0 | P143: 0 | Q143: 0 | R143: 2 | S143: 0 | T143: T3 (ALB/MBD) | U143: T3 (ALB/MBD) | V143: T3 | W143: T3 | Y143: 49813 | Z143: SHEEMA | AA143: TRUE | AC143: 277335 | AD143: =_xlfn.XLOOKUP($Y143,[2]COUNTRY_INFO!$Y$9:$Y$143,[2]COUNTRY_INFO!D$9:D$143) -> 260918 | AE143: 3.186058455 | AG143: =_xlfn.XLOOKUP($Y143,[2]COUNTRY_INFO!$Y$9:$Y$143,[2]COUNTRY_INFO!H$9:H$143) -> 0 | AH143: =_xlfn.XLOOKUP($Y143,[2]COUNTRY_INFO!$Y$9:$Y$143,[2]COUNTRY_INFO!I$9:I$143) -> 0 | AI143: =_xlfn.XLOOKUP($Y143,[2]COUNTRY_INFO!$Y$9:$Y$143,[2]COUNTRY_INFO!J$9:J$143) -> 3 | AJ143: =_xlfn.XLOOKUP($Y143,[2]COUNTRY_INFO!$Y$9:$Y$143,[2]COUNTRY_INFO!K$9:K$143) -> 0 | AK143: TRUE | AL143: TRUE | AM143: TRUE | AN143: TRUE | AP143: ='MDA3'!Q143 -> 0 | AQ143: ='T1'!M143 -> 0 | AR143: =T3_R1!L143 -> 82617 | AS143: =T3_R2!L143 -> 83408
A144: =IF(INTRO!$E$34<>0,INTRO!$E$34,"") -> Uganda | E144: =IF(INTRO!$E$48="","",ROUND($D144*INTRO!$E$48,0)) -> 0 | F144: =IF(INTRO!$E$49="","",ROUND($D144*INTRO!$E$49,0)) -> 0 | G144: =IF(INTRO!$E$50="","",ROUND($D144*INTRO!$E$50,0)) -> 0 | L144: =IF(INTRO!$E$38="Endemic", IF($H144>0, IF($H144=4,"Unknown", IF($H144=99,"Stopped", $D144)), 0),"Not required") -> Not required | M144: 0 | N144: =IF(INTRO!$E$42="Endemic", IF(AND($J144>1,$J144<5), IF($J144=4, "Unknown", E144+F144), 0),"Not required") -> 0 | O144: =IF([1]INTRO!$E$43="Endemic", IF(AND($K144>0,$K144<5), IF($K144=4,"Unknown", IF($K144=1, $F144*0.33, IF($K144=2, $F144*0.5+$G144*0.2, SUM(F144:G144)))), 0),"Not required") -> 0 | AP144: ='MDA3'!Q144 -> 0 | AQ144: ='T1'!M144 -> 0 | AR144: =T3_R1!L144 -> 0 | AS144: =T3_R2!L144 -> 0

Sheet MDA1 (hidden)
A1: MDA 1 - Ivermectin (IVM) and Albendazole (ALB)
A2: Administrative structure, population requiring PC by age group, population treated by age group and coverage
A4: TOTAL | G4: =SUM(G$9:G$993) -> 0 | H4: =SUM(H$9:H$993) -> 0 | I4: =SUM(I$9:I$993) -> 0 | K4: =SUM(K$9:K$993) -> 0 | L4: =SUM(L$9:L$993) -> 0 | M4: =SUM(M$9:M$993) -> 0 | O4: =IF(G4<>0, IF(K4/G4*100=0, "-", K4/G4*100), " ") ->  | P4: =IF(H4<>0, IF(L4/H4*100=0, "-", L4/H4*100), " ") ->  | Q4: =IF(I4<>0, IF(M4/I4*100=0, "-", M4/I4*100), " ") -> 
D6: PC implemented | E6: Date | F6: Population targeted for MDA 1 | J6: Population treated | N6: Programme coverage (%)
A7: Country | B7: Province/State | C7: District | F7: PreSAC | G7: SAC | H7: Adults | I7: Total | J7: PreSAC | K7: SAC | L7: Adults | M7: Total | N7: PreSAC | O7: SAC | P7: Adults | Q7: Total
A9: =IF(COUNTRY_INFO!A9=0," ",COUNTRY_INFO!A9) -> Uganda | B9: =IF(COUNTRY_INFO!B9=0," ",COUNTRY_INFO!B9) -> CENTRAL | C9: =IF(COUNTRY_INFO!C9=0," ",COUNTRY_INFO!C9) -> BUIKWE | D9: =IF(COUNTRY_INFO!$T$9:$T$993="MDA1 (IVM+ALB)", COUNTRY_INFO!$T$9:$T$993, " ") ->  | I9: =SUM(F9:H9) -> 0 | M9: =SUM(J9:L9) -> 0 | O9: =IF(G9<>0, IF(K9/G9*100=0, "-", K9/G9*100), " ") ->  | P9: =IF(H9<>0, IF(L9/H9*100=0, "-", L9/H9*100), " ") -> 
A10: =IF(COUNTRY_INFO!A10=0," ",COUNTRY_INFO!A10) -> Uganda | B10: =IF(COUNTRY_INFO!B10=0," ",COUNTRY_INFO!B10) -> CENTRAL | C10: =IF(COUNTRY_INFO!C10=0," ",COUNTRY_INFO!C10) -> BUKOMANSIMBI | D10: =IF(COUNTRY_INFO!$T$9:$T$993="MDA1 (IVM+ALB)", COUNTRY_INFO!$T$9:$T$993, " ") ->  | I10: =SUM(F10:H10) -> 0 | M10: =SUM(J10:L10) -> 0 | O10: =IF(G10<>0, IF(K10/G10*100=0, "-", K10/G10*100), " ") ->  | P10: =IF(H10<>0, IF(L10/H10*100=0, "-", L10/H10*100), " ") ->  | Q10: =IF(I10<>0, IF(M10/I10*100=0, "-", M10/I10*100), " ") -> 
A11: =IF(COUNTRY_INFO!A11=0," ",COUNTRY_INFO!A11) -> Uganda | B11: =IF(COUNTRY_INFO!B11=0," ",COUNTRY_INFO!B11) -> CENTRAL | C11: =IF(COUNTRY_INFO!C11=0," ",COUNTRY_INFO!C11) -> BUTAMBALA | D11: =IF(COUNTRY_INFO!$T$9:$T$993="MDA1 (IVM+ALB)", COUNTRY_INFO!$T$9:$T$993, " ") ->  | I11: 0 | M11: 0
A12: =IF(COUNTRY_INFO!A12=0," ",COUNTRY_INFO!A12) -> Uganda | B12: =IF(COUNTRY_INFO!B12=0," ",COUNTRY_INFO!B12) -> CENTRAL | C12: =IF(COUNTRY_INFO!C12=0," ",COUNTRY_INFO!C12) -> BUVUMA | D12: =IF(COUNTRY_INFO!$T$9:$T$993="MDA1 (IVM+ALB)", COUNTRY_INFO!$T$9:$T$993, " ") ->  | I12: 0 | M12: 0
A13: =IF(COUNTRY_INFO!A13=0," ",COUNTRY_INFO!A13) -> Uganda | B13: =IF(COUNTRY_INFO!B13=0," ",COUNTRY_INFO!B13) -> CENTRAL | C13: =IF(COUNTRY_INFO!C13=0," ",COUNTRY_INFO!C13) -> GOMBA | D13: =IF(COUNTRY_INFO!$T$9:$T$993="MDA1 (IVM+ALB)", COUNTRY_INFO!$T$9:$T$993, " ") ->  | I13: 0 | M13: 0
A14: =IF(COUNTRY_INFO!A14=0," ",COUNTRY_INFO!A14) -> Uganda | B14: =IF(COUNTRY_INFO!B14=0," ",COUNTRY_INFO!B14) -> CENTRAL | C14: =IF(COUNTRY_INFO!C14=0," ",COUNTRY_INFO!C14) -> KALANGALA | D14: =IF(COUNTRY_INFO!$T$9:$T$993="MDA1 (IVM+ALB)", COUNTRY_INFO!$T$9:$T$993, " ") ->  | I14: 0 | M14: 0
A15: =IF(COUNTRY_INFO!A15=0," ",COUNTRY_INFO!A15) -> Uganda | B15: =IF(COUNTRY_INFO!B15=0," ",COUNTRY_INFO!B15) -> CENTRAL | C15: =IF(COUNTRY_INFO!C15=0," ",COUNTRY_INFO!C15) -> KALUNGU | D15: =IF(COUNTRY_INFO!$T$9:$T$993="MDA1 (IVM+ALB)", COUNTRY_INFO!$T$9:$T$993, " ") ->  | I15: 0 | M15: 0
A16: =IF(COUNTRY_INFO!A16=0," ",COUNTRY_INFO!A16) -> Uganda | B16: =IF(COUNTRY_INFO!B16=0," ",COUNTRY_INFO!B16) -> CENTRAL | C16: =IF(COUNTRY_INFO!C16=0," ",COUNTRY_INFO!C16) -> KAMPALA | D16: =IF(COUNTRY_INFO!$T$9:$T$993="MDA1 (IVM+ALB)", COUNTRY_INFO!$T$9:$T$993, " ") ->  | I16: 0 | M16: 0
A17: =IF(COUNTRY_INFO!A17=0," ",COUNTRY_INFO!A17) -> Uganda | B17: =IF(COUNTRY_INFO!B17=0," ",COUNTRY_INFO!B17) -> CENTRAL | C17: =IF(COUNTRY_INFO!C17=0," ",COUNTRY_INFO!C17) -> KASSANDA | D17: =IF(COUNTRY_INFO!$T$9:$T$993="MDA1 (IVM+ALB)", COUNTRY_INFO!$T$9:$T$993, " ") ->  | I17: 0 | M17: 0
A18: =IF(COUNTRY_INFO!A18=0," ",COUNTRY_INFO!A18) -> Uganda | B18: =IF(COUNTRY_INFO!B18=0," ",COUNTRY_INFO!B18) -> CENTRAL | C18: =IF(COUNTRY_INFO!C18=0," ",COUNTRY_INFO!C18) -> KAYUNGA | D18: =IF(COUNTRY_INFO!$T$9:$T$993="MDA1 (IVM+ALB)", COUNTRY_INFO!$T$9:$T$993, " ") ->  | I18: 0 | M18: 0
A19: =IF(COUNTRY_INFO!A19=0," ",COUNTRY_INFO!A19) -> Uganda | B19: =IF(COUNTRY_INFO!B19=0," ",COUNTRY_INFO!B19) -> CENTRAL | C19: =IF(COUNTRY_INFO!C19=0," ",COUNTRY_INFO!C19) -> KIBOGA | D19: =IF(COUNTRY_INFO!$T$9:$T$993="MDA1 (IVM+ALB)", COUNTRY_INFO!$T$9:$T$993, " ") ->  | I19: 0 | M19: 0
A20: =IF(COUNTRY_INFO!A20=0," ",COUNTRY_INFO!A20) -> Uganda | B20: =IF(COUNTRY_INFO!B20=0," ",COUNTRY_INFO!B20) -> CENTRAL | C20: =IF(COUNTRY_INFO!C20=0," ",COUNTRY_INFO!C20) -> KYANKWANZI | D20: =IF(COUNTRY_INFO!$T$9:$T$993="MDA1 (IVM+ALB)", COUNTRY_INFO!$T$9:$T$993, " ") ->  | I20: 0 | M20: 0
A21: =IF(COUNTRY_INFO!A21=0," ",COUNTRY_INFO!A21) -> Uganda | B21: =IF(COUNTRY_INFO!B21=0," ",COUNTRY_INFO!B21) -> CENTRAL | C21: =IF(COUNTRY_INFO!C21=0," ",COUNTRY_INFO!C21) -> KYOTERA | D21: =IF(COUNTRY_INFO!$T$9:$T$993="MDA1 (IVM+ALB)", COUNTRY_INFO!$T$9:$T$993, " ") ->  | I21: 0 | M21: 0
A22: =IF(COUNTRY_INFO!A22=0," ",COUNTRY_INFO!A22) -> Uganda | B22: =IF(COUNTRY_INFO!B22=0," ",COUNTRY_INFO!B22) -> CENTRAL | C22: =IF(COUNTRY_INFO!C22=0," ",COUNTRY_INFO!C22) -> LUWERO | D22: =IF(COUNTRY_INFO!$T$9:$T$993="MDA1 (IVM+ALB)", COUNTRY_INFO!$T$9:$T$993, " ") ->  | I22: 0 | M22: 0
A23: =IF(COUNTRY_INFO!A23=0," ",COUNTRY_INFO!A23) -> Uganda | B23: =IF(COUNTRY_INFO!B23=0," ",COUNTRY_INFO!B23) -> CENTRAL | C23: =IF(COUNTRY_INFO!C23=0," ",COUNTRY_INFO!C23) -> LWENGO | D23: =IF(COUNTRY_INFO!$T$9:$T$993="MDA1 (IVM+ALB)", COUNTRY_INFO!$T$9:$T$993, " ") ->  | I23: 0 | M23: 0
A24: =IF(COUNTRY_INFO!A24=0," ",COUNTRY_INFO!A24) -> Uganda | B24: =IF(COUNTRY_INFO!B24=0," ",COUNTRY_INFO!B24) -> CENTRAL | C24: =IF(COUNTRY_INFO!C24=0," ",COUNTRY_INFO!C24) -> LYANTONDE | D24: =IF(COUNTRY_INFO!$T$9:$T$993="MDA1 (IVM+ALB)", COUNTRY_INFO!$T$9:$T$993, " ") ->  | I24: 0 | M24: 0
A25: =IF(COUNTRY_INFO!A25=0," ",COUNTRY_INFO!A25) -> Uganda | B25: =IF(COUNTRY_INFO!B25=0," ",COUNTRY_INFO!B25) -> CENTRAL | C25: =IF(COUNTRY_INFO!C25=0," ",COUNTRY_INFO!C25) -> MASAKA | D25: =IF(COUNTRY_INFO!$T$9:$T$993="MDA1 (IVM+ALB)", COUNTRY_INFO!$T$9:$T$993, " ") ->  | I25: 0 | M25: 0
A26: =IF(COUNTRY_INFO!A26=0," ",COUNTRY_INFO!A26) -> Uganda | B26: =IF(COUNTRY_INFO!B26=0," ",COUNTRY_INFO!B26) -> CENTRAL | C26: =IF(COUNTRY_INFO!C26=0," ",COUNTRY_INFO!C26) -> MITYANA | D26: =IF(COUNTRY_INFO!$T$9:$T$993="MDA1 (IVM+ALB)", COUNTRY_INFO!$T$9:$T$993, " ") ->  | I26: 0 | M26: 0
A27: =IF(COUNTRY_INFO!A27=0," ",COUNTRY_INFO!A27) -> Uganda | B27: =IF(COUNTRY_INFO!B27=0," ",COUNTRY_INFO!B27) -> CENTRAL | C27: =IF(COUNTRY_INFO!C27=0," ",COUNTRY_INFO!C27) -> MPIGI | D27: =IF(COUNTRY_INFO!$T$9:$T$993="MDA1 (IVM+ALB)", COUNTRY_INFO!$T$9:$T$993, " ") ->  | I27: 0 | M27: 0
A28: =IF(COUNTRY_INFO!A28=0," ",COUNTRY_INFO!A28) -> Uganda | B28: =IF(COUNTRY_INFO!B28=0," ",COUNTRY_INFO!B28) -> CENTRAL | C28: =IF(COUNTRY_INFO!C28=0," ",COUNTRY_INFO!C28) -> MUBENDE | D28: =IF(COUNTRY_INFO!$T$9:$T$993="MDA1 (IVM+ALB)", COUNTRY_INFO!$T$9:$T$993, " ") ->  | I28: 0 | M28: 0
A29: =IF(COUNTRY_INFO!A29=0," ",COUNTRY_INFO!A29) -> Uganda | B29: =IF(COUNTRY_INFO!B29=0," ",COUNTRY_INFO!B29) -> CENTRAL | C29: =IF(COUNTRY_INFO!C29=0," ",COUNTRY_INFO!C29) -> MUKONO | D29: =IF(COUNTRY_INFO!$T$9:$T$993="MDA1 (IVM+ALB)", COUNTRY_INFO!$T$9:$T$993, " ") ->  | I29: 0 | M29: 0
A30: =IF(COUNTRY_INFO!A30=0," ",COUNTRY_INFO!A30) -> Uganda | B30: =IF(COUNTRY_INFO!B30=0," ",COUNTRY_INFO!B30) -> CENTRAL | C30: =IF(COUNTRY_INFO!C30=0," ",COUNTRY_INFO!C30) -> NAKASEKE | D30: =IF(COUNTRY_INFO!$T$9:$T$993="MDA1 (IVM+ALB)", COUNTRY_INFO!$T$9:$T$993, " ") ->  | I30: 0 | M30: 0
A31: =IF(COUNTRY_INFO!A31=0," ",COUNTRY_INFO!A31) -> Uganda | B31: =IF(COUNTRY_INFO!B31=0," ",COUNTRY_INFO!B31) -> CENTRAL | C31: =IF(COUNTRY_INFO!C31=0," ",COUNTRY_INFO!C31) -> NAKASONGOLA | D31: =IF(COUNTRY_INFO!$T$9:$T$993="MDA1 (IVM+ALB)", COUNTRY_INFO!$T$9:$T$993, " ") ->  | I31: 0 | M31: 0
A32: =IF(COUNTRY_INFO!A32=0," ",COUNTRY_INFO!A32) -> Uganda | B32: =IF(COUNTRY_INFO!B32=0," ",COUNTRY_INFO!B32) -> CENTRAL | C32: =IF(COUNTRY_INFO!C32=0," ",COUNTRY_INFO!C32) -> RAKAI | D32: =IF(COUNTRY_INFO!$T$9:$T$993="MDA1 (IVM+ALB)", COUNTRY_INFO!$T$9:$T$993, " ") ->  | I32: 0 | M32: 0
A33: =IF(COUNTRY_INFO!A33=0," ",COUNTRY_INFO!A33) -> Uganda | B33: =IF(COUNTRY_INFO!B33=0," ",COUNTRY_INFO!B33) -> CENTRAL | C33: =IF(COUNTRY_INFO!C33=0," ",COUNTRY_INFO!C33) -> SEMBABULE | D33: =IF(COUNTRY_INFO!$T$9:$T$993="MDA1 (IVM+ALB)", COUNTRY_INFO!$T$9:$T$993, " ") ->  | I33: 0 | M33: 0
A34: =IF(COUNTRY_INFO!A34=0," ",COUNTRY_INFO!A34) -> Uganda | B34: =IF(COUNTRY_INFO!B34=0," ",COUNTRY_INFO!B34) -> CENTRAL | C34: =IF(COUNTRY_INFO!C34=0," ",COUNTRY_INFO!C34) -> WAKISO | D34: =IF(COUNTRY_INFO!$T$9:$T$993="MDA1 (IVM+ALB)", COUNTRY_INFO!$T$9:$T$993, " ") ->  | I34: 0 | M34: 0
A35: =IF(COUNTRY_INFO!A35=0," ",COUNTRY_INFO!A35) -> Uganda | B35: =IF(COUNTRY_INFO!B35=0," ",COUNTRY_INFO!B35) -> EASTERN | C35: =IF(COUNTRY_INFO!C35=0," ",COUNTRY_INFO!C35) -> AMURIA | D35: =IF(COUNTRY_INFO!$T$9:$T$993="MDA1 (IVM+ALB)", COUNTRY_INFO!$T$9:$T$993, " ") ->  | I35: 0 | M35: 0
A36: =IF(COUNTRY_INFO!A36=0," ",COUNTRY_INFO!A36) -> Uganda | B36: =IF(COUNTRY_INFO!B36=0," ",COUNTRY_INFO!B36) -> EASTERN | C36: =IF(COUNTRY_INFO!C36=0," ",COUNTRY_INFO!C36) -> BUDAKA | D36: =IF(COUNTRY_INFO!$T$9:$T$993="MDA1 (IVM+ALB)", COUNTRY_INFO!$T$9:$T$993, " ") ->  | I36: 0 | M36: 0
A37: =IF(COUNTRY_INFO!A37=0," ",COUNTRY_INFO!A37) -> Uganda | B37: =IF(COUNTRY_INFO!B37=0," ",COUNTRY_INFO!B37) -> EASTERN | C37: =IF(COUNTRY_INFO!C37=0," ",COUNTRY_INFO!C37) -> BUDUDA | D37: =IF(COUNTRY_INFO!$T$9:$T$993="MDA1 (IVM+ALB)", COUNTRY_INFO!$T$9:$T$993, " ") ->  | I37: 0 | M37: 0
A38: =IF(COUNTRY_INFO!A38=0," ",COUNTRY_INFO!A38) -> Uganda | B38: =IF(COUNTRY_INFO!B38=0," ",COUNTRY_INFO!B38) -> EASTERN | C38: =IF(COUNTRY_INFO!C38=0," ",COUNTRY_INFO!C38) -> BUGIRI | D38: =IF(COUNTRY_INFO!$T$9:$T$993="MDA1 (IVM+ALB)", COUNTRY_INFO!$T$9:$T$993, " ") ->  | I38: 0 | M38: 0
A39: =IF(COUNTRY_INFO!A39=0," ",COUNTRY_INFO!A39) -> Uganda | B39: =IF(COUNTRY_INFO!B39=0," ",COUNTRY_INFO!B39) -> EASTERN | C39: =IF(COUNTRY_INFO!C39=0," ",COUNTRY_INFO!C39) -> BUGWERI | D39: =IF(COUNTRY_INFO!$T$9:$T$993="MDA1 (IVM+ALB)", COUNTRY_INFO!$T$9:$T$993, " ") ->  | I39: 0 | M39: 0
A40: =IF(COUNTRY_INFO!A40=0," ",COUNTRY_INFO!A40) -> Uganda | B40: =IF(COUNTRY_INFO!B40=0," ",COUNTRY_INFO!B40) -> EASTERN | C40: =IF(COUNTRY_INFO!C40=0," ",COUNTRY_INFO!C40) -> BUKEDEA | D40: =IF(COUNTRY_INFO!$T$9:$T$993="MDA1 (IVM+ALB)", COUNTRY_INFO!$T$9:$T$993, " ") ->  | I40: 0 | M40: 0
A41: =IF(COUNTRY_INFO!A41=0," ",COUNTRY_INFO!A41) -> Uganda | B41: =IF(COUNTRY_INFO!B41=0," ",COUNTRY_INFO!B41) -> EASTERN | C41: =IF(COUNTRY_INFO!C41=0," ",COUNTRY_INFO!C41) -> BUKWO | D41: =IF(COUNTRY_INFO!$T$9:$T$993="MDA1 (IVM+ALB)", COUNTRY_INFO!$T$9:$T$993, " ") ->  | I41: 0 | M41: 0
A42: =IF(COUNTRY_INFO!A42=0," ",COUNTRY_INFO!A42) -> Uganda | B42: =IF(COUNTRY_INFO!B42=0," ",COUNTRY_INFO!B42) -> EASTERN | C42: =IF(COUNTRY_INFO!C42=0," ",COUNTRY_INFO!C42) -> BULAMBULI | D42: =IF(COUNTRY_INFO!$T$9:$T$993="MDA1 (IVM+ALB)", COUNTRY_INFO!$T$9:$T$993, " ") ->  | I42: 0 | M42: 0
A43: =IF(COUNTRY_INFO!A43=0," ",COUNTRY_INFO!A43) -> Uganda | B43: =IF(COUNTRY_INFO!B43=0," ",COUNTRY_INFO!B43) -> EASTERN | C43: =IF(COUNTRY_INFO!C43=0," ",COUNTRY_INFO!C43) -> BUSIA | D43: =IF(COUNTRY_INFO!$T$9:$T$993="MDA1 (IVM+ALB)", COUNTRY_INFO!$T$9:$T$993, " ") ->  | I43: 0 | M43: 0
A44: =IF(COUNTRY_INFO!A44=0," ",COUNTRY_INFO!A44) -> Uganda | B44: =IF(COUNTRY_INFO!B44=0," ",COUNTRY_INFO!B44) -> EASTERN | C44: =IF(COUNTRY_INFO!C44=0," ",COUNTRY_INFO!C44) -> BUTALEJA | D44: =IF(COUNTRY_INFO!$T$9:$T$993="MDA1 (IVM+ALB)", COUNTRY_INFO!$T$9:$T$993, " ") ->  | I44: 0 | M44: 0
A45: =IF(COUNTRY_INFO!A45=0," ",COUNTRY_INFO!A45) -> Uganda | B45: =IF(COUNTRY_INFO!B45=0," ",COUNTRY_INFO!B45) -> EASTERN | C45: =IF(COUNTRY_INFO!C45=0," ",COUNTRY_INFO!C45) -> BUTEBO | D45: =IF(COUNTRY_INFO!$T$9:$T$993="MDA1 (IVM+ALB)", COUNTRY_INFO!$T$9:$T$993, " ") ->  | I45: 0 | M45: 0
A46: =IF(COUNTRY_INFO!A46=0," ",COUNTRY_INFO!A46) -> Uganda | B46: =IF(COUNTRY_INFO!B46=0," ",COUNTRY_INFO!B46) -> EASTERN | C46: =IF(COUNTRY_INFO!C46=0," ",COUNTRY_INFO!C46) -> BUYENDE | D46: =IF(COUNTRY_INFO!$T$9:$T$993="MDA1 (IVM+ALB)", COUNTRY_INFO!$T$9:$T$993, " ") ->  | I46: 0 | M46: 0
A47: =IF(COUNTRY_INFO!A47=0," ",COUNTRY_INFO!A47) -> Uganda | B47: =IF(COUNTRY_INFO!B47=0," ",COUNTRY_INFO!B47) -> EASTERN | C47: =IF(COUNTRY_INFO!C47=0," ",COUNTRY_INFO!C47) -> IGANGA | D47: =IF(COUNTRY_INFO!$T$9:$T$993="MDA1 (IVM+ALB)", COUNTRY_INFO!$T$9:$T$993, " ") ->  | I47: 0 | M47: 0
A48: =IF(COUNTRY_INFO!A48=0," ",COUNTRY_INFO!A48) -> Uganda | B48: =IF(COUNTRY_INFO!B48=0," ",COUNTRY_INFO!B48) -> EASTERN | C48: =IF(COUNTRY_INFO!C48=0," ",COUNTRY_INFO!C48) -> JINJA | D48: =IF(COUNTRY_INFO!$T$9:$T$993="MDA1 (IVM+ALB)", COUNTRY_INFO!$T$9:$T$993, " ") ->  | I48: 0 | M48: 0
A49: =IF(COUNTRY_INFO!A49=0," ",COUNTRY_INFO!A49) -> Uganda | B49: =IF(COUNTRY_INFO!B49=0," ",COUNTRY_INFO!B49) -> EASTERN | C49: =IF(COUNTRY_INFO!C49=0," ",COUNTRY_INFO!C49) -> KABERAMAIDO | D49: =IF(COUNTRY_INFO!$T$9:$T$993="MDA1 (IVM+ALB)", COUNTRY_INFO!$T$9:$T$993, " ") ->  | I49: 0 | M49: 0
A50: =IF(COUNTRY_INFO!A50=0," ",COUNTRY_INFO!A50) -> Uganda | B50: =IF(COUNTRY_INFO!B50=0," ",COUNTRY_INFO!B50) -> EASTERN | C50: =IF(COUNTRY_INFO!C50=0," ",COUNTRY_INFO!C50) -> KALAKI | D50: =IF(COUNTRY_INFO!$T$9:$T$993="MDA1 (IVM+ALB)", COUNTRY_INFO!$T$9:$T$993, " ") ->  | I50: 0 | M50: 0
A51: =IF(COUNTRY_INFO!A51=0," ",COUNTRY_INFO!A51) -> Uganda | B51: =IF(COUNTRY_INFO!B51=0," ",COUNTRY_INFO!B51) -> EASTERN | C51: =IF(COUNTRY_INFO!C51=0," ",COUNTRY_INFO!C51) -> KALIRO | D51: =IF(COUNTRY_INFO!$T$9:$T$993="MDA1 (IVM+ALB)", COUNTRY_INFO!$T$9:$T$993, " ") ->  | I51: 0 | M51: 0
A52: =IF(COUNTRY_INFO!A52=0," ",COUNTRY_INFO!A52) -> Uganda | B52: =IF(COUNTRY_INFO!B52=0," ",COUNTRY_INFO!B52) -> EASTERN | C52: =IF(COUNTRY_INFO!C52=0," ",COUNTRY_INFO!C52) -> KAMULI | D52: =IF(COUNTRY_INFO!$T$9:$T$993="MDA1 (IVM+ALB)", COUNTRY_INFO!$T$9:$T$993, " ") ->  | I52: 0 | M52: 0
A53: =IF(COUNTRY_INFO!A53=0," ",COUNTRY_INFO!A53) -> Uganda | B53: =IF(COUNTRY_INFO!B53=0," ",COUNTRY_INFO!B53) -> EASTERN | C53: =IF(COUNTRY_INFO!C53=0," ",COUNTRY_INFO!C53) -> KAPCHORWA | D53: =IF(COUNTRY_INFO!$T$9:$T$993="MDA1 (IVM+ALB)", COUNTRY_INFO!$T$9:$T$993, " ") ->  | I53: 0 | M53: 0
A54: =IF(COUNTRY_INFO!A54=0," ",COUNTRY_INFO!A54) -> Uganda | B54: =IF(COUNTRY_INFO!B54=0," ",COUNTRY_INFO!B54) -> EASTERN | C54: =IF(COUNTRY_INFO!C54=0," ",COUNTRY_INFO!C54) -> KAPELEBYONG | D54: =IF(COUNTRY_INFO!$T$9:$T$993="MDA1 (IVM+ALB)", COUNTRY_INFO!$T$9:$T$993, " ") ->  | I54: 0 | M54: 0
A55: =IF(COUNTRY_INFO!A55=0," ",COUNTRY_INFO!A55) -> Uganda | B55: =IF(COUNTRY_INFO!B55=0," ",COUNTRY_INFO!B55) -> EASTERN | C55: =IF(COUNTRY_INFO!C55=0," ",COUNTRY_INFO!C55) -> KATAKWI | D55: =IF(COUNTRY_INFO!$T$9:$T$993="MDA1 (IVM+ALB)", COUNTRY_INFO!$T$9:$T$993, " ") ->  | I55: 0 | M55: 0
A56: =IF(COUNTRY_INFO!A56=0," ",COUNTRY_INFO!A56) -> Uganda | B56: =IF(COUNTRY_INFO!B56=0," ",COUNTRY_INFO!B56) -> EASTERN | C56: =IF(COUNTRY_INFO!C56=0," ",COUNTRY_INFO!C56) -> KIBUKU | D56: =IF(COUNTRY_INFO!$T$9:$T$993="MDA1 (IVM+ALB)", COUNTRY_INFO!$T$9:$T$993, " ") ->  | I56: 0 | M56: 0
A57: =IF(COUNTRY_INFO!A57=0," ",COUNTRY_INFO!A57) -> Uganda | B57: =IF(COUNTRY_INFO!B57=0," ",COUNTRY_INFO!B57) -> EASTERN | C57: =IF(COUNTRY_INFO!C57=0," ",COUNTRY_INFO!C57) -> KUMI | D57: =IF(COUNTRY_INFO!$T$9:$T$993="MDA1 (IVM+ALB)", COUNTRY_INFO!$T$9:$T$993, " ") ->  | I57: 0 | M57: 0
A58: =IF(COUNTRY_INFO!A58=0," ",COUNTRY_INFO!A58) -> Uganda | B58: =IF(COUNTRY_INFO!B58=0," ",COUNTRY_INFO!B58) -> EASTERN | C58: =IF(COUNTRY_INFO!C58=0," ",COUNTRY_INFO!C58) -> KWEEN | D58: =IF(COUNTRY_INFO!$T$9:$T$993="MDA1 (IVM+ALB)", COUNTRY_INFO!$T$9:$T$993, " ") ->  | I58: 0 | M58: 0
A59: =IF(COUNTRY_INFO!A59=0," ",COUNTRY_INFO!A59) -> Uganda | B59: =IF(COUNTRY_INFO!B59=0," ",COUNTRY_INFO!B59) -> EASTERN | C59: =IF(COUNTRY_INFO!C59=0," ",COUNTRY_INFO!C59) -> LUUKA | D59: =IF(COUNTRY_INFO!$T$9:$T$993="MDA1 (IVM+ALB)", COUNTRY_INFO!$T$9:$T$993, " ") ->  | I59: 0 | M59: 0
A60: =IF(COUNTRY_INFO!A60=0," ",COUNTRY_INFO!A60) -> Uganda | B60: =IF(COUNTRY_INFO!B60=0," ",COUNTRY_INFO!B60) -> EASTERN | C60: =IF(COUNTRY_INFO!C60=0," ",COUNTRY_INFO!C60) -> MANAFWA | D60: =IF(COUNTRY_INFO!$T$9:$T$993="MDA1 (IVM+ALB)", COUNTRY_INFO!$T$9:$T$993, " ") ->  | I60: 0 | M60: 0
A61: =IF(COUNTRY_INFO!A61=0," ",COUNTRY_INFO!A61) -> Uganda | B61: =IF(COUNTRY_INFO!B61=0," ",COUNTRY_INFO!B61) -> EASTERN | C61: =IF(COUNTRY_INFO!C61=0," ",COUNTRY_INFO!C61) -> MAYUGE | D61: =IF(COUNTRY_INFO!$T$9:$T$993="MDA1 (IVM+ALB)", COUNTRY_INFO!$T$9:$T$993, " ") ->  | I61: 0 | M61: 0
A62: =IF(COUNTRY_INFO!A62=0," ",COUNTRY_INFO!A62) -> Uganda | B62: =IF(COUNTRY_INFO!B62=0," ",COUNTRY_INFO!B62) -> EASTERN | C62: =IF(COUNTRY_INFO!C62=0," ",COUNTRY_INFO!C62) -> MBALE | D62: =IF(COUNTRY_INFO!$T$9:$T$993="MDA1 (IVM+ALB)", COUNTRY_INFO!$T$9:$T$993, " ") ->  | I62: 0 | M62: 0
A63: =IF(COUNTRY_INFO!A63=0," ",COUNTRY_INFO!A63) -> Uganda | B63: =IF(COUNTRY_INFO!B63=0," ",COUNTRY_INFO!B63) -> EASTERN | C63: =IF(COUNTRY_INFO!C63=0," ",COUNTRY_INFO!C63) -> NAMAYINGO | D63: =IF(COUNTRY_INFO!$T$9:$T$993="MDA1 (IVM+ALB)", COUNTRY_INFO!$T$9:$T$993, " ") ->  | I63: 0 | M63: 0
A64: =IF(COUNTRY_INFO!A64=0," ",COUNTRY_INFO!A64) -> Uganda | B64: =IF(COUNTRY_INFO!B64=0," ",COUNTRY_INFO!B64) -> EASTERN | C64: =IF(COUNTRY_INFO!C64=0," ",COUNTRY_INFO!C64) -> NAMISINDWA | D64: =IF(COUNTRY_INFO!$T$9:$T$993="MDA1 (IVM+ALB)", COUNTRY_INFO!$T$9:$T$993, " ") ->  | I64: 0 | M64: 0
A65: =IF(COUNTRY_INFO!A65=0," ",COUNTRY_INFO!A65) -> Uganda | B65: =IF(COUNTRY_INFO!B65=0," ",COUNTRY_INFO!B65) -> EASTERN | C65: =IF(COUNTRY_INFO!C65=0," ",COUNTRY_INFO!C65) -> NAMUTUMBA | D65: =IF(COUNTRY_INFO!$T$9:$T$993="MDA1 (IVM+ALB)", COUNTRY_INFO!$T$9:$T$993, " ") ->  | I65: 0 | M65: 0
A66: =IF(COUNTRY_INFO!A66=0," ",COUNTRY_INFO!A66) -> Uganda | B66: =IF(COUNTRY_INFO!B66=0," ",COUNTRY_INFO!B66) -> EASTERN | C66: =IF(COUNTRY_INFO!C66=0," ",COUNTRY_INFO!C66) -> NGORA | D66: =IF(COUNTRY_INFO!$T$9:$T$993="MDA1 (IVM+ALB)", COUNTRY_INFO!$T$9:$T$993, " ") ->  | I66: 0 | M66: 0
A67: =IF(COUNTRY_INFO!A67=0," ",COUNTRY_INFO!A67) -> Uganda | B67: =IF(COUNTRY_INFO!B67=0," ",COUNTRY_INFO!B67) -> EASTERN | C67: =IF(COUNTRY_INFO!C67=0," ",COUNTRY_INFO!C67) -> PALLISA | D67: =IF(COUNTRY_INFO!$T$9:$T$993="MDA1 (IVM+ALB)", COUNTRY_INFO!$T$9:$T$993, " ") ->  | I67: 0 | M67: 0
A68: =IF(COUNTRY_INFO!A68=0," ",COUNTRY_INFO!A68) -> Uganda | B68: =IF(COUNTRY_INFO!B68=0," ",COUNTRY_INFO!B68) -> EASTERN | C68: =IF(COUNTRY_INFO!C68=0," ",COUNTRY_INFO!C68) -> SERERE | D68: =IF(COUNTRY_INFO!$T$9:$T$993="MDA1 (IVM+ALB)", COUNTRY_INFO!$T$9:$T$993, " ") ->  | I68: 0 | M68: 0
A69: =IF(COUNTRY_INFO!A69=0," ",COUNTRY_INFO!A69) -> Uganda | B69: =IF(COUNTRY_INFO!B69=0," ",COUNTRY_INFO!B69) -> EASTERN | C69: =IF(COUNTRY_INFO!C69=0," ",COUNTRY_INFO!C69) -> SIRONKO | D69: =IF(COUNTRY_INFO!$T$9:$T$993="MDA1 (IVM+ALB)", COUNTRY_INFO!$T$9:$T$993, " ") ->  | I69: 0 | M69: 0
A70: =IF(COUNTRY_INFO!A70=0," ",COUNTRY_INFO!A70) -> Uganda | B70: =IF(COUNTRY_INFO!B70=0," ",COUNTRY_INFO!B70) -> EASTERN | C70: =IF(COUNTRY_INFO!C70=0," ",COUNTRY_INFO!C70) -> SOROTI | D70: =IF(COUNTRY_INFO!$T$9:$T$993="MDA1 (IVM+ALB)", COUNTRY_INFO!$T$9:$T$993, " ") ->  | I70: 0 | M70: 0
A71: =IF(COUNTRY_INFO!A71=0," ",COUNTRY_INFO!A71) -> Uganda | B71: =IF(COUNTRY_INFO!B71=0," ",COUNTRY_INFO!B71) -> EASTERN | C71: =IF(COUNTRY_INFO!C71=0," ",COUNTRY_INFO!C71) -> TORORO | D71: =IF(COUNTRY_INFO!$T$9:$T$993="MDA1 (IVM+ALB)", COUNTRY_INFO!$T$9:$T$993, " ") ->  | I71: 0 | M71: 0
A72: =IF(COUNTRY_INFO!A72=0," ",COUNTRY_INFO!A72) -> Uganda | B72: =IF(COUNTRY_INFO!B72=0," ",COUNTRY_INFO!B72) -> NORTHERN | C72: =IF(COUNTRY_INFO!C72=0," ",COUNTRY_INFO!C72) -> ABIM | D72: =IF(COUNTRY_INFO!$T$9:$T$993="MDA1 (IVM+ALB)", COUNTRY_INFO!$T$9:$T$993, " ") ->  | I72: 0 | M72: 0
A73: =IF(COUNTRY_INFO!A73=0," ",COUNTRY_INFO!A73) -> Uganda | B73: =IF(COUNTRY_INFO!B73=0," ",COUNTRY_INFO!B73) -> NORTHERN | C73: =IF(COUNTRY_INFO!C73=0," ",COUNTRY_INFO!C73) -> ADJUMANI | D73: =IF(COUNTRY_INFO!$T$9:$T$993="MDA1 (IVM+ALB)", COUNTRY_INFO!$T$9:$T$993, " ") ->  | I73: 0 | M73: 0
A74: =IF(COUNTRY_INFO!A74=0," ",COUNTRY_INFO!A74) -> Uganda | B74: =IF(COUNTRY_INFO!B74=0," ",COUNTRY_INFO!B74) -> NORTHERN | C74: =IF(COUNTRY_INFO!C74=0," ",COUNTRY_INFO!C74) -> AGAGO | D74: =IF(COUNTRY_INFO!$T$9:$T$993="MDA1 (IVM+ALB)", COUNTRY_INFO!$T$9:$T$993, " ") ->  | I74: =SUM(F74:H74) -> 0 | M74: =SUM(J74:L74) -> 0 | O74: =IF(G74<>0, IF(K74/G74*100=0, "-", K74/G74*100), " ") ->  | P74: =IF(H74<>0, IF(L74/H74*100=0, "-", L74/H74*100), " ") ->  | Q74: =IF(I74<>0, IF(M74/I74*100=0, "-", M74/I74*100), " ") -> 
A75: =IF(COUNTRY_INFO!A75=0," ",COUNTRY_INFO!A75) -> Uganda | B75: =IF(COUNTRY_INFO!B75=0," ",COUNTRY_INFO!B75) -> NORTHERN | C75: =IF(COUNTRY_INFO!C75=0," ",COUNTRY_INFO!C75) -> ALEBTONG | D75: =IF(COUNTRY_INFO!$T$9:$T$993="MDA1 (IVM+ALB)", COUNTRY_INFO!$T$9:$T$993, " ") ->  | I75: 0 | M75: 0
A76: =IF(COUNTRY_INFO!A76=0," ",COUNTRY_INFO!A76) -> Uganda | B76: =IF(COUNTRY_INFO!B76=0," ",COUNTRY_INFO!B76) -> NORTHERN | C76: =IF(COUNTRY_INFO!C76=0," ",COUNTRY_INFO!C76) -> AMOLATAR | D76: =IF(COUNTRY_INFO!$T$9:$T$993="MDA1 (IVM+ALB)", COUNTRY_INFO!$T$9:$T$993, " ") ->  | I76: 0 | M76: 0
A77: =IF(COUNTRY_INFO!A77=0," ",COUNTRY_INFO!A77) -> Uganda | B77: =IF(COUNTRY_INFO!B77=0," ",COUNTRY_INFO!B77) -> NORTHERN | C77: =IF(COUNTRY_INFO!C77=0," ",COUNTRY_INFO!C77) -> AMUDAT | D77: =IF(COUNTRY_INFO!$T$9:$T$993="MDA1 (IVM+ALB)", COUNTRY_INFO!$T$9:$T$993, " ") ->  | I77: 0 | M77: 0
A78: =IF(COUNTRY_INFO!A78=0," ",COUNTRY_INFO!A78) -> Uganda | B78: =IF(COUNTRY_INFO!B78=0," ",COUNTRY_INFO!B78) -> NORTHERN | C78: =IF(COUNTRY_INFO!C78=0," ",COUNTRY_INFO!C78) -> AMURU | D78: =IF(COUNTRY_INFO!$T$9:$T$993="MDA1 (IVM+ALB)", COUNTRY_INFO!$T$9:$T$993, " ") ->  | I78: 0 | M78: 0
A79: =IF(COUNTRY_INFO!A79=0," ",COUNTRY_INFO!A79) -> Uganda | B79: =IF(COUNTRY_INFO!B79=0," ",COUNTRY_INFO!B79) -> NORTHERN | C79: =IF(COUNTRY_INFO!C79=0," ",COUNTRY_INFO!C79) -> APAC | D79: =IF(COUNTRY_INFO!$T$9:$T$993="MDA1 (IVM+ALB)", COUNTRY_INFO!$T$9:$T$993, " ") ->  | I79: 0 | M79: 0
A80: =IF(COUNTRY_INFO!A80=0," ",COUNTRY_INFO!A80) -> Uganda | B80: =IF(COUNTRY_INFO!B80=0," ",COUNTRY_INFO!B80) -> NORTHERN | C80: =IF(COUNTRY_INFO!C80=0," ",COUNTRY_INFO!C80) -> ARUA | D80: =IF(COUNTRY_INFO!$T$9:$T$993="MDA1 (IVM+ALB)", COUNTRY_INFO!$T$9:$T$993, " ") ->  | I80: 0 | M80: 0
A81: =IF(COUNTRY_INFO!A81=0," ",COUNTRY_INFO!A81) -> Uganda | B81: =IF(COUNTRY_INFO!B81=0," ",COUNTRY_INFO!B81) -> NORTHERN | C81: =IF(COUNTRY_INFO!C81=0," ",COUNTRY_INFO!C81) -> DOKOLO | D81: =IF(COUNTRY_INFO!$T$9:$T$993="MDA1 (IVM+ALB)", COUNTRY_INFO!$T$9:$T$993, " ") ->  | I81: 0 | M81: 0
A82: =IF(COUNTRY_INFO!A82=0," ",COUNTRY_INFO!A82) -> Uganda | B82: =IF(COUNTRY_INFO!B82=0," ",COUNTRY_INFO!B82) -> NORTHERN | C82: =IF(COUNTRY_INFO!C82=0," ",COUNTRY_INFO!C82) -> GULU | D82: =IF(COUNTRY_INFO!$T$9:$T$993="MDA1 (IVM+ALB)", COUNTRY_INFO!$T$9:$T$993, " ") ->  | I82: 0 | M82: 0
A83: =IF(COUNTRY_INFO!A83=0," ",COUNTRY_INFO!A83) -> Uganda | B83: =IF(COUNTRY_INFO!B83=0," ",COUNTRY_INFO!B83) -> NORTHERN | C83: =IF(COUNTRY_INFO!C83=0," ",COUNTRY_INFO!C83) -> KAABONG | D83: =IF(COUNTRY_INFO!$T$9:$T$993="MDA1 (IVM+ALB)", COUNTRY_INFO!$T$9:$T$993, " ") ->  | I83: 0 | M83: 0
A84: =IF(COUNTRY_INFO!A84=0," ",COUNTRY_INFO!A84) -> Uganda | B84: =IF(COUNTRY_INFO!B84=0," ",COUNTRY_INFO!B84) -> NORTHERN | C84: =IF(COUNTRY_INFO!C84=0," ",COUNTRY_INFO!C84) -> KARENGA | D84: =IF(COUNTRY_INFO!$T$9:$T$993="MDA1 (IVM+ALB)", COUNTRY_INFO!$T$9:$T$993, " ") ->  | I84: 0 | M84: 0
A85: =IF(COUNTRY_INFO!A85=0," ",COUNTRY_INFO!A85) -> Uganda | B85: =IF(COUNTRY_INFO!B85=0," ",COUNTRY_INFO!B85) -> NORTHERN | C85: =IF(COUNTRY_INFO!C85=0," ",COUNTRY_INFO!C85) -> KITGUM | D85: =IF(COUNTRY_INFO!$T$9:$T$993="MDA1 (IVM+ALB)", COUNTRY_INFO!$T$9:$T$993, " ") ->  | I85: 0 | M85: 0
A86: =IF(COUNTRY_INFO!A86=0," ",COUNTRY_INFO!A86) -> Uganda | B86: =IF(COUNTRY_INFO!B86=0," ",COUNTRY_INFO!B86) -> NORTHERN | C86: =IF(COUNTRY_INFO!C86=0," ",COUNTRY_INFO!C86) -> KOBOKO | D86: =IF(COUNTRY_INFO!$T$9:$T$993="MDA1 (IVM+ALB)", COUNTRY_INFO!$T$9:$T$993, " ") ->  | I86: 0 | M86: 0
A87: =IF(COUNTRY_INFO!A87=0," ",COUNTRY_INFO!A87) -> Uganda | B87: =IF(COUNTRY_INFO!B87=0," ",COUNTRY_INFO!B87) -> NORTHERN | C87: =IF(COUNTRY_INFO!C87=0," ",COUNTRY_INFO!C87) -> KOLE | D87: =IF(COUNTRY_INFO!$T$9:$T$993="MDA1 (IVM+ALB)", COUNTRY_INFO!$T$9:$T$993, " ") ->  | I87: 0 | M87: 0
A88: =IF(COUNTRY_INFO!A88=0," ",COUNTRY_INFO!A88) -> Uganda | B88: =IF(COUNTRY_INFO!B88=0," ",COUNTRY_INFO!B88) -> NORTHERN | C88: =IF(COUNTRY_INFO!C88=0," ",COUNTRY_INFO!C88) -> KOTIDO | D88: =IF(COUNTRY_INFO!$T$9:$T$993="MDA1 (IVM+ALB)", COUNTRY_INFO!$T$9:$T$993, " ") ->  | I88: 0 | M88: 0
A89: =IF(COUNTRY_INFO!A89=0," ",COUNTRY_INFO!A89) -> Uganda | B89: =IF(COUNTRY_INFO!B89=0," ",COUNTRY_INFO!B89) -> NORTHERN | C89: =IF(COUNTRY_INFO!C89=0," ",COUNTRY_INFO!C89) -> KWANIA | D89: =IF(COUNTRY_INFO!$T$9:$T$993="MDA1 (IVM+ALB)", COUNTRY_INFO!$T$9:$T$993, " ") ->  | I89: 0 | M89: 0
A90: =IF(COUNTRY_INFO!A90=0," ",COUNTRY_INFO!A90) -> Uganda | B90: =IF(COUNTRY_INFO!B90=0," ",COUNTRY_INFO!B90) -> NORTHERN | C90: =IF(COUNTRY_INFO!C90=0," ",COUNTRY_INFO!C90) -> LAMWO | D90: =IF(COUNTRY_INFO!$T$9:$T$993="MDA1 (IVM+ALB)", COUNTRY_INFO!$T$9:$T$993, " ") ->  | I90: 0 | M90: 0
A91: =IF(COUNTRY_INFO!A91=0," ",COUNTRY_INFO!A91) -> Uganda | B91: =IF(COUNTRY_INFO!B91=0," ",COUNTRY_INFO!B91) -> NORTHERN | C91: =IF(COUNTRY_INFO!C91=0," ",COUNTRY_INFO!C91) -> LIRA | D91: =IF(COUNTRY_INFO!$T$9:$T$993="MDA1 (IVM+ALB)", COUNTRY_INFO!$T$9:$T$993, " ") ->  | I91: 0 | M91: 0
A92: =IF(COUNTRY_INFO!A92=0," ",COUNTRY_INFO!A92) -> Uganda | B92: =IF(COUNTRY_INFO!B92=0," ",COUNTRY_INFO!B92) -> NORTHERN | C92: =IF(COUNTRY_INFO!C92=0," ",COUNTRY_INFO!C92) -> MADI OKOLLO | D92: =IF(COUNTRY_INFO!$T$9:$T$993="MDA1 (IVM+ALB)", COUNTRY_INFO!$T$9:$T$993, " ") ->  | I92: 0 | M92: 0
A93: =IF(COUNTRY_INFO!A93=0," ",COUNTRY_INFO!A93) -> Uganda | B93: =IF(COUNTRY_INFO!B93=0," ",COUNTRY_INFO!B93) -> NORTHERN | C93: =IF(COUNTRY_INFO!C93=0," ",COUNTRY_INFO!C93) -> MARACHA | D93: =IF(COUNTRY_INFO!$T$9:$T$993="MDA1 (IVM+ALB)", COUNTRY_INFO!$T$9:$T$993, " ") ->  | I93: 0 | M93: 0
A94: =IF(COUNTRY_INFO!A94=0," ",COUNTRY_INFO!A94) -> Uganda | B94: =IF(COUNTRY_INFO!B94=0," ",COUNTRY_INFO!B94) -> NORTHERN | C94: =IF(COUNTRY_INFO!C94=0," ",COUNTRY_INFO!C94) -> MOROTO | D94: =IF(COUNTRY_INFO!$T$9:$T$993="MDA1 (IVM+ALB)", COUNTRY_INFO!$T$9:$T$993, " ") ->  | I94: 0 | M94: 0
A95: =IF(COUNTRY_INFO!A95=0," ",COUNTRY_INFO!A95) -> Uganda | B95: =IF(COUNTRY_INFO!B95=0," ",COUNTRY_INFO!B95) -> NORTHERN | C95: =IF(COUNTRY_INFO!C95=0," ",COUNTRY_INFO!C95) -> MOYO | D95: =IF(COUNTRY_INFO!$T$9:$T$993="MDA1 (IVM+ALB)", COUNTRY_INFO!$T$9:$T$993, " ") ->  | I95: 0 | M95: 0
A96: =IF(COUNTRY_INFO!A96=0," ",COUNTRY_INFO!A96) -> Uganda | B96: =IF(COUNTRY_INFO!B96=0," ",COUNTRY_INFO!B96) -> NORTHERN | C96: =IF(COUNTRY_INFO!C96=0," ",COUNTRY_INFO!C96) -> NABILATUK | D96: =IF(COUNTRY_INFO!$T$9:$T$993="MDA1 (IVM+ALB)", COUNTRY_INFO!$T$9:$T$993, " ") ->  | I96: 0 | M96: 0
A97: =IF(COUNTRY_INFO!A97=0," ",COUNTRY_INFO!A97) -> Uganda | B97: =IF(COUNTRY_INFO!B97=0," ",COUNTRY_INFO!B97) -> NORTHERN | C97: =IF(COUNTRY_INFO!C97=0," ",COUNTRY_INFO!C97) -> NAKAPIRIPIRIT | D97: =IF(COUNTRY_INFO!$T$9:$T$993="MDA1 (IVM+ALB)", COUNTRY_INFO!$T$9:$T$993, " ") ->  | I97: 0 | M97: 0
A98: =IF(COUNTRY_INFO!A98=0," ",COUNTRY_INFO!A98) -> Uganda | B98: =IF(COUNTRY_INFO!B98=0," ",COUNTRY_INFO!B98) -> NORTHERN | C98: =IF(COUNTRY_INFO!C98=0," ",COUNTRY_INFO!C98) -> NAPAK | D98: =IF(COUNTRY_INFO!$T$9:$T$993="MDA1 (IVM+ALB)", COUNTRY_INFO!$T$9:$T$993, " ") ->  | I98: 0 | M98: 0
A99: =IF(COUNTRY_INFO!A99=0," ",COUNTRY_INFO!A99) -> Uganda | B99: =IF(COUNTRY_INFO!B99=0," ",COUNTRY_INFO!B99) -> NORTHERN | C99: =IF(COUNTRY_INFO!C99=0," ",COUNTRY_INFO!C99) -> NEBBI | D99: =IF(COUNTRY_INFO!$T$9:$T$993="MDA1 (IVM+ALB)", COUNTRY_INFO!$T$9:$T$993, " ") ->  | I99: 0 | M99: 0
A100: =IF(COUNTRY_INFO!A100=0," ",COUNTRY_INFO!A100) -> Uganda | B100: =IF(COUNTRY_INFO!B100=0," ",COUNTRY_INFO!B100) -> NORTHERN | C100: =IF(COUNTRY_INFO!C100=0," ",COUNTRY_INFO!C100) -> NWOYA | D100: =IF(COUNTRY_INFO!$T$9:$T$993="MDA1 (IVM+ALB)", COUNTRY_INFO!$T$9:$T$993, " ") ->  | I100: 0 | M100: 0
A101: =IF(COUNTRY_INFO!A101=0," ",COUNTRY_INFO!A101) -> Uganda | B101: =IF(COUNTRY_INFO!B101=0," ",COUNTRY_INFO!B101) -> NORTHERN | C101: =IF(COUNTRY_INFO!C101=0," ",COUNTRY_INFO!C101) -> OBONGI | D101: =IF(COUNTRY_INFO!$T$9:$T$993="MDA1 (IVM+ALB)", COUNTRY_INFO!$T$9:$T$993, " ") ->  | I101: 0 | M101: 0
A102: =IF(COUNTRY_INFO!A102=0," ",COUNTRY_INFO!A102) -> Uganda | B102: =IF(COUNTRY_INFO!B102=0," ",COUNTRY_INFO!B102) -> NORTHERN | C102: =IF(COUNTRY_INFO!C102=0," ",COUNTRY_INFO!C102) -> OMORO | D102: =IF(COUNTRY_INFO!$T$9:$T$993="MDA1 (IVM+ALB)", COUNTRY_INFO!$T$9:$T$993, " ") ->  | I102: 0 | M102: 0
A103: =IF(COUNTRY_INFO!A103=0," ",COUNTRY_INFO!A103) -> Uganda | B103: =IF(COUNTRY_INFO!B103=0," ",COUNTRY_INFO!B103) -> NORTHERN | C103: =IF(COUNTRY_INFO!C103=0," ",COUNTRY_INFO!C103) -> OTUKE | D103: =IF(COUNTRY_INFO!$T$9:$T$993="MDA1 (IVM+ALB)", COUNTRY_INFO!$T$9:$T$993, " ") ->  | I103: 0 | M103: 0
A104: =IF(COUNTRY_INFO!A104=0," ",COUNTRY_INFO!A104) -> Uganda | B104: =IF(COUNTRY_INFO!B104=0," ",COUNTRY_INFO!B104) -> NORTHERN | C104: =IF(COUNTRY_INFO!C104=0," ",COUNTRY_INFO!C104) -> OYAM | D104: =IF(COUNTRY_INFO!$T$9:$T$993="MDA1 (IVM+ALB)", COUNTRY_INFO!$T$9:$T$993, " ") ->  | I104: 0 | M104: 0
A105: =IF(COUNTRY_INFO!A105=0," ",COUNTRY_INFO!A105) -> Uganda | B105: =IF(COUNTRY_INFO!B105=0," ",COUNTRY_INFO!B105) -> NORTHERN | C105: =IF(COUNTRY_INFO!C105=0," ",COUNTRY_INFO!C105) -> PADER | D105: =IF(COUNTRY_INFO!$T$9:$T$993="MDA1 (IVM+ALB)", COUNTRY_INFO!$T$9:$T$993, " ") ->  | I105: 0 | M105: 0
A106: =IF(COUNTRY_INFO!A106=0," ",COUNTRY_INFO!A106) -> Uganda | B106: =IF(COUNTRY_INFO!B106=0," ",COUNTRY_INFO!B106) -> NORTHERN | C106: =IF(COUNTRY_INFO!C106=0," ",COUNTRY_INFO!C106) -> PAKWACH | D106: =IF(COUNTRY_INFO!$T$9:$T$993="MDA1 (IVM+ALB)", COUNTRY_INFO!$T$9:$T$993, " ") ->  | I106: 0 | M106: 0
A107: =IF(COUNTRY_INFO!A107=0," ",COUNTRY_INFO!A107) -> Uganda | B107: =IF(COUNTRY_INFO!B107=0," ",COUNTRY_INFO!B107) -> NORTHERN | C107: =IF(COUNTRY_INFO!C107=0," ",COUNTRY_INFO!C107) -> YUMBE | D107: =IF(COUNTRY_INFO!$T$9:$T$993="MDA1 (IVM+ALB)", COUNTRY_INFO!$T$9:$T$993, " ") ->  | I107: 0 | M107: 0
A108: =IF(COUNTRY_INFO!A108=0," ",COUNTRY_INFO!A108) -> Uganda | B108: =IF(COUNTRY_INFO!B108=0," ",COUNTRY_INFO!B108) -> NORTHERN | C108: =IF(COUNTRY_INFO!C108=0," ",COUNTRY_INFO!C108) -> ZOMBO | D108: =IF(COUNTRY_INFO!$T$9:$T$993="MDA1 (IVM+ALB)", COUNTRY_INFO!$T$9:$T$993, " ") ->  | I108: 0 | M108: 0
A109: =IF(COUNTRY_INFO!A109=0," ",COUNTRY_INFO!A109) -> Uganda | B109: =IF(COUNTRY_INFO!B109=0," ",COUNTRY_INFO!B109) -> WESTERN | C109: =IF(COUNTRY_INFO!C109=0," ",COUNTRY_INFO!C109) -> BUHWEJU | D109: =IF(COUNTRY_INFO!$T$9:$T$993="MDA1 (IVM+ALB)", COUNTRY_INFO!$T$9:$T$993, " ") ->  | I109: 0 | M109: 0
A110: =IF(COUNTRY_INFO!A110=0," ",COUNTRY_INFO!A110) -> Uganda | B110: =IF(COUNTRY_INFO!B110=0," ",COUNTRY_INFO!B110) -> WESTERN | C110: =IF(COUNTRY_INFO!C110=0," ",COUNTRY_INFO!C110) -> BULIISA | D110: =IF(COUNTRY_INFO!$T$9:$T$993="MDA1 (IVM+ALB)", COUNTRY_INFO!$T$9:$T$993, " ") ->  | I110: 0 | M110: 0
A111: =IF(COUNTRY_INFO!A111=0," ",COUNTRY_INFO!A111) -> Uganda | B111: =IF(COUNTRY_INFO!B111=0," ",COUNTRY_INFO!B111) -> WESTERN | C111: =IF(COUNTRY_INFO!C111=0," ",COUNTRY_INFO!C111) -> BUNDIBUGYO | D111: =IF(COUNTRY_INFO!$T$9:$T$993="MDA1 (IVM+ALB)", COUNTRY_INFO!$T$9:$T$993, " ") ->  | I111: 0 | M111: 0
A112: =IF(COUNTRY_INFO!A112=0," ",COUNTRY_INFO!A112) -> Uganda | B112: =IF(COUNTRY_INFO!B112=0," ",COUNTRY_INFO!B112) -> WESTERN | C112: =IF(COUNTRY_INFO!C112=0," ",COUNTRY_INFO!C112) -> BUNYANGABU | D112: =IF(COUNTRY_INFO!$T$9:$T$993="MDA1 (IVM+ALB)", COUNTRY_INFO!$T$9:$T$993, " ") ->  | I112: 0 | M112: 0
A113: =IF(COUNTRY_INFO!A113=0," ",COUNTRY_INFO!A113) -> Uganda | B113: =IF(COUNTRY_INFO!B113=0," ",COUNTRY_INFO!B113) -> WESTERN | C113: =IF(COUNTRY_INFO!C113=0," ",COUNTRY_INFO!C113) -> BUSHENYI | D113: =IF(COUNTRY_INFO!$T$9:$T$993="MDA1 (IVM+ALB)", COUNTRY_INFO!$T$9:$T$993, " ") ->  | I113: 0 | M113: 0
A114: =IF(COUNTRY_INFO!A114=0," ",COUNTRY_INFO!A114) -> Uganda | B114: =IF(COUNTRY_INFO!B114=0," ",COUNTRY_INFO!B114) -> WESTERN | C114: =IF(COUNTRY_INFO!C114=0," ",COUNTRY_INFO!C114) -> HOIMA | D114: =IF(COUNTRY_INFO!$T$9:$T$993="MDA1 (IVM+ALB)", COUNTRY_INFO!$T$9:$T$993, " ") ->  | I114: 0 | M114: 0
A115: =IF(COUNTRY_INFO!A115=0," ",COUNTRY_INFO!A115) -> Uganda | B115: =IF(COUNTRY_INFO!B115=0," ",COUNTRY_INFO!B115) -> WESTERN | C115: =IF(COUNTRY_INFO!C115=0," ",COUNTRY_INFO!C115) -> IBANDA | D115: =IF(COUNTRY_INFO!$T$9:$T$993="MDA1 (IVM+ALB)", COUNTRY_INFO!$T$9:$T$993, " ") ->  | I115: 0 | M115: 0
A116: =IF(COUNTRY_INFO!A116=0," ",COUNTRY_INFO!A116) -> Uganda | B116: =IF(COUNTRY_INFO!B116=0," ",COUNTRY_INFO!B116) -> WESTERN | C116: =IF(COUNTRY_INFO!C116=0," ",COUNTRY_INFO!C116) -> ISINGIRO | D116: =IF(COUNTRY_INFO!$T$9:$T$993="MDA1 (IVM+ALB)", COUNTRY_INFO!$T$9:$T$993, " ") ->  | I116: 0 | M116: 0
A117: =IF(COUNTRY_INFO!A117=0," ",COUNTRY_INFO!A117) -> Uganda | B117: =IF(COUNTRY_INFO!B117=0," ",COUNTRY_INFO!B117) -> WESTERN | C117: =IF(COUNTRY_INFO!C117=0," ",COUNTRY_INFO!C117) -> KABALE | D117: =IF(COUNTRY_INFO!$T$9:$T$993="MDA1 (IVM+ALB)", COUNTRY_INFO!$T$9:$T$993, " ") ->  | I117: 0 | M117: 0
A118: =IF(COUNTRY_INFO!A118=0," ",COUNTRY_INFO!A118) -> Uganda | B118: =IF(COUNTRY_INFO!B118=0," ",COUNTRY_INFO!B118) -> WESTERN | C118: =IF(COUNTRY_INFO!C118=0," ",COUNTRY_INFO!C118) -> KABAROLE | D118: =IF(COUNTRY_INFO!$T$9:$T$993="MDA1 (IVM+ALB)", COUNTRY_INFO!$T$9:$T$993, " ") ->  | I118: 0 | M118: 0
A119: =IF(COUNTRY_INFO!A119=0," ",COUNTRY_INFO!A119) -> Uganda | B119: =IF(COUNTRY_INFO!B119=0," ",COUNTRY_INFO!B119) -> WESTERN | C119: =IF(COUNTRY_INFO!C119=0," ",COUNTRY_INFO!C119) -> KAGADI | D119: =IF(COUNTRY_INFO!$T$9:$T$993="MDA1 (IVM+ALB)", COUNTRY_INFO!$T$9:$T$993, " ") ->  | I119: 0 | M119: 0
A120: =IF(COUNTRY_INFO!A120=0," ",COUNTRY_INFO!A120) -> Uganda | B120: =IF(COUNTRY_INFO!B120=0," ",COUNTRY_INFO!B120) -> WESTERN | C120: =IF(COUNTRY_INFO!C120=0," ",COUNTRY_INFO!C120) -> KAKUMIRO | D120: =IF(COUNTRY_INFO!$T$9:$T$993="MDA1 (IVM+ALB)", COUNTRY_INFO!$T$9:$T$993, " ") ->  | I120: 0 | M120: 0
A121: =IF(COUNTRY_INFO!A121=0," ",COUNTRY_INFO!A121) -> Uganda | B121: =IF(COUNTRY_INFO!B121=0," ",COUNTRY_INFO!B121) -> WESTERN | C121: =IF(COUNTRY_INFO!C121=0," ",COUNTRY_INFO!C121) -> KAMWENGE | D121: =IF(COUNTRY_INFO!$T$9:$T$993="MDA1 (IVM+ALB)", COUNTRY_INFO!$T$9:$T$993, " ") ->  | I121: 0 | M121: 0
A122: =IF(COUNTRY_INFO!A122=0," ",COUNTRY_INFO!A122) -> Uganda | B122: =IF(COUNTRY_INFO!B122=0," ",COUNTRY_INFO!B122) -> WESTERN | C122: =IF(COUNTRY_INFO!C122=0," ",COUNTRY_INFO!C122) -> KANUNGU | D122: =IF(COUNTRY_INFO!$T$9:$T$993="MDA1 (IVM+ALB)", COUNTRY_INFO!$T$9:$T$993, " ") ->  | I122: 0 | M122: 0
A123: =IF(COUNTRY_INFO!A123=0," ",COUNTRY_INFO!A123) -> Uganda | B123: =IF(COUNTRY_INFO!B123=0," ",COUNTRY_INFO!B123) -> WESTERN | C123: =IF(COUNTRY_INFO!C123=0," ",COUNTRY_INFO!C123) -> KASESE | D123: =IF(COUNTRY_INFO!$T$9:$T$993="MDA1 (IVM+ALB)", COUNTRY_INFO!$T$9:$T$993, " ") ->  | I123: 0 | M123: 0
A124: =IF(COUNTRY_INFO!A124=0," ",COUNTRY_INFO!A124) -> Uganda | B124: =IF(COUNTRY_INFO!B124=0," ",COUNTRY_INFO!B124) -> WESTERN | C124: =IF(COUNTRY_INFO!C124=0," ",COUNTRY_INFO!C124) -> KAZO | D124: =IF(COUNTRY_INFO!$T$9:$T$993="MDA1 (IVM+ALB)", COUNTRY_INFO!$T$9:$T$993, " ") ->  | I124: 0 | M124: 0
A125: =IF(COUNTRY_INFO!A125=0," ",COUNTRY_INFO!A125) -> Uganda | B125: =IF(COUNTRY_INFO!B125=0," ",COUNTRY_INFO!B125) -> WESTERN | C125: =IF(COUNTRY_INFO!C125=0," ",COUNTRY_INFO!C125) -> KIBAALE | D125: =IF(COUNTRY_INFO!$T$9:$T$993="MDA1 (IVM+ALB)", COUNTRY_INFO!$T$9:$T$993, " ") ->  | I125: 0 | M125: 0
A126: =IF(COUNTRY_INFO!A126=0," ",COUNTRY_INFO!A126) -> Uganda | B126: =IF(COUNTRY_INFO!B126=0," ",COUNTRY_INFO!B126) -> WESTERN | C126: =IF(COUNTRY_INFO!C126=0," ",COUNTRY_INFO!C126) -> KIKUUBE | D126: =IF(COUNTRY_INFO!$T$9:$T$993="MDA1 (IVM+ALB)", COUNTRY_INFO!$T$9:$T$993, " ") ->  | I126: 0 | M126: 0
A127: =IF(COUNTRY_INFO!A127=0," ",COUNTRY_INFO!A127) -> Uganda | B127: =IF(COUNTRY_INFO!B127=0," ",COUNTRY_INFO!B127) -> WESTERN | C127: =IF(COUNTRY_INFO!C127=0," ",COUNTRY_INFO!C127) -> KIRUHURA | D127: =IF(COUNTRY_INFO!$T$9:$T$993="MDA1 (IVM+ALB)", COUNTRY_INFO!$T$9:$T$993, " ") ->  | I127: 0 | M127: 0
A128: =IF(COUNTRY_INFO!A128=0," ",COUNTRY_INFO!A128) -> Uganda | B128: =IF(COUNTRY_INFO!B128=0," ",COUNTRY_INFO!B128) -> WESTERN | C128: =IF(COUNTRY_INFO!C128=0," ",COUNTRY_INFO!C128) -> KIRYANDONGO | D128: =IF(COUNTRY_INFO!$T$9:$T$993="MDA1 (IVM+ALB)", COUNTRY_INFO!$T$9:$T$993, " ") ->  | I128: 0 | M128: 0
A129: =IF(COUNTRY_INFO!A129=0," ",COUNTRY_INFO!A129) -> Uganda | B129: =IF(COUNTRY_INFO!B129=0," ",COUNTRY_INFO!B129) -> WESTERN | C129: =IF(COUNTRY_INFO!C129=0," ",COUNTRY_INFO!C129) -> KISORO | D129: =IF(COUNTRY_INFO!$T$9:$T$993="MDA1 (IVM+ALB)", COUNTRY_INFO!$T$9:$T$993, " ") ->  | I129: 0 | M129: 0
A130: =IF(COUNTRY_INFO!A130=0," ",COUNTRY_INFO!A130) -> Uganda | B130: =IF(COUNTRY_INFO!B130=0," ",COUNTRY_INFO!B130) -> WESTERN | C130: =IF(COUNTRY_INFO!C130=0," ",COUNTRY_INFO!C130) -> KITAGWENDA | D130: =IF(COUNTRY_INFO!$T$9:$T$993="MDA1 (IVM+ALB)", COUNTRY_INFO!$T$9:$T$993, " ") ->  | I130: 0 | M130: 0
A131: =IF(COUNTRY_INFO!A131=0," ",COUNTRY_INFO!A131) -> Uganda | B131: =IF(COUNTRY_INFO!B131=0," ",COUNTRY_INFO!B131) -> WESTERN | C131: =IF(COUNTRY_INFO!C131=0," ",COUNTRY_INFO!C131) -> KYEGEGWA | D131: =IF(COUNTRY_INFO!$T$9:$T$993="MDA1 (IVM+ALB)", COUNTRY_INFO!$T$9:$T$993, " ") ->  | I131: 0 | M131: 0
A132: =IF(COUNTRY_INFO!A132=0," ",COUNTRY_INFO!A132) -> Uganda | B132: =IF(COUNTRY_INFO!B132=0," ",COUNTRY_INFO!B132) -> WESTERN | C132: =IF(COUNTRY_INFO!C132=0," ",COUNTRY_INFO!C132) -> KYENJOJO | D132: =IF(COUNTRY_INFO!$T$9:$T$993="MDA1 (IVM+ALB)", COUNTRY_INFO!$T$9:$T$993, " ") ->  | I132: 0 | M132: 0
A133: =IF(COUNTRY_INFO!A133=0," ",COUNTRY_INFO!A133) -> Uganda | B133: =IF(COUNTRY_INFO!B133=0," ",COUNTRY_INFO!B133) -> WESTERN | C133: =IF(COUNTRY_INFO!C133=0," ",COUNTRY_INFO!C133) -> MASINDI | D133: =IF(COUNTRY_INFO!$T$9:$T$993="MDA1 (IVM+ALB)", COUNTRY_INFO!$T$9:$T$993, " ") ->  | I133: 0 | M133: 0
A134: =IF(COUNTRY_INFO!A134=0," ",COUNTRY_INFO!A134) -> Uganda | B134: =IF(COUNTRY_INFO!B134=0," ",COUNTRY_INFO!B134) -> WESTERN | C134: =IF(COUNTRY_INFO!C134=0," ",COUNTRY_INFO!C134) -> MBARARA | D134: =IF(COUNTRY_INFO!$T$9:$T$993="MDA1 (IVM+ALB)", COUNTRY_INFO!$T$9:$T$993, " ") ->  | I134: 0 | M134: 0
A135: =IF(COUNTRY_INFO!A135=0," ",COUNTRY_INFO!A135) -> Uganda | B135: =IF(COUNTRY_INFO!B135=0," ",COUNTRY_INFO!B135) -> WESTERN | C135: =IF(COUNTRY_INFO!C135=0," ",COUNTRY_INFO!C135) -> MITOOMA | D135: =IF(COUNTRY_INFO!$T$9:$T$993="MDA1 (IVM+ALB)", COUNTRY_INFO!$T$9:$T$993, " ") ->  | I135: 0 | M135: 0
A136: =IF(COUNTRY_INFO!A136=0," ",COUNTRY_INFO!A136) -> Uganda | B136: =IF(COUNTRY_INFO!B136=0," ",COUNTRY_INFO!B136) -> WESTERN | C136: =IF(COUNTRY_INFO!C136=0," ",COUNTRY_INFO!C136) -> NTOROKO | D136: =IF(COUNTRY_INFO!$T$9:$T$993="MDA1 (IVM+ALB)", COUNTRY_INFO!$T$9:$T$993, " ") ->  | I136: 0 | M136: 0
A137: =IF(COUNTRY_INFO!A137=0," ",COUNTRY_INFO!A137) -> Uganda | B137: =IF(COUNTRY_INFO!B137=0," ",COUNTRY_INFO!B137) -> WESTERN | C137: =IF(COUNTRY_INFO!C137=0," ",COUNTRY_INFO!C137) -> NTUNGAMO | D137: =IF(COUNTRY_INFO!$T$9:$T$993="MDA1 (IVM+ALB)", COUNTRY_INFO!$T$9:$T$993, " ") ->  | I137: 0 | M137: 0
A138: =IF(COUNTRY_INFO!A138=0," ",COUNTRY_INFO!A138) -> Uganda | B138: =IF(COUNTRY_INFO!B138=0," ",COUNTRY_INFO!B138) -> WESTERN | C138: =IF(COUNTRY_INFO!C138=0," ",COUNTRY_INFO!C138) -> RUBANDA | D138: =IF(COUNTRY_INFO!$T$9:$T$993="MDA1 (IVM+ALB)", COUNTRY_INFO!$T$9:$T$993, " ") ->  | I138: =SUM(F138:H138) -> 0 | M138: =SUM(J138:L138) -> 0 | O138: =IF(G138<>0, IF(K138/G138*100=0, "-", K138/G138*100), " ") ->  | P138: =IF(H138<>0, IF(L138/H138*100=0, "-", L138/H138*100), " ") ->  | Q138: =IF(I138<>0, IF(M138/I138*100=0, "-", M138/I138*100), " ") -> 
A139: =IF(COUNTRY_INFO!A139=0," ",COUNTRY_INFO!A139) -> Uganda | B139: =IF(COUNTRY_INFO!B139=0," ",COUNTRY_INFO!B139) -> WESTERN | C139: =IF(COUNTRY_INFO!C139=0," ",COUNTRY_INFO!C139) -> RUBIRIZI | D139: =IF(COUNTRY_INFO!$T$9:$T$993="MDA1 (IVM+ALB)", COUNTRY_INFO!$T$9:$T$993, " ") ->  | I139: 0 | M139: 0
A140: =IF(COUNTRY_INFO!A140=0," ",COUNTRY_INFO!A140) -> Uganda | B140: =IF(COUNTRY_INFO!B140=0," ",COUNTRY_INFO!B140) -> WESTERN | C140: =IF(COUNTRY_INFO!C140=0," ",COUNTRY_INFO!C140) -> RUKIGA | D140: =IF(COUNTRY_INFO!$T$9:$T$993="MDA1 (IVM+ALB)", COUNTRY_INFO!$T$9:$T$993, " ") ->  | I140: 0 | M140: 0
A141: =IF(COUNTRY_INFO!A141=0," ",COUNTRY_INFO!A141) -> Uganda | B141: =IF(COUNTRY_INFO!B141=0," ",COUNTRY_INFO!B141) -> WESTERN | C141: =IF(COUNTRY_INFO!C141=0," ",COUNTRY_INFO!C141) -> RUKUNGIRI | D141: =IF(COUNTRY_INFO!$T$9:$T$993="MDA1 (IVM+ALB)", COUNTRY_INFO!$T$9:$T$993, " ") ->  | I141: 0 | M141: 0
A142: =IF(COUNTRY_INFO!A142=0," ",COUNTRY_INFO!A142) -> Uganda | B142: =IF(COUNTRY_INFO!B142=0," ",COUNTRY_INFO!B142) -> WESTERN | C142: =IF(COUNTRY_INFO!C142=0," ",COUNTRY_INFO!C142) -> RWAMPARA | D142: =IF(COUNTRY_INFO!$T$9:$T$993="MDA1 (IVM+ALB)", COUNTRY_INFO!$T$9:$T$993, " ") ->  | I142: 0 | M142: 0
A143: =IF(COUNTRY_INFO!A143=0," ",COUNTRY_INFO!A143) -> Uganda | B143: =IF(COUNTRY_INFO!B143=0," ",COUNTRY_INFO!B143) -> WESTERN | C143: =IF(COUNTRY_INFO!C143=0," ",COUNTRY_INFO!C143) -> SHEEMA | D143: =IF(COUNTRY_INFO!$T$9:$T$993="MDA1 (IVM+ALB)", COUNTRY_INFO!$T$9:$T$993, " ") ->  | I143: 0 | M143: 0
A144: =IF(COUNTRY_INFO!A144=0," ",COUNTRY_INFO!A144) -> Uganda | B144: =IF(COUNTRY_INFO!B144=0," ",COUNTRY_INFO!B144) ->  | C144: =IF(COUNTRY_INFO!C144=0," ",COUNTRY_INFO!C144) ->  | D144: =IF(COUNTRY_INFO!$T$9:$T$993="MDA1 (IVM+ALB)", COUNTRY_INFO!$T$9:$T$993, " ") ->  | I144: 0 | M144: 0

Sheet MDA2 (hidden)
A1: MDA 2 - Diethylcarbamazine citrate (DEC) + Albendazole (ALB)
A2: Administrative structure, population requiring PC by age group, population treated by age group and coverage
A4: TOTAL | F4: =SUM(F$9:F$1000) -> 0 | G4: =SUM(G$9:G$1000) -> 0 | H4: 0 | I4: 0 | J4: 0 | K4: 0 | L4: 0 | M4: 0 | N4: =IF(F4<>0, IF(J4/F4*100=0, "-", J4/F4*100), " ") ->  | O4: =IF(G4<>0, IF(K4/G4*100=0, "-", K4/G4*100), " ") ->  | P4: =IF(H4<>0, IF(L4/H4*100=0, "-", L4/H4*100), " ") ->  | Q4: =IF(I4<>0, IF(M4/I4*100=0, "-", M4/I4*100), " ") -> 
D6: PC implemented | E6: Date | F6: Population targeted for MDA 2 | J6: Population treated | N6: Programme coverage (%)
A7: Country | B7: Province/State | C7: District | F7: PreSAC | G7: SAC | H7: Adults | I7: Total | J7: PreSAC | K7: SAC | L7: Adults | M7: Total | N7: PreSAC | O7: SAC | P7: Adults | Q7: Total
A9: =IF(COUNTRY_INFO!A9=0," ",COUNTRY_INFO!A9) -> Uganda | B9: =IF(COUNTRY_INFO!B9=0," ",COUNTRY_INFO!B9) -> CENTRAL | C9: =IF(COUNTRY_INFO!C9=0," ",COUNTRY_INFO!C9) -> BUIKWE | D9: =IF(COUNTRY_INFO!$T$9:$T$993="MDA2 (DEC+ALB)", COUNTRY_INFO!$T$9:$T$993, " ") ->  | I9: =SUM(F9:H9) -> 0 | M9: =SUM(J9:L9) -> 0 | N9: =IF(F9<>0, IF(J9/F9*100=0, "-", J9/F9*100), " ") -> 
A10: =IF(COUNTRY_INFO!A10=0," ",COUNTRY_INFO!A10) -> Uganda | B10: =IF(COUNTRY_INFO!B10=0," ",COUNTRY_INFO!B10) -> CENTRAL | C10: =IF(COUNTRY_INFO!C10=0," ",COUNTRY_INFO!C10) -> BUKOMANSIMBI | D10: =IF(COUNTRY_INFO!$T$9:$T$993="MDA2 (DEC+ALB)", COUNTRY_INFO!$T$9:$T$993, " ") ->  | I10: =SUM(F10:H10) -> 0 | M10: =SUM(J10:L10) -> 0 | N10: =IF(F10<>0, IF(J10/F10*100=0, "-", J10/F10*100), " ") ->  | O10: =IF(G10<>0, IF(K10/G10*100=0, "-", K10/G10*100), " ") ->  | P10: =IF(H10<>0, IF(L10/H10*100=0, "-", L10/H10*100), " ") ->  | Q10: =IF(I10<>0, IF(M10/I10*100=0, "-", M10/I10*100), " ") -> 
A11: =IF(COUNTRY_INFO!A11=0," ",COUNTRY_INFO!A11) -> Uganda | B11: =IF(COUNTRY_INFO!B11=0," ",COUNTRY_INFO!B11) -> CENTRAL | C11: =IF(COUNTRY_INFO!C11=0," ",COUNTRY_INFO!C11) -> BUTAMBALA | D11: =IF(COUNTRY_INFO!$T$9:$T$993="MDA2 (DEC+ALB)", COUNTRY_INFO!$T$9:$T$993, " ") ->  | I11: 0 | M11: 0
A12: =IF(COUNTRY_INFO!A12=0," ",COUNTRY_INFO!A12) -> Uganda | B12: =IF(COUNTRY_INFO!B12=0," ",COUNTRY_INFO!B12) -> CENTRAL | C12: =IF(COUNTRY_INFO!C12=0," ",COUNTRY_INFO!C12) -> BUVUMA | D12: =IF(COUNTRY_INFO!$T$9:$T$993="MDA2 (DEC+ALB)", COUNTRY_INFO!$T$9:$T$993, " ") ->  | I12: 0 | M12: 0
A13: =IF(COUNTRY_INFO!A13=0," ",COUNTRY_INFO!A13) -> Uganda | B13: =IF(COUNTRY_INFO!B13=0," ",COUNTRY_INFO!B13) -> CENTRAL | C13: =IF(COUNTRY_INFO!C13=0," ",COUNTRY_INFO!C13) -> GOMBA | D13: =IF(COUNTRY_INFO!$T$9:$T$993="MDA2 (DEC+ALB)", COUNTRY_INFO!$T$9:$T$993, " ") ->  | I13: 0 | M13: 0
A14: =IF(COUNTRY_INFO!A14=0," ",COUNTRY_INFO!A14) -> Uganda | B14: =IF(COUNTRY_INFO!B14=0," ",COUNTRY_INFO!B14) -> CENTRAL | C14: =IF(COUNTRY_INFO!C14=0," ",COUNTRY_INFO!C14) -> KALANGALA | D14: =IF(COUNTRY_INFO!$T$9:$T$993="MDA2 (DEC+ALB)", COUNTRY_INFO!$T$9:$T$993, " ") ->  | I14: 0 | M14: 0
A15: =IF(COUNTRY_INFO!A15=0," ",COUNTRY_INFO!A15) -> Uganda | B15: =IF(COUNTRY_INFO!B15=0," ",COUNTRY_INFO!B15) -> CENTRAL | C15: =IF(COUNTRY_INFO!C15=0," ",COUNTRY_INFO!C15) -> KALUNGU | D15: =IF(COUNTRY_INFO!$T$9:$T$993="MDA2 (DEC+ALB)", COUNTRY_INFO!$T$9:$T$993, " ") ->  | I15: 0 | M15: 0
A16: =IF(COUNTRY_INFO!A16=0," ",COUNTRY_INFO!A16) -> Uganda | B16: =IF(COUNTRY_INFO!B16=0," ",COUNTRY_INFO!B16) -> CENTRAL | C16: =IF(COUNTRY_INFO!C16=0," ",COUNTRY_INFO!C16) -> KAMPALA | D16: =IF(COUNTRY_INFO!$T$9:$T$993="MDA2 (DEC+ALB)", COUNTRY_INFO!$T$9:$T$993, " ") ->  | I16: 0 | M16: 0
A17: =IF(COUNTRY_INFO!A17=0," ",COUNTRY_INFO!A17) -> Uganda | B17: =IF(COUNTRY_INFO!B17=0," ",COUNTRY_INFO!B17) -> CENTRAL | C17: =IF(COUNTRY_INFO!C17=0," ",COUNTRY_INFO!C17) -> KASSANDA | D17: =IF(COUNTRY_INFO!$T$9:$T$993="MDA2 (DEC+ALB)", COUNTRY_INFO!$T$9:$T$993, " ") ->  | I17: 0 | M17: 0
A18: =IF(COUNTRY_INFO!A18=0," ",COUNTRY_INFO!A18) -> Uganda | B18: =IF(COUNTRY_INFO!B18=0," ",COUNTRY_INFO!B18) -> CENTRAL | C18: =IF(COUNTRY_INFO!C18=0," ",COUNTRY_INFO!C18) -> KAYUNGA | D18: =IF(COUNTRY_INFO!$T$9:$T$993="MDA2 (DEC+ALB)", COUNTRY_INFO!$T$9:$T$993, " ") ->  | I18: 0 | M18: 0
A19: =IF(COUNTRY_INFO!A19=0," ",COUNTRY_INFO!A19) -> Uganda | B19: =IF(COUNTRY_INFO!B19=0," ",COUNTRY_INFO!B19) -> CENTRAL | C19: =IF(COUNTRY_INFO!C19=0," ",COUNTRY_INFO!C19) -> KIBOGA | D19: =IF(COUNTRY_INFO!$T$9:$T$993="MDA2 (DEC+ALB)", COUNTRY_INFO!$T$9:$T$993, " ") ->  | I19: 0 | M19: 0
A20: =IF(COUNTRY_INFO!A20=0," ",COUNTRY_INFO!A20) -> Uganda | B20: =IF(COUNTRY_INFO!B20=0," ",COUNTRY_INFO!B20) -> CENTRAL | C20: =IF(COUNTRY_INFO!C20=0," ",COUNTRY_INFO!C20) -> KYANKWANZI | D20: =IF(COUNTRY_INFO!$T$9:$T$993="MDA2 (DEC+ALB)", COUNTRY_INFO!$T$9:$T$993, " ") ->  | I20: 0 | M20: 0
A21: =IF(COUNTRY_INFO!A21=0," ",COUNTRY_INFO!A21) -> Uganda | B21: =IF(COUNTRY_INFO!B21=0," ",COUNTRY_INFO!B21) -> CENTRAL | C21: =IF(COUNTRY_INFO!C21=0," ",COUNTRY_INFO!C21) -> KYOTERA | D21: =IF(COUNTRY_INFO!$T$9:$T$993="MDA2 (DEC+ALB)", COUNTRY_INFO!$T$9:$T$993, " ") ->  | I21: 0 | M21: 0
A22: =IF(COUNTRY_INFO!A22=0," ",COUNTRY_INFO!A22) -> Uganda | B22: =IF(COUNTRY_INFO!B22=0," ",COUNTRY_INFO!B22) -> CENTRAL | C22: =IF(COUNTRY_INFO!C22=0," ",COUNTRY_INFO!C22) -> LUWERO | D22: =IF(COUNTRY_INFO!$T$9:$T$993="MDA2 (DEC+ALB)", COUNTRY_INFO!$T$9:$T$993, " ") ->  | I22: 0 | M22: 0
A23: =IF(COUNTRY_INFO!A23=0," ",COUNTRY_INFO!A23) -> Uganda | B23: =IF(COUNTRY_INFO!B23=0," ",COUNTRY_INFO!B23) -> CENTRAL | C23: =IF(COUNTRY_INFO!C23=0," ",COUNTRY_INFO!C23) -> LWENGO | D23: =IF(COUNTRY_INFO!$T$9:$T$993="MDA2 (DEC+ALB)", COUNTRY_INFO!$T$9:$T$993, " ") ->  | I23: 0 | M23: 0
A24: =IF(COUNTRY_INFO!A24=0," ",COUNTRY_INFO!A24) -> Uganda | B24: =IF(COUNTRY_INFO!B24=0," ",COUNTRY_INFO!B24) -> CENTRAL | C24: =IF(COUNTRY_INFO!C24=0," ",COUNTRY_INFO!C24) -> LYANTONDE | D24: =IF(COUNTRY_INFO!$T$9:$T$993="MDA2 (DEC+ALB)", COUNTRY_INFO!$T$9:$T$993, " ") ->  | I24: 0 | M24: 0
A25: =IF(COUNTRY_INFO!A25=0," ",COUNTRY_INFO!A25) -> Uganda | B25: =IF(COUNTRY_INFO!B25=0," ",COUNTRY_INFO!B25) -> CENTRAL | C25: =IF(COUNTRY_INFO!C25=0," ",COUNTRY_INFO!C25) -> MASAKA | D25: =IF(COUNTRY_INFO!$T$9:$T$993="MDA2 (DEC+ALB)", COUNTRY_INFO!$T$9:$T$993, " ") ->  | I25: 0 | M25: 0
A26: =IF(COUNTRY_INFO!A26=0," ",COUNTRY_INFO!A26) -> Uganda | B26: =IF(COUNTRY_INFO!B26=0," ",COUNTRY_INFO!B26) -> CENTRAL | C26: =IF(COUNTRY_INFO!C26=0," ",COUNTRY_INFO!C26) -> MITYANA | D26: =IF(COUNTRY_INFO!$T$9:$T$993="MDA2 (DEC+ALB)", COUNTRY_INFO!$T$9:$T$993, " ") ->  | I26: 0 | M26: 0
A27: =IF(COUNTRY_INFO!A27=0," ",COUNTRY_INFO!A27) -> Uganda | B27: =IF(COUNTRY_INFO!B27=0," ",COUNTRY_INFO!B27) -> CENTRAL | C27: =IF(COUNTRY_INFO!C27=0," ",COUNTRY_INFO!C27) -> MPIGI | D27: =IF(COUNTRY_INFO!$T$9:$T$993="MDA2 (DEC+ALB)", COUNTRY_INFO!$T$9:$T$993, " ") ->  | I27: 0 | M27: 0
A28: =IF(COUNTRY_INFO!A28=0," ",COUNTRY_INFO!A28) -> Uganda | B28: =IF(COUNTRY_INFO!B28=0," ",COUNTRY_INFO!B28) -> CENTRAL | C28: =IF(COUNTRY_INFO!C28=0," ",COUNTRY_INFO!C28) -> MUBENDE | D28: =IF(COUNTRY_INFO!$T$9:$T$993="MDA2 (DEC+ALB)", COUNTRY_INFO!$T$9:$T$993, " ") ->  | I28: 0 | M28: 0
A29: =IF(COUNTRY_INFO!A29=0," ",COUNTRY_INFO!A29) -> Uganda | B29: =IF(COUNTRY_INFO!B29=0," ",COUNTRY_INFO!B29) -> CENTRAL | C29: =IF(COUNTRY_INFO!C29=0," ",COUNTRY_INFO!C29) -> MUKONO | D29: =IF(COUNTRY_INFO!$T$9:$T$993="MDA2 (DEC+ALB)", COUNTRY_INFO!$T$9:$T$993, " ") ->  | I29: 0 | M29: 0
A30: =IF(COUNTRY_INFO!A30=0," ",COUNTRY_INFO!A30) -> Uganda | B30: =IF(COUNTRY_INFO!B30=0," ",COUNTRY_INFO!B30) -> CENTRAL | C30: =IF(COUNTRY_INFO!C30=0," ",COUNTRY_INFO!C30) -> NAKASEKE | D30: =IF(COUNTRY_INFO!$T$9:$T$993="MDA2 (DEC+ALB)", COUNTRY_INFO!$T$9:$T$993, " ") ->  | I30: 0 | M30: 0
A31: =IF(COUNTRY_INFO!A31=0," ",COUNTRY_INFO!A31) -> Uganda | B31: =IF(COUNTRY_INFO!B31=0," ",COUNTRY_INFO!B31) -> CENTRAL | C31: =IF(COUNTRY_INFO!C31=0," ",COUNTRY_INFO!C31) -> NAKASONGOLA | D31: =IF(COUNTRY_INFO!$T$9:$T$993="MDA2 (DEC+ALB)", COUNTRY_INFO!$T$9:$T$993, " ") ->  | I31: 0 | M31: 0
A32: =IF(COUNTRY_INFO!A32=0," ",COUNTRY_INFO!A32) -> Uganda | B32: =IF(COUNTRY_INFO!B32=0," ",COUNTRY_INFO!B32) -> CENTRAL | C32: =IF(COUNTRY_INFO!C32=0," ",COUNTRY_INFO!C32) -> RAKAI | D32: =IF(COUNTRY_INFO!$T$9:$T$993="MDA2 (DEC+ALB)", COUNTRY_INFO!$T$9:$T$993, " ") ->  | I32: 0 | M32: 0
A33: =IF(COUNTRY_INFO!A33=0," ",COUNTRY_INFO!A33) -> Uganda | B33: =IF(COUNTRY_INFO!B33=0," ",COUNTRY_INFO!B33) -> CENTRAL | C33: =IF(COUNTRY_INFO!C33=0," ",COUNTRY_INFO!C33) -> SEMBABULE | D33: =IF(COUNTRY_INFO!$T$9:$T$993="MDA2 (DEC+ALB)", COUNTRY_INFO!$T$9:$T$993, " ") ->  | I33: 0 | M33: 0
A34: =IF(COUNTRY_INFO!A34=0," ",COUNTRY_INFO!A34) -> Uganda | B34: =IF(COUNTRY_INFO!B34=0," ",COUNTRY_INFO!B34) -> CENTRAL | C34: =IF(COUNTRY_INFO!C34=0," ",COUNTRY_INFO!C34) -> WAKISO | D34: =IF(COUNTRY_INFO!$T$9:$T$993="MDA2 (DEC+ALB)", COUNTRY_INFO!$T$9:$T$993, " ") ->  | I34: 0 | M34: 0
A35: =IF(COUNTRY_INFO!A35=0," ",COUNTRY_INFO!A35) -> Uganda | B35: =IF(COUNTRY_INFO!B35=0," ",COUNTRY_INFO!B35) -> EASTERN | C35: =IF(COUNTRY_INFO!C35=0," ",COUNTRY_INFO!C35) -> AMURIA | D35: =IF(COUNTRY_INFO!$T$9:$T$993="MDA2 (DEC+ALB)", COUNTRY_INFO!$T$9:$T$993, " ") ->  | I35: 0 | M35: 0
A36: =IF(COUNTRY_INFO!A36=0," ",COUNTRY_INFO!A36) -> Uganda | B36: =IF(COUNTRY_INFO!B36=0," ",COUNTRY_INFO!B36) -> EASTERN | C36: =IF(COUNTRY_INFO!C36=0," ",COUNTRY_INFO!C36) -> BUDAKA | D36: =IF(COUNTRY_INFO!$T$9:$T$993="MDA2 (DEC+ALB)", COUNTRY_INFO!$T$9:$T$993, " ") ->  | I36: 0 | M36: 0
A37: =IF(COUNTRY_INFO!A37=0," ",COUNTRY_INFO!A37) -> Uganda | B37: =IF(COUNTRY_INFO!B37=0," ",COUNTRY_INFO!B37) -> EASTERN | C37: =IF(COUNTRY_INFO!C37=0," ",COUNTRY_INFO!C37) -> BUDUDA | D37: =IF(COUNTRY_INFO!$T$9:$T$993="MDA2 (DEC+ALB)", COUNTRY_INFO!$T$9:$T$993, " ") ->  | I37: 0 | M37: 0
A38: =IF(COUNTRY_INFO!A38=0," ",COUNTRY_INFO!A38) -> Uganda | B38: =IF(COUNTRY_INFO!B38=0," ",COUNTRY_INFO!B38) -> EASTERN | C38: =IF(COUNTRY_INFO!C38=0," ",COUNTRY_INFO!C38) -> BUGIRI | D38: =IF(COUNTRY_INFO!$T$9:$T$993="MDA2 (DEC+ALB)", COUNTRY_INFO!$T$9:$T$993, " ") ->  | I38: 0 | M38: 0
A39: =IF(COUNTRY_INFO!A39=0," ",COUNTRY_INFO!A39) -> Uganda | B39: =IF(COUNTRY_INFO!B39=0," ",COUNTRY_INFO!B39) -> EASTERN | C39: =IF(COUNTRY_INFO!C39=0," ",COUNTRY_INFO!C39) -> BUGWERI | D39: =IF(COUNTRY_INFO!$T$9:$T$993="MDA2 (DEC+ALB)", COUNTRY_INFO!$T$9:$T$993, " ") ->  | I39: 0 | M39: 0
A40: =IF(COUNTRY_INFO!A40=0," ",COUNTRY_INFO!A40) -> Uganda | B40: =IF(COUNTRY_INFO!B40=0," ",COUNTRY_INFO!B40) -> EASTERN | C40: =IF(COUNTRY_INFO!C40=0," ",COUNTRY_INFO!C40) -> BUKEDEA | D40: =IF(COUNTRY_INFO!$T$9:$T$993="MDA2 (DEC+ALB)", COUNTRY_INFO!$T$9:$T$993, " ") ->  | I40: 0 | M40: 0
A41: =IF(COUNTRY_INFO!A41=0," ",COUNTRY_INFO!A41) -> Uganda | B41: =IF(COUNTRY_INFO!B41=0," ",COUNTRY_INFO!B41) -> EASTERN | C41: =IF(COUNTRY_INFO!C41=0," ",COUNTRY_INFO!C41) -> BUKWO | D41: =IF(COUNTRY_INFO!$T$9:$T$993="MDA2 (DEC+ALB)", COUNTRY_INFO!$T$9:$T$993, " ") ->  | I41: 0 | M41: 0
A42: =IF(COUNTRY_INFO!A42=0," ",COUNTRY_INFO!A42) -> Uganda | B42: =IF(COUNTRY_INFO!B42=0," ",COUNTRY_INFO!B42) -> EASTERN | C42: =IF(COUNTRY_INFO!C42=0," ",COUNTRY_INFO!C42) -> BULAMBULI | D42: =IF(COUNTRY_INFO!$T$9:$T$993="MDA2 (DEC+ALB)", COUNTRY_INFO!$T$9:$T$993, " ") ->  | I42: 0 | M42: 0
A43: =IF(COUNTRY_INFO!A43=0," ",COUNTRY_INFO!A43) -> Uganda | B43: =IF(COUNTRY_INFO!B43=0," ",COUNTRY_INFO!B43) -> EASTERN | C43: =IF(COUNTRY_INFO!C43=0," ",COUNTRY_INFO!C43) -> BUSIA | D43: =IF(COUNTRY_INFO!$T$9:$T$993="MDA2 (DEC+ALB)", COUNTRY_INFO!$T$9:$T$993, " ") ->  | I43: 0 | M43: 0
A44: =IF(COUNTRY_INFO!A44=0," ",COUNTRY_INFO!A44) -> Uganda | B44: =IF(COUNTRY_INFO!B44=0," ",COUNTRY_INFO!B44) -> EASTERN | C44: =IF(COUNTRY_INFO!C44=0," ",COUNTRY_INFO!C44) -> BUTALEJA | D44: =IF(COUNTRY_INFO!$T$9:$T$993="MDA2 (DEC+ALB)", COUNTRY_INFO!$T$9:$T$993, " ") ->  | I44: 0 | M44: 0
A45: =IF(COUNTRY_INFO!A45=0," ",COUNTRY_INFO!A45) -> Uganda | B45: =IF(COUNTRY_INFO!B45=0," ",COUNTRY_INFO!B45) -> EASTERN | C45: =IF(COUNTRY_INFO!C45=0," ",COUNTRY_INFO!C45) -> BUTEBO | D45: =IF(COUNTRY_INFO!$T$9:$T$993="MDA2 (DEC+ALB)", COUNTRY_INFO!$T$9:$T$993, " ") ->  | I45: 0 | M45: 0
A46: =IF(COUNTRY_INFO!A46=0," ",COUNTRY_INFO!A46) -> Uganda | B46: =IF(COUNTRY_INFO!B46=0," ",COUNTRY_INFO!B46) -> EASTERN | C46: =IF(COUNTRY_INFO!C46=0," ",COUNTRY_INFO!C46) -> BUYENDE | D46: =IF(COUNTRY_INFO!$T$9:$T$993="MDA2 (DEC+ALB)", COUNTRY_INFO!$T$9:$T$993, " ") ->  | I46: 0 | M46: 0
A47: =IF(COUNTRY_INFO!A47=0," ",COUNTRY_INFO!A47) -> Uganda | B47: =IF(COUNTRY_INFO!B47=0," ",COUNTRY_INFO!B47) -> EASTERN | C47: =IF(COUNTRY_INFO!C47=0," ",COUNTRY_INFO!C47) -> IGANGA | D47: =IF(COUNTRY_INFO!$T$9:$T$993="MDA2 (DEC+ALB)", COUNTRY_INFO!$T$9:$T$993, " ") ->  | I47: 0 | M47: 0
A48: =IF(COUNTRY_INFO!A48=0," ",COUNTRY_INFO!A48) -> Uganda | B48: =IF(COUNTRY_INFO!B48=0," ",COUNTRY_INFO!B48) -> EASTERN | C48: =IF(COUNTRY_INFO!C48=0," ",COUNTRY_INFO!C48) -> JINJA | D48: =IF(COUNTRY_INFO!$T$9:$T$993="MDA2 (DEC+ALB)", COUNTRY_INFO!$T$9:$T$993, " ") ->  | I48: 0 | M48: 0
A49: =IF(COUNTRY_INFO!A49=0," ",COUNTRY_INFO!A49) -> Uganda | B49: =IF(COUNTRY_INFO!B49=0," ",COUNTRY_INFO!B49) -> EASTERN | C49: =IF(COUNTRY_INFO!C49=0," ",COUNTRY_INFO!C49) -> KABERAMAIDO | D49: =IF(COUNTRY_INFO!$T$9:$T$993="MDA2 (DEC+ALB)", COUNTRY_INFO!$T$9:$T$993, " ") ->  | I49: 0 | M49: 0
A50: =IF(COUNTRY_INFO!A50=0," ",COUNTRY_INFO!A50) -> Uganda | B50: =IF(COUNTRY_INFO!B50=0," ",COUNTRY_INFO!B50) -> EASTERN | C50: =IF(COUNTRY_INFO!C50=0," ",COUNTRY_INFO!C50) -> KALAKI | D50: =IF(COUNTRY_INFO!$T$9:$T$993="MDA2 (DEC+ALB)", COUNTRY_INFO!$T$9:$T$993, " ") ->  | I50: 0 | M50: 0
A51: =IF(COUNTRY_INFO!A51=0," ",COUNTRY_INFO!A51) -> Uganda | B51: =IF(COUNTRY_INFO!B51=0," ",COUNTRY_INFO!B51) -> EASTERN | C51: =IF(COUNTRY_INFO!C51=0," ",COUNTRY_INFO!C51) -> KALIRO | D51: =IF(COUNTRY_INFO!$T$9:$T$993="MDA2 (DEC+ALB)", COUNTRY_INFO!$T$9:$T$993, " ") ->  | I51: 0 | M51: 0
A52: =IF(COUNTRY_INFO!A52=0," ",COUNTRY_INFO!A52) -> Uganda | B52: =IF(COUNTRY_INFO!B52=0," ",COUNTRY_INFO!B52) -> EASTERN | C52: =IF(COUNTRY_INFO!C52=0," ",COUNTRY_INFO!C52) -> KAMULI | D52: =IF(COUNTRY_INFO!$T$9:$T$993="MDA2 (DEC+ALB)", COUNTRY_INFO!$T$9:$T$993, " ") ->  | I52: 0 | M52: 0
A53: =IF(COUNTRY_INFO!A53=0," ",COUNTRY_INFO!A53) -> Uganda | B53: =IF(COUNTRY_INFO!B53=0," ",COUNTRY_INFO!B53) -> EASTERN | C53: =IF(COUNTRY_INFO!C53=0," ",COUNTRY_INFO!C53) -> KAPCHORWA | D53: =IF(COUNTRY_INFO!$T$9:$T$993="MDA2 (DEC+ALB)", COUNTRY_INFO!$T$9:$T$993, " ") ->  | I53: 0 | M53: 0
A54: =IF(COUNTRY_INFO!A54=0," ",COUNTRY_INFO!A54) -> Uganda | B54: =IF(COUNTRY_INFO!B54=0," ",COUNTRY_INFO!B54) -> EASTERN | C54: =IF(COUNTRY_INFO!C54=0," ",COUNTRY_INFO!C54) -> KAPELEBYONG | D54: =IF(COUNTRY_INFO!$T$9:$T$993="MDA2 (DEC+ALB)", COUNTRY_INFO!$T$9:$T$993, " ") ->  | I54: 0 | M54: 0
A55: =IF(COUNTRY_INFO!A55=0," ",COUNTRY_INFO!A55) -> Uganda | B55: =IF(COUNTRY_INFO!B55=0," ",COUNTRY_INFO!B55) -> EASTERN | C55: =IF(COUNTRY_INFO!C55=0," ",COUNTRY_INFO!C55) -> KATAKWI | D55: =IF(COUNTRY_INFO!$T$9:$T$993="MDA2 (DEC+ALB)", COUNTRY_INFO!$T$9:$T$993, " ") ->  | I55: 0 | M55: 0
A56: =IF(COUNTRY_INFO!A56=0," ",COUNTRY_INFO!A56) -> Uganda | B56: =IF(COUNTRY_INFO!B56=0," ",COUNTRY_INFO!B56) -> EASTERN | C56: =IF(COUNTRY_INFO!C56=0," ",COUNTRY_INFO!C56) -> KIBUKU | D56: =IF(COUNTRY_INFO!$T$9:$T$993="MDA2 (DEC+ALB)", COUNTRY_INFO!$T$9:$T$993, " ") ->  | I56: 0 | M56: 0
A57: =IF(COUNTRY_INFO!A57=0," ",COUNTRY_INFO!A57) -> Uganda | B57: =IF(COUNTRY_INFO!B57=0," ",COUNTRY_INFO!B57) -> EASTERN | C57: =IF(COUNTRY_INFO!C57=0," ",COUNTRY_INFO!C57) -> KUMI | D57: =IF(COUNTRY_INFO!$T$9:$T$993="MDA2 (DEC+ALB)", COUNTRY_INFO!$T$9:$T$993, " ") ->  | I57: 0 | M57: 0
A58: =IF(COUNTRY_INFO!A58=0," ",COUNTRY_INFO!A58) -> Uganda | B58: =IF(COUNTRY_INFO!B58=0," ",COUNTRY_INFO!B58) -> EASTERN | C58: =IF(COUNTRY_INFO!C58=0," ",COUNTRY_INFO!C58) -> KWEEN | D58: =IF(COUNTRY_INFO!$T$9:$T$993="MDA2 (DEC+ALB)", COUNTRY_INFO!$T$9:$T$993, " ") ->  | I58: 0 | M58: 0
A59: =IF(COUNTRY_INFO!A59=0," ",COUNTRY_INFO!A59) -> Uganda | B59: =IF(COUNTRY_INFO!B59=0," ",COUNTRY_INFO!B59) -> EASTERN | C59: =IF(COUNTRY_INFO!C59=0," ",COUNTRY_INFO!C59) -> LUUKA | D59: =IF(COUNTRY_INFO!$T$9:$T$993="MDA2 (DEC+ALB)", COUNTRY_INFO!$T$9:$T$993, " ") ->  | I59: 0 | M59: 0
A60: =IF(COUNTRY_INFO!A60=0," ",COUNTRY_INFO!A60) -> Uganda | B60: =IF(COUNTRY_INFO!B60=0," ",COUNTRY_INFO!B60) -> EASTERN | C60: =IF(COUNTRY_INFO!C60=0," ",COUNTRY_INFO!C60) -> MANAFWA | D60: =IF(COUNTRY_INFO!$T$9:$T$993="MDA2 (DEC+ALB)", COUNTRY_INFO!$T$9:$T$993, " ") ->  | I60: 0 | M60: 0
A61: =IF(COUNTRY_INFO!A61=0," ",COUNTRY_INFO!A61) -> Uganda | B61: =IF(COUNTRY_INFO!B61=0," ",COUNTRY_INFO!B61) -> EASTERN | C61: =IF(COUNTRY_INFO!C61=0," ",COUNTRY_INFO!C61) -> MAYUGE | D61: =IF(COUNTRY_INFO!$T$9:$T$993="MDA2 (DEC+ALB)", COUNTRY_INFO!$T$9:$T$993, " ") ->  | I61: 0 | M61: 0
A62: =IF(COUNTRY_INFO!A62=0," ",COUNTRY_INFO!A62) -> Uganda | B62: =IF(COUNTRY_INFO!B62=0," ",COUNTRY_INFO!B62) -> EASTERN | C62: =IF(COUNTRY_INFO!C62=0," ",COUNTRY_INFO!C62) -> MBALE | D62: =IF(COUNTRY_INFO!$T$9:$T$993="MDA2 (DEC+ALB)", COUNTRY_INFO!$T$9:$T$993, " ") ->  | I62: 0 | M62: 0
A63: =IF(COUNTRY_INFO!A63=0," ",COUNTRY_INFO!A63) -> Uganda | B63: =IF(COUNTRY_INFO!B63=0," ",COUNTRY_INFO!B63) -> EASTERN | C63: =IF(COUNTRY_INFO!C63=0," ",COUNTRY_INFO!C63) -> NAMAYINGO | D63: =IF(COUNTRY_INFO!$T$9:$T$993="MDA2 (DEC+ALB)", COUNTRY_INFO!$T$9:$T$993, " ") ->  | I63: 0 | M63: 0
A64: =IF(COUNTRY_INFO!A64=0," ",COUNTRY_INFO!A64) -> Uganda | B64: =IF(COUNTRY_INFO!B64=0," ",COUNTRY_INFO!B64) -> EASTERN | C64: =IF(COUNTRY_INFO!C64=0," ",COUNTRY_INFO!C64) -> NAMISINDWA | D64: =IF(COUNTRY_INFO!$T$9:$T$993="MDA2 (DEC+ALB)", COUNTRY_INFO!$T$9:$T$993, " ") ->  | I64: 0 | M64: 0
A65: =IF(COUNTRY_INFO!A65=0," ",COUNTRY_INFO!A65) -> Uganda | B65: =IF(COUNTRY_INFO!B65=0," ",COUNTRY_INFO!B65) -> EASTERN | C65: =IF(COUNTRY_INFO!C65=0," ",COUNTRY_INFO!C65) -> NAMUTUMBA | D65: =IF(COUNTRY_INFO!$T$9:$T$993="MDA2 (DEC+ALB)", COUNTRY_INFO!$T$9:$T$993, " ") ->  | I65: 0 | M65: 0
A66: =IF(COUNTRY_INFO!A66=0," ",COUNTRY_INFO!A66) -> Uganda | B66: =IF(COUNTRY_INFO!B66=0," ",COUNTRY_INFO!B66) -> EASTERN | C66: =IF(COUNTRY_INFO!C66=0," ",COUNTRY_INFO!C66) -> NGORA | D66: =IF(COUNTRY_INFO!$T$9:$T$993="MDA2 (DEC+ALB)", COUNTRY_INFO!$T$9:$T$993, " ") ->  | I66: 0 | M66: 0
A67: =IF(COUNTRY_INFO!A67=0," ",COUNTRY_INFO!A67) -> Uganda | B67: =IF(COUNTRY_INFO!B67=0," ",COUNTRY_INFO!B67) -> EASTERN | C67: =IF(COUNTRY_INFO!C67=0," ",COUNTRY_INFO!C67) -> PALLISA | D67: =IF(COUNTRY_INFO!$T$9:$T$993="MDA2 (DEC+ALB)", COUNTRY_INFO!$T$9:$T$993, " ") ->  | I67: 0 | M67: 0
A68: =IF(COUNTRY_INFO!A68=0," ",COUNTRY_INFO!A68) -> Uganda | B68: =IF(COUNTRY_INFO!B68=0," ",COUNTRY_INFO!B68) -> EASTERN | C68: =IF(COUNTRY_INFO!C68=0," ",COUNTRY_INFO!C68) -> SERERE | D68: =IF(COUNTRY_INFO!$T$9:$T$993="MDA2 (DEC+ALB)", COUNTRY_INFO!$T$9:$T$993, " ") ->  | I68: 0 | M68: 0
A69: =IF(COUNTRY_INFO!A69=0," ",COUNTRY_INFO!A69) -> Uganda | B69: =IF(COUNTRY_INFO!B69=0," ",COUNTRY_INFO!B69) -> EASTERN | C69: =IF(COUNTRY_INFO!C69=0," ",COUNTRY_INFO!C69) -> SIRONKO | D69: =IF(COUNTRY_INFO!$T$9:$T$993="MDA2 (DEC+ALB)", COUNTRY_INFO!$T$9:$T$993, " ") ->  | I69: 0 | M69: 0
A70: =IF(COUNTRY_INFO!A70=0," ",COUNTRY_INFO!A70) -> Uganda | B70: =IF(COUNTRY_INFO!B70=0," ",COUNTRY_INFO!B70) -> EASTERN | C70: =IF(COUNTRY_INFO!C70=0," ",COUNTRY_INFO!C70) -> SOROTI | D70: =IF(COUNTRY_INFO!$T$9:$T$993="MDA2 (DEC+ALB)", COUNTRY_INFO!$T$9:$T$993, " ") ->  | I70: 0 | M70: 0
A71: =IF(COUNTRY_INFO!A71=0," ",COUNTRY_INFO!A71) -> Uganda | B71: =IF(COUNTRY_INFO!B71=0," ",COUNTRY_INFO!B71) -> EASTERN | C71: =IF(COUNTRY_INFO!C71=0," ",COUNTRY_INFO!C71) -> TORORO | D71: =IF(COUNTRY_INFO!$T$9:$T$993="MDA2 (DEC+ALB)", COUNTRY_INFO!$T$9:$T$993, " ") ->  | I71: 0 | M71: 0
A72: =IF(COUNTRY_INFO!A72=0," ",COUNTRY_INFO!A72) -> Uganda | B72: =IF(COUNTRY_INFO!B72=0," ",COUNTRY_INFO!B72) -> NORTHERN | C72: =IF(COUNTRY_INFO!C72=0," ",COUNTRY_INFO!C72) -> ABIM | D72: =IF(COUNTRY_INFO!$T$9:$T$993="MDA2 (DEC+ALB)", COUNTRY_INFO!$T$9:$T$993, " ") ->  | I72: 0 | M72: 0
A73: =IF(COUNTRY_INFO!A73=0," ",COUNTRY_INFO!A73) -> Uganda | B73: =IF(COUNTRY_INFO!B73=0," ",COUNTRY_INFO!B73) -> NORTHERN | C73: =IF(COUNTRY_INFO!C73=0," ",COUNTRY_INFO!C73) -> ADJUMANI | D73: =IF(COUNTRY_INFO!$T$9:$T$993="MDA2 (DEC+ALB)", COUNTRY_INFO!$T$9:$T$993, " ") ->  | I73: 0 | M73: 0
A74: =IF(COUNTRY_INFO!A74=0," ",COUNTRY_INFO!A74) -> Uganda | B74: =IF(COUNTRY_INFO!B74=0," ",COUNTRY_INFO!B74) -> NORTHERN | C74: =IF(COUNTRY_INFO!C74=0," ",COUNTRY_INFO!C74) -> AGAGO | D74: =IF(COUNTRY_INFO!$T$9:$T$993="MDA2 (DEC+ALB)", COUNTRY_INFO!$T$9:$T$993, " ") ->  | I74: =SUM(F74:H74) -> 0 | M74: =SUM(J74:L74) -> 0 | N74: =IF(F74<>0, IF(J74/F74*100=0, "-", J74/F74*100), " ") ->  | O74: =IF(G74<>0, IF(K74/G74*100=0, "-", K74/G74*100), " ") ->  | P74: =IF(H74<>0, IF(L74/H74*100=0, "-", L74/H74*100), " ") ->  | Q74: =IF(I74<>0, IF(M74/I74*100=0, "-", M74/I74*100), " ") -> 
A75: =IF(COUNTRY_INFO!A75=0," ",COUNTRY_INFO!A75) -> Uganda | B75: =IF(COUNTRY_INFO!B75=0," ",COUNTRY_INFO!B75) -> NORTHERN | C75: =IF(COUNTRY_INFO!C75=0," ",COUNTRY_INFO!C75) -> ALEBTONG | D75: =IF(COUNTRY_INFO!$T$9:$T$993="MDA2 (DEC+ALB)", COUNTRY_INFO!$T$9:$T$993, " ") ->  | I75: 0 | M75: 0
A76: =IF(COUNTRY_INFO!A76=0," ",COUNTRY_INFO!A76) -> Uganda | B76: =IF(COUNTRY_INFO!B76=0," ",COUNTRY_INFO!B76) -> NORTHERN | C76: =IF(COUNTRY_INFO!C76=0," ",COUNTRY_INFO!C76) -> AMOLATAR | D76: =IF(COUNTRY_INFO!$T$9:$T$993="MDA2 (DEC+ALB)", COUNTRY_INFO!$T$9:$T$993, " ") ->  | I76: 0 | M76: 0
A77: =IF(COUNTRY_INFO!A77=0," ",COUNTRY_INFO!A77) -> Uganda | B77: =IF(COUNTRY_INFO!B77=0," ",COUNTRY_INFO!B77) -> NORTHERN | C77: =IF(COUNTRY_INFO!C77=0," ",COUNTRY_INFO!C77) -> AMUDAT | D77: =IF(COUNTRY_INFO!$T$9:$T$993="MDA2 (DEC+ALB)", COUNTRY_INFO!$T$9:$T$993, " ") ->  | I77: 0 | M77: 0
A78: =IF(COUNTRY_INFO!A78=0," ",COUNTRY_INFO!A78) -> Uganda | B78: =IF(COUNTRY_INFO!B78=0," ",COUNTRY_INFO!B78) -> NORTHERN | C78: =IF(COUNTRY_INFO!C78=0," ",COUNTRY_INFO!C78) -> AMURU | D78: =IF(COUNTRY_INFO!$T$9:$T$993="MDA2 (DEC+ALB)", COUNTRY_INFO!$T$9:$T$993, " ") ->  | I78: 0 | M78: 0
A79: =IF(COUNTRY_INFO!A79=0," ",COUNTRY_INFO!A79) -> Uganda | B79: =IF(COUNTRY_INFO!B79=0," ",COUNTRY_INFO!B79) -> NORTHERN | C79: =IF(COUNTRY_INFO!C79=0," ",COUNTRY_INFO!C79) -> APAC | D79: =IF(COUNTRY_INFO!$T$9:$T$993="MDA2 (DEC+ALB)", COUNTRY_INFO!$T$9:$T$993, " ") ->  | I79: 0 | M79: 0
A80: =IF(COUNTRY_INFO!A80=0," ",COUNTRY_INFO!A80) -> Uganda | B80: =IF(COUNTRY_INFO!B80=0," ",COUNTRY_INFO!B80) -> NORTHERN | C80: =IF(COUNTRY_INFO!C80=0," ",COUNTRY_INFO!C80) -> ARUA | D80: =IF(COUNTRY_INFO!$T$9:$T$993="MDA2 (DEC+ALB)", COUNTRY_INFO!$T$9:$T$993, " ") ->  | I80: 0 | M80: 0
A81: =IF(COUNTRY_INFO!A81=0," ",COUNTRY_INFO!A81) -> Uganda | B81: =IF(COUNTRY_INFO!B81=0," ",COUNTRY_INFO!B81) -> NORTHERN | C81: =IF(COUNTRY_INFO!C81=0," ",COUNTRY_INFO!C81) -> DOKOLO | D81: =IF(COUNTRY_INFO!$T$9:$T$993="MDA2 (DEC+ALB)", COUNTRY_INFO!$T$9:$T$993, " ") ->  | I81: 0 | M81: 0
A82: =IF(COUNTRY_INFO!A82=0," ",COUNTRY_INFO!A82) -> Uganda | B82: =IF(COUNTRY_INFO!B82=0," ",COUNTRY_INFO!B82) -> NORTHERN | C82: =IF(COUNTRY_INFO!C82=0," ",COUNTRY_INFO!C82) -> GULU | D82: =IF(COUNTRY_INFO!$T$9:$T$993="MDA2 (DEC+ALB)", COUNTRY_INFO!$T$9:$T$993, " ") ->  | I82: 0 | M82: 0
A83: =IF(COUNTRY_INFO!A83=0," ",COUNTRY_INFO!A83) -> Uganda | B83: =IF(COUNTRY_INFO!B83=0," ",COUNTRY_INFO!B83) -> NORTHERN | C83: =IF(COUNTRY_INFO!C83=0," ",COUNTRY_INFO!C83) -> KAABONG | D83: =IF(COUNTRY_INFO!$T$9:$T$993="MDA2 (DEC+ALB)", COUNTRY_INFO!$T$9:$T$993, " ") ->  | I83: 0 | M83: 0
A84: =IF(COUNTRY_INFO!A84=0," ",COUNTRY_INFO!A84) -> Uganda | B84: =IF(COUNTRY_INFO!B84=0," ",COUNTRY_INFO!B84) -> NORTHERN | C84: =IF(COUNTRY_INFO!C84=0," ",COUNTRY_INFO!C84) -> KARENGA | D84: =IF(COUNTRY_INFO!$T$9:$T$993="MDA2 (DEC+ALB)", COUNTRY_INFO!$T$9:$T$993, " ") ->  | I84: 0 | M84: 0
A85: =IF(COUNTRY_INFO!A85=0," ",COUNTRY_INFO!A85) -> Uganda | B85: =IF(COUNTRY_INFO!B85=0," ",COUNTRY_INFO!B85) -> NORTHERN | C85: =IF(COUNTRY_INFO!C85=0," ",COUNTRY_INFO!C85) -> KITGUM | D85: =IF(COUNTRY_INFO!$T$9:$T$993="MDA2 (DEC+ALB)", COUNTRY_INFO!$T$9:$T$993, " ") ->  | I85: 0 | M85: 0
A86: =IF(COUNTRY_INFO!A86=0," ",COUNTRY_INFO!A86) -> Uganda | B86: =IF(COUNTRY_INFO!B86=0," ",COUNTRY_INFO!B86) -> NORTHERN | C86: =IF(COUNTRY_INFO!C86=0," ",COUNTRY_INFO!C86) -> KOBOKO | D86: =IF(COUNTRY_INFO!$T$9:$T$993="MDA2 (DEC+ALB)", COUNTRY_INFO!$T$9:$T$993, " ") ->  | I86: 0 | M86: 0
A87: =IF(COUNTRY_INFO!A87=0," ",COUNTRY_INFO!A87) -> Uganda | B87: =IF(COUNTRY_INFO!B87=0," ",COUNTRY_INFO!B87) -> NORTHERN | C87: =IF(COUNTRY_INFO!C87=0," ",COUNTRY_INFO!C87) -> KOLE | D87: =IF(COUNTRY_INFO!$T$9:$T$993="MDA2 (DEC+ALB)", COUNTRY_INFO!$T$9:$T$993, " ") ->  | I87: 0 | M87: 0
A88: =IF(COUNTRY_INFO!A88=0," ",COUNTRY_INFO!A88) -> Uganda | B88: =IF(COUNTRY_INFO!B88=0," ",COUNTRY_INFO!B88) -> NORTHERN | C88: =IF(COUNTRY_INFO!C88=0," ",COUNTRY_INFO!C88) -> KOTIDO | D88: =IF(COUNTRY_INFO!$T$9:$T$993="MDA2 (DEC+ALB)", COUNTRY_INFO!$T$9:$T$993, " ") ->  | I88: 0 | M88: 0
A89: =IF(COUNTRY_INFO!A89=0," ",COUNTRY_INFO!A89) -> Uganda | B89: =IF(COUNTRY_INFO!B89=0," ",COUNTRY_INFO!B89) -> NORTHERN | C89: =IF(COUNTRY_INFO!C89=0," ",COUNTRY_INFO!C89) -> KWANIA | D89: =IF(COUNTRY_INFO!$T$9:$T$993="MDA2 (DEC+ALB)", COUNTRY_INFO!$T$9:$T$993, " ") ->  | I89: 0 | M89: 0
A90: =IF(COUNTRY_INFO!A90=0," ",COUNTRY_INFO!A90) -> Uganda | B90: =IF(COUNTRY_INFO!B90=0," ",COUNTRY_INFO!B90) -> NORTHERN | C90: =IF(COUNTRY_INFO!C90=0," ",COUNTRY_INFO!C90) -> LAMWO | D90: =IF(COUNTRY_INFO!$T$9:$T$993="MDA2 (DEC+ALB)", COUNTRY_INFO!$T$9:$T$993, " ") ->  | I90: 0 | M90: 0
A91: =IF(COUNTRY_INFO!A91=0," ",COUNTRY_INFO!A91) -> Uganda | B91: =IF(COUNTRY_INFO!B91=0," ",COUNTRY_INFO!B91) -> NORTHERN | C91: =IF(COUNTRY_INFO!C91=0," ",COUNTRY_INFO!C91) -> LIRA | D91: =IF(COUNTRY_INFO!$T$9:$T$993="MDA2 (DEC+ALB)", COUNTRY_INFO!$T$9:$T$993, " ") ->  | I91: 0 | M91: 0
A92: =IF(COUNTRY_INFO!A92=0," ",COUNTRY_INFO!A92) -> Uganda | B92: =IF(COUNTRY_INFO!B92=0," ",COUNTRY_INFO!B92) -> NORTHERN | C92: =IF(COUNTRY_INFO!C92=0," ",COUNTRY_INFO!C92) -> MADI OKOLLO | D92: =IF(COUNTRY_INFO!$T$9:$T$993="MDA2 (DEC+ALB)", COUNTRY_INFO!$T$9:$T$993, " ") ->  | I92: 0 | M92: 0
A93: =IF(COUNTRY_INFO!A93=0," ",COUNTRY_INFO!A93) -> Uganda | B93: =IF(COUNTRY_INFO!B93=0," ",COUNTRY_INFO!B93) -> NORTHERN | C93: =IF(COUNTRY_INFO!C93=0," ",COUNTRY_INFO!C93) -> MARACHA | D93: =IF(COUNTRY_INFO!$T$9:$T$993="MDA2 (DEC+ALB)", COUNTRY_INFO!$T$9:$T$993, " ") ->  | I93: 0 | M93: 0
A94: =IF(COUNTRY_INFO!A94=0," ",COUNTRY_INFO!A94) -> Uganda | B94: =IF(COUNTRY_INFO!B94=0," ",COUNTRY_INFO!B94) -> NORTHERN | C94: =IF(COUNTRY_INFO!C94=0," ",COUNTRY_INFO!C94) -> MOROTO | D94: =IF(COUNTRY_INFO!$T$9:$T$993="MDA2 (DEC+ALB)", COUNTRY_INFO!$T$9:$T$993, " ") ->  | I94: 0 | M94: 0
A95: =IF(COUNTRY_INFO!A95=0," ",COUNTRY_INFO!A95) -> Uganda | B95: =IF(COUNTRY_INFO!B95=0," ",COUNTRY_INFO!B95) -> NORTHERN | C95: =IF(COUNTRY_INFO!C95=0," ",COUNTRY_INFO!C95) -> MOYO | D95: =IF(COUNTRY_INFO!$T$9:$T$993="MDA2 (DEC+ALB)", COUNTRY_INFO!$T$9:$T$993, " ") ->  | I95: 0 | M95: 0
A96: =IF(COUNTRY_INFO!A96=0," ",COUNTRY_INFO!A96) -> Uganda | B96: =IF(COUNTRY_INFO!B96=0," ",COUNTRY_INFO!B96) -> NORTHERN | C96: =IF(COUNTRY_INFO!C96=0," ",COUNTRY_INFO!C96) -> NABILATUK | D96: =IF(COUNTRY_INFO!$T$9:$T$993="MDA2 (DEC+ALB)", COUNTRY_INFO!$T$9:$T$993, " ") ->  | I96: 0 | M96: 0
A97: =IF(COUNTRY_INFO!A97=0," ",COUNTRY_INFO!A97) -> Uganda | B97: =IF(COUNTRY_INFO!B97=0," ",COUNTRY_INFO!B97) -> NORTHERN | C97: =IF(COUNTRY_INFO!C97=0," ",COUNTRY_INFO!C97) -> NAKAPIRIPIRIT | D97: =IF(COUNTRY_INFO!$T$9:$T$993="MDA2 (DEC+ALB)", COUNTRY_INFO!$T$9:$T$993, " ") ->  | I97: 0 | M97: 0
A98: =IF(COUNTRY_INFO!A98=0," ",COUNTRY_INFO!A98) -> Uganda | B98: =IF(COUNTRY_INFO!B98=0," ",COUNTRY_INFO!B98) -> NORTHERN | C98: =IF(COUNTRY_INFO!C98=0," ",COUNTRY_INFO!C98) -> NAPAK | D98: =IF(COUNTRY_INFO!$T$9:$T$993="MDA2 (DEC+ALB)", COUNTRY_INFO!$T$9:$T$993, " ") ->  | I98: 0 | M98: 0
A99: =IF(COUNTRY_INFO!A99=0," ",COUNTRY_INFO!A99) -> Uganda | B99: =IF(COUNTRY_INFO!B99=0," ",COUNTRY_INFO!B99) -> NORTHERN | C99: =IF(COUNTRY_INFO!C99=0," ",COUNTRY_INFO!C99) -> NEBBI | D99: =IF(COUNTRY_INFO!$T$9:$T$993="MDA2 (DEC+ALB)", COUNTRY_INFO!$T$9:$T$993, " ") ->  | I99: 0 | M99: 0
A100: =IF(COUNTRY_INFO!A100=0," ",COUNTRY_INFO!A100) -> Uganda | B100: =IF(COUNTRY_INFO!B100=0," ",COUNTRY_INFO!B100) -> NORTHERN | C100: =IF(COUNTRY_INFO!C100=0," ",COUNTRY_INFO!C100) -> NWOYA | D100: =IF(COUNTRY_INFO!$T$9:$T$993="MDA2 (DEC+ALB)", COUNTRY_INFO!$T$9:$T$993, " ") ->  | I100: 0 | M100: 0
A101: =IF(COUNTRY_INFO!A101=0," ",COUNTRY_INFO!A101) -> Uganda | B101: =IF(COUNTRY_INFO!B101=0," ",COUNTRY_INFO!B101) -> NORTHERN | C101: =IF(COUNTRY_INFO!C101=0," ",COUNTRY_INFO!C101) -> OBONGI | D101: =IF(COUNTRY_INFO!$T$9:$T$993="MDA2 (DEC+ALB)", COUNTRY_INFO!$T$9:$T$993, " ") ->  | I101: 0 | M101: 0
A102: =IF(COUNTRY_INFO!A102=0," ",COUNTRY_INFO!A102) -> Uganda | B102: =IF(COUNTRY_INFO!B102=0," ",COUNTRY_INFO!B102) -> NORTHERN | C102: =IF(COUNTRY_INFO!C102=0," ",COUNTRY_INFO!C102) -> OMORO | D102: =IF(COUNTRY_INFO!$T$9:$T$993="MDA2 (DEC+ALB)", COUNTRY_INFO!$T$9:$T$993, " ") ->  | I102: 0 | M102: 0
A103: =IF(COUNTRY_INFO!A103=0," ",COUNTRY_INFO!A103) -> Uganda | B103: =IF(COUNTRY_INFO!B103=0," ",COUNTRY_INFO!B103) -> NORTHERN | C103: =IF(COUNTRY_INFO!C103=0," ",COUNTRY_INFO!C103) -> OTUKE | D103: =IF(COUNTRY_INFO!$T$9:$T$993="MDA2 (DEC+ALB)", COUNTRY_INFO!$T$9:$T$993, " ") ->  | I103: 0 | M103: 0
A104: =IF(COUNTRY_INFO!A104=0," ",COUNTRY_INFO!A104) -> Uganda | B104: =IF(COUNTRY_INFO!B104=0," ",COUNTRY_INFO!B104) -> NORTHERN | C104: =IF(COUNTRY_INFO!C104=0," ",COUNTRY_INFO!C104) -> OYAM | D104: =IF(COUNTRY_INFO!$T$9:$T$993="MDA2 (DEC+ALB)", COUNTRY_INFO!$T$9:$T$993, " ") ->  | I104: 0 | M104: 0
A105: =IF(COUNTRY_INFO!A105=0," ",COUNTRY_INFO!A105) -> Uganda | B105: =IF(COUNTRY_INFO!B105=0," ",COUNTRY_INFO!B105) -> NORTHERN | C105: =IF(COUNTRY_INFO!C105=0," ",COUNTRY_INFO!C105) -> PADER | D105: =IF(COUNTRY_INFO!$T$9:$T$993="MDA2 (DEC+ALB)", COUNTRY_INFO!$T$9:$T$993, " ") ->  | I105: 0 | M105: 0
A106: =IF(COUNTRY_INFO!A106=0," ",COUNTRY_INFO!A106) -> Uganda | B106: =IF(COUNTRY_INFO!B106=0," ",COUNTRY_INFO!B106) -> NORTHERN | C106: =IF(COUNTRY_INFO!C106=0," ",COUNTRY_INFO!C106) -> PAKWACH | D106: =IF(COUNTRY_INFO!$T$9:$T$993="MDA2 (DEC+ALB)", COUNTRY_INFO!$T$9:$T$993, " ") ->  | I106: 0 | M106: 0
A107: =IF(COUNTRY_INFO!A107=0," ",COUNTRY_INFO!A107) -> Uganda | B107: =IF(COUNTRY_INFO!B107=0," ",COUNTRY_INFO!B107) -> NORTHERN | C107: =IF(COUNTRY_INFO!C107=0," ",COUNTRY_INFO!C107) -> YUMBE | D107: =IF(COUNTRY_INFO!$T$9:$T$993="MDA2 (DEC+ALB)", COUNTRY_INFO!$T$9:$T$993, " ") ->  | I107: 0 | M107: 0
A108: =IF(COUNTRY_INFO!A108=0," ",COUNTRY_INFO!A108) -> Uganda | B108: =IF(COUNTRY_INFO!B108=0," ",COUNTRY_INFO!B108) -> NORTHERN | C108: =IF(COUNTRY_INFO!C108=0," ",COUNTRY_INFO!C108) -> ZOMBO | D108: =IF(COUNTRY_INFO!$T$9:$T$993="MDA2 (DEC+ALB)", COUNTRY_INFO!$T$9:$T$993, " ") ->  | I108: 0 | M108: 0
A109: =IF(COUNTRY_INFO!A109=0," ",COUNTRY_INFO!A109) -> Uganda | B109: =IF(COUNTRY_INFO!B109=0," ",COUNTRY_INFO!B109) -> WESTERN | C109: =IF(COUNTRY_INFO!C109=0," ",COUNTRY_INFO!C109) -> BUHWEJU | D109: =IF(COUNTRY_INFO!$T$9:$T$993="MDA2 (DEC+ALB)", COUNTRY_INFO!$T$9:$T$993, " ") ->  | I109: 0 | M109: 0
A110: =IF(COUNTRY_INFO!A110=0," ",COUNTRY_INFO!A110) -> Uganda | B110: =IF(COUNTRY_INFO!B110=0," ",COUNTRY_INFO!B110) -> WESTERN | C110: =IF(COUNTRY_INFO!C110=0," ",COUNTRY_INFO!C110) -> BULIISA | D110: =IF(COUNTRY_INFO!$T$9:$T$993="MDA2 (DEC+ALB)", COUNTRY_INFO!$T$9:$T$993, " ") ->  | I110: 0 | M110: 0
A111: =IF(COUNTRY_INFO!A111=0," ",COUNTRY_INFO!A111) -> Uganda | B111: =IF(COUNTRY_INFO!B111=0," ",COUNTRY_INFO!B111) -> WESTERN | C111: =IF(COUNTRY_INFO!C111=0," ",COUNTRY_INFO!C111) -> BUNDIBUGYO | D111: =IF(COUNTRY_INFO!$T$9:$T$993="MDA2 (DEC+ALB)", COUNTRY_INFO!$T$9:$T$993, " ") ->  | I111: 0 | M111: 0
A112: =IF(COUNTRY_INFO!A112=0," ",COUNTRY_INFO!A112) -> Uganda | B112: =IF(COUNTRY_INFO!B112=0," ",COUNTRY_INFO!B112) -> WESTERN | C112: =IF(COUNTRY_INFO!C112=0," ",COUNTRY_INFO!C112) -> BUNYANGABU | D112: =IF(COUNTRY_INFO!$T$9:$T$993="MDA2 (DEC+ALB)", COUNTRY_INFO!$T$9:$T$993, " ") ->  | I112: 0 | M112: 0
A113: =IF(COUNTRY_INFO!A113=0," ",COUNTRY_INFO!A113) -> Uganda | B113: =IF(COUNTRY_INFO!B113=0," ",COUNTRY_INFO!B113) -> WESTERN | C113: =IF(COUNTRY_INFO!C113=0," ",COUNTRY_INFO!C113) -> BUSHENYI | D113: =IF(COUNTRY_INFO!$T$9:$T$993="MDA2 (DEC+ALB)", COUNTRY_INFO!$T$9:$T$993, " ") ->  | I113: 0 | M113: 0
A114: =IF(COUNTRY_INFO!A114=0," ",COUNTRY_INFO!A114) -> Uganda | B114: =IF(COUNTRY_INFO!B114=0," ",COUNTRY_INFO!B114) -> WESTERN | C114: =IF(COUNTRY_INFO!C114=0," ",COUNTRY_INFO!C114) -> HOIMA | D114: =IF(COUNTRY_INFO!$T$9:$T$993="MDA2 (DEC+ALB)", COUNTRY_INFO!$T$9:$T$993, " ") ->  | I114: 0 | M114: 0
A115: =IF(COUNTRY_INFO!A115=0," ",COUNTRY_INFO!A115) -> Uganda | B115: =IF(COUNTRY_INFO!B115=0," ",COUNTRY_INFO!B115) -> WESTERN | C115: =IF(COUNTRY_INFO!C115=0," ",COUNTRY_INFO!C115) -> IBANDA | D115: =IF(COUNTRY_INFO!$T$9:$T$993="MDA2 (DEC+ALB)", COUNTRY_INFO!$T$9:$T$993, " ") ->  | I115: 0 | M115: 0
A116: =IF(COUNTRY_INFO!A116=0," ",COUNTRY_INFO!A116) -> Uganda | B116: =IF(COUNTRY_INFO!B116=0," ",COUNTRY_INFO!B116) -> WESTERN | C116: =IF(COUNTRY_INFO!C116=0," ",COUNTRY_INFO!C116) -> ISINGIRO | D116: =IF(COUNTRY_INFO!$T$9:$T$993="MDA2 (DEC+ALB)", COUNTRY_INFO!$T$9:$T$993, " ") ->  | I116: 0 | M116: 0
A117: =IF(COUNTRY_INFO!A117=0," ",COUNTRY_INFO!A117) -> Uganda | B117: =IF(COUNTRY_INFO!B117=0," ",COUNTRY_INFO!B117) -> WESTERN | C117: =IF(COUNTRY_INFO!C117=0," ",COUNTRY_INFO!C117) -> KABALE | D117: =IF(COUNTRY_INFO!$T$9:$T$993="MDA2 (DEC+ALB)", COUNTRY_INFO!$T$9:$T$993, " ") ->  | I117: 0 | M117: 0
A118: =IF(COUNTRY_INFO!A118=0," ",COUNTRY_INFO!A118) -> Uganda | B118: =IF(COUNTRY_INFO!B118=0," ",COUNTRY_INFO!B118) -> WESTERN | C118: =IF(COUNTRY_INFO!C118=0," ",COUNTRY_INFO!C118) -> KABAROLE | D118: =IF(COUNTRY_INFO!$T$9:$T$993="MDA2 (DEC+ALB)", COUNTRY_INFO!$T$9:$T$993, " ") ->  | I118: 0 | M118: 0
A119: =IF(COUNTRY_INFO!A119=0," ",COUNTRY_INFO!A119) -> Uganda | B119: =IF(COUNTRY_INFO!B119=0," ",COUNTRY_INFO!B119) -> WESTERN | C119: =IF(COUNTRY_INFO!C119=0," ",COUNTRY_INFO!C119) -> KAGADI | D119: =IF(COUNTRY_INFO!$T$9:$T$993="MDA2 (DEC+ALB)", COUNTRY_INFO!$T$9:$T$993, " ") ->  | I119: 0 | M119: 0
A120: =IF(COUNTRY_INFO!A120=0," ",COUNTRY_INFO!A120) -> Uganda | B120: =IF(COUNTRY_INFO!B120=0," ",COUNTRY_INFO!B120) -> WESTERN | C120: =IF(COUNTRY_INFO!C120=0," ",COUNTRY_INFO!C120) -> KAKUMIRO | D120: =IF(COUNTRY_INFO!$T$9:$T$993="MDA2 (DEC+ALB)", COUNTRY_INFO!$T$9:$T$993, " ") ->  | I120: 0 | M120: 0
A121: =IF(COUNTRY_INFO!A121=0," ",COUNTRY_INFO!A121) -> Uganda | B121: =IF(COUNTRY_INFO!B121=0," ",COUNTRY_INFO!B121) -> WESTERN | C121: =IF(COUNTRY_INFO!C121=0," ",COUNTRY_INFO!C121) -> KAMWENGE | D121: =IF(COUNTRY_INFO!$T$9:$T$993="MDA2 (DEC+ALB)", COUNTRY_INFO!$T$9:$T$993, " ") ->  | I121: 0 | M121: 0
A122: =IF(COUNTRY_INFO!A122=0," ",COUNTRY_INFO!A122) -> Uganda | B122: =IF(COUNTRY_INFO!B122=0," ",COUNTRY_INFO!B122) -> WESTERN | C122: =IF(COUNTRY_INFO!C122=0," ",COUNTRY_INFO!C122) -> KANUNGU | D122: =IF(COUNTRY_INFO!$T$9:$T$993="MDA2 (DEC+ALB)", COUNTRY_INFO!$T$9:$T$993, " ") ->  | I122: 0 | M122: 0
A123: =IF(COUNTRY_INFO!A123=0," ",COUNTRY_INFO!A123) -> Uganda | B123: =IF(COUNTRY_INFO!B123=0," ",COUNTRY_INFO!B123) -> WESTERN | C123: =IF(COUNTRY_INFO!C123=0," ",COUNTRY_INFO!C123) -> KASESE | D123: =IF(COUNTRY_INFO!$T$9:$T$993="MDA2 (DEC+ALB)", COUNTRY_INFO!$T$9:$T$993, " ") ->  | I123: 0 | M123: 0
A124: =IF(COUNTRY_INFO!A124=0," ",COUNTRY_INFO!A124) -> Uganda | B124: =IF(COUNTRY_INFO!B124=0," ",COUNTRY_INFO!B124) -> WESTERN | C124: =IF(COUNTRY_INFO!C124=0," ",COUNTRY_INFO!C124) -> KAZO | D124: =IF(COUNTRY_INFO!$T$9:$T$993="MDA2 (DEC+ALB)", COUNTRY_INFO!$T$9:$T$993, " ") ->  | I124: 0 | M124: 0
A125: =IF(COUNTRY_INFO!A125=0," ",COUNTRY_INFO!A125) -> Uganda | B125: =IF(COUNTRY_INFO!B125=0," ",COUNTRY_INFO!B125) -> WESTERN | C125: =IF(COUNTRY_INFO!C125=0," ",COUNTRY_INFO!C125) -> KIBAALE | D125: =IF(COUNTRY_INFO!$T$9:$T$993="MDA2 (DEC+ALB)", COUNTRY_INFO!$T$9:$T$993, " ") ->  | I125: 0 | M125: 0
A126: =IF(COUNTRY_INFO!A126=0," ",COUNTRY_INFO!A126) -> Uganda | B126: =IF(COUNTRY_INFO!B126=0," ",COUNTRY_INFO!B126) -> WESTERN | C126: =IF(COUNTRY_INFO!C126=0," ",COUNTRY_INFO!C126) -> KIKUUBE | D126: =IF(COUNTRY_INFO!$T$9:$T$993="MDA2 (DEC+ALB)", COUNTRY_INFO!$T$9:$T$993, " ") ->  | I126: 0 | M126: 0
A127: =IF(COUNTRY_INFO!A127=0," ",COUNTRY_INFO!A127) -> Uganda | B127: =IF(COUNTRY_INFO!B127=0," ",COUNTRY_INFO!B127) -> WESTERN | C127: =IF(COUNTRY_INFO!C127=0," ",COUNTRY_INFO!C127) -> KIRUHURA | D127: =IF(COUNTRY_INFO!$T$9:$T$993="MDA2 (DEC+ALB)", COUNTRY_INFO!$T$9:$T$993, " ") ->  | I127: 0 | M127: 0
A128: =IF(COUNTRY_INFO!A128=0," ",COUNTRY_INFO!A128) -> Uganda | B128: =IF(COUNTRY_INFO!B128=0," ",COUNTRY_INFO!B128) -> WESTERN | C128: =IF(COUNTRY_INFO!C128=0," ",COUNTRY_INFO!C128) -> KIRYANDONGO | D128: =IF(COUNTRY_INFO!$T$9:$T$993="MDA2 (DEC+ALB)", COUNTRY_INFO!$T$9:$T$993, " ") ->  | I128: 0 | M128: 0
A129: =IF(COUNTRY_INFO!A129=0," ",COUNTRY_INFO!A129) -> Uganda | B129: =IF(COUNTRY_INFO!B129=0," ",COUNTRY_INFO!B129) -> WESTERN | C129: =IF(COUNTRY_INFO!C129=0," ",COUNTRY_INFO!C129) -> KISORO | D129: =IF(COUNTRY_INFO!$T$9:$T$993="MDA2 (DEC+ALB)", COUNTRY_INFO!$T$9:$T$993, " ") ->  | I129: 0 | M129: 0
A130: =IF(COUNTRY_INFO!A130=0," ",COUNTRY_INFO!A130) -> Uganda | B130: =IF(COUNTRY_INFO!B130=0," ",COUNTRY_INFO!B130) -> WESTERN | C130: =IF(COUNTRY_INFO!C130=0," ",COUNTRY_INFO!C130) -> KITAGWENDA | D130: =IF(COUNTRY_INFO!$T$9:$T$993="MDA2 (DEC+ALB)", COUNTRY_INFO!$T$9:$T$993, " ") ->  | I130: 0 | M130: 0
A131: =IF(COUNTRY_INFO!A131=0," ",COUNTRY_INFO!A131) -> Uganda | B131: =IF(COUNTRY_INFO!B131=0," ",COUNTRY_INFO!B131) -> WESTERN | C131: =IF(COUNTRY_INFO!C131=0," ",COUNTRY_INFO!C131) -> KYEGEGWA | D131: =IF(COUNTRY_INFO!$T$9:$T$993="MDA2 (DEC+ALB)", COUNTRY_INFO!$T$9:$T$993, " ") ->  | I131: 0 | M131: 0
A132: =IF(COUNTRY_INFO!A132=0," ",COUNTRY_INFO!A132) -> Uganda | B132: =IF(COUNTRY_INFO!B132=0," ",COUNTRY_INFO!B132) -> WESTERN | C132: =IF(COUNTRY_INFO!C132=0," ",COUNTRY_INFO!C132) -> KYENJOJO | D132: =IF(COUNTRY_INFO!$T$9:$T$993="MDA2 (DEC+ALB)", COUNTRY_INFO!$T$9:$T$993, " ") ->  | I132: 0 | M132: 0
A133: =IF(COUNTRY_INFO!A133=0," ",COUNTRY_INFO!A133) -> Uganda | B133: =IF(COUNTRY_INFO!B133=0," ",COUNTRY_INFO!B133) -> WESTERN | C133: =IF(COUNTRY_INFO!C133=0," ",COUNTRY_INFO!C133) -> MASINDI | D133: =IF(COUNTRY_INFO!$T$9:$T$993="MDA2 (DEC+ALB)", COUNTRY_INFO!$T$9:$T$993, " ") ->  | I133: 0 | M133: 0
A134: =IF(COUNTRY_INFO!A134=0," ",COUNTRY_INFO!A134) -> Uganda | B134: =IF(COUNTRY_INFO!B134=0," ",COUNTRY_INFO!B134) -> WESTERN | C134: =IF(COUNTRY_INFO!C134=0," ",COUNTRY_INFO!C134) -> MBARARA | D134: =IF(COUNTRY_INFO!$T$9:$T$993="MDA2 (DEC+ALB)", COUNTRY_INFO!$T$9:$T$993, " ") ->  | I134: 0 | M134: 0
A135: =IF(COUNTRY_INFO!A135=0," ",COUNTRY_INFO!A135) -> Uganda | B135: =IF(COUNTRY_INFO!B135=0," ",COUNTRY_INFO!B135) -> WESTERN | C135: =IF(COUNTRY_INFO!C135=0," ",COUNTRY_INFO!C135) -> MITOOMA | D135: =IF(COUNTRY_INFO!$T$9:$T$993="MDA2 (DEC+ALB)", COUNTRY_INFO!$T$9:$T$993, " ") ->  | I135: 0 | M135: 0
A136: =IF(COUNTRY_INFO!A136=0," ",COUNTRY_INFO!A136) -> Uganda | B136: =IF(COUNTRY_INFO!B136=0," ",COUNTRY_INFO!B136) -> WESTERN | C136: =IF(COUNTRY_INFO!C136=0," ",COUNTRY_INFO!C136) -> NTOROKO | D136: =IF(COUNTRY_INFO!$T$9:$T$993="MDA2 (DEC+ALB)", COUNTRY_INFO!$T$9:$T$993, " ") ->  | I136: 0 | M136: 0
A137: =IF(COUNTRY_INFO!A137=0," ",COUNTRY_INFO!A137) -> Uganda | B137: =IF(COUNTRY_INFO!B137=0," ",COUNTRY_INFO!B137) -> WESTERN | C137: =IF(COUNTRY_INFO!C137=0," ",COUNTRY_INFO!C137) -> NTUNGAMO | D137: =IF(COUNTRY_INFO!$T$9:$T$993="MDA2 (DEC+ALB)", COUNTRY_INFO!$T$9:$T$993, " ") ->  | I137: 0 | M137: 0
A138: =IF(COUNTRY_INFO!A138=0," ",COUNTRY_INFO!A138) -> Uganda | B138: =IF(COUNTRY_INFO!B138=0," ",COUNTRY_INFO!B138) -> WESTERN | C138: =IF(COUNTRY_INFO!C138=0," ",COUNTRY_INFO!C138) -> RUBANDA | D138: =IF(COUNTRY_INFO!$T$9:$T$993="MDA2 (DEC+ALB)", COUNTRY_INFO!$T$9:$T$993, " ") ->  | I138: =SUM(F138:H138) -> 0 | M138: =SUM(J138:L138) -> 0 | N138: =IF(F138<>0, IF(J138/F138*100=0, "-", J138/F138*100), " ") ->  | O138: =IF(G138<>0, IF(K138/G138*100=0, "-", K138/G138*100), " ") ->  | P138: =IF(H138<>0, IF(L138/H138*100=0, "-", L138/H138*100), " ") ->  | Q138: =IF(I138<>0, IF(M138/I138*100=0, "-", M138/I138*100), " ") -> 
A139: =IF(COUNTRY_INFO!A139=0," ",COUNTRY_INFO!A139) -> Uganda | B139: =IF(COUNTRY_INFO!B139=0," ",COUNTRY_INFO!B139) -> WESTERN | C139: =IF(COUNTRY_INFO!C139=0," ",COUNTRY_INFO!C139) -> RUBIRIZI | D139: =IF(COUNTRY_INFO!$T$9:$T$993="MDA2 (DEC+ALB)", COUNTRY_INFO!$T$9:$T$993, " ") ->  | I139: 0 | M139: 0
A140: =IF(COUNTRY_INFO!A140=0," ",COUNTRY_INFO!A140) -> Uganda | B140: =IF(COUNTRY_INFO!B140=0," ",COUNTRY_INFO!B140) -> WESTERN | C140: =IF(COUNTRY_INFO!C140=0," ",COUNTRY_INFO!C140) -> RUKIGA | D140: =IF(COUNTRY_INFO!$T$9:$T$993="MDA2 (DEC+ALB)", COUNTRY_INFO!$T$9:$T$993, " ") ->  | I140: 0 | M140: 0
A141: =IF(COUNTRY_INFO!A141=0," ",COUNTRY_INFO!A141) -> Uganda | B141: =IF(COUNTRY_INFO!B141=0," ",COUNTRY_INFO!B141) -> WESTERN | C141: =IF(COUNTRY_INFO!C141=0," ",COUNTRY_INFO!C141) -> RUKUNGIRI | D141: =IF(COUNTRY_INFO!$T$9:$T$993="MDA2 (DEC+ALB)", COUNTRY_INFO!$T$9:$T$993, " ") ->  | I141: 0 | M141: 0
A142: =IF(COUNTRY_INFO!A142=0," ",COUNTRY_INFO!A142) -> Uganda | B142: =IF(COUNTRY_INFO!B142=0," ",COUNTRY_INFO!B142) -> WESTERN | C142: =IF(COUNTRY_INFO!C142=0," ",COUNTRY_INFO!C142) -> RWAMPARA | D142: =IF(COUNTRY_INFO!$T$9:$T$993="MDA2 (DEC+ALB)", COUNTRY_INFO!$T$9:$T$993, " ") ->  | I142: 0 | M142: 0
A143: =IF(COUNTRY_INFO!A143=0," ",COUNTRY_INFO!A143) -> Uganda | B143: =IF(COUNTRY_INFO!B143=0," ",COUNTRY_INFO!B143) -> WESTERN | C143: =IF(COUNTRY_INFO!C143=0," ",COUNTRY_INFO!C143) -> SHEEMA | D143: =IF(COUNTRY_INFO!$T$9:$T$993="MDA2 (DEC+ALB)", COUNTRY_INFO!$T$9:$T$993, " ") ->  | I143: 0 | M143: 0
A144: =IF(COUNTRY_INFO!A144=0," ",COUNTRY_INFO!A144) -> Uganda | B144: =IF(COUNTRY_INFO!B144=0," ",COUNTRY_INFO!B144) ->  | C144: =IF(COUNTRY_INFO!C144=0," ",COUNTRY_INFO!C144) ->  | D144: =IF(COUNTRY_INFO!$T$9:$T$993="MDA2 (DEC+ALB)", COUNTRY_INFO!$T$9:$T$993, " ") ->  | I144: 0 | M144: 0

Sheet MDA3
A1: MDA 3 - Ivermectin (IVM)
A2: Administrative structure, population requiring PC by age group, population treated by age group and coverage
A4: TOTAL | F4: =SUM(F$9:F$993) -> 559227 | G4: 952199 | H4: =SUM(H$9:H$993) -> 1511426 | I4: 514959.5383 | J4: 888390.4617 | K4: 1403350 | L4: 523332.2406 | M4: 902834.7594 | N4: =SUM(N$9:N$993) -> 1426167 | O4: 525802.9162 | P4: 907097.0838 | Q4: 1432900 | R4: =IF(F4<>0, IF(O4/F4*100=0, "-", O4/F4*100), " ") -> 94.02316343 | S4: =IF(G4<>0, IF(P4/G4*100=0, "-", P4/G4*100), " ") -> 95.26339387 | T4: =IF(H4<>0, IF(Q4/H4*100=0, "-", Q4/H4*100), " ") -> 94.80450912
D6: PC implemented | E6: Date | F6: Population targeted for MDA 3 | I6: Population treated - 1st round | L6: Population treated - 2nd round | O6: Population treated | R6: Programme coverage (%)
A7: Country | B7: Province/State | C7: District | F7: SAC | G7: Adults | H7: Total | I7: SAC | J7: Adults | K7: Total | L7: SAC | M7: Adults | N7: Total | O7: SAC | P7: Adults | Q7: Total | R7: SAC | S7: Adults | T7: Total
A9: =IF(COUNTRY_INFO!A9=0," ",COUNTRY_INFO!A9) -> Uganda | B9: =IF(COUNTRY_INFO!B9=0," ",COUNTRY_INFO!B9) -> CENTRAL | C9: =IF(COUNTRY_INFO!C9=0," ",COUNTRY_INFO!C9) -> BUIKWE | D9: =IF(COUNTRY_INFO!$T$9:$T$993="MDA3 (IVM)", COUNTRY_INFO!$T$9:$T$993, " ") ->  | O9: =MAX(I9,L9) -> 0 | P9: 0 | Q9: =SUM(O9:P9) -> 0 | R9: =IF(F9<>0, IF(MAX(I9,L9)/F9*100=0, "-", MAX(I9,L9)/F9*100), " ") ->  | T9: =IF(H9<>0, IF((MAX(I9,L9)+MAX(J9,M9))/H9*100=0, "-",(MAX(I9,L9)+MAX(J9,M9))/H9*100), " ") -> 
A10: =IF(COUNTRY_INFO!A10=0," ",COUNTRY_INFO!A10) -> Uganda | B10: =IF(COUNTRY_INFO!B10=0," ",COUNTRY_INFO!B10) -> CENTRAL | C10: =IF(COUNTRY_INFO!C10=0," ",COUNTRY_INFO!C10) -> BUKOMANSIMBI | D10: =IF(COUNTRY_INFO!$T$9:$T$993="MDA3 (IVM)", COUNTRY_INFO!$T$9:$T$993, " ") ->  | O10: =MAX(I10,L10) -> 0 | P10: =MAX(J10,M10) -> 0 | Q10: =SUM(O10:P10) -> 0 | R10: =IF(F10<>0, IF(MAX(I10,L10)/F10*100=0, "-", MAX(I10,L10)/F10*100), " ") ->  | S10: =IF(G10<>0, IF(MAX(J10,M10)/G10*100=0, "-", MAX(J10,M10)/G10*100), " ") ->  | T10: =IF(H10<>0, IF((MAX(I10,L10)+MAX(J10,M10))/H10*100=0, "-",(MAX(I10,L10)+MAX(J10,M10))/H10*100), " ") -> 
A11: =IF(COUNTRY_INFO!A11=0," ",COUNTRY_INFO!A11) -> Uganda | B11: =IF(COUNTRY_INFO!B11=0," ",COUNTRY_INFO!B11) -> CENTRAL | C11: =IF(COUNTRY_INFO!C11=0," ",COUNTRY_INFO!C11) -> BUTAMBALA | D11: =IF(COUNTRY_INFO!$T$9:$T$993="MDA3 (IVM)", COUNTRY_INFO!$T$9:$T$993, " ") ->  | O11: 0 | P11: 0 | Q11: 0
A12: =IF(COUNTRY_INFO!A12=0," ",COUNTRY_INFO!A12) -> Uganda | B12: =IF(COUNTRY_INFO!B12=0," ",COUNTRY_INFO!B12) -> CENTRAL | C12: =IF(COUNTRY_INFO!C12=0," ",COUNTRY_INFO!C12) -> BUVUMA | D12: =IF(COUNTRY_INFO!$T$9:$T$993="MDA3 (IVM)", COUNTRY_INFO!$T$9:$T$993, " ") ->  | O12: 0 | P12: 0 | Q12: 0
A13: =IF(COUNTRY_INFO!A13=0," ",COUNTRY_INFO!A13) -> Uganda | B13: =IF(COUNTRY_INFO!B13=0," ",COUNTRY_INFO!B13) -> CENTRAL | C13: =IF(COUNTRY_INFO!C13=0," ",COUNTRY_INFO!C13) -> GOMBA | D13: =IF(COUNTRY_INFO!$T$9:$T$993="MDA3 (IVM)", COUNTRY_INFO!$T$9:$T$993, " ") ->  | O13: 0 | P13: 0 | Q13: 0
A14: =IF(COUNTRY_INFO!A14=0," ",COUNTRY_INFO!A14) -> Uganda | B14: =IF(COUNTRY_INFO!B14=0," ",COUNTRY_INFO!B14) -> CENTRAL | C14: =IF(COUNTRY_INFO!C14=0," ",COUNTRY_INFO!C14) -> KALANGALA | D14: =IF(COUNTRY_INFO!$T$9:$T$993="MDA3 (IVM)", COUNTRY_INFO!$T$9:$T$993, " ") ->  | O14: 0 | P14: 0 | Q14: 0
A15: =IF(COUNTRY_INFO!A15=0," ",COUNTRY_INFO!A15) -> Uganda | B15: =IF(COUNTRY_INFO!B15=0," ",COUNTRY_INFO!B15) -> CENTRAL | C15: =IF(COUNTRY_INFO!C15=0," ",COUNTRY_INFO!C15) -> KALUNGU | D15: =IF(COUNTRY_INFO!$T$9:$T$993="MDA3 (IVM)", COUNTRY_INFO!$T$9:$T$993, " ") ->  | O15: 0 | P15: 0 | Q15: 0
A16: =IF(COUNTRY_INFO!A16=0," ",COUNTRY_INFO!A16) -> Uganda | B16: =IF(COUNTRY_INFO!B16=0," ",COUNTRY_INFO!B16) -> CENTRAL | C16: =IF(COUNTRY_INFO!C16=0," ",COUNTRY_INFO!C16) -> KAMPALA | D16: =IF(COUNTRY_INFO!$T$9:$T$993="MDA3 (IVM)", COUNTRY_INFO!$T$9:$T$993, " ") ->  | O16: 0 | P16: 0 | Q16: 0
A17: =IF(COUNTRY_INFO!A17=0," ",COUNTRY_INFO!A17) -> Uganda | B17: =IF(COUNTRY_INFO!B17=0," ",COUNTRY_INFO!B17) -> CENTRAL | C17: =IF(COUNTRY_INFO!C17=0," ",COUNTRY_INFO!C17) -> KASSANDA | D17: =IF(COUNTRY_INFO!$T$9:$T$993="MDA3 (IVM)", COUNTRY_INFO!$T$9:$T$993, " ") ->  | O17: 0 | P17: 0 | Q17: 0
A18: =IF(COUNTRY_INFO!A18=0," ",COUNTRY_INFO!A18) -> Uganda | B18: =IF(COUNTRY_INFO!B18=0," ",COUNTRY_INFO!B18) -> CENTRAL | C18: =IF(COUNTRY_INFO!C18=0," ",COUNTRY_INFO!C18) -> KAYUNGA | D18: =IF(COUNTRY_INFO!$T$9:$T$993="MDA3 (IVM)", COUNTRY_INFO!$T$9:$T$993, " ") ->  | O18: 0 | P18: 0 | Q18: 0
A19: =IF(COUNTRY_INFO!A19=0," ",COUNTRY_INFO!A19) -> Uganda | B19: =IF(COUNTRY_INFO!B19=0," ",COUNTRY_INFO!B19) -> CENTRAL | C19: =IF(COUNTRY_INFO!C19=0," ",COUNTRY_INFO!C19) -> KIBOGA | D19: =IF(COUNTRY_INFO!$T$9:$T$993="MDA3 (IVM)", COUNTRY_INFO!$T$9:$T$993, " ") ->  | O19: 0 | P19: 0 | Q19: 0
A20: =IF(COUNTRY_INFO!A20=0," ",COUNTRY_INFO!A20) -> Uganda | B20: =IF(COUNTRY_INFO!B20=0," ",COUNTRY_INFO!B20) -> CENTRAL | C20: =IF(COUNTRY_INFO!C20=0," ",COUNTRY_INFO!C20) -> KYANKWANZI | D20: =IF(COUNTRY_INFO!$T$9:$T$993="MDA3 (IVM)", COUNTRY_INFO!$T$9:$T$993, " ") ->  | O20: 0 | P20: 0 | Q20: 0
A21: =IF(COUNTRY_INFO!A21=0," ",COUNTRY_INFO!A21) -> Uganda | B21: =IF(COUNTRY_INFO!B21=0," ",COUNTRY_INFO!B21) -> CENTRAL | C21: =IF(COUNTRY_INFO!C21=0," ",COUNTRY_INFO!C21) -> KYOTERA | D21: =IF(COUNTRY_INFO!$T$9:$T$993="MDA3 (IVM)", COUNTRY_INFO!$T$9:$T$993, " ") ->  | O21: 0 | P21: 0 | Q21: 0
A22: =IF(COUNTRY_INFO!A22=0," ",COUNTRY_INFO!A22) -> Uganda | B22: =IF(COUNTRY_INFO!B22=0," ",COUNTRY_INFO!B22) -> CENTRAL | C22: =IF(COUNTRY_INFO!C22=0," ",COUNTRY_INFO!C22) -> LUWERO | D22: =IF(COUNTRY_INFO!$T$9:$T$993="MDA3 (IVM)", COUNTRY_INFO!$T$9:$T$993, " ") ->  | O22: 0 | P22: 0 | Q22: 0
A23: =IF(COUNTRY_INFO!A23=0," ",COUNTRY_INFO!A23) -> Uganda | B23: =IF(COUNTRY_INFO!B23=0," ",COUNTRY_INFO!B23) -> CENTRAL | C23: =IF(COUNTRY_INFO!C23=0," ",COUNTRY_INFO!C23) -> LWENGO | D23: =IF(COUNTRY_INFO!$T$9:$T$993="MDA3 (IVM)", COUNTRY_INFO!$T$9:$T$993, " ") ->  | O23: 0 | P23: 0 | Q23: 0
A24: =IF(COUNTRY_INFO!A24=0," ",COUNTRY_INFO!A24) -> Uganda | B24: =IF(COUNTRY_INFO!B24=0," ",COUNTRY_INFO!B24) -> CENTRAL | C24: =IF(COUNTRY_INFO!C24=0," ",COUNTRY_INFO!C24) -> LYANTONDE | D24: =IF(COUNTRY_INFO!$T$9:$T$993="MDA3 (IVM)", COUNTRY_INFO!$T$9:$T$993, " ") ->  | O24: 0 | P24: 0 | Q24: 0
A25: =IF(COUNTRY_INFO!A25=0," ",COUNTRY_INFO!A25) -> Uganda | B25: =IF(COUNTRY_INFO!B25=0," ",COUNTRY_INFO!B25) -> CENTRAL | C25: =IF(COUNTRY_INFO!C25=0," ",COUNTRY_INFO!C25) -> MASAKA | D25: =IF(COUNTRY_INFO!$T$9:$T$993="MDA3 (IVM)", COUNTRY_INFO!$T$9:$T$993, " ") ->  | O25: 0 | P25: 0 | Q25: 0
A26: =IF(COUNTRY_INFO!A26=0," ",COUNTRY_INFO!A26) -> Uganda | B26: =IF(COUNTRY_INFO!B26=0," ",COUNTRY_INFO!B26) -> CENTRAL | C26: =IF(COUNTRY_INFO!C26=0," ",COUNTRY_INFO!C26) -> MITYANA | D26: =IF(COUNTRY_INFO!$T$9:$T$993="MDA3 (IVM)", COUNTRY_INFO!$T$9:$T$993, " ") ->  | O26: 0 | P26: 0 | Q26: 0
A27: =IF(COUNTRY_INFO!A27=0," ",COUNTRY_INFO!A27) -> Uganda | B27: =IF(COUNTRY_INFO!B27=0," ",COUNTRY_INFO!B27) -> CENTRAL | C27: =IF(COUNTRY_INFO!C27=0," ",COUNTRY_INFO!C27) -> MPIGI | D27: =IF(COUNTRY_INFO!$T$9:$T$993="MDA3 (IVM)", COUNTRY_INFO!$T$9:$T$993, " ") ->  | O27: 0 | P27: 0 | Q27: 0
A28: =IF(COUNTRY_INFO!A28=0," ",COUNTRY_INFO!A28) -> Uganda | B28: =IF(COUNTRY_INFO!B28=0," ",COUNTRY_INFO!B28) -> CENTRAL | C28: =IF(COUNTRY_INFO!C28=0," ",COUNTRY_INFO!C28) -> MUBENDE | D28: =IF(COUNTRY_INFO!$T$9:$T$993="MDA3 (IVM)", COUNTRY_INFO!$T$9:$T$993, " ") ->  | O28: 0 | P28: 0 | Q28: 0
A29: =IF(COUNTRY_INFO!A29=0," ",COUNTRY_INFO!A29) -> Uganda | B29: =IF(COUNTRY_INFO!B29=0," ",COUNTRY_INFO!B29) -> CENTRAL | C29: =IF(COUNTRY_INFO!C29=0," ",COUNTRY_INFO!C29) -> MUKONO | D29: =IF(COUNTRY_INFO!$T$9:$T$993="MDA3 (IVM)", COUNTRY_INFO!$T$9:$T$993, " ") ->  | O29: 0 | P29: 0 | Q29: 0
A30: =IF(COUNTRY_INFO!A30=0," ",COUNTRY_INFO!A30) -> Uganda | B30: =IF(COUNTRY_INFO!B30=0," ",COUNTRY_INFO!B30) -> CENTRAL | C30: =IF(COUNTRY_INFO!C30=0," ",COUNTRY_INFO!C30) -> NAKASEKE | D30: =IF(COUNTRY_INFO!$T$9:$T$993="MDA3 (IVM)", COUNTRY_INFO!$T$9:$T$993, " ") ->  | O30: 0 | P30: 0 | Q30: 0
A31: =IF(COUNTRY_INFO!A31=0," ",COUNTRY_INFO!A31) -> Uganda | B31: =IF(COUNTRY_INFO!B31=0," ",COUNTRY_INFO!B31) -> CENTRAL | C31: =IF(COUNTRY_INFO!C31=0," ",COUNTRY_INFO!C31) -> NAKASONGOLA | D31: =IF(COUNTRY_INFO!$T$9:$T$993="MDA3 (IVM)", COUNTRY_INFO!$T$9:$T$993, " ") ->  | O31: 0 | P31: 0 | Q31: 0
A32: =IF(COUNTRY_INFO!A32=0," ",COUNTRY_INFO!A32) -> Uganda | B32: =IF(COUNTRY_INFO!B32=0," ",COUNTRY_INFO!B32) -> CENTRAL | C32: =IF(COUNTRY_INFO!C32=0," ",COUNTRY_INFO!C32) -> RAKAI | D32: =IF(COUNTRY_INFO!$T$9:$T$993="MDA3 (IVM)", COUNTRY_INFO!$T$9:$T$993, " ") ->  | O32: 0 | P32: 0 | Q32: 0
A33: =IF(COUNTRY_INFO!A33=0," ",COUNTRY_INFO!A33) -> Uganda | B33: =IF(COUNTRY_INFO!B33=0," ",COUNTRY_INFO!B33) -> CENTRAL | C33: =IF(COUNTRY_INFO!C33=0," ",COUNTRY_INFO!C33) -> SEMBABULE | D33: =IF(COUNTRY_INFO!$T$9:$T$993="MDA3 (IVM)", COUNTRY_INFO!$T$9:$T$993, " ") ->  | O33: 0 | P33: 0 | Q33: 0
A34: =IF(COUNTRY_INFO!A34=0," ",COUNTRY_INFO!A34) -> Uganda | B34: =IF(COUNTRY_INFO!B34=0," ",COUNTRY_INFO!B34) -> CENTRAL | C34: =IF(COUNTRY_INFO!C34=0," ",COUNTRY_INFO!C34) -> WAKISO | D34: =IF(COUNTRY_INFO!$T$9:$T$993="MDA3 (IVM)", COUNTRY_INFO!$T$9:$T$993, " ") ->  | O34: 0 | P34: 0 | Q34: 0
A35: =IF(COUNTRY_INFO!A35=0," ",COUNTRY_INFO!A35) -> Uganda | B35: =IF(COUNTRY_INFO!B35=0," ",COUNTRY_INFO!B35) -> EASTERN | C35: =IF(COUNTRY_INFO!C35=0," ",COUNTRY_INFO!C35) -> AMURIA | D35: =IF(COUNTRY_INFO!$T$9:$T$993="MDA3 (IVM)", COUNTRY_INFO!$T$9:$T$993, " ") ->  | O35: 0 | P35: 0 | Q35: 0
A36: =IF(COUNTRY_INFO!A36=0," ",COUNTRY_INFO!A36) -> Uganda | B36: =IF(COUNTRY_INFO!B36=0," ",COUNTRY_INFO!B36) -> EASTERN | C36: =IF(COUNTRY_INFO!C36=0," ",COUNTRY_INFO!C36) -> BUDAKA | D36: =IF(COUNTRY_INFO!$T$9:$T$993="MDA3 (IVM)", COUNTRY_INFO!$T$9:$T$993, " ") ->  | O36: 0 | P36: 0 | Q36: 0
A37: =IF(COUNTRY_INFO!A37=0," ",COUNTRY_INFO!A37) -> Uganda | B37: =IF(COUNTRY_INFO!B37=0," ",COUNTRY_INFO!B37) -> EASTERN | C37: =IF(COUNTRY_INFO!C37=0," ",COUNTRY_INFO!C37) -> BUDUDA | D37: =IF(COUNTRY_INFO!$T$9:$T$993="MDA3 (IVM)", COUNTRY_INFO!$T$9:$T$993, " ") ->  | O37: 0 | P37: 0 | Q37: 0
A38: =IF(COUNTRY_INFO!A38=0," ",COUNTRY_INFO!A38) -> Uganda | B38: =IF(COUNTRY_INFO!B38=0," ",COUNTRY_INFO!B38) -> EASTERN | C38: =IF(COUNTRY_INFO!C38=0," ",COUNTRY_INFO!C38) -> BUGIRI | D38: =IF(COUNTRY_INFO!$T$9:$T$993="MDA3 (IVM)", COUNTRY_INFO!$T$9:$T$993, " ") ->  | O38: 0 | P38: 0 | Q38: 0
A39: =IF(COUNTRY_INFO!A39=0," ",COUNTRY_INFO!A39) -> Uganda | B39: =IF(COUNTRY_INFO!B39=0," ",COUNTRY_INFO!B39) -> EASTERN | C39: =IF(COUNTRY_INFO!C39=0," ",COUNTRY_INFO!C39) -> BUGWERI | D39: =IF(COUNTRY_INFO!$T$9:$T$993="MDA3 (IVM)", COUNTRY_INFO!$T$9:$T$993, " ") ->  | O39: 0 | P39: 0 | Q39: 0
A40: =IF(COUNTRY_INFO!A40=0," ",COUNTRY_INFO!A40) -> Uganda | B40: =IF(COUNTRY_INFO!B40=0," ",COUNTRY_INFO!B40) -> EASTERN | C40: =IF(COUNTRY_INFO!C40=0," ",COUNTRY_INFO!C40) -> BUKEDEA | D40: =IF(COUNTRY_INFO!$T$9:$T$993="MDA3 (IVM)", COUNTRY_INFO!$T$9:$T$993, " ") ->  | O40: 0 | P40: 0 | Q40: 0
A41: =IF(COUNTRY_INFO!A41=0," ",COUNTRY_INFO!A41) -> Uganda | B41: =IF(COUNTRY_INFO!B41=0," ",COUNTRY_INFO!B41) -> EASTERN | C41: =IF(COUNTRY_INFO!C41=0," ",COUNTRY_INFO!C41) -> BUKWO | D41: =IF(COUNTRY_INFO!$T$9:$T$993="MDA3 (IVM)", COUNTRY_INFO!$T$9:$T$993, " ") ->  | O41: 0 | P41: 0 | Q41: 0
A42: =IF(COUNTRY_INFO!A42=0," ",COUNTRY_INFO!A42) -> Uganda | B42: =IF(COUNTRY_INFO!B42=0," ",COUNTRY_INFO!B42) -> EASTERN | C42: =IF(COUNTRY_INFO!C42=0," ",COUNTRY_INFO!C42) -> BULAMBULI | D42: =IF(COUNTRY_INFO!$T$9:$T$993="MDA3 (IVM)", COUNTRY_INFO!$T$9:$T$993, " ") ->  | O42: 0 | P42: 0 | Q42: 0
